Workbook

Sheet Cover
A1: =LEN(C13) -> 20
C13: ="Tier2 Workbook V1.0 " -> Tier2 Workbook V1.0
C14: =MID(CELL("filename"),SEARCH("[",CELL("filename"))+1, SEARCH("]",CELL("filename"))-SEARCH("[",CELL("filename"))-1) -> Tier2PricingModelBP26IP.xlsm
C15: Home / Contents
C17: Purpose of this Workbook:
C18: The Tier 2 module of RAM, a spreadsheet-based model, calculates Tier 2 rates and the applicable Tier 2 revenue credits and adjustments used in RAM Core that are not already accounted for in the RSS module of RAM.
C20: Legend:
C22: Tab Colors | H22: Font Colors | L22: Hyperlink Types
C24: Blue Tab | E24: Cover Sheet | H24: Blue Font | I24: Constant Values | L24: Cover Hyperlink | N24: Cover Page
C25: Green Tab | E25: Table of Contents | H25: Black Font | I25: Calculated Values | L25: TOC Hyperlink | N25: TOC
C26: Grey Tabs | E26: Base Case Sheets | H26: Plum Font | I26: Hyperlinks | L26: Sheet Top Hyperlink | N26: é
C27: Rose Tabs | E27: Assumption Sheets | H27: Red Font | I27: Errors
C28: Tan Tabs | E28: Output Sheets | H28: Black/Yellow | I28: Work in Progress
C29: Teal Tabs | E29: Lookup Sheets | H29: Black/Gold | I29: Modifiable Assumptions
C30: Reb Tabs | E30: Log/Error Sheet | H30: White/Grey | I30: Locked Data
C31: Blue Tabs | E31: Non-Spreadsheet Input
C32: Black Tabs | E32: Locked Data Sheet

Sheet TOC
B1: Table of Contents
A2: Cover | B2: =Cover!C14 -> Tier2PricingModelBP26IP.xlsm
A3: é
B4: Sheet Titles | M4: Page
B6: Tier2Purchases | M6: 3
B7: T2DateSort | M7: =M6+1 -> 4
B8: T2Purchase$Sort | M8: =M7+1 -> 5
B9: T2PurchaseMWhSort | M9: 6
B10: OverheadCosts | M10: 7
B11: Tier2Obligations | M11: 8
B12: RateInputs | M12: 9
B13: ShortTerm | M13: 10
B14: LoadGrowth | M14: 11
B15: VR1_2014 | M15: 12
B16: VR1_2016 | M16: 13
B17: Remarketing | M17: 14
B18: Tier2RateRev&Pool | M18: 15
B19: Tier2Rev&PoolOutputNew | M19: 16
B20: Tier2RateOutputNew | M20: 17

Sheet Tier2Purchases
B1: Tier2Purchases
A2: TOC | B2: =Cover!C14 -> Tier2PricingModelBP26IP.xlsm
A4: Vlookup Index | B4: 1 | C4: 2 | D4: 3 | E4: 4 | F4: 5 | G4: 6 | H4: 7 | I4: 8 | J4: 9 | K4: 10 | L4: 11 | M4: 12 | N4: 13 | O4: 14 | P4: 15 | Q4: 16 | R4: 17 | S4: 18 | T4: 19
A5: é
B6: start_date | C6: maturity_date | D6: trade_date | E6: internal_portfolio | F6: tran_status | G6: hours | H6: price | I6: revenue | J6: position | K6: choice | L6: product | M6: term | N6: Description | O6: reference | P6: tran_num | Q6: buy_sell | R6: RIS | S6: deal_num | T6: pt_of_receipt_loc
B7: 2012-10-01 | C7: 2013-09-30 | D7: 2010-04-05 | E7: Load Growth T2 | F7: Validated | G7: 8760 | H7: 46.2 | I7: -607068 | J7: 1.5 | K7: Seller's Choice | L7: FLAT | M7: Yearly | N7: Energy | O7: T2 load growth | P7: 188001 | Q7: Buy | R7: 79572 | S7: 187994 | T7: MID-C
B8: 2012-10-01 | C8: 2013-09-30 | D8: 2010-05-24 | E8: Load Growth T2 | F8: Validated | G8: 8760 | H8: 45.7 | I8: -480398.4 | J8: 1.2 | K8: Seller's Choice | L8: FLAT | M8: Yearly | N8: Energy | O8: Related to deal #191524 | P8: 191739 | Q8: Buy | R8: 79572 | S8: 191735 | T8: MID-C
B9: 2012-10-01 | C9: 2013-09-30 | D9: 2010-05-24 | E9: ST Default Rate T2 | F9: Validated | G9: 8760 | H9: 45.7 | I9: -9527901.6 | J9: 23.8 | K9: Seller's Choice | L9: FLAT | M9: Yearly | N9: Energy | O9: Related to deal #191735 | P9: 191737 | Q9: Buy | R9: 79571 | S9: 191524 | T9: MID-C
B10: 2011-10-01 | C10: 2012-09-30 | D10: 2010-04-01 | E10: ST Default Rate T2 | F10: Validated | G10: 8784 | H10: 43.7 | I10: -8444937.6 | J10: 22 | K10: Seller's Choice | L10: FLAT | M10: Yearly | N10: Energy | O10: t2 st default rate | P10: 187997 | Q10: Buy | R10: 79571 | S10: 187997 | T10: MID-C
B11: 2012-10-01 | C11: 2013-09-30 | D11: 2010-04-05 | E11: ST Default Rate T2 | F11: Validated | G11: 8760 | H11: 46.2 | I11: -12748428 | J11: 31.5 | K11: Seller's Choice | L11: FLAT | M11: Yearly | N11: Energy | O11: T2 st default rate | P11: 187999 | Q11: Buy | R11: 79571 | S11: 187995 | T11: MID-C
B12: 2013-10-01 | C12: 2014-09-30 | D12: 2012-11-16 | E12: ST Default Rate T2 | F12: Validated | G12: 8760 | H12: 33.28 | I12: -4664524.8 | J12: 16 | K12: Seller's Choice | L12: FLAT | M12: Strip | N12: Energy | O12: Energy | P12: 309934 | Q12: Buy | R12: 79571 | S12: 309934 | T12: MID-C
B13: 2013-10-01 | C13: 2014-09-30 | D13: 2012-11-16 | E13: Load Growth T2 | F13: Validated | G13: 8760 | H13: 33.28 | I13: -291532.8 | J13: 1 | K13: Seller's Choice | L13: FLAT | M13: Strip | N13: Energy | O13: Energy | P13: 310005 | Q13: Buy | R13: 79572 | S13: 309948 | T13: MID-C
B14: 2014-10-01 | C14: 2015-09-30 | D14: 2011-12-20 | E14: Load Growth T2 | F14: Validated | G14: 8760 | H14: 39.12 | I14: -1713456 | J14: 5 | K14: Seller's Choice | L14: FLAT | M14: Strip | N14: Energy | O14: Energy | P14: 245587 | Q14: Buy | R14: 79572 | S14: 245587 | T14: MID-C
B15: 2014-10-01 | C15: 2015-09-30 | D15: 2012-11-16 | E15: ST Default Rate T2 | F15: Validated | G15: 8760 | H15: 37.25 | I15: -6852510 | J15: 21 | K15: Seller's Choice | L15: FLAT | M15: Strip | N15: Energy | O15: Energy | P15: 310004 | Q15: Buy | R15: 79571 | S15: 309931 | T15: MID-C
B16: 2014-10-01 | C16: 2015-09-30 | D16: 2012-11-16 | E16: Vintage T2 | F16: Validated | G16: 8760 | H16: 37.25 | I16: -326310 | J16: 1 | K16: Seller's Choice | L16: FLAT | M16: Strip | N16: Energy | O16: Energy | P16: 310003 | Q16: Buy | R16: 79576 | S16: 309949 | T16: MID-C
B17: 2014-10-01 | C17: 2015-09-30 | D17: 2011-12-14 | E17: Vintage T2 | F17: Validated | G17: 8760 | H17: 39.12 | I17: -15763795.2 | J17: 46 | K17: Seller's Choice | L17: FLAT | M17: Strip | N17: Energy | O17: Energy | P17: 245588 | Q17: Buy | R17: 79576 | S17: 245280 | T17: MID-C
B18: 2015-10-01 | C18: 2016-09-30 | D18: 2011-12-14 | E18: Vintage T2 | F18: Validated | G18: 8784 | H18: 42.47 | I18: -17160598.08 | J18: 46 | K18: Seller's Choice | L18: FLAT | M18: Strip | N18: Energy | O18: related to # 245589 | P18: 245590 | Q18: Buy | R18: 79576 | S18: 245281 | T18: MID-C
B19: 2015-10-01 | C19: 2016-09-30 | D19: 2011-12-20 | E19: Load Growth T2 | F19: Validated | G19: 8784 | H19: 42.47 | I19: -1865282.4 | J19: 5 | K19: Seller's Choice | L19: FLAT | M19: Strip | N19: Energy | O19: related to # 245281 | P19: 245589 | Q19: Buy | R19: 79572 | S19: 245589 | T19: MID-C
B20: 2016-10-01 | C20: 2017-09-30 | D20: 2011-12-14 | E20: Vintage T2 | F20: Validated | G20: 8760 | H20: 46.7 | I20: -18818232 | J20: 46 | K20: Seller's Choice | L20: FLAT | M20: Strip | N20: Energy | O20: related to # 245591 | P20: 415275 | Q20: Buy | R20: 79576 | S20: 245282 | T20: MID-C
B21: 2016-10-01 | C21: 2017-09-30 | D21: 2011-12-20 | E21: Load Growth T2 | F21: Validated | G21: 8760 | H21: 46.7 | I21: -2045460 | J21: 5 | K21: Seller's Choice | L21: FLAT | M21: Strip | N21: Energy | O21: related to # 245282 | P21: 245591 | Q21: Buy | R21: 79572 | S21: 245591 | T21: MID-C
B22: 2015-10-01 | C22: 2016-09-30 | D22: 2012-12-07 | E22: Vintage T2 | F22: Validated | G22: 8784 | H22: 38.35 | I22: -3031797.6 | J22: 9 | K22: Seller's Choice | L22: FLAT | M22: Strip | N22: Energy | O22: Tier 2 Vintage FY16 | P22: 314963 | Q22: Buy | R22: 79577 | S22: 314963 | T22: MID-C
B23: 2016-10-01 | C23: 2017-09-30 | D23: 2012-12-07 | E23: Vintage T2 | F23: Validated | G23: 8760 | H23: 40.8 | I23: -5718528 | J23: 16 | K23: Seller's Choice | L23: FLAT | M23: Strip | N23: Energy | O23: Tier 2 Vintage FY17 | P23: 314976 | Q23: Buy | R23: 79577 | S23: 314965 | T23: MID-C
B24: 2017-10-01 | C24: 2018-09-30 | D24: 2011-12-14 | E24: Vintage T2 | F24: Validated | G24: 8760 | H24: 49.4 | I24: -19906224 | J24: 46 | K24: Seller's Choice | L24: FLAT | M24: Strip | N24: Energy | O24: related to # 245283 | P24: 1 | Q24: Buy | R24: 79576 | S24: 245283 | T24: MID-C
B25: 2017-10-01 | C25: 2018-09-30 | D25: 2012-12-07 | E25: Vintage T2 | F25: Validated | G25: 8760 | H25: 44.5 | I25: -8965860 | J25: 23 | K25: Seller's Choice | L25: FLAT | M25: Strip | N25: Energy | O25: Tier 2 Vintage FY18 | P25: 2 | Q25: Buy | R25: 79577 | S25: 314966 | T25: MID-C
B26: 2017-10-01 | C26: 2018-09-30 | D26: 2011-12-20 | E26: Load Growth T2 | F26: Validated | G26: 8760 | H26: 49.4 | I26: -2163720 | J26: 5 | K26: Seller's Choice | L26: FLAT | M26: Strip | N26: Energy | O26: related to #245283 | P26: 3 | Q26: Buy | R26: 79572 | S26: 245585 | T26: MID-C
B27: 2018-10-01 | C27: 2019-09-30 | D27: 2012-12-07 | E27: Vintage T2 | F27: Validated | G27: 8760 | H27: 46.05 | I27: -10891746 | J27: 27 | K27: Seller's Choice | L27: FLAT | M27: Strip | N27: Energy | O27: Tier 2 Vintage FY19 | P27: 4 | Q27: Buy | R27: 79577 | S27: 314969 | T27: MID-C
B28: 2018-10-01 | C28: 2019-09-30 | D28: 2011-12-14 | E28: Vintage T2 | F28: Validated | G28: 8760 | H28: 51.05 | I28: -20571108 | J28: 46 | K28: Seller's Choice | L28: FLAT | M28: Strip | N28: Energy | O28: related to #245582 | P28: 5 | Q28: Buy | R28: 79576 | S28: 245284 | T28: MID-C
B29: 2018-10-01 | C29: 2019-09-30 | D29: 2011-12-20 | E29: Load Growth T2 | F29: Validated | G29: 8760 | H29: 51.05 | I29: -2235990 | J29: 5 | K29: Seller's Choice | L29: FLAT | M29: Strip | N29: Energy | O29: related #245284 | P29: 6 | Q29: Buy | R29: 79572 | S29: 245582 | T29: MID-C
B30: 2018-10-01 | C30: 2019-09-30 | D30: 2017-02-20 | E30: ST T2 | F30: Validated | G30: 8760 | H30: 23 | I30: -6850320 | J30: 34 | K30: Seller's Choice | L30: FLAT | M30: Strip | N30: Energy | O30: related #571583 | P30: 7 | Q30: Buy | R30: 79571 | S30: 571580 | T30: MID-C
B31: 2018-10-01 | C31: 2019-09-30 | D31: 2017-02-20 | E31: Load Growth T2 | F31: Validated | G31: 8760 | H31: 23 | I31: -302220 | J31: 1.5 | K31: Seller's Choice | L31: FLAT | M31: Strip | N31: Energy | O31: related #571585 | P31: 8 | Q31: Buy | R31: 79572 | S31: 571583 | T31: MID-C
B32: 2018-10-01 | C32: 2019-09-30 | D32: 2017-02-20 | E32: Vintage T2 | F32: Validated | G32: 8760 | H32: 23 | I32: -201480 | J32: 1 | K32: Seller's Choice | L32: FLAT | M32: Strip | N32: Energy | O32: related #571580 | P32: 9 | Q32: Buy | R32: 79576 | S32: 571585 | T32: MID-C
B33: 2018-10-01 | C33: 2019-09-30 | D33: 2017-02-20 | E33: Vintage T2 | F33: Validated | G33: 8760 | H33: 23 | I33: -100740 | J33: 0.5 | K33: Seller's Choice | L33: FLAT | M33: Strip | N33: Energy | O33: related #571583 | P33: 10 | Q33: Buy | R33: 79577 | S33: 571585 | T33: MID-C

Sheet T2DateSort
B1: Tier2DateSort
A2: TOC | B2: =Cover!C14 -> Tier2PricingModelBP26IP.xlsm
A5: é | B5: FISCAL YEAR KEY | E5: start_date | F5: maturity_date | H5: FY2012 | I5: FY2013 | J5: FY2014 | K5: FY2015 | L5: FY2016 | M5: FY2017 | N5: FY2018 | O5: FY2019 | P5: FY2020 | Q5: FY2021 | R5: FY2022 | S5: FY2023 | T5: FY2024 | U5: FY2025 | V5: FY2026 | W5: FY2027 | X5: FY2028 | Y5: FY SUM | Z5: Days Outside FY 2012-2028 Range | AA5: Total Contract Days
B6: FY2012 | C6: START DATE | D6: 2011-10-01 | E6: =Tier2Purchases!B7 -> 2012-10-01 | F6: =Tier2Purchases!C7 -> 2013-09-30 | H6: =IF(OR(Tier2Purchases!$B7>$D$7,Tier2Purchases!$C7<$D$6),0,IF(AND(Tier2Purchases!$B7<$D$6,Tier2Purchases!$C7>$D$7),(Tier2Purchases!$C7-Tier2Purchases!$B7)-(Tier2Purchases!$C7-$D$8)-($D$6-Tier2Purchases!$B7),IF(AND(Tier2Purchases!$C7<=$D$7,Tier2Purchases!$B7>=$D$6),($D$7-$D$6)-($D$7-Tier2Purchases!$C7)-(Tier2Purchases!$B7-$D$6)+1,IF(Tier2Purchases!$B7>=$D$6,(Tier2Purchases!$C7-Tier2Purchases!$B7)-(Tier2Purchases!$C7-$D$8),IF(Tier2Purchases!$C7<=$D$7,(Tier2Purchases!$C7-Tier2Purchases!$B7)-($D$6-Tier2Purchases!$B7)+1))))) -> 0 | I6: =IF(OR(Tier2Purchases!$B7>$D$9,Tier2Purchases!$C7<$D$8),0,IF(AND(Tier2Purchases!$B7<$D$8,Tier2Purchases!$C7>$D$9),(Tier2Purchases!$C7-Tier2Purchases!$B7)-(Tier2Purchases!$C7-$D$10)-($D$8-Tier2Purchases!$B7),IF(AND(Tier2Purchases!$C7<=$D$9,Tier2Purchases!$B7>=$D$8),($D$9-$D$8)-($D$9-Tier2Purchases!$C7)-(Tier2Purchases!$B7-$D$8)+1,IF(Tier2Purchases!$B7>=$D$8,(Tier2Purchases!$C7-Tier2Purchases!$B7)-(Tier2Purchases!$C7-$D$10),IF(Tier2Purchases!$C7<=$D$9,(Tier2Purchases!$C7-Tier2Purchases!$B7)-($D$8-Tier2Purchases!$B7)+1))))) -> 365 | J6: =IF(OR(Tier2Purchases!$B7>$D$11,Tier2Purchases!$C7<$D$10),0,IF(AND(Tier2Purchases!$B7<$D$10,Tier2Purchases!$C7>$D$11),(Tier2Purchases!$C7-Tier2Purchases!$B7)-(Tier2Purchases!$C7-$D$12)-($D$10-Tier2Purchases!$B7),IF(AND(Tier2Purchases!$C7<=$D$11,Tier2Purchases!$B7>=$D$10),($D$11-$D$10)-($D$11-Tier2Purchases!$C7)-(Tier2Purchases!$B7-$D$10)+1,IF(Tier2Purchases!$B7>=$D$10,(Tier2Purchases!$C7-Tier2Purchases!$B7)-(Tier2Purchases!$C7-$D$12),IF(Tier2Purchases!$C7<=$D$11,(Tier2Purchases!$C7-Tier2Purchases!$B7)-($D$10-Tier2Purchases!$B7)+1))))) -> 0 | K6: =IF(OR(Tier2Purchases!$B7>$D$13,Tier2Purchases!$C7<$D$12),0,IF(AND(Tier2Purchases!$B7<$D$12,Tier2Purchases!$C7>$D$13),(Tier2Purchases!$C7-Tier2Purchases!$B7)-(Tier2Purchases!$C7-$D$14)-($D$12-Tier2Purchases!$B7),IF(AND(Tier2Purchases!$C7<=$D$13,Tier2Purchases!$B7>=$D$12),($D$13-$D$12)-($D$13-Tier2Purchases!$C7)-(Tier2Purchases!$B7-$D$12)+1,IF(Tier2Purchases!$B7>=$D$12,(Tier2Purchases!$C7-Tier2Purchases!$B7)-(Tier2Purchases!$C7-$D$14),IF(Tier2Purchases!$C7<=$D$13,(Tier2Purchases!$C7-Tier2Purchases!$B7)-($D$12-Tier2Purchases!$B7)+1))))) -> 0 | L6: =IF(OR(Tier2Purchases!$B7>$D$15,Tier2Purchases!$C7<$D$14),0,IF(AND(Tier2Purchases!$B7<$D$14,Tier2Purchases!$C7>$D$15),(Tier2Purchases!$C7-Tier2Purchases!$B7)-(Tier2Purchases!$C7-$D$16)-($D$14-Tier2Purchases!$B7),IF(AND(Tier2Purchases!$C7<=$D$15,Tier2Purchases!$B7>=$D$14),($D$15-$D$14)-($D$15-Tier2Purchases!$C7)-(Tier2Purchases!$B7-$D$14)+1,IF(Tier2Purchases!$B7>=$D$14,(Tier2Purchases!$C7-Tier2Purchases!$B7)-(Tier2Purchases!$C7-$D$16),IF(Tier2Purchases!$C7<=$D$15,(Tier2Purchases!$C7-Tier2Purchases!$B7)-($D$14-Tier2Purchases!$B7)+1))))) -> 0 | M6: =IF(OR(Tier2Purchases!$B7>$D$17,Tier2Purchases!$C7<$D$16),0,IF(AND(Tier2Purchases!$B7<$D$16,Tier2Purchases!$C7>$D$17),(Tier2Purchases!$C7-Tier2Purchases!$B7)-(Tier2Purchases!$C7-$D$18)-($D$16-Tier2Purchases!$B7),IF(AND(Tier2Purchases!$C7<=$D$17,Tier2Purchases!$B7>=$D$16),($D$17-$D$16)-($D$17-Tier2Purchases!$C7)-(Tier2Purchases!$B7-$D$16)+1,IF(Tier2Purchases!$B7>=$D$16,(Tier2Purchases!$C7-Tier2Purchases!$B7)-(Tier2Purchases!$C7-$D$18),IF(Tier2Purchases!$C7<=$D$17,(Tier2Purchases!$C7-Tier2Purchases!$B7)-($D$16-Tier2Purchases!$B7)+1))))) -> 0 | N6: =IF(OR(Tier2Purchases!$B7>$D$19,Tier2Purchases!$C7<$D$18),0,IF(AND(Tier2Purchases!$B7<$D$18,Tier2Purchases!$C7>$D$19),(Tier2Purchases!$C7-Tier2Purchases!$B7)-(Tier2Purchases!$C7-$D$20)-($D$18-Tier2Purchases!$B7),IF(AND(Tier2Purchases!$C7<=$D$19,Tier2Purchases!$B7>=$D$18),($D$19-$D$18)-($D$19-Tier2Purchases!$C7)-(Tier2Purchases!$B7-$D$18)+1,IF(Tier2Purchases!$B7>=$D$18,(Tier2Purchases!$C7-Tier2Purchases!$B7)-(Tier2Purchases!$C7-$D$20),IF(Tier2Purchases!$C7<=$D$19,(Tier2Purchases!$C7-Tier2Purchases!$B7)-($D$18-Tier2Purchases!$B7)+1))))) -> 0 | O6: =IF(OR(Tier2Purchases!$B7>$D$21,Tier2Purchases!$C7<$D$20),0,IF(AND(Tier2Purchases!$B7<$D$20,Tier2Purchases!$C7>$D$21),(Tier2Purchases!$C7-Tier2Purchases!$B7)-(Tier2Purchases!$C7-$D$22)-($D$20-Tier2Purchases!$B7),IF(AND(Tier2Purchases!$C7<=$D$21,Tier2Purchases!$B7>=$D$20),($D$21-$D$20)-($D$21-Tier2Purchases!$C7)-(Tier2Purchases!$B7-$D$20)+1,IF(Tier2Purchases!$B7>=$D$20,(Tier2Purchases!$C7-Tier2Purchases!$B7)-(Tier2Purchases!$C7-$D$22),IF(Tier2Purchases!$C7<=$D$21,(Tier2Purchases!$C7-Tier2Purchases!$B7)-($D$20-Tier2Purchases!$B7)+1))))) -> 0 | P6: =IF(OR(Tier2Purchases!$B7>$D$23,Tier2Purchases!$C7<$D$22),0,IF(AND(Tier2Purchases!$B7<$D$22,Tier2Purchases!$C7>$D$23),(Tier2Purchases!$C7-Tier2Purchases!$B7)-(Tier2Purchases!$C7-$D$24)-($D$22-Tier2Purchases!$B7),IF(AND(Tier2Purchases!$C7<=$D$23,Tier2Purchases!$B7>=$D$22),($D$23-$D$22)-($D$23-Tier2Purchases!$C7)-(Tier2Purchases!$B7-$D$22)+1,IF(Tier2Purchases!$B7>=$D$22,(Tier2Purchases!$C7-Tier2Purchases!$B7)-(Tier2Purchases!$C7-$D$24),IF(Tier2Purchases!$C7<=$D$23,(Tier2Purchases!$C7-Tier2Purchases!$B7)-($D$22-Tier2Purchases!$B7)+1))))) -> 0 | Q6: =IF(OR(Tier2Purchases!$B7>$D$25,Tier2Purchases!$C7<$D$24),0,IF(AND(Tier2Purchases!$B7<$D$24,Tier2Purchases!$C7>$D$25),(Tier2Purchases!$C7-Tier2Purchases!$B7)-(Tier2Purchases!$C7-$D$26)-($D$24-Tier2Purchases!$B7),IF(AND(Tier2Purchases!$C7<=$D$25,Tier2Purchases!$B7>=$D$24),($D$25-$D$24)-($D$25-Tier2Purchases!$C7)-(Tier2Purchases!$B7-$D$24)+1,IF(Tier2Purchases!$B7>=$D$24,(Tier2Purchases!$C7-Tier2Purchases!$B7)-(Tier2Purchases!$C7-$D$26),IF(Tier2Purchases!$C7<=$D$25,(Tier2Purchases!$C7-Tier2Purchases!$B7)-($D$24-Tier2Purchases!$B7)+1))))) -> 0 | R6: =IF(OR(Tier2Purchases!$B7>$D$27,Tier2Purchases!$C7<$D$26),0,IF(AND(Tier2Purchases!$B7<$D$26,Tier2Purchases!$C7>$D$27),(Tier2Purchases!$C7-Tier2Purchases!$B7)-(Tier2Purchases!$C7-$D$28)-($D$26-Tier2Purchases!$B7),IF(AND(Tier2Purchases!$C7<=$D$27,Tier2Purchases!$B7>=$D$26),($D$27-$D$26)-($D$27-Tier2Purchases!$C7)-(Tier2Purchases!$B7-$D$26)+1,IF(Tier2Purchases!$B7>=$D$26,(Tier2Purchases!$C7-Tier2Purchases!$B7)-(Tier2Purchases!$C7-$D$28),IF(Tier2Purchases!$C7<=$D$27,(Tier2Purchases!$C7-Tier2Purchases!$B7)-($D$26-Tier2Purchases!$B7)+1))))) -> 0 | S6: =IF(OR(Tier2Purchases!$B7>$D$29,Tier2Purchases!$C7<$D$28),0,IF(AND(Tier2Purchases!$B7<$D$28,Tier2Purchases!$C7>$D$29),(Tier2Purchases!$C7-Tier2Purchases!$B7)-(Tier2Purchases!$C7-$D$30)-($D$28-Tier2Purchases!$B7),IF(AND(Tier2Purchases!$C7<=$D$29,Tier2Purchases!$B7>=$D$28),($D$29-$D$28)-($D$29-Tier2Purchases!$C7)-(Tier2Purchases!$B7-$D$28)+1,IF(Tier2Purchases!$B7>=$D$28,(Tier2Purchases!$C7-Tier2Purchases!$B7)-(Tier2Purchases!$C7-$D$30),IF(Tier2Purchases!$C7<=$D$29,(Tier2Purchases!$C7-Tier2Purchases!$B7)-($D$28-Tier2Purchases!$B7)+1))))) -> 0 | T6: =IF(OR(Tier2Purchases!$B7>$D$31,Tier2Purchases!$C7<$D$30),0,IF(AND(Tier2Purchases!$B7<$D$30,Tier2Purchases!$C7>$D$31),(Tier2Purchases!$C7-Tier2Purchases!$B7)-(Tier2Purchases!$C7-$D$32)-($D$30-Tier2Purchases!$B7),IF(AND(Tier2Purchases!$C7<=$D$31,Tier2Purchases!$B7>=$D$30),($D$31-$D$30)-($D$31-Tier2Purchases!$C7)-(Tier2Purchases!$B7-$D$30)+1,IF(Tier2Purchases!$B7>=$D$30,(Tier2Purchases!$C7-Tier2Purchases!$B7)-(Tier2Purchases!$C7-$D$32),IF(Tier2Purchases!$C7<=$D$31,(Tier2Purchases!$C7-Tier2Purchases!$B7)-($D$30-Tier2Purchases!$B7)+1))))) -> 0 | U6: =IF(OR(Tier2Purchases!$B7>$D$33,Tier2Purchases!$C7<$D$32),0,IF(AND(Tier2Purchases!$B7<$D$32,Tier2Purchases!$C7>$D$33),(Tier2Purchases!$C7-Tier2Purchases!$B7)-(Tier2Purchases!$C7-$D$34)-($D$32-Tier2Purchases!$B7),IF(AND(Tier2Purchases!$C7<=$D$33,Tier2Purchases!$B7>=$D$32),($D$33-$D$32)-($D$33-Tier2Purchases!$C7)-(Tier2Purchases!$B7-$D$32)+1,IF(Tier2Purchases!$B7>=$D$32,(Tier2Purchases!$C7-Tier2Purchases!$B7)-(Tier2Purchases!$C7-$D$34),IF(Tier2Purchases!$C7<=$D$33,(Tier2Purchases!$C7-Tier2Purchases!$B7)-($D$32-Tier2Purchases!$B7)+1))))) -> 0 | V6: =IF(OR(Tier2Purchases!$B7>$D$35,Tier2Purchases!$C7<$D$34),0,IF(AND(Tier2Purchases!$B7<$D$34,Tier2Purchases!$C7>$D$35),(Tier2Purchases!$C7-Tier2Purchases!$B7)-(Tier2Purchases!$C7-$D$36)-($D$34-Tier2Purchases!$B7),IF(AND(Tier2Purchases!$C7<=$D$35,Tier2Purchases!$B7>=$D$34),($D$35-$D$34)-($D$35-Tier2Purchases!$C7)-(Tier2Purchases!$B7-$D$34)+1,IF(Tier2Purchases!$B7>=$D$34,(Tier2Purchases!$C7-Tier2Purchases!$B7)-(Tier2Purchases!$C7-$D$36),IF(Tier2Purchases!$C7<=$D$35,(Tier2Purchases!$C7-Tier2Purchases!$B7)-($D$34-Tier2Purchases!$B7)+1))))) -> 0 | W6: =IF(OR(Tier2Purchases!$B7>$D$37,Tier2Purchases!$C7<$D$36),0,IF(AND(Tier2Purchases!$B7<$D$36,Tier2Purchases!$C7>$D$37),(Tier2Purchases!$C7-Tier2Purchases!$B7)-(Tier2Purchases!$C7-$D$38)-($D$36-Tier2Purchases!$B7),IF(AND(Tier2Purchases!$C7<=$D$37,Tier2Purchases!$B7>=$D$36),($D$37-$D$36)-($D$37-Tier2Purchases!$C7)-(Tier2Purchases!$B7-$D$36)+1,IF(Tier2Purchases!$B7>=$D$36,(Tier2Purchases!$C7-Tier2Purchases!$B7)-(Tier2Purchases!$C7-$D$38),IF(Tier2Purchases!$C7<=$D$37,(Tier2Purchases!$C7-Tier2Purchases!$B7)-($D$36-Tier2Purchases!$B7)+1))))) -> 0 | X6: =IF(OR(Tier2Purchases!$B7>$D$39,Tier2Purchases!$C7<$D$38),0,IF(AND(Tier2Purchases!$B7<$D$38,Tier2Purchases!$C7>$D$39),(Tier2Purchases!$C7-Tier2Purchases!$B7)-(Tier2Purchases!$C7-$D$39)-($D$38-Tier2Purchases!$B7)+1,IF(AND(Tier2Purchases!$C7<=$D$39,Tier2Purchases!$B7>=$D$38),($D$39-$D$38)-($D$39-Tier2Purchases!$C7)-(Tier2Purchases!$B7-$D$38)+1,IF(Tier2Purchases!$B7>=$D$38,(Tier2Purchases!$C7-Tier2Purchases!$B7)-(Tier2Purchases!$C7-$D$39)+1,IF(Tier2Purchases!$C7<=$D$39,(Tier2Purchases!$C7-Tier2Purchases!$B7)-($D$38-Tier2Purchases!$B7)+1))))) -> 0 | Y6: =SUM(H6:X6) -> 365 | Z6: =$AA6-$Y6 -> 0 | AA6: =Tier2Purchases!$C7-Tier2Purchases!$B7+1 -> 365 | AB6: =AA6=(Y6+Z6) -> TRUE
C7: END DATE | D7: 2012-09-30 | E7: =Tier2Purchases!B8 -> 2012-10-01 | F7: =Tier2Purchases!C8 -> 2013-09-30 | H7: =IF(OR(Tier2Purchases!$B8>$D$7,Tier2Purchases!$C8<$D$6),0,IF(AND(Tier2Purchases!$B8<$D$6,Tier2Purchases!$C8>$D$7),(Tier2Purchases!$C8-Tier2Purchases!$B8)-(Tier2Purchases!$C8-$D$8)-($D$6-Tier2Purchases!$B8),IF(AND(Tier2Purchases!$C8<=$D$7,Tier2Purchases!$B8>=$D$6),($D$7-$D$6)-($D$7-Tier2Purchases!$C8)-(Tier2Purchases!$B8-$D$6)+1,IF(Tier2Purchases!$B8>=$D$6,(Tier2Purchases!$C8-Tier2Purchases!$B8)-(Tier2Purchases!$C8-$D$8),IF(Tier2Purchases!$C8<=$D$7,(Tier2Purchases!$C8-Tier2Purchases!$B8)-($D$6-Tier2Purchases!$B8)+1))))) -> 0 | I7: =IF(OR(Tier2Purchases!$B8>$D$9,Tier2Purchases!$C8<$D$8),0,IF(AND(Tier2Purchases!$B8<$D$8,Tier2Purchases!$C8>$D$9),(Tier2Purchases!$C8-Tier2Purchases!$B8)-(Tier2Purchases!$C8-$D$10)-($D$8-Tier2Purchases!$B8),IF(AND(Tier2Purchases!$C8<=$D$9,Tier2Purchases!$B8>=$D$8),($D$9-$D$8)-($D$9-Tier2Purchases!$C8)-(Tier2Purchases!$B8-$D$8)+1,IF(Tier2Purchases!$B8>=$D$8,(Tier2Purchases!$C8-Tier2Purchases!$B8)-(Tier2Purchases!$C8-$D$10),IF(Tier2Purchases!$C8<=$D$9,(Tier2Purchases!$C8-Tier2Purchases!$B8)-($D$8-Tier2Purchases!$B8)+1))))) -> 365 | J7: =IF(OR(Tier2Purchases!$B8>$D$11,Tier2Purchases!$C8<$D$10),0,IF(AND(Tier2Purchases!$B8<$D$10,Tier2Purchases!$C8>$D$11),(Tier2Purchases!$C8-Tier2Purchases!$B8)-(Tier2Purchases!$C8-$D$12)-($D$10-Tier2Purchases!$B8),IF(AND(Tier2Purchases!$C8<=$D$11,Tier2Purchases!$B8>=$D$10),($D$11-$D$10)-($D$11-Tier2Purchases!$C8)-(Tier2Purchases!$B8-$D$10)+1,IF(Tier2Purchases!$B8>=$D$10,(Tier2Purchases!$C8-Tier2Purchases!$B8)-(Tier2Purchases!$C8-$D$12),IF(Tier2Purchases!$C8<=$D$11,(Tier2Purchases!$C8-Tier2Purchases!$B8)-($D$10-Tier2Purchases!$B8)+1))))) -> 0 | K7: =IF(OR(Tier2Purchases!$B8>$D$13,Tier2Purchases!$C8<$D$12),0,IF(AND(Tier2Purchases!$B8<$D$12,Tier2Purchases!$C8>$D$13),(Tier2Purchases!$C8-Tier2Purchases!$B8)-(Tier2Purchases!$C8-$D$14)-($D$12-Tier2Purchases!$B8),IF(AND(Tier2Purchases!$C8<=$D$13,Tier2Purchases!$B8>=$D$12),($D$13-$D$12)-($D$13-Tier2Purchases!$C8)-(Tier2Purchases!$B8-$D$12)+1,IF(Tier2Purchases!$B8>=$D$12,(Tier2Purchases!$C8-Tier2Purchases!$B8)-(Tier2Purchases!$C8-$D$14),IF(Tier2Purchases!$C8<=$D$13,(Tier2Purchases!$C8-Tier2Purchases!$B8)-($D$12-Tier2Purchases!$B8)+1))))) -> 0 | L7: =IF(OR(Tier2Purchases!$B8>$D$15,Tier2Purchases!$C8<$D$14),0,IF(AND(Tier2Purchases!$B8<$D$14,Tier2Purchases!$C8>$D$15),(Tier2Purchases!$C8-Tier2Purchases!$B8)-(Tier2Purchases!$C8-$D$16)-($D$14-Tier2Purchases!$B8),IF(AND(Tier2Purchases!$C8<=$D$15,Tier2Purchases!$B8>=$D$14),($D$15-$D$14)-($D$15-Tier2Purchases!$C8)-(Tier2Purchases!$B8-$D$14)+1,IF(Tier2Purchases!$B8>=$D$14,(Tier2Purchases!$C8-Tier2Purchases!$B8)-(Tier2Purchases!$C8-$D$16),IF(Tier2Purchases!$C8<=$D$15,(Tier2Purchases!$C8-Tier2Purchases!$B8)-($D$14-Tier2Purchases!$B8)+1))))) -> 0 | M7: =IF(OR(Tier2Purchases!$B8>$D$17,Tier2Purchases!$C8<$D$16),0,IF(AND(Tier2Purchases!$B8<$D$16,Tier2Purchases!$C8>$D$17),(Tier2Purchases!$C8-Tier2Purchases!$B8)-(Tier2Purchases!$C8-$D$18)-($D$16-Tier2Purchases!$B8),IF(AND(Tier2Purchases!$C8<=$D$17,Tier2Purchases!$B8>=$D$16),($D$17-$D$16)-($D$17-Tier2Purchases!$C8)-(Tier2Purchases!$B8-$D$16)+1,IF(Tier2Purchases!$B8>=$D$16,(Tier2Purchases!$C8-Tier2Purchases!$B8)-(Tier2Purchases!$C8-$D$18),IF(Tier2Purchases!$C8<=$D$17,(Tier2Purchases!$C8-Tier2Purchases!$B8)-($D$16-Tier2Purchases!$B8)+1))))) -> 0 | N7: =IF(OR(Tier2Purchases!$B8>$D$19,Tier2Purchases!$C8<$D$18),0,IF(AND(Tier2Purchases!$B8<$D$18,Tier2Purchases!$C8>$D$19),(Tier2Purchases!$C8-Tier2Purchases!$B8)-(Tier2Purchases!$C8-$D$20)-($D$18-Tier2Purchases!$B8),IF(AND(Tier2Purchases!$C8<=$D$19,Tier2Purchases!$B8>=$D$18),($D$19-$D$18)-($D$19-Tier2Purchases!$C8)-(Tier2Purchases!$B8-$D$18)+1,IF(Tier2Purchases!$B8>=$D$18,(Tier2Purchases!$C8-Tier2Purchases!$B8)-(Tier2Purchases!$C8-$D$20),IF(Tier2Purchases!$C8<=$D$19,(Tier2Purchases!$C8-Tier2Purchases!$B8)-($D$18-Tier2Purchases!$B8)+1))))) -> 0 | O7: =IF(OR(Tier2Purchases!$B8>$D$21,Tier2Purchases!$C8<$D$20),0,IF(AND(Tier2Purchases!$B8<$D$20,Tier2Purchases!$C8>$D$21),(Tier2Purchases!$C8-Tier2Purchases!$B8)-(Tier2Purchases!$C8-$D$22)-($D$20-Tier2Purchases!$B8),IF(AND(Tier2Purchases!$C8<=$D$21,Tier2Purchases!$B8>=$D$20),($D$21-$D$20)-($D$21-Tier2Purchases!$C8)-(Tier2Purchases!$B8-$D$20)+1,IF(Tier2Purchases!$B8>=$D$20,(Tier2Purchases!$C8-Tier2Purchases!$B8)-(Tier2Purchases!$C8-$D$22),IF(Tier2Purchases!$C8<=$D$21,(Tier2Purchases!$C8-Tier2Purchases!$B8)-($D$20-Tier2Purchases!$B8)+1))))) -> 0 | P7: =IF(OR(Tier2Purchases!$B8>$D$23,Tier2Purchases!$C8<$D$22),0,IF(AND(Tier2Purchases!$B8<$D$22,Tier2Purchases!$C8>$D$23),(Tier2Purchases!$C8-Tier2Purchases!$B8)-(Tier2Purchases!$C8-$D$24)-($D$22-Tier2Purchases!$B8),IF(AND(Tier2Purchases!$C8<=$D$23,Tier2Purchases!$B8>=$D$22),($D$23-$D$22)-($D$23-Tier2Purchases!$C8)-(Tier2Purchases!$B8-$D$22)+1,IF(Tier2Purchases!$B8>=$D$22,(Tier2Purchases!$C8-Tier2Purchases!$B8)-(Tier2Purchases!$C8-$D$24),IF(Tier2Purchases!$C8<=$D$23,(Tier2Purchases!$C8-Tier2Purchases!$B8)-($D$22-Tier2Purchases!$B8)+1))))) -> 0 | Q7: =IF(OR(Tier2Purchases!$B8>$D$25,Tier2Purchases!$C8<$D$24),0,IF(AND(Tier2Purchases!$B8<$D$24,Tier2Purchases!$C8>$D$25),(Tier2Purchases!$C8-Tier2Purchases!$B8)-(Tier2Purchases!$C8-$D$26)-($D$24-Tier2Purchases!$B8),IF(AND(Tier2Purchases!$C8<=$D$25,Tier2Purchases!$B8>=$D$24),($D$25-$D$24)-($D$25-Tier2Purchases!$C8)-(Tier2Purchases!$B8-$D$24)+1,IF(Tier2Purchases!$B8>=$D$24,(Tier2Purchases!$C8-Tier2Purchases!$B8)-(Tier2Purchases!$C8-$D$26),IF(Tier2Purchases!$C8<=$D$25,(Tier2Purchases!$C8-Tier2Purchases!$B8)-($D$24-Tier2Purchases!$B8)+1))))) -> 0 | R7: =IF(OR(Tier2Purchases!$B8>$D$27,Tier2Purchases!$C8<$D$26),0,IF(AND(Tier2Purchases!$B8<$D$26,Tier2Purchases!$C8>$D$27),(Tier2Purchases!$C8-Tier2Purchases!$B8)-(Tier2Purchases!$C8-$D$28)-($D$26-Tier2Purchases!$B8),IF(AND(Tier2Purchases!$C8<=$D$27,Tier2Purchases!$B8>=$D$26),($D$27-$D$26)-($D$27-Tier2Purchases!$C8)-(Tier2Purchases!$B8-$D$26)+1,IF(Tier2Purchases!$B8>=$D$26,(Tier2Purchases!$C8-Tier2Purchases!$B8)-(Tier2Purchases!$C8-$D$28),IF(Tier2Purchases!$C8<=$D$27,(Tier2Purchases!$C8-Tier2Purchases!$B8)-($D$26-Tier2Purchases!$B8)+1))))) -> 0 | S7: =IF(OR(Tier2Purchases!$B8>$D$29,Tier2Purchases!$C8<$D$28),0,IF(AND(Tier2Purchases!$B8<$D$28,Tier2Purchases!$C8>$D$29),(Tier2Purchases!$C8-Tier2Purchases!$B8)-(Tier2Purchases!$C8-$D$30)-($D$28-Tier2Purchases!$B8),IF(AND(Tier2Purchases!$C8<=$D$29,Tier2Purchases!$B8>=$D$28),($D$29-$D$28)-($D$29-Tier2Purchases!$C8)-(Tier2Purchases!$B8-$D$28)+1,IF(Tier2Purchases!$B8>=$D$28,(Tier2Purchases!$C8-Tier2Purchases!$B8)-(Tier2Purchases!$C8-$D$30),IF(Tier2Purchases!$C8<=$D$29,(Tier2Purchases!$C8-Tier2Purchases!$B8)-($D$28-Tier2Purchases!$B8)+1))))) -> 0 | T7: =IF(OR(Tier2Purchases!$B8>$D$31,Tier2Purchases!$C8<$D$30),0,IF(AND(Tier2Purchases!$B8<$D$30,Tier2Purchases!$C8>$D$31),(Tier2Purchases!$C8-Tier2Purchases!$B8)-(Tier2Purchases!$C8-$D$32)-($D$30-Tier2Purchases!$B8),IF(AND(Tier2Purchases!$C8<=$D$31,Tier2Purchases!$B8>=$D$30),($D$31-$D$30)-($D$31-Tier2Purchases!$C8)-(Tier2Purchases!$B8-$D$30)+1,IF(Tier2Purchases!$B8>=$D$30,(Tier2Purchases!$C8-Tier2Purchases!$B8)-(Tier2Purchases!$C8-$D$32),IF(Tier2Purchases!$C8<=$D$31,(Tier2Purchases!$C8-Tier2Purchases!$B8)-($D$30-Tier2Purchases!$B8)+1))))) -> 0 | U7: =IF(OR(Tier2Purchases!$B8>$D$33,Tier2Purchases!$C8<$D$32),0,IF(AND(Tier2Purchases!$B8<$D$32,Tier2Purchases!$C8>$D$33),(Tier2Purchases!$C8-Tier2Purchases!$B8)-(Tier2Purchases!$C8-$D$34)-($D$32-Tier2Purchases!$B8),IF(AND(Tier2Purchases!$C8<=$D$33,Tier2Purchases!$B8>=$D$32),($D$33-$D$32)-($D$33-Tier2Purchases!$C8)-(Tier2Purchases!$B8-$D$32)+1,IF(Tier2Purchases!$B8>=$D$32,(Tier2Purchases!$C8-Tier2Purchases!$B8)-(Tier2Purchases!$C8-$D$34),IF(Tier2Purchases!$C8<=$D$33,(Tier2Purchases!$C8-Tier2Purchases!$B8)-($D$32-Tier2Purchases!$B8)+1))))) -> 0 | V7: =IF(OR(Tier2Purchases!$B8>$D$35,Tier2Purchases!$C8<$D$34),0,IF(AND(Tier2Purchases!$B8<$D$34,Tier2Purchases!$C8>$D$35),(Tier2Purchases!$C8-Tier2Purchases!$B8)-(Tier2Purchases!$C8-$D$36)-($D$34-Tier2Purchases!$B8),IF(AND(Tier2Purchases!$C8<=$D$35,Tier2Purchases!$B8>=$D$34),($D$35-$D$34)-($D$35-Tier2Purchases!$C8)-(Tier2Purchases!$B8-$D$34)+1,IF(Tier2Purchases!$B8>=$D$34,(Tier2Purchases!$C8-Tier2Purchases!$B8)-(Tier2Purchases!$C8-$D$36),IF(Tier2Purchases!$C8<=$D$35,(Tier2Purchases!$C8-Tier2Purchases!$B8)-($D$34-Tier2Purchases!$B8)+1))))) -> 0 | W7: =IF(OR(Tier2Purchases!$B8>$D$37,Tier2Purchases!$C8<$D$36),0,IF(AND(Tier2Purchases!$B8<$D$36,Tier2Purchases!$C8>$D$37),(Tier2Purchases!$C8-Tier2Purchases!$B8)-(Tier2Purchases!$C8-$D$38)-($D$36-Tier2Purchases!$B8),IF(AND(Tier2Purchases!$C8<=$D$37,Tier2Purchases!$B8>=$D$36),($D$37-$D$36)-($D$37-Tier2Purchases!$C8)-(Tier2Purchases!$B8-$D$36)+1,IF(Tier2Purchases!$B8>=$D$36,(Tier2Purchases!$C8-Tier2Purchases!$B8)-(Tier2Purchases!$C8-$D$38),IF(Tier2Purchases!$C8<=$D$37,(Tier2Purchases!$C8-Tier2Purchases!$B8)-($D$36-Tier2Purchases!$B8)+1))))) -> 0 | X7: =IF(OR(Tier2Purchases!$B8>$D$39,Tier2Purchases!$C8<$D$38),0,IF(AND(Tier2Purchases!$B8<$D$38,Tier2Purchases!$C8>$D$39),(Tier2Purchases!$C8-Tier2Purchases!$B8)-(Tier2Purchases!$C8-$D$39)-($D$38-Tier2Purchases!$B8)+1,IF(AND(Tier2Purchases!$C8<=$D$39,Tier2Purchases!$B8>=$D$38),($D$39-$D$38)-($D$39-Tier2Purchases!$C8)-(Tier2Purchases!$B8-$D$38)+1,IF(Tier2Purchases!$B8>=$D$38,(Tier2Purchases!$C8-Tier2Purchases!$B8)-(Tier2Purchases!$C8-$D$39)+1,IF(Tier2Purchases!$C8<=$D$39,(Tier2Purchases!$C8-Tier2Purchases!$B8)-($D$38-Tier2Purchases!$B8)+1))))) -> 0 | Y7: =SUM(H7:X7) -> 365 | Z7: =$AA7-$Y7 -> 0 | AA7: =Tier2Purchases!$C8-Tier2Purchases!$B8+1 -> 365 | AB7: =AA7=(Y7+Z7) -> TRUE
B8: FY2013 | C8: START DATE | D8: 2012-10-01 | E8: =Tier2Purchases!B9 -> 2012-10-01 | F8: =Tier2Purchases!C9 -> 2013-09-30 | H8: =IF(OR(Tier2Purchases!$B9>$D$7,Tier2Purchases!$C9<$D$6),0,IF(AND(Tier2Purchases!$B9<$D$6,Tier2Purchases!$C9>$D$7),(Tier2Purchases!$C9-Tier2Purchases!$B9)-(Tier2Purchases!$C9-$D$8)-($D$6-Tier2Purchases!$B9),IF(AND(Tier2Purchases!$C9<=$D$7,Tier2Purchases!$B9>=$D$6),($D$7-$D$6)-($D$7-Tier2Purchases!$C9)-(Tier2Purchases!$B9-$D$6)+1,IF(Tier2Purchases!$B9>=$D$6,(Tier2Purchases!$C9-Tier2Purchases!$B9)-(Tier2Purchases!$C9-$D$8),IF(Tier2Purchases!$C9<=$D$7,(Tier2Purchases!$C9-Tier2Purchases!$B9)-($D$6-Tier2Purchases!$B9)+1))))) -> 0 | I8: =IF(OR(Tier2Purchases!$B9>$D$9,Tier2Purchases!$C9<$D$8),0,IF(AND(Tier2Purchases!$B9<$D$8,Tier2Purchases!$C9>$D$9),(Tier2Purchases!$C9-Tier2Purchases!$B9)-(Tier2Purchases!$C9-$D$10)-($D$8-Tier2Purchases!$B9),IF(AND(Tier2Purchases!$C9<=$D$9,Tier2Purchases!$B9>=$D$8),($D$9-$D$8)-($D$9-Tier2Purchases!$C9)-(Tier2Purchases!$B9-$D$8)+1,IF(Tier2Purchases!$B9>=$D$8,(Tier2Purchases!$C9-Tier2Purchases!$B9)-(Tier2Purchases!$C9-$D$10),IF(Tier2Purchases!$C9<=$D$9,(Tier2Purchases!$C9-Tier2Purchases!$B9)-($D$8-Tier2Purchases!$B9)+1))))) -> 365 | J8: =IF(OR(Tier2Purchases!$B9>$D$11,Tier2Purchases!$C9<$D$10),0,IF(AND(Tier2Purchases!$B9<$D$10,Tier2Purchases!$C9>$D$11),(Tier2Purchases!$C9-Tier2Purchases!$B9)-(Tier2Purchases!$C9-$D$12)-($D$10-Tier2Purchases!$B9),IF(AND(Tier2Purchases!$C9<=$D$11,Tier2Purchases!$B9>=$D$10),($D$11-$D$10)-($D$11-Tier2Purchases!$C9)-(Tier2Purchases!$B9-$D$10)+1,IF(Tier2Purchases!$B9>=$D$10,(Tier2Purchases!$C9-Tier2Purchases!$B9)-(Tier2Purchases!$C9-$D$12),IF(Tier2Purchases!$C9<=$D$11,(Tier2Purchases!$C9-Tier2Purchases!$B9)-($D$10-Tier2Purchases!$B9)+1))))) -> 0 | K8: =IF(OR(Tier2Purchases!$B9>$D$13,Tier2Purchases!$C9<$D$12),0,IF(AND(Tier2Purchases!$B9<$D$12,Tier2Purchases!$C9>$D$13),(Tier2Purchases!$C9-Tier2Purchases!$B9)-(Tier2Purchases!$C9-$D$14)-($D$12-Tier2Purchases!$B9),IF(AND(Tier2Purchases!$C9<=$D$13,Tier2Purchases!$B9>=$D$12),($D$13-$D$12)-($D$13-Tier2Purchases!$C9)-(Tier2Purchases!$B9-$D$12)+1,IF(Tier2Purchases!$B9>=$D$12,(Tier2Purchases!$C9-Tier2Purchases!$B9)-(Tier2Purchases!$C9-$D$14),IF(Tier2Purchases!$C9<=$D$13,(Tier2Purchases!$C9-Tier2Purchases!$B9)-($D$12-Tier2Purchases!$B9)+1))))) -> 0 | L8: =IF(OR(Tier2Purchases!$B9>$D$15,Tier2Purchases!$C9<$D$14),0,IF(AND(Tier2Purchases!$B9<$D$14,Tier2Purchases!$C9>$D$15),(Tier2Purchases!$C9-Tier2Purchases!$B9)-(Tier2Purchases!$C9-$D$16)-($D$14-Tier2Purchases!$B9),IF(AND(Tier2Purchases!$C9<=$D$15,Tier2Purchases!$B9>=$D$14),($D$15-$D$14)-($D$15-Tier2Purchases!$C9)-(Tier2Purchases!$B9-$D$14)+1,IF(Tier2Purchases!$B9>=$D$14,(Tier2Purchases!$C9-Tier2Purchases!$B9)-(Tier2Purchases!$C9-$D$16),IF(Tier2Purchases!$C9<=$D$15,(Tier2Purchases!$C9-Tier2Purchases!$B9)-($D$14-Tier2Purchases!$B9)+1))))) -> 0 | M8: =IF(OR(Tier2Purchases!$B9>$D$17,Tier2Purchases!$C9<$D$16),0,IF(AND(Tier2Purchases!$B9<$D$16,Tier2Purchases!$C9>$D$17),(Tier2Purchases!$C9-Tier2Purchases!$B9)-(Tier2Purchases!$C9-$D$18)-($D$16-Tier2Purchases!$B9),IF(AND(Tier2Purchases!$C9<=$D$17,Tier2Purchases!$B9>=$D$16),($D$17-$D$16)-($D$17-Tier2Purchases!$C9)-(Tier2Purchases!$B9-$D$16)+1,IF(Tier2Purchases!$B9>=$D$16,(Tier2Purchases!$C9-Tier2Purchases!$B9)-(Tier2Purchases!$C9-$D$18),IF(Tier2Purchases!$C9<=$D$17,(Tier2Purchases!$C9-Tier2Purchases!$B9)-($D$16-Tier2Purchases!$B9)+1))))) -> 0 | N8: =IF(OR(Tier2Purchases!$B9>$D$19,Tier2Purchases!$C9<$D$18),0,IF(AND(Tier2Purchases!$B9<$D$18,Tier2Purchases!$C9>$D$19),(Tier2Purchases!$C9-Tier2Purchases!$B9)-(Tier2Purchases!$C9-$D$20)-($D$18-Tier2Purchases!$B9),IF(AND(Tier2Purchases!$C9<=$D$19,Tier2Purchases!$B9>=$D$18),($D$19-$D$18)-($D$19-Tier2Purchases!$C9)-(Tier2Purchases!$B9-$D$18)+1,IF(Tier2Purchases!$B9>=$D$18,(Tier2Purchases!$C9-Tier2Purchases!$B9)-(Tier2Purchases!$C9-$D$20),IF(Tier2Purchases!$C9<=$D$19,(Tier2Purchases!$C9-Tier2Purchases!$B9)-($D$18-Tier2Purchases!$B9)+1))))) -> 0 | O8: =IF(OR(Tier2Purchases!$B9>$D$21,Tier2Purchases!$C9<$D$20),0,IF(AND(Tier2Purchases!$B9<$D$20,Tier2Purchases!$C9>$D$21),(Tier2Purchases!$C9-Tier2Purchases!$B9)-(Tier2Purchases!$C9-$D$22)-($D$20-Tier2Purchases!$B9),IF(AND(Tier2Purchases!$C9<=$D$21,Tier2Purchases!$B9>=$D$20),($D$21-$D$20)-($D$21-Tier2Purchases!$C9)-(Tier2Purchases!$B9-$D$20)+1,IF(Tier2Purchases!$B9>=$D$20,(Tier2Purchases!$C9-Tier2Purchases!$B9)-(Tier2Purchases!$C9-$D$22),IF(Tier2Purchases!$C9<=$D$21,(Tier2Purchases!$C9-Tier2Purchases!$B9)-($D$20-Tier2Purchases!$B9)+1))))) -> 0 | P8: =IF(OR(Tier2Purchases!$B9>$D$23,Tier2Purchases!$C9<$D$22),0,IF(AND(Tier2Purchases!$B9<$D$22,Tier2Purchases!$C9>$D$23),(Tier2Purchases!$C9-Tier2Purchases!$B9)-(Tier2Purchases!$C9-$D$24)-($D$22-Tier2Purchases!$B9),IF(AND(Tier2Purchases!$C9<=$D$23,Tier2Purchases!$B9>=$D$22),($D$23-$D$22)-($D$23-Tier2Purchases!$C9)-(Tier2Purchases!$B9-$D$22)+1,IF(Tier2Purchases!$B9>=$D$22,(Tier2Purchases!$C9-Tier2Purchases!$B9)-(Tier2Purchases!$C9-$D$24),IF(Tier2Purchases!$C9<=$D$23,(Tier2Purchases!$C9-Tier2Purchases!$B9)-($D$22-Tier2Purchases!$B9)+1))))) -> 0 | Q8: =IF(OR(Tier2Purchases!$B9>$D$25,Tier2Purchases!$C9<$D$24),0,IF(AND(Tier2Purchases!$B9<$D$24,Tier2Purchases!$C9>$D$25),(Tier2Purchases!$C9-Tier2Purchases!$B9)-(Tier2Purchases!$C9-$D$26)-($D$24-Tier2Purchases!$B9),IF(AND(Tier2Purchases!$C9<=$D$25,Tier2Purchases!$B9>=$D$24),($D$25-$D$24)-($D$25-Tier2Purchases!$C9)-(Tier2Purchases!$B9-$D$24)+1,IF(Tier2Purchases!$B9>=$D$24,(Tier2Purchases!$C9-Tier2Purchases!$B9)-(Tier2Purchases!$C9-$D$26),IF(Tier2Purchases!$C9<=$D$25,(Tier2Purchases!$C9-Tier2Purchases!$B9)-($D$24-Tier2Purchases!$B9)+1))))) -> 0 | R8: =IF(OR(Tier2Purchases!$B9>$D$27,Tier2Purchases!$C9<$D$26),0,IF(AND(Tier2Purchases!$B9<$D$26,Tier2Purchases!$C9>$D$27),(Tier2Purchases!$C9-Tier2Purchases!$B9)-(Tier2Purchases!$C9-$D$28)-($D$26-Tier2Purchases!$B9),IF(AND(Tier2Purchases!$C9<=$D$27,Tier2Purchases!$B9>=$D$26),($D$27-$D$26)-($D$27-Tier2Purchases!$C9)-(Tier2Purchases!$B9-$D$26)+1,IF(Tier2Purchases!$B9>=$D$26,(Tier2Purchases!$C9-Tier2Purchases!$B9)-(Tier2Purchases!$C9-$D$28),IF(Tier2Purchases!$C9<=$D$27,(Tier2Purchases!$C9-Tier2Purchases!$B9)-($D$26-Tier2Purchases!$B9)+1))))) -> 0 | S8: =IF(OR(Tier2Purchases!$B9>$D$29,Tier2Purchases!$C9<$D$28),0,IF(AND(Tier2Purchases!$B9<$D$28,Tier2Purchases!$C9>$D$29),(Tier2Purchases!$C9-Tier2Purchases!$B9)-(Tier2Purchases!$C9-$D$30)-($D$28-Tier2Purchases!$B9),IF(AND(Tier2Purchases!$C9<=$D$29,Tier2Purchases!$B9>=$D$28),($D$29-$D$28)-($D$29-Tier2Purchases!$C9)-(Tier2Purchases!$B9-$D$28)+1,IF(Tier2Purchases!$B9>=$D$28,(Tier2Purchases!$C9-Tier2Purchases!$B9)-(Tier2Purchases!$C9-$D$30),IF(Tier2Purchases!$C9<=$D$29,(Tier2Purchases!$C9-Tier2Purchases!$B9)-($D$28-Tier2Purchases!$B9)+1))))) -> 0 | T8: =IF(OR(Tier2Purchases!$B9>$D$31,Tier2Purchases!$C9<$D$30),0,IF(AND(Tier2Purchases!$B9<$D$30,Tier2Purchases!$C9>$D$31),(Tier2Purchases!$C9-Tier2Purchases!$B9)-(Tier2Purchases!$C9-$D$32)-($D$30-Tier2Purchases!$B9),IF(AND(Tier2Purchases!$C9<=$D$31,Tier2Purchases!$B9>=$D$30),($D$31-$D$30)-($D$31-Tier2Purchases!$C9)-(Tier2Purchases!$B9-$D$30)+1,IF(Tier2Purchases!$B9>=$D$30,(Tier2Purchases!$C9-Tier2Purchases!$B9)-(Tier2Purchases!$C9-$D$32),IF(Tier2Purchases!$C9<=$D$31,(Tier2Purchases!$C9-Tier2Purchases!$B9)-($D$30-Tier2Purchases!$B9)+1))))) -> 0 | U8: =IF(OR(Tier2Purchases!$B9>$D$33,Tier2Purchases!$C9<$D$32),0,IF(AND(Tier2Purchases!$B9<$D$32,Tier2Purchases!$C9>$D$33),(Tier2Purchases!$C9-Tier2Purchases!$B9)-(Tier2Purchases!$C9-$D$34)-($D$32-Tier2Purchases!$B9),IF(AND(Tier2Purchases!$C9<=$D$33,Tier2Purchases!$B9>=$D$32),($D$33-$D$32)-($D$33-Tier2Purchases!$C9)-(Tier2Purchases!$B9-$D$32)+1,IF(Tier2Purchases!$B9>=$D$32,(Tier2Purchases!$C9-Tier2Purchases!$B9)-(Tier2Purchases!$C9-$D$34),IF(Tier2Purchases!$C9<=$D$33,(Tier2Purchases!$C9-Tier2Purchases!$B9)-($D$32-Tier2Purchases!$B9)+1))))) -> 0 | V8: =IF(OR(Tier2Purchases!$B9>$D$35,Tier2Purchases!$C9<$D$34),0,IF(AND(Tier2Purchases!$B9<$D$34,Tier2Purchases!$C9>$D$35),(Tier2Purchases!$C9-Tier2Purchases!$B9)-(Tier2Purchases!$C9-$D$36)-($D$34-Tier2Purchases!$B9),IF(AND(Tier2Purchases!$C9<=$D$35,Tier2Purchases!$B9>=$D$34),($D$35-$D$34)-($D$35-Tier2Purchases!$C9)-(Tier2Purchases!$B9-$D$34)+1,IF(Tier2Purchases!$B9>=$D$34,(Tier2Purchases!$C9-Tier2Purchases!$B9)-(Tier2Purchases!$C9-$D$36),IF(Tier2Purchases!$C9<=$D$35,(Tier2Purchases!$C9-Tier2Purchases!$B9)-($D$34-Tier2Purchases!$B9)+1))))) -> 0 | W8: =IF(OR(Tier2Purchases!$B9>$D$37,Tier2Purchases!$C9<$D$36),0,IF(AND(Tier2Purchases!$B9<$D$36,Tier2Purchases!$C9>$D$37),(Tier2Purchases!$C9-Tier2Purchases!$B9)-(Tier2Purchases!$C9-$D$38)-($D$36-Tier2Purchases!$B9),IF(AND(Tier2Purchases!$C9<=$D$37,Tier2Purchases!$B9>=$D$36),($D$37-$D$36)-($D$37-Tier2Purchases!$C9)-(Tier2Purchases!$B9-$D$36)+1,IF(Tier2Purchases!$B9>=$D$36,(Tier2Purchases!$C9-Tier2Purchases!$B9)-(Tier2Purchases!$C9-$D$38),IF(Tier2Purchases!$C9<=$D$37,(Tier2Purchases!$C9-Tier2Purchases!$B9)-($D$36-Tier2Purchases!$B9)+1))))) -> 0 | X8: =IF(OR(Tier2Purchases!$B9>$D$39,Tier2Purchases!$C9<$D$38),0,IF(AND(Tier2Purchases!$B9<$D$38,Tier2Purchases!$C9>$D$39),(Tier2Purchases!$C9-Tier2Purchases!$B9)-(Tier2Purchases!$C9-$D$39)-($D$38-Tier2Purchases!$B9)+1,IF(AND(Tier2Purchases!$C9<=$D$39,Tier2Purchases!$B9>=$D$38),($D$39-$D$38)-($D$39-Tier2Purchases!$C9)-(Tier2Purchases!$B9-$D$38)+1,IF(Tier2Purchases!$B9>=$D$38,(Tier2Purchases!$C9-Tier2Purchases!$B9)-(Tier2Purchases!$C9-$D$39)+1,IF(Tier2Purchases!$C9<=$D$39,(Tier2Purchases!$C9-Tier2Purchases!$B9)-($D$38-Tier2Purchases!$B9)+1))))) -> 0 | Y8: 365 | Z8: 0 | AA8: =Tier2Purchases!$C9-Tier2Purchases!$B9+1 -> 365 | AB8: TRUE
C9: END DATE | D9: 2013-09-30 | E9: =Tier2Purchases!B10 -> 2011-10-01 | F9: =Tier2Purchases!C10 -> 2012-09-30 | H9: =IF(OR(Tier2Purchases!$B10>$D$7,Tier2Purchases!$C10<$D$6),0,IF(AND(Tier2Purchases!$B10<$D$6,Tier2Purchases!$C10>$D$7),(Tier2Purchases!$C10-Tier2Purchases!$B10)-(Tier2Purchases!$C10-$D$8)-($D$6-Tier2Purchases!$B10),IF(AND(Tier2Purchases!$C10<=$D$7,Tier2Purchases!$B10>=$D$6),($D$7-$D$6)-($D$7-Tier2Purchases!$C10)-(Tier2Purchases!$B10-$D$6)+1,IF(Tier2Purchases!$B10>=$D$6,(Tier2Purchases!$C10-Tier2Purchases!$B10)-(Tier2Purchases!$C10-$D$8),IF(Tier2Purchases!$C10<=$D$7,(Tier2Purchases!$C10-Tier2Purchases!$B10)-($D$6-Tier2Purchases!$B10)+1))))) -> 366 | I9: =IF(OR(Tier2Purchases!$B10>$D$9,Tier2Purchases!$C10<$D$8),0,IF(AND(Tier2Purchases!$B10<$D$8,Tier2Purchases!$C10>$D$9),(Tier2Purchases!$C10-Tier2Purchases!$B10)-(Tier2Purchases!$C10-$D$10)-($D$8-Tier2Purchases!$B10),IF(AND(Tier2Purchases!$C10<=$D$9,Tier2Purchases!$B10>=$D$8),($D$9-$D$8)-($D$9-Tier2Purchases!$C10)-(Tier2Purchases!$B10-$D$8)+1,IF(Tier2Purchases!$B10>=$D$8,(Tier2Purchases!$C10-Tier2Purchases!$B10)-(Tier2Purchases!$C10-$D$10),IF(Tier2Purchases!$C10<=$D$9,(Tier2Purchases!$C10-Tier2Purchases!$B10)-($D$8-Tier2Purchases!$B10)+1))))) -> 0 | J9: =IF(OR(Tier2Purchases!$B10>$D$11,Tier2Purchases!$C10<$D$10),0,IF(AND(Tier2Purchases!$B10<$D$10,Tier2Purchases!$C10>$D$11),(Tier2Purchases!$C10-Tier2Purchases!$B10)-(Tier2Purchases!$C10-$D$12)-($D$10-Tier2Purchases!$B10),IF(AND(Tier2Purchases!$C10<=$D$11,Tier2Purchases!$B10>=$D$10),($D$11-$D$10)-($D$11-Tier2Purchases!$C10)-(Tier2Purchases!$B10-$D$10)+1,IF(Tier2Purchases!$B10>=$D$10,(Tier2Purchases!$C10-Tier2Purchases!$B10)-(Tier2Purchases!$C10-$D$12),IF(Tier2Purchases!$C10<=$D$11,(Tier2Purchases!$C10-Tier2Purchases!$B10)-($D$10-Tier2Purchases!$B10)+1))))) -> 0 | K9: =IF(OR(Tier2Purchases!$B10>$D$13,Tier2Purchases!$C10<$D$12),0,IF(AND(Tier2Purchases!$B10<$D$12,Tier2Purchases!$C10>$D$13),(Tier2Purchases!$C10-Tier2Purchases!$B10)-(Tier2Purchases!$C10-$D$14)-($D$12-Tier2Purchases!$B10),IF(AND(Tier2Purchases!$C10<=$D$13,Tier2Purchases!$B10>=$D$12),($D$13-$D$12)-($D$13-Tier2Purchases!$C10)-(Tier2Purchases!$B10-$D$12)+1,IF(Tier2Purchases!$B10>=$D$12,(Tier2Purchases!$C10-Tier2Purchases!$B10)-(Tier2Purchases!$C10-$D$14),IF(Tier2Purchases!$C10<=$D$13,(Tier2Purchases!$C10-Tier2Purchases!$B10)-($D$12-Tier2Purchases!$B10)+1))))) -> 0 | L9: =IF(OR(Tier2Purchases!$B10>$D$15,Tier2Purchases!$C10<$D$14),0,IF(AND(Tier2Purchases!$B10<$D$14,Tier2Purchases!$C10>$D$15),(Tier2Purchases!$C10-Tier2Purchases!$B10)-(Tier2Purchases!$C10-$D$16)-($D$14-Tier2Purchases!$B10),IF(AND(Tier2Purchases!$C10<=$D$15,Tier2Purchases!$B10>=$D$14),($D$15-$D$14)-($D$15-Tier2Purchases!$C10)-(Tier2Purchases!$B10-$D$14)+1,IF(Tier2Purchases!$B10>=$D$14,(Tier2Purchases!$C10-Tier2Purchases!$B10)-(Tier2Purchases!$C10-$D$16),IF(Tier2Purchases!$C10<=$D$15,(Tier2Purchases!$C10-Tier2Purchases!$B10)-($D$14-Tier2Purchases!$B10)+1))))) -> 0 | M9: =IF(OR(Tier2Purchases!$B10>$D$17,Tier2Purchases!$C10<$D$16),0,IF(AND(Tier2Purchases!$B10<$D$16,Tier2Purchases!$C10>$D$17),(Tier2Purchases!$C10-Tier2Purchases!$B10)-(Tier2Purchases!$C10-$D$18)-($D$16-Tier2Purchases!$B10),IF(AND(Tier2Purchases!$C10<=$D$17,Tier2Purchases!$B10>=$D$16),($D$17-$D$16)-($D$17-Tier2Purchases!$C10)-(Tier2Purchases!$B10-$D$16)+1,IF(Tier2Purchases!$B10>=$D$16,(Tier2Purchases!$C10-Tier2Purchases!$B10)-(Tier2Purchases!$C10-$D$18),IF(Tier2Purchases!$C10<=$D$17,(Tier2Purchases!$C10-Tier2Purchases!$B10)-($D$16-Tier2Purchases!$B10)+1))))) -> 0 | N9: =IF(OR(Tier2Purchases!$B10>$D$19,Tier2Purchases!$C10<$D$18),0,IF(AND(Tier2Purchases!$B10<$D$18,Tier2Purchases!$C10>$D$19),(Tier2Purchases!$C10-Tier2Purchases!$B10)-(Tier2Purchases!$C10-$D$20)-($D$18-Tier2Purchases!$B10),IF(AND(Tier2Purchases!$C10<=$D$19,Tier2Purchases!$B10>=$D$18),($D$19-$D$18)-($D$19-Tier2Purchases!$C10)-(Tier2Purchases!$B10-$D$18)+1,IF(Tier2Purchases!$B10>=$D$18,(Tier2Purchases!$C10-Tier2Purchases!$B10)-(Tier2Purchases!$C10-$D$20),IF(Tier2Purchases!$C10<=$D$19,(Tier2Purchases!$C10-Tier2Purchases!$B10)-($D$18-Tier2Purchases!$B10)+1))))) -> 0 | O9: =IF(OR(Tier2Purchases!$B10>$D$21,Tier2Purchases!$C10<$D$20),0,IF(AND(Tier2Purchases!$B10<$D$20,Tier2Purchases!$C10>$D$21),(Tier2Purchases!$C10-Tier2Purchases!$B10)-(Tier2Purchases!$C10-$D$22)-($D$20-Tier2Purchases!$B10),IF(AND(Tier2Purchases!$C10<=$D$21,Tier2Purchases!$B10>=$D$20),($D$21-$D$20)-($D$21-Tier2Purchases!$C10)-(Tier2Purchases!$B10-$D$20)+1,IF(Tier2Purchases!$B10>=$D$20,(Tier2Purchases!$C10-Tier2Purchases!$B10)-(Tier2Purchases!$C10-$D$22),IF(Tier2Purchases!$C10<=$D$21,(Tier2Purchases!$C10-Tier2Purchases!$B10)-($D$20-Tier2Purchases!$B10)+1))))) -> 0 | P9: =IF(OR(Tier2Purchases!$B10>$D$23,Tier2Purchases!$C10<$D$22),0,IF(AND(Tier2Purchases!$B10<$D$22,Tier2Purchases!$C10>$D$23),(Tier2Purchases!$C10-Tier2Purchases!$B10)-(Tier2Purchases!$C10-$D$24)-($D$22-Tier2Purchases!$B10),IF(AND(Tier2Purchases!$C10<=$D$23,Tier2Purchases!$B10>=$D$22),($D$23-$D$22)-($D$23-Tier2Purchases!$C10)-(Tier2Purchases!$B10-$D$22)+1,IF(Tier2Purchases!$B10>=$D$22,(Tier2Purchases!$C10-Tier2Purchases!$B10)-(Tier2Purchases!$C10-$D$24),IF(Tier2Purchases!$C10<=$D$23,(Tier2Purchases!$C10-Tier2Purchases!$B10)-($D$22-Tier2Purchases!$B10)+1))))) -> 0 | Q9: =IF(OR(Tier2Purchases!$B10>$D$25,Tier2Purchases!$C10<$D$24),0,IF(AND(Tier2Purchases!$B10<$D$24,Tier2Purchases!$C10>$D$25),(Tier2Purchases!$C10-Tier2Purchases!$B10)-(Tier2Purchases!$C10-$D$26)-($D$24-Tier2Purchases!$B10),IF(AND(Tier2Purchases!$C10<=$D$25,Tier2Purchases!$B10>=$D$24),($D$25-$D$24)-($D$25-Tier2Purchases!$C10)-(Tier2Purchases!$B10-$D$24)+1,IF(Tier2Purchases!$B10>=$D$24,(Tier2Purchases!$C10-Tier2Purchases!$B10)-(Tier2Purchases!$C10-$D$26),IF(Tier2Purchases!$C10<=$D$25,(Tier2Purchases!$C10-Tier2Purchases!$B10)-($D$24-Tier2Purchases!$B10)+1))))) -> 0 | R9: =IF(OR(Tier2Purchases!$B10>$D$27,Tier2Purchases!$C10<$D$26),0,IF(AND(Tier2Purchases!$B10<$D$26,Tier2Purchases!$C10>$D$27),(Tier2Purchases!$C10-Tier2Purchases!$B10)-(Tier2Purchases!$C10-$D$28)-($D$26-Tier2Purchases!$B10),IF(AND(Tier2Purchases!$C10<=$D$27,Tier2Purchases!$B10>=$D$26),($D$27-$D$26)-($D$27-Tier2Purchases!$C10)-(Tier2Purchases!$B10-$D$26)+1,IF(Tier2Purchases!$B10>=$D$26,(Tier2Purchases!$C10-Tier2Purchases!$B10)-(Tier2Purchases!$C10-$D$28),IF(Tier2Purchases!$C10<=$D$27,(Tier2Purchases!$C10-Tier2Purchases!$B10)-($D$26-Tier2Purchases!$B10)+1))))) -> 0 | S9: =IF(OR(Tier2Purchases!$B10>$D$29,Tier2Purchases!$C10<$D$28),0,IF(AND(Tier2Purchases!$B10<$D$28,Tier2Purchases!$C10>$D$29),(Tier2Purchases!$C10-Tier2Purchases!$B10)-(Tier2Purchases!$C10-$D$30)-($D$28-Tier2Purchases!$B10),IF(AND(Tier2Purchases!$C10<=$D$29,Tier2Purchases!$B10>=$D$28),($D$29-$D$28)-($D$29-Tier2Purchases!$C10)-(Tier2Purchases!$B10-$D$28)+1,IF(Tier2Purchases!$B10>=$D$28,(Tier2Purchases!$C10-Tier2Purchases!$B10)-(Tier2Purchases!$C10-$D$30),IF(Tier2Purchases!$C10<=$D$29,(Tier2Purchases!$C10-Tier2Purchases!$B10)-($D$28-Tier2Purchases!$B10)+1))))) -> 0 | T9: =IF(OR(Tier2Purchases!$B10>$D$31,Tier2Purchases!$C10<$D$30),0,IF(AND(Tier2Purchases!$B10<$D$30,Tier2Purchases!$C10>$D$31),(Tier2Purchases!$C10-Tier2Purchases!$B10)-(Tier2Purchases!$C10-$D$32)-($D$30-Tier2Purchases!$B10),IF(AND(Tier2Purchases!$C10<=$D$31,Tier2Purchases!$B10>=$D$30),($D$31-$D$30)-($D$31-Tier2Purchases!$C10)-(Tier2Purchases!$B10-$D$30)+1,IF(Tier2Purchases!$B10>=$D$30,(Tier2Purchases!$C10-Tier2Purchases!$B10)-(Tier2Purchases!$C10-$D$32),IF(Tier2Purchases!$C10<=$D$31,(Tier2Purchases!$C10-Tier2Purchases!$B10)-($D$30-Tier2Purchases!$B10)+1))))) -> 0 | U9: =IF(OR(Tier2Purchases!$B10>$D$33,Tier2Purchases!$C10<$D$32),0,IF(AND(Tier2Purchases!$B10<$D$32,Tier2Purchases!$C10>$D$33),(Tier2Purchases!$C10-Tier2Purchases!$B10)-(Tier2Purchases!$C10-$D$34)-($D$32-Tier2Purchases!$B10),IF(AND(Tier2Purchases!$C10<=$D$33,Tier2Purchases!$B10>=$D$32),($D$33-$D$32)-($D$33-Tier2Purchases!$C10)-(Tier2Purchases!$B10-$D$32)+1,IF(Tier2Purchases!$B10>=$D$32,(Tier2Purchases!$C10-Tier2Purchases!$B10)-(Tier2Purchases!$C10-$D$34),IF(Tier2Purchases!$C10<=$D$33,(Tier2Purchases!$C10-Tier2Purchases!$B10)-($D$32-Tier2Purchases!$B10)+1))))) -> 0 | V9: =IF(OR(Tier2Purchases!$B10>$D$35,Tier2Purchases!$C10<$D$34),0,IF(AND(Tier2Purchases!$B10<$D$34,Tier2Purchases!$C10>$D$35),(Tier2Purchases!$C10-Tier2Purchases!$B10)-(Tier2Purchases!$C10-$D$36)-($D$34-Tier2Purchases!$B10),IF(AND(Tier2Purchases!$C10<=$D$35,Tier2Purchases!$B10>=$D$34),($D$35-$D$34)-($D$35-Tier2Purchases!$C10)-(Tier2Purchases!$B10-$D$34)+1,IF(Tier2Purchases!$B10>=$D$34,(Tier2Purchases!$C10-Tier2Purchases!$B10)-(Tier2Purchases!$C10-$D$36),IF(Tier2Purchases!$C10<=$D$35,(Tier2Purchases!$C10-Tier2Purchases!$B10)-($D$34-Tier2Purchases!$B10)+1))))) -> 0 | W9: =IF(OR(Tier2Purchases!$B10>$D$37,Tier2Purchases!$C10<$D$36),0,IF(AND(Tier2Purchases!$B10<$D$36,Tier2Purchases!$C10>$D$37),(Tier2Purchases!$C10-Tier2Purchases!$B10)-(Tier2Purchases!$C10-$D$38)-($D$36-Tier2Purchases!$B10),IF(AND(Tier2Purchases!$C10<=$D$37,Tier2Purchases!$B10>=$D$36),($D$37-$D$36)-($D$37-Tier2Purchases!$C10)-(Tier2Purchases!$B10-$D$36)+1,IF(Tier2Purchases!$B10>=$D$36,(Tier2Purchases!$C10-Tier2Purchases!$B10)-(Tier2Purchases!$C10-$D$38),IF(Tier2Purchases!$C10<=$D$37,(Tier2Purchases!$C10-Tier2Purchases!$B10)-($D$36-Tier2Purchases!$B10)+1))))) -> 0 | X9: =IF(OR(Tier2Purchases!$B10>$D$39,Tier2Purchases!$C10<$D$38),0,IF(AND(Tier2Purchases!$B10<$D$38,Tier2Purchases!$C10>$D$39),(Tier2Purchases!$C10-Tier2Purchases!$B10)-(Tier2Purchases!$C10-$D$39)-($D$38-Tier2Purchases!$B10)+1,IF(AND(Tier2Purchases!$C10<=$D$39,Tier2Purchases!$B10>=$D$38),($D$39-$D$38)-($D$39-Tier2Purchases!$C10)-(Tier2Purchases!$B10-$D$38)+1,IF(Tier2Purchases!$B10>=$D$38,(Tier2Purchases!$C10-Tier2Purchases!$B10)-(Tier2Purchases!$C10-$D$39)+1,IF(Tier2Purchases!$C10<=$D$39,(Tier2Purchases!$C10-Tier2Purchases!$B10)-($D$38-Tier2Purchases!$B10)+1))))) -> 0 | Y9: 366 | Z9: 0 | AA9: =Tier2Purchases!$C10-Tier2Purchases!$B10+1 -> 366 | AB9: TRUE
B10: FY2014 | C10: START DATE | D10: 2013-10-01 | E10: =Tier2Purchases!B11 -> 2012-10-01 | F10: =Tier2Purchases!C11 -> 2013-09-30 | H10: =IF(OR(Tier2Purchases!$B11>$D$7,Tier2Purchases!$C11<$D$6),0,IF(AND(Tier2Purchases!$B11<$D$6,Tier2Purchases!$C11>$D$7),(Tier2Purchases!$C11-Tier2Purchases!$B11)-(Tier2Purchases!$C11-$D$8)-($D$6-Tier2Purchases!$B11),IF(AND(Tier2Purchases!$C11<=$D$7,Tier2Purchases!$B11>=$D$6),($D$7-$D$6)-($D$7-Tier2Purchases!$C11)-(Tier2Purchases!$B11-$D$6)+1,IF(Tier2Purchases!$B11>=$D$6,(Tier2Purchases!$C11-Tier2Purchases!$B11)-(Tier2Purchases!$C11-$D$8),IF(Tier2Purchases!$C11<=$D$7,(Tier2Purchases!$C11-Tier2Purchases!$B11)-($D$6-Tier2Purchases!$B11)+1))))) -> 0 | I10: =IF(OR(Tier2Purchases!$B11>$D$9,Tier2Purchases!$C11<$D$8),0,IF(AND(Tier2Purchases!$B11<$D$8,Tier2Purchases!$C11>$D$9),(Tier2Purchases!$C11-Tier2Purchases!$B11)-(Tier2Purchases!$C11-$D$10)-($D$8-Tier2Purchases!$B11),IF(AND(Tier2Purchases!$C11<=$D$9,Tier2Purchases!$B11>=$D$8),($D$9-$D$8)-($D$9-Tier2Purchases!$C11)-(Tier2Purchases!$B11-$D$8)+1,IF(Tier2Purchases!$B11>=$D$8,(Tier2Purchases!$C11-Tier2Purchases!$B11)-(Tier2Purchases!$C11-$D$10),IF(Tier2Purchases!$C11<=$D$9,(Tier2Purchases!$C11-Tier2Purchases!$B11)-($D$8-Tier2Purchases!$B11)+1))))) -> 365 | J10: =IF(OR(Tier2Purchases!$B11>$D$11,Tier2Purchases!$C11<$D$10),0,IF(AND(Tier2Purchases!$B11<$D$10,Tier2Purchases!$C11>$D$11),(Tier2Purchases!$C11-Tier2Purchases!$B11)-(Tier2Purchases!$C11-$D$12)-($D$10-Tier2Purchases!$B11),IF(AND(Tier2Purchases!$C11<=$D$11,Tier2Purchases!$B11>=$D$10),($D$11-$D$10)-($D$11-Tier2Purchases!$C11)-(Tier2Purchases!$B11-$D$10)+1,IF(Tier2Purchases!$B11>=$D$10,(Tier2Purchases!$C11-Tier2Purchases!$B11)-(Tier2Purchases!$C11-$D$12),IF(Tier2Purchases!$C11<=$D$11,(Tier2Purchases!$C11-Tier2Purchases!$B11)-($D$10-Tier2Purchases!$B11)+1))))) -> 0 | K10: =IF(OR(Tier2Purchases!$B11>$D$13,Tier2Purchases!$C11<$D$12),0,IF(AND(Tier2Purchases!$B11<$D$12,Tier2Purchases!$C11>$D$13),(Tier2Purchases!$C11-Tier2Purchases!$B11)-(Tier2Purchases!$C11-$D$14)-($D$12-Tier2Purchases!$B11),IF(AND(Tier2Purchases!$C11<=$D$13,Tier2Purchases!$B11>=$D$12),($D$13-$D$12)-($D$13-Tier2Purchases!$C11)-(Tier2Purchases!$B11-$D$12)+1,IF(Tier2Purchases!$B11>=$D$12,(Tier2Purchases!$C11-Tier2Purchases!$B11)-(Tier2Purchases!$C11-$D$14),IF(Tier2Purchases!$C11<=$D$13,(Tier2Purchases!$C11-Tier2Purchases!$B11)-($D$12-Tier2Purchases!$B11)+1))))) -> 0 | L10: =IF(OR(Tier2Purchases!$B11>$D$15,Tier2Purchases!$C11<$D$14),0,IF(AND(Tier2Purchases!$B11<$D$14,Tier2Purchases!$C11>$D$15),(Tier2Purchases!$C11-Tier2Purchases!$B11)-(Tier2Purchases!$C11-$D$16)-($D$14-Tier2Purchases!$B11),IF(AND(Tier2Purchases!$C11<=$D$15,Tier2Purchases!$B11>=$D$14),($D$15-$D$14)-($D$15-Tier2Purchases!$C11)-(Tier2Purchases!$B11-$D$14)+1,IF(Tier2Purchases!$B11>=$D$14,(Tier2Purchases!$C11-Tier2Purchases!$B11)-(Tier2Purchases!$C11-$D$16),IF(Tier2Purchases!$C11<=$D$15,(Tier2Purchases!$C11-Tier2Purchases!$B11)-($D$14-Tier2Purchases!$B11)+1))))) -> 0 | M10: =IF(OR(Tier2Purchases!$B11>$D$17,Tier2Purchases!$C11<$D$16),0,IF(AND(Tier2Purchases!$B11<$D$16,Tier2Purchases!$C11>$D$17),(Tier2Purchases!$C11-Tier2Purchases!$B11)-(Tier2Purchases!$C11-$D$18)-($D$16-Tier2Purchases!$B11),IF(AND(Tier2Purchases!$C11<=$D$17,Tier2Purchases!$B11>=$D$16),($D$17-$D$16)-($D$17-Tier2Purchases!$C11)-(Tier2Purchases!$B11-$D$16)+1,IF(Tier2Purchases!$B11>=$D$16,(Tier2Purchases!$C11-Tier2Purchases!$B11)-(Tier2Purchases!$C11-$D$18),IF(Tier2Purchases!$C11<=$D$17,(Tier2Purchases!$C11-Tier2Purchases!$B11)-($D$16-Tier2Purchases!$B11)+1))))) -> 0 | N10: =IF(OR(Tier2Purchases!$B11>$D$19,Tier2Purchases!$C11<$D$18),0,IF(AND(Tier2Purchases!$B11<$D$18,Tier2Purchases!$C11>$D$19),(Tier2Purchases!$C11-Tier2Purchases!$B11)-(Tier2Purchases!$C11-$D$20)-($D$18-Tier2Purchases!$B11),IF(AND(Tier2Purchases!$C11<=$D$19,Tier2Purchases!$B11>=$D$18),($D$19-$D$18)-($D$19-Tier2Purchases!$C11)-(Tier2Purchases!$B11-$D$18)+1,IF(Tier2Purchases!$B11>=$D$18,(Tier2Purchases!$C11-Tier2Purchases!$B11)-(Tier2Purchases!$C11-$D$20),IF(Tier2Purchases!$C11<=$D$19,(Tier2Purchases!$C11-Tier2Purchases!$B11)-($D$18-Tier2Purchases!$B11)+1))))) -> 0 | O10: =IF(OR(Tier2Purchases!$B11>$D$21,Tier2Purchases!$C11<$D$20),0,IF(AND(Tier2Purchases!$B11<$D$20,Tier2Purchases!$C11>$D$21),(Tier2Purchases!$C11-Tier2Purchases!$B11)-(Tier2Purchases!$C11-$D$22)-($D$20-Tier2Purchases!$B11),IF(AND(Tier2Purchases!$C11<=$D$21,Tier2Purchases!$B11>=$D$20),($D$21-$D$20)-($D$21-Tier2Purchases!$C11)-(Tier2Purchases!$B11-$D$20)+1,IF(Tier2Purchases!$B11>=$D$20,(Tier2Purchases!$C11-Tier2Purchases!$B11)-(Tier2Purchases!$C11-$D$22),IF(Tier2Purchases!$C11<=$D$21,(Tier2Purchases!$C11-Tier2Purchases!$B11)-($D$20-Tier2Purchases!$B11)+1))))) -> 0 | P10: =IF(OR(Tier2Purchases!$B11>$D$23,Tier2Purchases!$C11<$D$22),0,IF(AND(Tier2Purchases!$B11<$D$22,Tier2Purchases!$C11>$D$23),(Tier2Purchases!$C11-Tier2Purchases!$B11)-(Tier2Purchases!$C11-$D$24)-($D$22-Tier2Purchases!$B11),IF(AND(Tier2Purchases!$C11<=$D$23,Tier2Purchases!$B11>=$D$22),($D$23-$D$22)-($D$23-Tier2Purchases!$C11)-(Tier2Purchases!$B11-$D$22)+1,IF(Tier2Purchases!$B11>=$D$22,(Tier2Purchases!$C11-Tier2Purchases!$B11)-(Tier2Purchases!$C11-$D$24),IF(Tier2Purchases!$C11<=$D$23,(Tier2Purchases!$C11-Tier2Purchases!$B11)-($D$22-Tier2Purchases!$B11)+1))))) -> 0 | Q10: =IF(OR(Tier2Purchases!$B11>$D$25,Tier2Purchases!$C11<$D$24),0,IF(AND(Tier2Purchases!$B11<$D$24,Tier2Purchases!$C11>$D$25),(Tier2Purchases!$C11-Tier2Purchases!$B11)-(Tier2Purchases!$C11-$D$26)-($D$24-Tier2Purchases!$B11),IF(AND(Tier2Purchases!$C11<=$D$25,Tier2Purchases!$B11>=$D$24),($D$25-$D$24)-($D$25-Tier2Purchases!$C11)-(Tier2Purchases!$B11-$D$24)+1,IF(Tier2Purchases!$B11>=$D$24,(Tier2Purchases!$C11-Tier2Purchases!$B11)-(Tier2Purchases!$C11-$D$26),IF(Tier2Purchases!$C11<=$D$25,(Tier2Purchases!$C11-Tier2Purchases!$B11)-($D$24-Tier2Purchases!$B11)+1))))) -> 0 | R10: =IF(OR(Tier2Purchases!$B11>$D$27,Tier2Purchases!$C11<$D$26),0,IF(AND(Tier2Purchases!$B11<$D$26,Tier2Purchases!$C11>$D$27),(Tier2Purchases!$C11-Tier2Purchases!$B11)-(Tier2Purchases!$C11-$D$28)-($D$26-Tier2Purchases!$B11),IF(AND(Tier2Purchases!$C11<=$D$27,Tier2Purchases!$B11>=$D$26),($D$27-$D$26)-($D$27-Tier2Purchases!$C11)-(Tier2Purchases!$B11-$D$26)+1,IF(Tier2Purchases!$B11>=$D$26,(Tier2Purchases!$C11-Tier2Purchases!$B11)-(Tier2Purchases!$C11-$D$28),IF(Tier2Purchases!$C11<=$D$27,(Tier2Purchases!$C11-Tier2Purchases!$B11)-($D$26-Tier2Purchases!$B11)+1))))) -> 0 | S10: =IF(OR(Tier2Purchases!$B11>$D$29,Tier2Purchases!$C11<$D$28),0,IF(AND(Tier2Purchases!$B11<$D$28,Tier2Purchases!$C11>$D$29),(Tier2Purchases!$C11-Tier2Purchases!$B11)-(Tier2Purchases!$C11-$D$30)-($D$28-Tier2Purchases!$B11),IF(AND(Tier2Purchases!$C11<=$D$29,Tier2Purchases!$B11>=$D$28),($D$29-$D$28)-($D$29-Tier2Purchases!$C11)-(Tier2Purchases!$B11-$D$28)+1,IF(Tier2Purchases!$B11>=$D$28,(Tier2Purchases!$C11-Tier2Purchases!$B11)-(Tier2Purchases!$C11-$D$30),IF(Tier2Purchases!$C11<=$D$29,(Tier2Purchases!$C11-Tier2Purchases!$B11)-($D$28-Tier2Purchases!$B11)+1))))) -> 0 | T10: =IF(OR(Tier2Purchases!$B11>$D$31,Tier2Purchases!$C11<$D$30),0,IF(AND(Tier2Purchases!$B11<$D$30,Tier2Purchases!$C11>$D$31),(Tier2Purchases!$C11-Tier2Purchases!$B11)-(Tier2Purchases!$C11-$D$32)-($D$30-Tier2Purchases!$B11),IF(AND(Tier2Purchases!$C11<=$D$31,Tier2Purchases!$B11>=$D$30),($D$31-$D$30)-($D$31-Tier2Purchases!$C11)-(Tier2Purchases!$B11-$D$30)+1,IF(Tier2Purchases!$B11>=$D$30,(Tier2Purchases!$C11-Tier2Purchases!$B11)-(Tier2Purchases!$C11-$D$32),IF(Tier2Purchases!$C11<=$D$31,(Tier2Purchases!$C11-Tier2Purchases!$B11)-($D$30-Tier2Purchases!$B11)+1))))) -> 0 | U10: =IF(OR(Tier2Purchases!$B11>$D$33,Tier2Purchases!$C11<$D$32),0,IF(AND(Tier2Purchases!$B11<$D$32,Tier2Purchases!$C11>$D$33),(Tier2Purchases!$C11-Tier2Purchases!$B11)-(Tier2Purchases!$C11-$D$34)-($D$32-Tier2Purchases!$B11),IF(AND(Tier2Purchases!$C11<=$D$33,Tier2Purchases!$B11>=$D$32),($D$33-$D$32)-($D$33-Tier2Purchases!$C11)-(Tier2Purchases!$B11-$D$32)+1,IF(Tier2Purchases!$B11>=$D$32,(Tier2Purchases!$C11-Tier2Purchases!$B11)-(Tier2Purchases!$C11-$D$34),IF(Tier2Purchases!$C11<=$D$33,(Tier2Purchases!$C11-Tier2Purchases!$B11)-($D$32-Tier2Purchases!$B11)+1))))) -> 0 | V10: =IF(OR(Tier2Purchases!$B11>$D$35,Tier2Purchases!$C11<$D$34),0,IF(AND(Tier2Purchases!$B11<$D$34,Tier2Purchases!$C11>$D$35),(Tier2Purchases!$C11-Tier2Purchases!$B11)-(Tier2Purchases!$C11-$D$36)-($D$34-Tier2Purchases!$B11),IF(AND(Tier2Purchases!$C11<=$D$35,Tier2Purchases!$B11>=$D$34),($D$35-$D$34)-($D$35-Tier2Purchases!$C11)-(Tier2Purchases!$B11-$D$34)+1,IF(Tier2Purchases!$B11>=$D$34,(Tier2Purchases!$C11-Tier2Purchases!$B11)-(Tier2Purchases!$C11-$D$36),IF(Tier2Purchases!$C11<=$D$35,(Tier2Purchases!$C11-Tier2Purchases!$B11)-($D$34-Tier2Purchases!$B11)+1))))) -> 0 | W10: =IF(OR(Tier2Purchases!$B11>$D$37,Tier2Purchases!$C11<$D$36),0,IF(AND(Tier2Purchases!$B11<$D$36,Tier2Purchases!$C11>$D$37),(Tier2Purchases!$C11-Tier2Purchases!$B11)-(Tier2Purchases!$C11-$D$38)-($D$36-Tier2Purchases!$B11),IF(AND(Tier2Purchases!$C11<=$D$37,Tier2Purchases!$B11>=$D$36),($D$37-$D$36)-($D$37-Tier2Purchases!$C11)-(Tier2Purchases!$B11-$D$36)+1,IF(Tier2Purchases!$B11>=$D$36,(Tier2Purchases!$C11-Tier2Purchases!$B11)-(Tier2Purchases!$C11-$D$38),IF(Tier2Purchases!$C11<=$D$37,(Tier2Purchases!$C11-Tier2Purchases!$B11)-($D$36-Tier2Purchases!$B11)+1))))) -> 0 | X10: =IF(OR(Tier2Purchases!$B11>$D$39,Tier2Purchases!$C11<$D$38),0,IF(AND(Tier2Purchases!$B11<$D$38,Tier2Purchases!$C11>$D$39),(Tier2Purchases!$C11-Tier2Purchases!$B11)-(Tier2Purchases!$C11-$D$39)-($D$38-Tier2Purchases!$B11)+1,IF(AND(Tier2Purchases!$C11<=$D$39,Tier2Purchases!$B11>=$D$38),($D$39-$D$38)-($D$39-Tier2Purchases!$C11)-(Tier2Purchases!$B11-$D$38)+1,IF(Tier2Purchases!$B11>=$D$38,(Tier2Purchases!$C11-Tier2Purchases!$B11)-(Tier2Purchases!$C11-$D$39)+1,IF(Tier2Purchases!$C11<=$D$39,(Tier2Purchases!$C11-Tier2Purchases!$B11)-($D$38-Tier2Purchases!$B11)+1))))) -> 0 | Y10: 365 | Z10: 0 | AA10: =Tier2Purchases!$C11-Tier2Purchases!$B11+1 -> 365 | AB10: TRUE
C11: END DATE | D11: 2014-09-30 | E11: =Tier2Purchases!B12 -> 2013-10-01 | F11: =Tier2Purchases!C12 -> 2014-09-30 | H11: =IF(OR(Tier2Purchases!$B12>$D$7,Tier2Purchases!$C12<$D$6),0,IF(AND(Tier2Purchases!$B12<$D$6,Tier2Purchases!$C12>$D$7),(Tier2Purchases!$C12-Tier2Purchases!$B12)-(Tier2Purchases!$C12-$D$8)-($D$6-Tier2Purchases!$B12),IF(AND(Tier2Purchases!$C12<=$D$7,Tier2Purchases!$B12>=$D$6),($D$7-$D$6)-($D$7-Tier2Purchases!$C12)-(Tier2Purchases!$B12-$D$6)+1,IF(Tier2Purchases!$B12>=$D$6,(Tier2Purchases!$C12-Tier2Purchases!$B12)-(Tier2Purchases!$C12-$D$8),IF(Tier2Purchases!$C12<=$D$7,(Tier2Purchases!$C12-Tier2Purchases!$B12)-($D$6-Tier2Purchases!$B12)+1))))) -> 0 | I11: =IF(OR(Tier2Purchases!$B12>$D$9,Tier2Purchases!$C12<$D$8),0,IF(AND(Tier2Purchases!$B12<$D$8,Tier2Purchases!$C12>$D$9),(Tier2Purchases!$C12-Tier2Purchases!$B12)-(Tier2Purchases!$C12-$D$10)-($D$8-Tier2Purchases!$B12),IF(AND(Tier2Purchases!$C12<=$D$9,Tier2Purchases!$B12>=$D$8),($D$9-$D$8)-($D$9-Tier2Purchases!$C12)-(Tier2Purchases!$B12-$D$8)+1,IF(Tier2Purchases!$B12>=$D$8,(Tier2Purchases!$C12-Tier2Purchases!$B12)-(Tier2Purchases!$C12-$D$10),IF(Tier2Purchases!$C12<=$D$9,(Tier2Purchases!$C12-Tier2Purchases!$B12)-($D$8-Tier2Purchases!$B12)+1))))) -> 0 | J11: =IF(OR(Tier2Purchases!$B12>$D$11,Tier2Purchases!$C12<$D$10),0,IF(AND(Tier2Purchases!$B12<$D$10,Tier2Purchases!$C12>$D$11),(Tier2Purchases!$C12-Tier2Purchases!$B12)-(Tier2Purchases!$C12-$D$12)-($D$10-Tier2Purchases!$B12),IF(AND(Tier2Purchases!$C12<=$D$11,Tier2Purchases!$B12>=$D$10),($D$11-$D$10)-($D$11-Tier2Purchases!$C12)-(Tier2Purchases!$B12-$D$10)+1,IF(Tier2Purchases!$B12>=$D$10,(Tier2Purchases!$C12-Tier2Purchases!$B12)-(Tier2Purchases!$C12-$D$12),IF(Tier2Purchases!$C12<=$D$11,(Tier2Purchases!$C12-Tier2Purchases!$B12)-($D$10-Tier2Purchases!$B12)+1))))) -> 365 | K11: =IF(OR(Tier2Purchases!$B12>$D$13,Tier2Purchases!$C12<$D$12),0,IF(AND(Tier2Purchases!$B12<$D$12,Tier2Purchases!$C12>$D$13),(Tier2Purchases!$C12-Tier2Purchases!$B12)-(Tier2Purchases!$C12-$D$14)-($D$12-Tier2Purchases!$B12),IF(AND(Tier2Purchases!$C12<=$D$13,Tier2Purchases!$B12>=$D$12),($D$13-$D$12)-($D$13-Tier2Purchases!$C12)-(Tier2Purchases!$B12-$D$12)+1,IF(Tier2Purchases!$B12>=$D$12,(Tier2Purchases!$C12-Tier2Purchases!$B12)-(Tier2Purchases!$C12-$D$14),IF(Tier2Purchases!$C12<=$D$13,(Tier2Purchases!$C12-Tier2Purchases!$B12)-($D$12-Tier2Purchases!$B12)+1))))) -> 0 | L11: =IF(OR(Tier2Purchases!$B12>$D$15,Tier2Purchases!$C12<$D$14),0,IF(AND(Tier2Purchases!$B12<$D$14,Tier2Purchases!$C12>$D$15),(Tier2Purchases!$C12-Tier2Purchases!$B12)-(Tier2Purchases!$C12-$D$16)-($D$14-Tier2Purchases!$B12),IF(AND(Tier2Purchases!$C12<=$D$15,Tier2Purchases!$B12>=$D$14),($D$15-$D$14)-($D$15-Tier2Purchases!$C12)-(Tier2Purchases!$B12-$D$14)+1,IF(Tier2Purchases!$B12>=$D$14,(Tier2Purchases!$C12-Tier2Purchases!$B12)-(Tier2Purchases!$C12-$D$16),IF(Tier2Purchases!$C12<=$D$15,(Tier2Purchases!$C12-Tier2Purchases!$B12)-($D$14-Tier2Purchases!$B12)+1))))) -> 0 | M11: =IF(OR(Tier2Purchases!$B12>$D$17,Tier2Purchases!$C12<$D$16),0,IF(AND(Tier2Purchases!$B12<$D$16,Tier2Purchases!$C12>$D$17),(Tier2Purchases!$C12-Tier2Purchases!$B12)-(Tier2Purchases!$C12-$D$18)-($D$16-Tier2Purchases!$B12),IF(AND(Tier2Purchases!$C12<=$D$17,Tier2Purchases!$B12>=$D$16),($D$17-$D$16)-($D$17-Tier2Purchases!$C12)-(Tier2Purchases!$B12-$D$16)+1,IF(Tier2Purchases!$B12>=$D$16,(Tier2Purchases!$C12-Tier2Purchases!$B12)-(Tier2Purchases!$C12-$D$18),IF(Tier2Purchases!$C12<=$D$17,(Tier2Purchases!$C12-Tier2Purchases!$B12)-($D$16-Tier2Purchases!$B12)+1))))) -> 0 | N11: =IF(OR(Tier2Purchases!$B12>$D$19,Tier2Purchases!$C12<$D$18),0,IF(AND(Tier2Purchases!$B12<$D$18,Tier2Purchases!$C12>$D$19),(Tier2Purchases!$C12-Tier2Purchases!$B12)-(Tier2Purchases!$C12-$D$20)-($D$18-Tier2Purchases!$B12),IF(AND(Tier2Purchases!$C12<=$D$19,Tier2Purchases!$B12>=$D$18),($D$19-$D$18)-($D$19-Tier2Purchases!$C12)-(Tier2Purchases!$B12-$D$18)+1,IF(Tier2Purchases!$B12>=$D$18,(Tier2Purchases!$C12-Tier2Purchases!$B12)-(Tier2Purchases!$C12-$D$20),IF(Tier2Purchases!$C12<=$D$19,(Tier2Purchases!$C12-Tier2Purchases!$B12)-($D$18-Tier2Purchases!$B12)+1))))) -> 0 | O11: =IF(OR(Tier2Purchases!$B12>$D$21,Tier2Purchases!$C12<$D$20),0,IF(AND(Tier2Purchases!$B12<$D$20,Tier2Purchases!$C12>$D$21),(Tier2Purchases!$C12-Tier2Purchases!$B12)-(Tier2Purchases!$C12-$D$22)-($D$20-Tier2Purchases!$B12),IF(AND(Tier2Purchases!$C12<=$D$21,Tier2Purchases!$B12>=$D$20),($D$21-$D$20)-($D$21-Tier2Purchases!$C12)-(Tier2Purchases!$B12-$D$20)+1,IF(Tier2Purchases!$B12>=$D$20,(Tier2Purchases!$C12-Tier2Purchases!$B12)-(Tier2Purchases!$C12-$D$22),IF(Tier2Purchases!$C12<=$D$21,(Tier2Purchases!$C12-Tier2Purchases!$B12)-($D$20-Tier2Purchases!$B12)+1))))) -> 0 | P11: =IF(OR(Tier2Purchases!$B12>$D$23,Tier2Purchases!$C12<$D$22),0,IF(AND(Tier2Purchases!$B12<$D$22,Tier2Purchases!$C12>$D$23),(Tier2Purchases!$C12-Tier2Purchases!$B12)-(Tier2Purchases!$C12-$D$24)-($D$22-Tier2Purchases!$B12),IF(AND(Tier2Purchases!$C12<=$D$23,Tier2Purchases!$B12>=$D$22),($D$23-$D$22)-($D$23-Tier2Purchases!$C12)-(Tier2Purchases!$B12-$D$22)+1,IF(Tier2Purchases!$B12>=$D$22,(Tier2Purchases!$C12-Tier2Purchases!$B12)-(Tier2Purchases!$C12-$D$24),IF(Tier2Purchases!$C12<=$D$23,(Tier2Purchases!$C12-Tier2Purchases!$B12)-($D$22-Tier2Purchases!$B12)+1))))) -> 0 | Q11: =IF(OR(Tier2Purchases!$B12>$D$25,Tier2Purchases!$C12<$D$24),0,IF(AND(Tier2Purchases!$B12<$D$24,Tier2Purchases!$C12>$D$25),(Tier2Purchases!$C12-Tier2Purchases!$B12)-(Tier2Purchases!$C12-$D$26)-($D$24-Tier2Purchases!$B12),IF(AND(Tier2Purchases!$C12<=$D$25,Tier2Purchases!$B12>=$D$24),($D$25-$D$24)-($D$25-Tier2Purchases!$C12)-(Tier2Purchases!$B12-$D$24)+1,IF(Tier2Purchases!$B12>=$D$24,(Tier2Purchases!$C12-Tier2Purchases!$B12)-(Tier2Purchases!$C12-$D$26),IF(Tier2Purchases!$C12<=$D$25,(Tier2Purchases!$C12-Tier2Purchases!$B12)-($D$24-Tier2Purchases!$B12)+1))))) -> 0 | R11: =IF(OR(Tier2Purchases!$B12>$D$27,Tier2Purchases!$C12<$D$26),0,IF(AND(Tier2Purchases!$B12<$D$26,Tier2Purchases!$C12>$D$27),(Tier2Purchases!$C12-Tier2Purchases!$B12)-(Tier2Purchases!$C12-$D$28)-($D$26-Tier2Purchases!$B12),IF(AND(Tier2Purchases!$C12<=$D$27,Tier2Purchases!$B12>=$D$26),($D$27-$D$26)-($D$27-Tier2Purchases!$C12)-(Tier2Purchases!$B12-$D$26)+1,IF(Tier2Purchases!$B12>=$D$26,(Tier2Purchases!$C12-Tier2Purchases!$B12)-(Tier2Purchases!$C12-$D$28),IF(Tier2Purchases!$C12<=$D$27,(Tier2Purchases!$C12-Tier2Purchases!$B12)-($D$26-Tier2Purchases!$B12)+1))))) -> 0 | S11: =IF(OR(Tier2Purchases!$B12>$D$29,Tier2Purchases!$C12<$D$28),0,IF(AND(Tier2Purchases!$B12<$D$28,Tier2Purchases!$C12>$D$29),(Tier2Purchases!$C12-Tier2Purchases!$B12)-(Tier2Purchases!$C12-$D$30)-($D$28-Tier2Purchases!$B12),IF(AND(Tier2Purchases!$C12<=$D$29,Tier2Purchases!$B12>=$D$28),($D$29-$D$28)-($D$29-Tier2Purchases!$C12)-(Tier2Purchases!$B12-$D$28)+1,IF(Tier2Purchases!$B12>=$D$28,(Tier2Purchases!$C12-Tier2Purchases!$B12)-(Tier2Purchases!$C12-$D$30),IF(Tier2Purchases!$C12<=$D$29,(Tier2Purchases!$C12-Tier2Purchases!$B12)-($D$28-Tier2Purchases!$B12)+1))))) -> 0 | T11: =IF(OR(Tier2Purchases!$B12>$D$31,Tier2Purchases!$C12<$D$30),0,IF(AND(Tier2Purchases!$B12<$D$30,Tier2Purchases!$C12>$D$31),(Tier2Purchases!$C12-Tier2Purchases!$B12)-(Tier2Purchases!$C12-$D$32)-($D$30-Tier2Purchases!$B12),IF(AND(Tier2Purchases!$C12<=$D$31,Tier2Purchases!$B12>=$D$30),($D$31-$D$30)-($D$31-Tier2Purchases!$C12)-(Tier2Purchases!$B12-$D$30)+1,IF(Tier2Purchases!$B12>=$D$30,(Tier2Purchases!$C12-Tier2Purchases!$B12)-(Tier2Purchases!$C12-$D$32),IF(Tier2Purchases!$C12<=$D$31,(Tier2Purchases!$C12-Tier2Purchases!$B12)-($D$30-Tier2Purchases!$B12)+1))))) -> 0 | U11: =IF(OR(Tier2Purchases!$B12>$D$33,Tier2Purchases!$C12<$D$32),0,IF(AND(Tier2Purchases!$B12<$D$32,Tier2Purchases!$C12>$D$33),(Tier2Purchases!$C12-Tier2Purchases!$B12)-(Tier2Purchases!$C12-$D$34)-($D$32-Tier2Purchases!$B12),IF(AND(Tier2Purchases!$C12<=$D$33,Tier2Purchases!$B12>=$D$32),($D$33-$D$32)-($D$33-Tier2Purchases!$C12)-(Tier2Purchases!$B12-$D$32)+1,IF(Tier2Purchases!$B12>=$D$32,(Tier2Purchases!$C12-Tier2Purchases!$B12)-(Tier2Purchases!$C12-$D$34),IF(Tier2Purchases!$C12<=$D$33,(Tier2Purchases!$C12-Tier2Purchases!$B12)-($D$32-Tier2Purchases!$B12)+1))))) -> 0 | V11: =IF(OR(Tier2Purchases!$B12>$D$35,Tier2Purchases!$C12<$D$34),0,IF(AND(Tier2Purchases!$B12<$D$34,Tier2Purchases!$C12>$D$35),(Tier2Purchases!$C12-Tier2Purchases!$B12)-(Tier2Purchases!$C12-$D$36)-($D$34-Tier2Purchases!$B12),IF(AND(Tier2Purchases!$C12<=$D$35,Tier2Purchases!$B12>=$D$34),($D$35-$D$34)-($D$35-Tier2Purchases!$C12)-(Tier2Purchases!$B12-$D$34)+1,IF(Tier2Purchases!$B12>=$D$34,(Tier2Purchases!$C12-Tier2Purchases!$B12)-(Tier2Purchases!$C12-$D$36),IF(Tier2Purchases!$C12<=$D$35,(Tier2Purchases!$C12-Tier2Purchases!$B12)-($D$34-Tier2Purchases!$B12)+1))))) -> 0 | W11: =IF(OR(Tier2Purchases!$B12>$D$37,Tier2Purchases!$C12<$D$36),0,IF(AND(Tier2Purchases!$B12<$D$36,Tier2Purchases!$C12>$D$37),(Tier2Purchases!$C12-Tier2Purchases!$B12)-(Tier2Purchases!$C12-$D$38)-($D$36-Tier2Purchases!$B12),IF(AND(Tier2Purchases!$C12<=$D$37,Tier2Purchases!$B12>=$D$36),($D$37-$D$36)-($D$37-Tier2Purchases!$C12)-(Tier2Purchases!$B12-$D$36)+1,IF(Tier2Purchases!$B12>=$D$36,(Tier2Purchases!$C12-Tier2Purchases!$B12)-(Tier2Purchases!$C12-$D$38),IF(Tier2Purchases!$C12<=$D$37,(Tier2Purchases!$C12-Tier2Purchases!$B12)-($D$36-Tier2Purchases!$B12)+1))))) -> 0 | X11: =IF(OR(Tier2Purchases!$B12>$D$39,Tier2Purchases!$C12<$D$38),0,IF(AND(Tier2Purchases!$B12<$D$38,Tier2Purchases!$C12>$D$39),(Tier2Purchases!$C12-Tier2Purchases!$B12)-(Tier2Purchases!$C12-$D$39)-($D$38-Tier2Purchases!$B12)+1,IF(AND(Tier2Purchases!$C12<=$D$39,Tier2Purchases!$B12>=$D$38),($D$39-$D$38)-($D$39-Tier2Purchases!$C12)-(Tier2Purchases!$B12-$D$38)+1,IF(Tier2Purchases!$B12>=$D$38,(Tier2Purchases!$C12-Tier2Purchases!$B12)-(Tier2Purchases!$C12-$D$39)+1,IF(Tier2Purchases!$C12<=$D$39,(Tier2Purchases!$C12-Tier2Purchases!$B12)-($D$38-Tier2Purchases!$B12)+1))))) -> 0 | Y11: 365 | Z11: 0 | AA11: =Tier2Purchases!$C12-Tier2Purchases!$B12+1 -> 365 | AB11: TRUE
B12: FY2015 | C12: START DATE | D12: 2014-10-01 | E12: =Tier2Purchases!B13 -> 2013-10-01 | F12: =Tier2Purchases!C13 -> 2014-09-30 | H12: =IF(OR(Tier2Purchases!$B13>$D$7,Tier2Purchases!$C13<$D$6),0,IF(AND(Tier2Purchases!$B13<$D$6,Tier2Purchases!$C13>$D$7),(Tier2Purchases!$C13-Tier2Purchases!$B13)-(Tier2Purchases!$C13-$D$8)-($D$6-Tier2Purchases!$B13),IF(AND(Tier2Purchases!$C13<=$D$7,Tier2Purchases!$B13>=$D$6),($D$7-$D$6)-($D$7-Tier2Purchases!$C13)-(Tier2Purchases!$B13-$D$6)+1,IF(Tier2Purchases!$B13>=$D$6,(Tier2Purchases!$C13-Tier2Purchases!$B13)-(Tier2Purchases!$C13-$D$8),IF(Tier2Purchases!$C13<=$D$7,(Tier2Purchases!$C13-Tier2Purchases!$B13)-($D$6-Tier2Purchases!$B13)+1))))) -> 0 | I12: =IF(OR(Tier2Purchases!$B13>$D$9,Tier2Purchases!$C13<$D$8),0,IF(AND(Tier2Purchases!$B13<$D$8,Tier2Purchases!$C13>$D$9),(Tier2Purchases!$C13-Tier2Purchases!$B13)-(Tier2Purchases!$C13-$D$10)-($D$8-Tier2Purchases!$B13),IF(AND(Tier2Purchases!$C13<=$D$9,Tier2Purchases!$B13>=$D$8),($D$9-$D$8)-($D$9-Tier2Purchases!$C13)-(Tier2Purchases!$B13-$D$8)+1,IF(Tier2Purchases!$B13>=$D$8,(Tier2Purchases!$C13-Tier2Purchases!$B13)-(Tier2Purchases!$C13-$D$10),IF(Tier2Purchases!$C13<=$D$9,(Tier2Purchases!$C13-Tier2Purchases!$B13)-($D$8-Tier2Purchases!$B13)+1))))) -> 0 | J12: =IF(OR(Tier2Purchases!$B13>$D$11,Tier2Purchases!$C13<$D$10),0,IF(AND(Tier2Purchases!$B13<$D$10,Tier2Purchases!$C13>$D$11),(Tier2Purchases!$C13-Tier2Purchases!$B13)-(Tier2Purchases!$C13-$D$12)-($D$10-Tier2Purchases!$B13),IF(AND(Tier2Purchases!$C13<=$D$11,Tier2Purchases!$B13>=$D$10),($D$11-$D$10)-($D$11-Tier2Purchases!$C13)-(Tier2Purchases!$B13-$D$10)+1,IF(Tier2Purchases!$B13>=$D$10,(Tier2Purchases!$C13-Tier2Purchases!$B13)-(Tier2Purchases!$C13-$D$12),IF(Tier2Purchases!$C13<=$D$11,(Tier2Purchases!$C13-Tier2Purchases!$B13)-($D$10-Tier2Purchases!$B13)+1))))) -> 365 | K12: =IF(OR(Tier2Purchases!$B13>$D$13,Tier2Purchases!$C13<$D$12),0,IF(AND(Tier2Purchases!$B13<$D$12,Tier2Purchases!$C13>$D$13),(Tier2Purchases!$C13-Tier2Purchases!$B13)-(Tier2Purchases!$C13-$D$14)-($D$12-Tier2Purchases!$B13),IF(AND(Tier2Purchases!$C13<=$D$13,Tier2Purchases!$B13>=$D$12),($D$13-$D$12)-($D$13-Tier2Purchases!$C13)-(Tier2Purchases!$B13-$D$12)+1,IF(Tier2Purchases!$B13>=$D$12,(Tier2Purchases!$C13-Tier2Purchases!$B13)-(Tier2Purchases!$C13-$D$14),IF(Tier2Purchases!$C13<=$D$13,(Tier2Purchases!$C13-Tier2Purchases!$B13)-($D$12-Tier2Purchases!$B13)+1))))) -> 0 | L12: =IF(OR(Tier2Purchases!$B13>$D$15,Tier2Purchases!$C13<$D$14),0,IF(AND(Tier2Purchases!$B13<$D$14,Tier2Purchases!$C13>$D$15),(Tier2Purchases!$C13-Tier2Purchases!$B13)-(Tier2Purchases!$C13-$D$16)-($D$14-Tier2Purchases!$B13),IF(AND(Tier2Purchases!$C13<=$D$15,Tier2Purchases!$B13>=$D$14),($D$15-$D$14)-($D$15-Tier2Purchases!$C13)-(Tier2Purchases!$B13-$D$14)+1,IF(Tier2Purchases!$B13>=$D$14,(Tier2Purchases!$C13-Tier2Purchases!$B13)-(Tier2Purchases!$C13-$D$16),IF(Tier2Purchases!$C13<=$D$15,(Tier2Purchases!$C13-Tier2Purchases!$B13)-($D$14-Tier2Purchases!$B13)+1))))) -> 0 | M12: =IF(OR(Tier2Purchases!$B13>$D$17,Tier2Purchases!$C13<$D$16),0,IF(AND(Tier2Purchases!$B13<$D$16,Tier2Purchases!$C13>$D$17),(Tier2Purchases!$C13-Tier2Purchases!$B13)-(Tier2Purchases!$C13-$D$18)-($D$16-Tier2Purchases!$B13),IF(AND(Tier2Purchases!$C13<=$D$17,Tier2Purchases!$B13>=$D$16),($D$17-$D$16)-($D$17-Tier2Purchases!$C13)-(Tier2Purchases!$B13-$D$16)+1,IF(Tier2Purchases!$B13>=$D$16,(Tier2Purchases!$C13-Tier2Purchases!$B13)-(Tier2Purchases!$C13-$D$18),IF(Tier2Purchases!$C13<=$D$17,(Tier2Purchases!$C13-Tier2Purchases!$B13)-($D$16-Tier2Purchases!$B13)+1))))) -> 0 | N12: =IF(OR(Tier2Purchases!$B13>$D$19,Tier2Purchases!$C13<$D$18),0,IF(AND(Tier2Purchases!$B13<$D$18,Tier2Purchases!$C13>$D$19),(Tier2Purchases!$C13-Tier2Purchases!$B13)-(Tier2Purchases!$C13-$D$20)-($D$18-Tier2Purchases!$B13),IF(AND(Tier2Purchases!$C13<=$D$19,Tier2Purchases!$B13>=$D$18),($D$19-$D$18)-($D$19-Tier2Purchases!$C13)-(Tier2Purchases!$B13-$D$18)+1,IF(Tier2Purchases!$B13>=$D$18,(Tier2Purchases!$C13-Tier2Purchases!$B13)-(Tier2Purchases!$C13-$D$20),IF(Tier2Purchases!$C13<=$D$19,(Tier2Purchases!$C13-Tier2Purchases!$B13)-($D$18-Tier2Purchases!$B13)+1))))) -> 0 | O12: =IF(OR(Tier2Purchases!$B13>$D$21,Tier2Purchases!$C13<$D$20),0,IF(AND(Tier2Purchases!$B13<$D$20,Tier2Purchases!$C13>$D$21),(Tier2Purchases!$C13-Tier2Purchases!$B13)-(Tier2Purchases!$C13-$D$22)-($D$20-Tier2Purchases!$B13),IF(AND(Tier2Purchases!$C13<=$D$21,Tier2Purchases!$B13>=$D$20),($D$21-$D$20)-($D$21-Tier2Purchases!$C13)-(Tier2Purchases!$B13-$D$20)+1,IF(Tier2Purchases!$B13>=$D$20,(Tier2Purchases!$C13-Tier2Purchases!$B13)-(Tier2Purchases!$C13-$D$22),IF(Tier2Purchases!$C13<=$D$21,(Tier2Purchases!$C13-Tier2Purchases!$B13)-($D$20-Tier2Purchases!$B13)+1))))) -> 0 | P12: =IF(OR(Tier2Purchases!$B13>$D$23,Tier2Purchases!$C13<$D$22),0,IF(AND(Tier2Purchases!$B13<$D$22,Tier2Purchases!$C13>$D$23),(Tier2Purchases!$C13-Tier2Purchases!$B13)-(Tier2Purchases!$C13-$D$24)-($D$22-Tier2Purchases!$B13),IF(AND(Tier2Purchases!$C13<=$D$23,Tier2Purchases!$B13>=$D$22),($D$23-$D$22)-($D$23-Tier2Purchases!$C13)-(Tier2Purchases!$B13-$D$22)+1,IF(Tier2Purchases!$B13>=$D$22,(Tier2Purchases!$C13-Tier2Purchases!$B13)-(Tier2Purchases!$C13-$D$24),IF(Tier2Purchases!$C13<=$D$23,(Tier2Purchases!$C13-Tier2Purchases!$B13)-($D$22-Tier2Purchases!$B13)+1))))) -> 0 | Q12: =IF(OR(Tier2Purchases!$B13>$D$25,Tier2Purchases!$C13<$D$24),0,IF(AND(Tier2Purchases!$B13<$D$24,Tier2Purchases!$C13>$D$25),(Tier2Purchases!$C13-Tier2Purchases!$B13)-(Tier2Purchases!$C13-$D$26)-($D$24-Tier2Purchases!$B13),IF(AND(Tier2Purchases!$C13<=$D$25,Tier2Purchases!$B13>=$D$24),($D$25-$D$24)-($D$25-Tier2Purchases!$C13)-(Tier2Purchases!$B13-$D$24)+1,IF(Tier2Purchases!$B13>=$D$24,(Tier2Purchases!$C13-Tier2Purchases!$B13)-(Tier2Purchases!$C13-$D$26),IF(Tier2Purchases!$C13<=$D$25,(Tier2Purchases!$C13-Tier2Purchases!$B13)-($D$24-Tier2Purchases!$B13)+1))))) -> 0 | R12: =IF(OR(Tier2Purchases!$B13>$D$27,Tier2Purchases!$C13<$D$26),0,IF(AND(Tier2Purchases!$B13<$D$26,Tier2Purchases!$C13>$D$27),(Tier2Purchases!$C13-Tier2Purchases!$B13)-(Tier2Purchases!$C13-$D$28)-($D$26-Tier2Purchases!$B13),IF(AND(Tier2Purchases!$C13<=$D$27,Tier2Purchases!$B13>=$D$26),($D$27-$D$26)-($D$27-Tier2Purchases!$C13)-(Tier2Purchases!$B13-$D$26)+1,IF(Tier2Purchases!$B13>=$D$26,(Tier2Purchases!$C13-Tier2Purchases!$B13)-(Tier2Purchases!$C13-$D$28),IF(Tier2Purchases!$C13<=$D$27,(Tier2Purchases!$C13-Tier2Purchases!$B13)-($D$26-Tier2Purchases!$B13)+1))))) -> 0 | S12: =IF(OR(Tier2Purchases!$B13>$D$29,Tier2Purchases!$C13<$D$28),0,IF(AND(Tier2Purchases!$B13<$D$28,Tier2Purchases!$C13>$D$29),(Tier2Purchases!$C13-Tier2Purchases!$B13)-(Tier2Purchases!$C13-$D$30)-($D$28-Tier2Purchases!$B13),IF(AND(Tier2Purchases!$C13<=$D$29,Tier2Purchases!$B13>=$D$28),($D$29-$D$28)-($D$29-Tier2Purchases!$C13)-(Tier2Purchases!$B13-$D$28)+1,IF(Tier2Purchases!$B13>=$D$28,(Tier2Purchases!$C13-Tier2Purchases!$B13)-(Tier2Purchases!$C13-$D$30),IF(Tier2Purchases!$C13<=$D$29,(Tier2Purchases!$C13-Tier2Purchases!$B13)-($D$28-Tier2Purchases!$B13)+1))))) -> 0 | T12: =IF(OR(Tier2Purchases!$B13>$D$31,Tier2Purchases!$C13<$D$30),0,IF(AND(Tier2Purchases!$B13<$D$30,Tier2Purchases!$C13>$D$31),(Tier2Purchases!$C13-Tier2Purchases!$B13)-(Tier2Purchases!$C13-$D$32)-($D$30-Tier2Purchases!$B13),IF(AND(Tier2Purchases!$C13<=$D$31,Tier2Purchases!$B13>=$D$30),($D$31-$D$30)-($D$31-Tier2Purchases!$C13)-(Tier2Purchases!$B13-$D$30)+1,IF(Tier2Purchases!$B13>=$D$30,(Tier2Purchases!$C13-Tier2Purchases!$B13)-(Tier2Purchases!$C13-$D$32),IF(Tier2Purchases!$C13<=$D$31,(Tier2Purchases!$C13-Tier2Purchases!$B13)-($D$30-Tier2Purchases!$B13)+1))))) -> 0 | U12: =IF(OR(Tier2Purchases!$B13>$D$33,Tier2Purchases!$C13<$D$32),0,IF(AND(Tier2Purchases!$B13<$D$32,Tier2Purchases!$C13>$D$33),(Tier2Purchases!$C13-Tier2Purchases!$B13)-(Tier2Purchases!$C13-$D$34)-($D$32-Tier2Purchases!$B13),IF(AND(Tier2Purchases!$C13<=$D$33,Tier2Purchases!$B13>=$D$32),($D$33-$D$32)-($D$33-Tier2Purchases!$C13)-(Tier2Purchases!$B13-$D$32)+1,IF(Tier2Purchases!$B13>=$D$32,(Tier2Purchases!$C13-Tier2Purchases!$B13)-(Tier2Purchases!$C13-$D$34),IF(Tier2Purchases!$C13<=$D$33,(Tier2Purchases!$C13-Tier2Purchases!$B13)-($D$32-Tier2Purchases!$B13)+1))))) -> 0 | V12: =IF(OR(Tier2Purchases!$B13>$D$35,Tier2Purchases!$C13<$D$34),0,IF(AND(Tier2Purchases!$B13<$D$34,Tier2Purchases!$C13>$D$35),(Tier2Purchases!$C13-Tier2Purchases!$B13)-(Tier2Purchases!$C13-$D$36)-($D$34-Tier2Purchases!$B13),IF(AND(Tier2Purchases!$C13<=$D$35,Tier2Purchases!$B13>=$D$34),($D$35-$D$34)-($D$35-Tier2Purchases!$C13)-(Tier2Purchases!$B13-$D$34)+1,IF(Tier2Purchases!$B13>=$D$34,(Tier2Purchases!$C13-Tier2Purchases!$B13)-(Tier2Purchases!$C13-$D$36),IF(Tier2Purchases!$C13<=$D$35,(Tier2Purchases!$C13-Tier2Purchases!$B13)-($D$34-Tier2Purchases!$B13)+1))))) -> 0 | W12: =IF(OR(Tier2Purchases!$B13>$D$37,Tier2Purchases!$C13<$D$36),0,IF(AND(Tier2Purchases!$B13<$D$36,Tier2Purchases!$C13>$D$37),(Tier2Purchases!$C13-Tier2Purchases!$B13)-(Tier2Purchases!$C13-$D$38)-($D$36-Tier2Purchases!$B13),IF(AND(Tier2Purchases!$C13<=$D$37,Tier2Purchases!$B13>=$D$36),($D$37-$D$36)-($D$37-Tier2Purchases!$C13)-(Tier2Purchases!$B13-$D$36)+1,IF(Tier2Purchases!$B13>=$D$36,(Tier2Purchases!$C13-Tier2Purchases!$B13)-(Tier2Purchases!$C13-$D$38),IF(Tier2Purchases!$C13<=$D$37,(Tier2Purchases!$C13-Tier2Purchases!$B13)-($D$36-Tier2Purchases!$B13)+1))))) -> 0 | X12: =IF(OR(Tier2Purchases!$B13>$D$39,Tier2Purchases!$C13<$D$38),0,IF(AND(Tier2Purchases!$B13<$D$38,Tier2Purchases!$C13>$D$39),(Tier2Purchases!$C13-Tier2Purchases!$B13)-(Tier2Purchases!$C13-$D$39)-($D$38-Tier2Purchases!$B13)+1,IF(AND(Tier2Purchases!$C13<=$D$39,Tier2Purchases!$B13>=$D$38),($D$39-$D$38)-($D$39-Tier2Purchases!$C13)-(Tier2Purchases!$B13-$D$38)+1,IF(Tier2Purchases!$B13>=$D$38,(Tier2Purchases!$C13-Tier2Purchases!$B13)-(Tier2Purchases!$C13-$D$39)+1,IF(Tier2Purchases!$C13<=$D$39,(Tier2Purchases!$C13-Tier2Purchases!$B13)-($D$38-Tier2Purchases!$B13)+1))))) -> 0 | Y12: 365 | Z12: 0 | AA12: =Tier2Purchases!$C13-Tier2Purchases!$B13+1 -> 365 | AB12: TRUE
C13: END DATE | D13: 2015-09-30 | E13: =Tier2Purchases!B14 -> 2014-10-01 | F13: =Tier2Purchases!C14 -> 2015-09-30 | H13: =IF(OR(Tier2Purchases!$B14>$D$7,Tier2Purchases!$C14<$D$6),0,IF(AND(Tier2Purchases!$B14<$D$6,Tier2Purchases!$C14>$D$7),(Tier2Purchases!$C14-Tier2Purchases!$B14)-(Tier2Purchases!$C14-$D$8)-($D$6-Tier2Purchases!$B14),IF(AND(Tier2Purchases!$C14<=$D$7,Tier2Purchases!$B14>=$D$6),($D$7-$D$6)-($D$7-Tier2Purchases!$C14)-(Tier2Purchases!$B14-$D$6)+1,IF(Tier2Purchases!$B14>=$D$6,(Tier2Purchases!$C14-Tier2Purchases!$B14)-(Tier2Purchases!$C14-$D$8),IF(Tier2Purchases!$C14<=$D$7,(Tier2Purchases!$C14-Tier2Purchases!$B14)-($D$6-Tier2Purchases!$B14)+1))))) -> 0 | I13: =IF(OR(Tier2Purchases!$B14>$D$9,Tier2Purchases!$C14<$D$8),0,IF(AND(Tier2Purchases!$B14<$D$8,Tier2Purchases!$C14>$D$9),(Tier2Purchases!$C14-Tier2Purchases!$B14)-(Tier2Purchases!$C14-$D$10)-($D$8-Tier2Purchases!$B14),IF(AND(Tier2Purchases!$C14<=$D$9,Tier2Purchases!$B14>=$D$8),($D$9-$D$8)-($D$9-Tier2Purchases!$C14)-(Tier2Purchases!$B14-$D$8)+1,IF(Tier2Purchases!$B14>=$D$8,(Tier2Purchases!$C14-Tier2Purchases!$B14)-(Tier2Purchases!$C14-$D$10),IF(Tier2Purchases!$C14<=$D$9,(Tier2Purchases!$C14-Tier2Purchases!$B14)-($D$8-Tier2Purchases!$B14)+1))))) -> 0 | J13: =IF(OR(Tier2Purchases!$B14>$D$11,Tier2Purchases!$C14<$D$10),0,IF(AND(Tier2Purchases!$B14<$D$10,Tier2Purchases!$C14>$D$11),(Tier2Purchases!$C14-Tier2Purchases!$B14)-(Tier2Purchases!$C14-$D$12)-($D$10-Tier2Purchases!$B14),IF(AND(Tier2Purchases!$C14<=$D$11,Tier2Purchases!$B14>=$D$10),($D$11-$D$10)-($D$11-Tier2Purchases!$C14)-(Tier2Purchases!$B14-$D$10)+1,IF(Tier2Purchases!$B14>=$D$10,(Tier2Purchases!$C14-Tier2Purchases!$B14)-(Tier2Purchases!$C14-$D$12),IF(Tier2Purchases!$C14<=$D$11,(Tier2Purchases!$C14-Tier2Purchases!$B14)-($D$10-Tier2Purchases!$B14)+1))))) -> 0 | K13: =IF(OR(Tier2Purchases!$B14>$D$13,Tier2Purchases!$C14<$D$12),0,IF(AND(Tier2Purchases!$B14<$D$12,Tier2Purchases!$C14>$D$13),(Tier2Purchases!$C14-Tier2Purchases!$B14)-(Tier2Purchases!$C14-$D$14)-($D$12-Tier2Purchases!$B14),IF(AND(Tier2Purchases!$C14<=$D$13,Tier2Purchases!$B14>=$D$12),($D$13-$D$12)-($D$13-Tier2Purchases!$C14)-(Tier2Purchases!$B14-$D$12)+1,IF(Tier2Purchases!$B14>=$D$12,(Tier2Purchases!$C14-Tier2Purchases!$B14)-(Tier2Purchases!$C14-$D$14),IF(Tier2Purchases!$C14<=$D$13,(Tier2Purchases!$C14-Tier2Purchases!$B14)-($D$12-Tier2Purchases!$B14)+1))))) -> 365 | L13: =IF(OR(Tier2Purchases!$B14>$D$15,Tier2Purchases!$C14<$D$14),0,IF(AND(Tier2Purchases!$B14<$D$14,Tier2Purchases!$C14>$D$15),(Tier2Purchases!$C14-Tier2Purchases!$B14)-(Tier2Purchases!$C14-$D$16)-($D$14-Tier2Purchases!$B14),IF(AND(Tier2Purchases!$C14<=$D$15,Tier2Purchases!$B14>=$D$14),($D$15-$D$14)-($D$15-Tier2Purchases!$C14)-(Tier2Purchases!$B14-$D$14)+1,IF(Tier2Purchases!$B14>=$D$14,(Tier2Purchases!$C14-Tier2Purchases!$B14)-(Tier2Purchases!$C14-$D$16),IF(Tier2Purchases!$C14<=$D$15,(Tier2Purchases!$C14-Tier2Purchases!$B14)-($D$14-Tier2Purchases!$B14)+1))))) -> 0 | M13: =IF(OR(Tier2Purchases!$B14>$D$17,Tier2Purchases!$C14<$D$16),0,IF(AND(Tier2Purchases!$B14<$D$16,Tier2Purchases!$C14>$D$17),(Tier2Purchases!$C14-Tier2Purchases!$B14)-(Tier2Purchases!$C14-$D$18)-($D$16-Tier2Purchases!$B14),IF(AND(Tier2Purchases!$C14<=$D$17,Tier2Purchases!$B14>=$D$16),($D$17-$D$16)-($D$17-Tier2Purchases!$C14)-(Tier2Purchases!$B14-$D$16)+1,IF(Tier2Purchases!$B14>=$D$16,(Tier2Purchases!$C14-Tier2Purchases!$B14)-(Tier2Purchases!$C14-$D$18),IF(Tier2Purchases!$C14<=$D$17,(Tier2Purchases!$C14-Tier2Purchases!$B14)-($D$16-Tier2Purchases!$B14)+1))))) -> 0 | N13: =IF(OR(Tier2Purchases!$B14>$D$19,Tier2Purchases!$C14<$D$18),0,IF(AND(Tier2Purchases!$B14<$D$18,Tier2Purchases!$C14>$D$19),(Tier2Purchases!$C14-Tier2Purchases!$B14)-(Tier2Purchases!$C14-$D$20)-($D$18-Tier2Purchases!$B14),IF(AND(Tier2Purchases!$C14<=$D$19,Tier2Purchases!$B14>=$D$18),($D$19-$D$18)-($D$19-Tier2Purchases!$C14)-(Tier2Purchases!$B14-$D$18)+1,IF(Tier2Purchases!$B14>=$D$18,(Tier2Purchases!$C14-Tier2Purchases!$B14)-(Tier2Purchases!$C14-$D$20),IF(Tier2Purchases!$C14<=$D$19,(Tier2Purchases!$C14-Tier2Purchases!$B14)-($D$18-Tier2Purchases!$B14)+1))))) -> 0 | O13: =IF(OR(Tier2Purchases!$B14>$D$21,Tier2Purchases!$C14<$D$20),0,IF(AND(Tier2Purchases!$B14<$D$20,Tier2Purchases!$C14>$D$21),(Tier2Purchases!$C14-Tier2Purchases!$B14)-(Tier2Purchases!$C14-$D$22)-($D$20-Tier2Purchases!$B14),IF(AND(Tier2Purchases!$C14<=$D$21,Tier2Purchases!$B14>=$D$20),($D$21-$D$20)-($D$21-Tier2Purchases!$C14)-(Tier2Purchases!$B14-$D$20)+1,IF(Tier2Purchases!$B14>=$D$20,(Tier2Purchases!$C14-Tier2Purchases!$B14)-(Tier2Purchases!$C14-$D$22),IF(Tier2Purchases!$C14<=$D$21,(Tier2Purchases!$C14-Tier2Purchases!$B14)-($D$20-Tier2Purchases!$B14)+1))))) -> 0 | P13: =IF(OR(Tier2Purchases!$B14>$D$23,Tier2Purchases!$C14<$D$22),0,IF(AND(Tier2Purchases!$B14<$D$22,Tier2Purchases!$C14>$D$23),(Tier2Purchases!$C14-Tier2Purchases!$B14)-(Tier2Purchases!$C14-$D$24)-($D$22-Tier2Purchases!$B14),IF(AND(Tier2Purchases!$C14<=$D$23,Tier2Purchases!$B14>=$D$22),($D$23-$D$22)-($D$23-Tier2Purchases!$C14)-(Tier2Purchases!$B14-$D$22)+1,IF(Tier2Purchases!$B14>=$D$22,(Tier2Purchases!$C14-Tier2Purchases!$B14)-(Tier2Purchases!$C14-$D$24),IF(Tier2Purchases!$C14<=$D$23,(Tier2Purchases!$C14-Tier2Purchases!$B14)-($D$22-Tier2Purchases!$B14)+1))))) -> 0 | Q13: =IF(OR(Tier2Purchases!$B14>$D$25,Tier2Purchases!$C14<$D$24),0,IF(AND(Tier2Purchases!$B14<$D$24,Tier2Purchases!$C14>$D$25),(Tier2Purchases!$C14-Tier2Purchases!$B14)-(Tier2Purchases!$C14-$D$26)-($D$24-Tier2Purchases!$B14),IF(AND(Tier2Purchases!$C14<=$D$25,Tier2Purchases!$B14>=$D$24),($D$25-$D$24)-($D$25-Tier2Purchases!$C14)-(Tier2Purchases!$B14-$D$24)+1,IF(Tier2Purchases!$B14>=$D$24,(Tier2Purchases!$C14-Tier2Purchases!$B14)-(Tier2Purchases!$C14-$D$26),IF(Tier2Purchases!$C14<=$D$25,(Tier2Purchases!$C14-Tier2Purchases!$B14)-($D$24-Tier2Purchases!$B14)+1))))) -> 0 | R13: =IF(OR(Tier2Purchases!$B14>$D$27,Tier2Purchases!$C14<$D$26),0,IF(AND(Tier2Purchases!$B14<$D$26,Tier2Purchases!$C14>$D$27),(Tier2Purchases!$C14-Tier2Purchases!$B14)-(Tier2Purchases!$C14-$D$28)-($D$26-Tier2Purchases!$B14),IF(AND(Tier2Purchases!$C14<=$D$27,Tier2Purchases!$B14>=$D$26),($D$27-$D$26)-($D$27-Tier2Purchases!$C14)-(Tier2Purchases!$B14-$D$26)+1,IF(Tier2Purchases!$B14>=$D$26,(Tier2Purchases!$C14-Tier2Purchases!$B14)-(Tier2Purchases!$C14-$D$28),IF(Tier2Purchases!$C14<=$D$27,(Tier2Purchases!$C14-Tier2Purchases!$B14)-($D$26-Tier2Purchases!$B14)+1))))) -> 0 | S13: =IF(OR(Tier2Purchases!$B14>$D$29,Tier2Purchases!$C14<$D$28),0,IF(AND(Tier2Purchases!$B14<$D$28,Tier2Purchases!$C14>$D$29),(Tier2Purchases!$C14-Tier2Purchases!$B14)-(Tier2Purchases!$C14-$D$30)-($D$28-Tier2Purchases!$B14),IF(AND(Tier2Purchases!$C14<=$D$29,Tier2Purchases!$B14>=$D$28),($D$29-$D$28)-($D$29-Tier2Purchases!$C14)-(Tier2Purchases!$B14-$D$28)+1,IF(Tier2Purchases!$B14>=$D$28,(Tier2Purchases!$C14-Tier2Purchases!$B14)-(Tier2Purchases!$C14-$D$30),IF(Tier2Purchases!$C14<=$D$29,(Tier2Purchases!$C14-Tier2Purchases!$B14)-($D$28-Tier2Purchases!$B14)+1))))) -> 0 | T13: =IF(OR(Tier2Purchases!$B14>$D$31,Tier2Purchases!$C14<$D$30),0,IF(AND(Tier2Purchases!$B14<$D$30,Tier2Purchases!$C14>$D$31),(Tier2Purchases!$C14-Tier2Purchases!$B14)-(Tier2Purchases!$C14-$D$32)-($D$30-Tier2Purchases!$B14),IF(AND(Tier2Purchases!$C14<=$D$31,Tier2Purchases!$B14>=$D$30),($D$31-$D$30)-($D$31-Tier2Purchases!$C14)-(Tier2Purchases!$B14-$D$30)+1,IF(Tier2Purchases!$B14>=$D$30,(Tier2Purchases!$C14-Tier2Purchases!$B14)-(Tier2Purchases!$C14-$D$32),IF(Tier2Purchases!$C14<=$D$31,(Tier2Purchases!$C14-Tier2Purchases!$B14)-($D$30-Tier2Purchases!$B14)+1))))) -> 0 | U13: =IF(OR(Tier2Purchases!$B14>$D$33,Tier2Purchases!$C14<$D$32),0,IF(AND(Tier2Purchases!$B14<$D$32,Tier2Purchases!$C14>$D$33),(Tier2Purchases!$C14-Tier2Purchases!$B14)-(Tier2Purchases!$C14-$D$34)-($D$32-Tier2Purchases!$B14),IF(AND(Tier2Purchases!$C14<=$D$33,Tier2Purchases!$B14>=$D$32),($D$33-$D$32)-($D$33-Tier2Purchases!$C14)-(Tier2Purchases!$B14-$D$32)+1,IF(Tier2Purchases!$B14>=$D$32,(Tier2Purchases!$C14-Tier2Purchases!$B14)-(Tier2Purchases!$C14-$D$34),IF(Tier2Purchases!$C14<=$D$33,(Tier2Purchases!$C14-Tier2Purchases!$B14)-($D$32-Tier2Purchases!$B14)+1))))) -> 0 | V13: =IF(OR(Tier2Purchases!$B14>$D$35,Tier2Purchases!$C14<$D$34),0,IF(AND(Tier2Purchases!$B14<$D$34,Tier2Purchases!$C14>$D$35),(Tier2Purchases!$C14-Tier2Purchases!$B14)-(Tier2Purchases!$C14-$D$36)-($D$34-Tier2Purchases!$B14),IF(AND(Tier2Purchases!$C14<=$D$35,Tier2Purchases!$B14>=$D$34),($D$35-$D$34)-($D$35-Tier2Purchases!$C14)-(Tier2Purchases!$B14-$D$34)+1,IF(Tier2Purchases!$B14>=$D$34,(Tier2Purchases!$C14-Tier2Purchases!$B14)-(Tier2Purchases!$C14-$D$36),IF(Tier2Purchases!$C14<=$D$35,(Tier2Purchases!$C14-Tier2Purchases!$B14)-($D$34-Tier2Purchases!$B14)+1))))) -> 0 | W13: =IF(OR(Tier2Purchases!$B14>$D$37,Tier2Purchases!$C14<$D$36),0,IF(AND(Tier2Purchases!$B14<$D$36,Tier2Purchases!$C14>$D$37),(Tier2Purchases!$C14-Tier2Purchases!$B14)-(Tier2Purchases!$C14-$D$38)-($D$36-Tier2Purchases!$B14),IF(AND(Tier2Purchases!$C14<=$D$37,Tier2Purchases!$B14>=$D$36),($D$37-$D$36)-($D$37-Tier2Purchases!$C14)-(Tier2Purchases!$B14-$D$36)+1,IF(Tier2Purchases!$B14>=$D$36,(Tier2Purchases!$C14-Tier2Purchases!$B14)-(Tier2Purchases!$C14-$D$38),IF(Tier2Purchases!$C14<=$D$37,(Tier2Purchases!$C14-Tier2Purchases!$B14)-($D$36-Tier2Purchases!$B14)+1))))) -> 0 | X13: =IF(OR(Tier2Purchases!$B14>$D$39,Tier2Purchases!$C14<$D$38),0,IF(AND(Tier2Purchases!$B14<$D$38,Tier2Purchases!$C14>$D$39),(Tier2Purchases!$C14-Tier2Purchases!$B14)-(Tier2Purchases!$C14-$D$39)-($D$38-Tier2Purchases!$B14)+1,IF(AND(Tier2Purchases!$C14<=$D$39,Tier2Purchases!$B14>=$D$38),($D$39-$D$38)-($D$39-Tier2Purchases!$C14)-(Tier2Purchases!$B14-$D$38)+1,IF(Tier2Purchases!$B14>=$D$38,(Tier2Purchases!$C14-Tier2Purchases!$B14)-(Tier2Purchases!$C14-$D$39)+1,IF(Tier2Purchases!$C14<=$D$39,(Tier2Purchases!$C14-Tier2Purchases!$B14)-($D$38-Tier2Purchases!$B14)+1))))) -> 0 | Y13: 365 | Z13: 0 | AA13: =Tier2Purchases!$C14-Tier2Purchases!$B14+1 -> 365 | AB13: TRUE
B14: FY2016 | C14: START DATE | D14: 2015-10-01 | E14: =Tier2Purchases!B15 -> 2014-10-01 | F14: =Tier2Purchases!C15 -> 2015-09-30 | H14: =IF(OR(Tier2Purchases!$B15>$D$7,Tier2Purchases!$C15<$D$6),0,IF(AND(Tier2Purchases!$B15<$D$6,Tier2Purchases!$C15>$D$7),(Tier2Purchases!$C15-Tier2Purchases!$B15)-(Tier2Purchases!$C15-$D$8)-($D$6-Tier2Purchases!$B15),IF(AND(Tier2Purchases!$C15<=$D$7,Tier2Purchases!$B15>=$D$6),($D$7-$D$6)-($D$7-Tier2Purchases!$C15)-(Tier2Purchases!$B15-$D$6)+1,IF(Tier2Purchases!$B15>=$D$6,(Tier2Purchases!$C15-Tier2Purchases!$B15)-(Tier2Purchases!$C15-$D$8),IF(Tier2Purchases!$C15<=$D$7,(Tier2Purchases!$C15-Tier2Purchases!$B15)-($D$6-Tier2Purchases!$B15)+1))))) -> 0 | I14: =IF(OR(Tier2Purchases!$B15>$D$9,Tier2Purchases!$C15<$D$8),0,IF(AND(Tier2Purchases!$B15<$D$8,Tier2Purchases!$C15>$D$9),(Tier2Purchases!$C15-Tier2Purchases!$B15)-(Tier2Purchases!$C15-$D$10)-($D$8-Tier2Purchases!$B15),IF(AND(Tier2Purchases!$C15<=$D$9,Tier2Purchases!$B15>=$D$8),($D$9-$D$8)-($D$9-Tier2Purchases!$C15)-(Tier2Purchases!$B15-$D$8)+1,IF(Tier2Purchases!$B15>=$D$8,(Tier2Purchases!$C15-Tier2Purchases!$B15)-(Tier2Purchases!$C15-$D$10),IF(Tier2Purchases!$C15<=$D$9,(Tier2Purchases!$C15-Tier2Purchases!$B15)-($D$8-Tier2Purchases!$B15)+1))))) -> 0 | J14: =IF(OR(Tier2Purchases!$B15>$D$11,Tier2Purchases!$C15<$D$10),0,IF(AND(Tier2Purchases!$B15<$D$10,Tier2Purchases!$C15>$D$11),(Tier2Purchases!$C15-Tier2Purchases!$B15)-(Tier2Purchases!$C15-$D$12)-($D$10-Tier2Purchases!$B15),IF(AND(Tier2Purchases!$C15<=$D$11,Tier2Purchases!$B15>=$D$10),($D$11-$D$10)-($D$11-Tier2Purchases!$C15)-(Tier2Purchases!$B15-$D$10)+1,IF(Tier2Purchases!$B15>=$D$10,(Tier2Purchases!$C15-Tier2Purchases!$B15)-(Tier2Purchases!$C15-$D$12),IF(Tier2Purchases!$C15<=$D$11,(Tier2Purchases!$C15-Tier2Purchases!$B15)-($D$10-Tier2Purchases!$B15)+1))))) -> 0 | K14: =IF(OR(Tier2Purchases!$B15>$D$13,Tier2Purchases!$C15<$D$12),0,IF(AND(Tier2Purchases!$B15<$D$12,Tier2Purchases!$C15>$D$13),(Tier2Purchases!$C15-Tier2Purchases!$B15)-(Tier2Purchases!$C15-$D$14)-($D$12-Tier2Purchases!$B15),IF(AND(Tier2Purchases!$C15<=$D$13,Tier2Purchases!$B15>=$D$12),($D$13-$D$12)-($D$13-Tier2Purchases!$C15)-(Tier2Purchases!$B15-$D$12)+1,IF(Tier2Purchases!$B15>=$D$12,(Tier2Purchases!$C15-Tier2Purchases!$B15)-(Tier2Purchases!$C15-$D$14),IF(Tier2Purchases!$C15<=$D$13,(Tier2Purchases!$C15-Tier2Purchases!$B15)-($D$12-Tier2Purchases!$B15)+1))))) -> 365 | L14: =IF(OR(Tier2Purchases!$B15>$D$15,Tier2Purchases!$C15<$D$14),0,IF(AND(Tier2Purchases!$B15<$D$14,Tier2Purchases!$C15>$D$15),(Tier2Purchases!$C15-Tier2Purchases!$B15)-(Tier2Purchases!$C15-$D$16)-($D$14-Tier2Purchases!$B15),IF(AND(Tier2Purchases!$C15<=$D$15,Tier2Purchases!$B15>=$D$14),($D$15-$D$14)-($D$15-Tier2Purchases!$C15)-(Tier2Purchases!$B15-$D$14)+1,IF(Tier2Purchases!$B15>=$D$14,(Tier2Purchases!$C15-Tier2Purchases!$B15)-(Tier2Purchases!$C15-$D$16),IF(Tier2Purchases!$C15<=$D$15,(Tier2Purchases!$C15-Tier2Purchases!$B15)-($D$14-Tier2Purchases!$B15)+1))))) -> 0 | M14: =IF(OR(Tier2Purchases!$B15>$D$17,Tier2Purchases!$C15<$D$16),0,IF(AND(Tier2Purchases!$B15<$D$16,Tier2Purchases!$C15>$D$17),(Tier2Purchases!$C15-Tier2Purchases!$B15)-(Tier2Purchases!$C15-$D$18)-($D$16-Tier2Purchases!$B15),IF(AND(Tier2Purchases!$C15<=$D$17,Tier2Purchases!$B15>=$D$16),($D$17-$D$16)-($D$17-Tier2Purchases!$C15)-(Tier2Purchases!$B15-$D$16)+1,IF(Tier2Purchases!$B15>=$D$16,(Tier2Purchases!$C15-Tier2Purchases!$B15)-(Tier2Purchases!$C15-$D$18),IF(Tier2Purchases!$C15<=$D$17,(Tier2Purchases!$C15-Tier2Purchases!$B15)-($D$16-Tier2Purchases!$B15)+1))))) -> 0 | N14: =IF(OR(Tier2Purchases!$B15>$D$19,Tier2Purchases!$C15<$D$18),0,IF(AND(Tier2Purchases!$B15<$D$18,Tier2Purchases!$C15>$D$19),(Tier2Purchases!$C15-Tier2Purchases!$B15)-(Tier2Purchases!$C15-$D$20)-($D$18-Tier2Purchases!$B15),IF(AND(Tier2Purchases!$C15<=$D$19,Tier2Purchases!$B15>=$D$18),($D$19-$D$18)-($D$19-Tier2Purchases!$C15)-(Tier2Purchases!$B15-$D$18)+1,IF(Tier2Purchases!$B15>=$D$18,(Tier2Purchases!$C15-Tier2Purchases!$B15)-(Tier2Purchases!$C15-$D$20),IF(Tier2Purchases!$C15<=$D$19,(Tier2Purchases!$C15-Tier2Purchases!$B15)-($D$18-Tier2Purchases!$B15)+1))))) -> 0 | O14: =IF(OR(Tier2Purchases!$B15>$D$21,Tier2Purchases!$C15<$D$20),0,IF(AND(Tier2Purchases!$B15<$D$20,Tier2Purchases!$C15>$D$21),(Tier2Purchases!$C15-Tier2Purchases!$B15)-(Tier2Purchases!$C15-$D$22)-($D$20-Tier2Purchases!$B15),IF(AND(Tier2Purchases!$C15<=$D$21,Tier2Purchases!$B15>=$D$20),($D$21-$D$20)-($D$21-Tier2Purchases!$C15)-(Tier2Purchases!$B15-$D$20)+1,IF(Tier2Purchases!$B15>=$D$20,(Tier2Purchases!$C15-Tier2Purchases!$B15)-(Tier2Purchases!$C15-$D$22),IF(Tier2Purchases!$C15<=$D$21,(Tier2Purchases!$C15-Tier2Purchases!$B15)-($D$20-Tier2Purchases!$B15)+1))))) -> 0 | P14: =IF(OR(Tier2Purchases!$B15>$D$23,Tier2Purchases!$C15<$D$22),0,IF(AND(Tier2Purchases!$B15<$D$22,Tier2Purchases!$C15>$D$23),(Tier2Purchases!$C15-Tier2Purchases!$B15)-(Tier2Purchases!$C15-$D$24)-($D$22-Tier2Purchases!$B15),IF(AND(Tier2Purchases!$C15<=$D$23,Tier2Purchases!$B15>=$D$22),($D$23-$D$22)-($D$23-Tier2Purchases!$C15)-(Tier2Purchases!$B15-$D$22)+1,IF(Tier2Purchases!$B15>=$D$22,(Tier2Purchases!$C15-Tier2Purchases!$B15)-(Tier2Purchases!$C15-$D$24),IF(Tier2Purchases!$C15<=$D$23,(Tier2Purchases!$C15-Tier2Purchases!$B15)-($D$22-Tier2Purchases!$B15)+1))))) -> 0 | Q14: =IF(OR(Tier2Purchases!$B15>$D$25,Tier2Purchases!$C15<$D$24),0,IF(AND(Tier2Purchases!$B15<$D$24,Tier2Purchases!$C15>$D$25),(Tier2Purchases!$C15-Tier2Purchases!$B15)-(Tier2Purchases!$C15-$D$26)-($D$24-Tier2Purchases!$B15),IF(AND(Tier2Purchases!$C15<=$D$25,Tier2Purchases!$B15>=$D$24),($D$25-$D$24)-($D$25-Tier2Purchases!$C15)-(Tier2Purchases!$B15-$D$24)+1,IF(Tier2Purchases!$B15>=$D$24,(Tier2Purchases!$C15-Tier2Purchases!$B15)-(Tier2Purchases!$C15-$D$26),IF(Tier2Purchases!$C15<=$D$25,(Tier2Purchases!$C15-Tier2Purchases!$B15)-($D$24-Tier2Purchases!$B15)+1))))) -> 0 | R14: =IF(OR(Tier2Purchases!$B15>$D$27,Tier2Purchases!$C15<$D$26),0,IF(AND(Tier2Purchases!$B15<$D$26,Tier2Purchases!$C15>$D$27),(Tier2Purchases!$C15-Tier2Purchases!$B15)-(Tier2Purchases!$C15-$D$28)-($D$26-Tier2Purchases!$B15),IF(AND(Tier2Purchases!$C15<=$D$27,Tier2Purchases!$B15>=$D$26),($D$27-$D$26)-($D$27-Tier2Purchases!$C15)-(Tier2Purchases!$B15-$D$26)+1,IF(Tier2Purchases!$B15>=$D$26,(Tier2Purchases!$C15-Tier2Purchases!$B15)-(Tier2Purchases!$C15-$D$28),IF(Tier2Purchases!$C15<=$D$27,(Tier2Purchases!$C15-Tier2Purchases!$B15)-($D$26-Tier2Purchases!$B15)+1))))) -> 0 | S14: =IF(OR(Tier2Purchases!$B15>$D$29,Tier2Purchases!$C15<$D$28),0,IF(AND(Tier2Purchases!$B15<$D$28,Tier2Purchases!$C15>$D$29),(Tier2Purchases!$C15-Tier2Purchases!$B15)-(Tier2Purchases!$C15-$D$30)-($D$28-Tier2Purchases!$B15),IF(AND(Tier2Purchases!$C15<=$D$29,Tier2Purchases!$B15>=$D$28),($D$29-$D$28)-($D$29-Tier2Purchases!$C15)-(Tier2Purchases!$B15-$D$28)+1,IF(Tier2Purchases!$B15>=$D$28,(Tier2Purchases!$C15-Tier2Purchases!$B15)-(Tier2Purchases!$C15-$D$30),IF(Tier2Purchases!$C15<=$D$29,(Tier2Purchases!$C15-Tier2Purchases!$B15)-($D$28-Tier2Purchases!$B15)+1))))) -> 0 | T14: =IF(OR(Tier2Purchases!$B15>$D$31,Tier2Purchases!$C15<$D$30),0,IF(AND(Tier2Purchases!$B15<$D$30,Tier2Purchases!$C15>$D$31),(Tier2Purchases!$C15-Tier2Purchases!$B15)-(Tier2Purchases!$C15-$D$32)-($D$30-Tier2Purchases!$B15),IF(AND(Tier2Purchases!$C15<=$D$31,Tier2Purchases!$B15>=$D$30),($D$31-$D$30)-($D$31-Tier2Purchases!$C15)-(Tier2Purchases!$B15-$D$30)+1,IF(Tier2Purchases!$B15>=$D$30,(Tier2Purchases!$C15-Tier2Purchases!$B15)-(Tier2Purchases!$C15-$D$32),IF(Tier2Purchases!$C15<=$D$31,(Tier2Purchases!$C15-Tier2Purchases!$B15)-($D$30-Tier2Purchases!$B15)+1))))) -> 0 | U14: =IF(OR(Tier2Purchases!$B15>$D$33,Tier2Purchases!$C15<$D$32),0,IF(AND(Tier2Purchases!$B15<$D$32,Tier2Purchases!$C15>$D$33),(Tier2Purchases!$C15-Tier2Purchases!$B15)-(Tier2Purchases!$C15-$D$34)-($D$32-Tier2Purchases!$B15),IF(AND(Tier2Purchases!$C15<=$D$33,Tier2Purchases!$B15>=$D$32),($D$33-$D$32)-($D$33-Tier2Purchases!$C15)-(Tier2Purchases!$B15-$D$32)+1,IF(Tier2Purchases!$B15>=$D$32,(Tier2Purchases!$C15-Tier2Purchases!$B15)-(Tier2Purchases!$C15-$D$34),IF(Tier2Purchases!$C15<=$D$33,(Tier2Purchases!$C15-Tier2Purchases!$B15)-($D$32-Tier2Purchases!$B15)+1))))) -> 0 | V14: =IF(OR(Tier2Purchases!$B15>$D$35,Tier2Purchases!$C15<$D$34),0,IF(AND(Tier2Purchases!$B15<$D$34,Tier2Purchases!$C15>$D$35),(Tier2Purchases!$C15-Tier2Purchases!$B15)-(Tier2Purchases!$C15-$D$36)-($D$34-Tier2Purchases!$B15),IF(AND(Tier2Purchases!$C15<=$D$35,Tier2Purchases!$B15>=$D$34),($D$35-$D$34)-($D$35-Tier2Purchases!$C15)-(Tier2Purchases!$B15-$D$34)+1,IF(Tier2Purchases!$B15>=$D$34,(Tier2Purchases!$C15-Tier2Purchases!$B15)-(Tier2Purchases!$C15-$D$36),IF(Tier2Purchases!$C15<=$D$35,(Tier2Purchases!$C15-Tier2Purchases!$B15)-($D$34-Tier2Purchases!$B15)+1))))) -> 0 | W14: =IF(OR(Tier2Purchases!$B15>$D$37,Tier2Purchases!$C15<$D$36),0,IF(AND(Tier2Purchases!$B15<$D$36,Tier2Purchases!$C15>$D$37),(Tier2Purchases!$C15-Tier2Purchases!$B15)-(Tier2Purchases!$C15-$D$38)-($D$36-Tier2Purchases!$B15),IF(AND(Tier2Purchases!$C15<=$D$37,Tier2Purchases!$B15>=$D$36),($D$37-$D$36)-($D$37-Tier2Purchases!$C15)-(Tier2Purchases!$B15-$D$36)+1,IF(Tier2Purchases!$B15>=$D$36,(Tier2Purchases!$C15-Tier2Purchases!$B15)-(Tier2Purchases!$C15-$D$38),IF(Tier2Purchases!$C15<=$D$37,(Tier2Purchases!$C15-Tier2Purchases!$B15)-($D$36-Tier2Purchases!$B15)+1))))) -> 0 | X14: =IF(OR(Tier2Purchases!$B15>$D$39,Tier2Purchases!$C15<$D$38),0,IF(AND(Tier2Purchases!$B15<$D$38,Tier2Purchases!$C15>$D$39),(Tier2Purchases!$C15-Tier2Purchases!$B15)-(Tier2Purchases!$C15-$D$39)-($D$38-Tier2Purchases!$B15)+1,IF(AND(Tier2Purchases!$C15<=$D$39,Tier2Purchases!$B15>=$D$38),($D$39-$D$38)-($D$39-Tier2Purchases!$C15)-(Tier2Purchases!$B15-$D$38)+1,IF(Tier2Purchases!$B15>=$D$38,(Tier2Purchases!$C15-Tier2Purchases!$B15)-(Tier2Purchases!$C15-$D$39)+1,IF(Tier2Purchases!$C15<=$D$39,(Tier2Purchases!$C15-Tier2Purchases!$B15)-($D$38-Tier2Purchases!$B15)+1))))) -> 0 | Y14: 365 | Z14: 0 | AA14: =Tier2Purchases!$C15-Tier2Purchases!$B15+1 -> 365 | AB14: TRUE
C15: END DATE | D15: 2016-09-30 | E15: =Tier2Purchases!B16 -> 2014-10-01 | F15: =Tier2Purchases!C16 -> 2015-09-30 | H15: =IF(OR(Tier2Purchases!$B16>$D$7,Tier2Purchases!$C16<$D$6),0,IF(AND(Tier2Purchases!$B16<$D$6,Tier2Purchases!$C16>$D$7),(Tier2Purchases!$C16-Tier2Purchases!$B16)-(Tier2Purchases!$C16-$D$8)-($D$6-Tier2Purchases!$B16),IF(AND(Tier2Purchases!$C16<=$D$7,Tier2Purchases!$B16>=$D$6),($D$7-$D$6)-($D$7-Tier2Purchases!$C16)-(Tier2Purchases!$B16-$D$6)+1,IF(Tier2Purchases!$B16>=$D$6,(Tier2Purchases!$C16-Tier2Purchases!$B16)-(Tier2Purchases!$C16-$D$8),IF(Tier2Purchases!$C16<=$D$7,(Tier2Purchases!$C16-Tier2Purchases!$B16)-($D$6-Tier2Purchases!$B16)+1))))) -> 0 | I15: =IF(OR(Tier2Purchases!$B16>$D$9,Tier2Purchases!$C16<$D$8),0,IF(AND(Tier2Purchases!$B16<$D$8,Tier2Purchases!$C16>$D$9),(Tier2Purchases!$C16-Tier2Purchases!$B16)-(Tier2Purchases!$C16-$D$10)-($D$8-Tier2Purchases!$B16),IF(AND(Tier2Purchases!$C16<=$D$9,Tier2Purchases!$B16>=$D$8),($D$9-$D$8)-($D$9-Tier2Purchases!$C16)-(Tier2Purchases!$B16-$D$8)+1,IF(Tier2Purchases!$B16>=$D$8,(Tier2Purchases!$C16-Tier2Purchases!$B16)-(Tier2Purchases!$C16-$D$10),IF(Tier2Purchases!$C16<=$D$9,(Tier2Purchases!$C16-Tier2Purchases!$B16)-($D$8-Tier2Purchases!$B16)+1))))) -> 0 | J15: =IF(OR(Tier2Purchases!$B16>$D$11,Tier2Purchases!$C16<$D$10),0,IF(AND(Tier2Purchases!$B16<$D$10,Tier2Purchases!$C16>$D$11),(Tier2Purchases!$C16-Tier2Purchases!$B16)-(Tier2Purchases!$C16-$D$12)-($D$10-Tier2Purchases!$B16),IF(AND(Tier2Purchases!$C16<=$D$11,Tier2Purchases!$B16>=$D$10),($D$11-$D$10)-($D$11-Tier2Purchases!$C16)-(Tier2Purchases!$B16-$D$10)+1,IF(Tier2Purchases!$B16>=$D$10,(Tier2Purchases!$C16-Tier2Purchases!$B16)-(Tier2Purchases!$C16-$D$12),IF(Tier2Purchases!$C16<=$D$11,(Tier2Purchases!$C16-Tier2Purchases!$B16)-($D$10-Tier2Purchases!$B16)+1))))) -> 0 | K15: =IF(OR(Tier2Purchases!$B16>$D$13,Tier2Purchases!$C16<$D$12),0,IF(AND(Tier2Purchases!$B16<$D$12,Tier2Purchases!$C16>$D$13),(Tier2Purchases!$C16-Tier2Purchases!$B16)-(Tier2Purchases!$C16-$D$14)-($D$12-Tier2Purchases!$B16),IF(AND(Tier2Purchases!$C16<=$D$13,Tier2Purchases!$B16>=$D$12),($D$13-$D$12)-($D$13-Tier2Purchases!$C16)-(Tier2Purchases!$B16-$D$12)+1,IF(Tier2Purchases!$B16>=$D$12,(Tier2Purchases!$C16-Tier2Purchases!$B16)-(Tier2Purchases!$C16-$D$14),IF(Tier2Purchases!$C16<=$D$13,(Tier2Purchases!$C16-Tier2Purchases!$B16)-($D$12-Tier2Purchases!$B16)+1))))) -> 365 | L15: =IF(OR(Tier2Purchases!$B16>$D$15,Tier2Purchases!$C16<$D$14),0,IF(AND(Tier2Purchases!$B16<$D$14,Tier2Purchases!$C16>$D$15),(Tier2Purchases!$C16-Tier2Purchases!$B16)-(Tier2Purchases!$C16-$D$16)-($D$14-Tier2Purchases!$B16),IF(AND(Tier2Purchases!$C16<=$D$15,Tier2Purchases!$B16>=$D$14),($D$15-$D$14)-($D$15-Tier2Purchases!$C16)-(Tier2Purchases!$B16-$D$14)+1,IF(Tier2Purchases!$B16>=$D$14,(Tier2Purchases!$C16-Tier2Purchases!$B16)-(Tier2Purchases!$C16-$D$16),IF(Tier2Purchases!$C16<=$D$15,(Tier2Purchases!$C16-Tier2Purchases!$B16)-($D$14-Tier2Purchases!$B16)+1))))) -> 0 | M15: =IF(OR(Tier2Purchases!$B16>$D$17,Tier2Purchases!$C16<$D$16),0,IF(AND(Tier2Purchases!$B16<$D$16,Tier2Purchases!$C16>$D$17),(Tier2Purchases!$C16-Tier2Purchases!$B16)-(Tier2Purchases!$C16-$D$18)-($D$16-Tier2Purchases!$B16),IF(AND(Tier2Purchases!$C16<=$D$17,Tier2Purchases!$B16>=$D$16),($D$17-$D$16)-($D$17-Tier2Purchases!$C16)-(Tier2Purchases!$B16-$D$16)+1,IF(Tier2Purchases!$B16>=$D$16,(Tier2Purchases!$C16-Tier2Purchases!$B16)-(Tier2Purchases!$C16-$D$18),IF(Tier2Purchases!$C16<=$D$17,(Tier2Purchases!$C16-Tier2Purchases!$B16)-($D$16-Tier2Purchases!$B16)+1))))) -> 0 | N15: =IF(OR(Tier2Purchases!$B16>$D$19,Tier2Purchases!$C16<$D$18),0,IF(AND(Tier2Purchases!$B16<$D$18,Tier2Purchases!$C16>$D$19),(Tier2Purchases!$C16-Tier2Purchases!$B16)-(Tier2Purchases!$C16-$D$20)-($D$18-Tier2Purchases!$B16),IF(AND(Tier2Purchases!$C16<=$D$19,Tier2Purchases!$B16>=$D$18),($D$19-$D$18)-($D$19-Tier2Purchases!$C16)-(Tier2Purchases!$B16-$D$18)+1,IF(Tier2Purchases!$B16>=$D$18,(Tier2Purchases!$C16-Tier2Purchases!$B16)-(Tier2Purchases!$C16-$D$20),IF(Tier2Purchases!$C16<=$D$19,(Tier2Purchases!$C16-Tier2Purchases!$B16)-($D$18-Tier2Purchases!$B16)+1))))) -> 0 | O15: =IF(OR(Tier2Purchases!$B16>$D$21,Tier2Purchases!$C16<$D$20),0,IF(AND(Tier2Purchases!$B16<$D$20,Tier2Purchases!$C16>$D$21),(Tier2Purchases!$C16-Tier2Purchases!$B16)-(Tier2Purchases!$C16-$D$22)-($D$20-Tier2Purchases!$B16),IF(AND(Tier2Purchases!$C16<=$D$21,Tier2Purchases!$B16>=$D$20),($D$21-$D$20)-($D$21-Tier2Purchases!$C16)-(Tier2Purchases!$B16-$D$20)+1,IF(Tier2Purchases!$B16>=$D$20,(Tier2Purchases!$C16-Tier2Purchases!$B16)-(Tier2Purchases!$C16-$D$22),IF(Tier2Purchases!$C16<=$D$21,(Tier2Purchases!$C16-Tier2Purchases!$B16)-($D$20-Tier2Purchases!$B16)+1))))) -> 0 | P15: =IF(OR(Tier2Purchases!$B16>$D$23,Tier2Purchases!$C16<$D$22),0,IF(AND(Tier2Purchases!$B16<$D$22,Tier2Purchases!$C16>$D$23),(Tier2Purchases!$C16-Tier2Purchases!$B16)-(Tier2Purchases!$C16-$D$24)-($D$22-Tier2Purchases!$B16),IF(AND(Tier2Purchases!$C16<=$D$23,Tier2Purchases!$B16>=$D$22),($D$23-$D$22)-($D$23-Tier2Purchases!$C16)-(Tier2Purchases!$B16-$D$22)+1,IF(Tier2Purchases!$B16>=$D$22,(Tier2Purchases!$C16-Tier2Purchases!$B16)-(Tier2Purchases!$C16-$D$24),IF(Tier2Purchases!$C16<=$D$23,(Tier2Purchases!$C16-Tier2Purchases!$B16)-($D$22-Tier2Purchases!$B16)+1))))) -> 0 | Q15: =IF(OR(Tier2Purchases!$B16>$D$25,Tier2Purchases!$C16<$D$24),0,IF(AND(Tier2Purchases!$B16<$D$24,Tier2Purchases!$C16>$D$25),(Tier2Purchases!$C16-Tier2Purchases!$B16)-(Tier2Purchases!$C16-$D$26)-($D$24-Tier2Purchases!$B16),IF(AND(Tier2Purchases!$C16<=$D$25,Tier2Purchases!$B16>=$D$24),($D$25-$D$24)-($D$25-Tier2Purchases!$C16)-(Tier2Purchases!$B16-$D$24)+1,IF(Tier2Purchases!$B16>=$D$24,(Tier2Purchases!$C16-Tier2Purchases!$B16)-(Tier2Purchases!$C16-$D$26),IF(Tier2Purchases!$C16<=$D$25,(Tier2Purchases!$C16-Tier2Purchases!$B16)-($D$24-Tier2Purchases!$B16)+1))))) -> 0 | R15: =IF(OR(Tier2Purchases!$B16>$D$27,Tier2Purchases!$C16<$D$26),0,IF(AND(Tier2Purchases!$B16<$D$26,Tier2Purchases!$C16>$D$27),(Tier2Purchases!$C16-Tier2Purchases!$B16)-(Tier2Purchases!$C16-$D$28)-($D$26-Tier2Purchases!$B16),IF(AND(Tier2Purchases!$C16<=$D$27,Tier2Purchases!$B16>=$D$26),($D$27-$D$26)-($D$27-Tier2Purchases!$C16)-(Tier2Purchases!$B16-$D$26)+1,IF(Tier2Purchases!$B16>=$D$26,(Tier2Purchases!$C16-Tier2Purchases!$B16)-(Tier2Purchases!$C16-$D$28),IF(Tier2Purchases!$C16<=$D$27,(Tier2Purchases!$C16-Tier2Purchases!$B16)-($D$26-Tier2Purchases!$B16)+1))))) -> 0 | S15: =IF(OR(Tier2Purchases!$B16>$D$29,Tier2Purchases!$C16<$D$28),0,IF(AND(Tier2Purchases!$B16<$D$28,Tier2Purchases!$C16>$D$29),(Tier2Purchases!$C16-Tier2Purchases!$B16)-(Tier2Purchases!$C16-$D$30)-($D$28-Tier2Purchases!$B16),IF(AND(Tier2Purchases!$C16<=$D$29,Tier2Purchases!$B16>=$D$28),($D$29-$D$28)-($D$29-Tier2Purchases!$C16)-(Tier2Purchases!$B16-$D$28)+1,IF(Tier2Purchases!$B16>=$D$28,(Tier2Purchases!$C16-Tier2Purchases!$B16)-(Tier2Purchases!$C16-$D$30),IF(Tier2Purchases!$C16<=$D$29,(Tier2Purchases!$C16-Tier2Purchases!$B16)-($D$28-Tier2Purchases!$B16)+1))))) -> 0 | T15: =IF(OR(Tier2Purchases!$B16>$D$31,Tier2Purchases!$C16<$D$30),0,IF(AND(Tier2Purchases!$B16<$D$30,Tier2Purchases!$C16>$D$31),(Tier2Purchases!$C16-Tier2Purchases!$B16)-(Tier2Purchases!$C16-$D$32)-($D$30-Tier2Purchases!$B16),IF(AND(Tier2Purchases!$C16<=$D$31,Tier2Purchases!$B16>=$D$30),($D$31-$D$30)-($D$31-Tier2Purchases!$C16)-(Tier2Purchases!$B16-$D$30)+1,IF(Tier2Purchases!$B16>=$D$30,(Tier2Purchases!$C16-Tier2Purchases!$B16)-(Tier2Purchases!$C16-$D$32),IF(Tier2Purchases!$C16<=$D$31,(Tier2Purchases!$C16-Tier2Purchases!$B16)-($D$30-Tier2Purchases!$B16)+1))))) -> 0 | U15: =IF(OR(Tier2Purchases!$B16>$D$33,Tier2Purchases!$C16<$D$32),0,IF(AND(Tier2Purchases!$B16<$D$32,Tier2Purchases!$C16>$D$33),(Tier2Purchases!$C16-Tier2Purchases!$B16)-(Tier2Purchases!$C16-$D$34)-($D$32-Tier2Purchases!$B16),IF(AND(Tier2Purchases!$C16<=$D$33,Tier2Purchases!$B16>=$D$32),($D$33-$D$32)-($D$33-Tier2Purchases!$C16)-(Tier2Purchases!$B16-$D$32)+1,IF(Tier2Purchases!$B16>=$D$32,(Tier2Purchases!$C16-Tier2Purchases!$B16)-(Tier2Purchases!$C16-$D$34),IF(Tier2Purchases!$C16<=$D$33,(Tier2Purchases!$C16-Tier2Purchases!$B16)-($D$32-Tier2Purchases!$B16)+1))))) -> 0 | V15: =IF(OR(Tier2Purchases!$B16>$D$35,Tier2Purchases!$C16<$D$34),0,IF(AND(Tier2Purchases!$B16<$D$34,Tier2Purchases!$C16>$D$35),(Tier2Purchases!$C16-Tier2Purchases!$B16)-(Tier2Purchases!$C16-$D$36)-($D$34-Tier2Purchases!$B16),IF(AND(Tier2Purchases!$C16<=$D$35,Tier2Purchases!$B16>=$D$34),($D$35-$D$34)-($D$35-Tier2Purchases!$C16)-(Tier2Purchases!$B16-$D$34)+1,IF(Tier2Purchases!$B16>=$D$34,(Tier2Purchases!$C16-Tier2Purchases!$B16)-(Tier2Purchases!$C16-$D$36),IF(Tier2Purchases!$C16<=$D$35,(Tier2Purchases!$C16-Tier2Purchases!$B16)-($D$34-Tier2Purchases!$B16)+1))))) -> 0 | W15: =IF(OR(Tier2Purchases!$B16>$D$37,Tier2Purchases!$C16<$D$36),0,IF(AND(Tier2Purchases!$B16<$D$36,Tier2Purchases!$C16>$D$37),(Tier2Purchases!$C16-Tier2Purchases!$B16)-(Tier2Purchases!$C16-$D$38)-($D$36-Tier2Purchases!$B16),IF(AND(Tier2Purchases!$C16<=$D$37,Tier2Purchases!$B16>=$D$36),($D$37-$D$36)-($D$37-Tier2Purchases!$C16)-(Tier2Purchases!$B16-$D$36)+1,IF(Tier2Purchases!$B16>=$D$36,(Tier2Purchases!$C16-Tier2Purchases!$B16)-(Tier2Purchases!$C16-$D$38),IF(Tier2Purchases!$C16<=$D$37,(Tier2Purchases!$C16-Tier2Purchases!$B16)-($D$36-Tier2Purchases!$B16)+1))))) -> 0 | X15: =IF(OR(Tier2Purchases!$B16>$D$39,Tier2Purchases!$C16<$D$38),0,IF(AND(Tier2Purchases!$B16<$D$38,Tier2Purchases!$C16>$D$39),(Tier2Purchases!$C16-Tier2Purchases!$B16)-(Tier2Purchases!$C16-$D$39)-($D$38-Tier2Purchases!$B16)+1,IF(AND(Tier2Purchases!$C16<=$D$39,Tier2Purchases!$B16>=$D$38),($D$39-$D$38)-($D$39-Tier2Purchases!$C16)-(Tier2Purchases!$B16-$D$38)+1,IF(Tier2Purchases!$B16>=$D$38,(Tier2Purchases!$C16-Tier2Purchases!$B16)-(Tier2Purchases!$C16-$D$39)+1,IF(Tier2Purchases!$C16<=$D$39,(Tier2Purchases!$C16-Tier2Purchases!$B16)-($D$38-Tier2Purchases!$B16)+1))))) -> 0 | Y15: 365 | Z15: 0 | AA15: =Tier2Purchases!$C16-Tier2Purchases!$B16+1 -> 365 | AB15: TRUE
B16: FY2017 | C16: START DATE | D16: 2016-10-01 | E16: =Tier2Purchases!B17 -> 2014-10-01 | F16: =Tier2Purchases!C17 -> 2015-09-30 | H16: =IF(OR(Tier2Purchases!$B17>$D$7,Tier2Purchases!$C17<$D$6),0,IF(AND(Tier2Purchases!$B17<$D$6,Tier2Purchases!$C17>$D$7),(Tier2Purchases!$C17-Tier2Purchases!$B17)-(Tier2Purchases!$C17-$D$8)-($D$6-Tier2Purchases!$B17),IF(AND(Tier2Purchases!$C17<=$D$7,Tier2Purchases!$B17>=$D$6),($D$7-$D$6)-($D$7-Tier2Purchases!$C17)-(Tier2Purchases!$B17-$D$6)+1,IF(Tier2Purchases!$B17>=$D$6,(Tier2Purchases!$C17-Tier2Purchases!$B17)-(Tier2Purchases!$C17-$D$8),IF(Tier2Purchases!$C17<=$D$7,(Tier2Purchases!$C17-Tier2Purchases!$B17)-($D$6-Tier2Purchases!$B17)+1))))) -> 0 | I16: =IF(OR(Tier2Purchases!$B17>$D$9,Tier2Purchases!$C17<$D$8),0,IF(AND(Tier2Purchases!$B17<$D$8,Tier2Purchases!$C17>$D$9),(Tier2Purchases!$C17-Tier2Purchases!$B17)-(Tier2Purchases!$C17-$D$10)-($D$8-Tier2Purchases!$B17),IF(AND(Tier2Purchases!$C17<=$D$9,Tier2Purchases!$B17>=$D$8),($D$9-$D$8)-($D$9-Tier2Purchases!$C17)-(Tier2Purchases!$B17-$D$8)+1,IF(Tier2Purchases!$B17>=$D$8,(Tier2Purchases!$C17-Tier2Purchases!$B17)-(Tier2Purchases!$C17-$D$10),IF(Tier2Purchases!$C17<=$D$9,(Tier2Purchases!$C17-Tier2Purchases!$B17)-($D$8-Tier2Purchases!$B17)+1))))) -> 0 | J16: =IF(OR(Tier2Purchases!$B17>$D$11,Tier2Purchases!$C17<$D$10),0,IF(AND(Tier2Purchases!$B17<$D$10,Tier2Purchases!$C17>$D$11),(Tier2Purchases!$C17-Tier2Purchases!$B17)-(Tier2Purchases!$C17-$D$12)-($D$10-Tier2Purchases!$B17),IF(AND(Tier2Purchases!$C17<=$D$11,Tier2Purchases!$B17>=$D$10),($D$11-$D$10)-($D$11-Tier2Purchases!$C17)-(Tier2Purchases!$B17-$D$10)+1,IF(Tier2Purchases!$B17>=$D$10,(Tier2Purchases!$C17-Tier2Purchases!$B17)-(Tier2Purchases!$C17-$D$12),IF(Tier2Purchases!$C17<=$D$11,(Tier2Purchases!$C17-Tier2Purchases!$B17)-($D$10-Tier2Purchases!$B17)+1))))) -> 0 | K16: =IF(OR(Tier2Purchases!$B17>$D$13,Tier2Purchases!$C17<$D$12),0,IF(AND(Tier2Purchases!$B17<$D$12,Tier2Purchases!$C17>$D$13),(Tier2Purchases!$C17-Tier2Purchases!$B17)-(Tier2Purchases!$C17-$D$14)-($D$12-Tier2Purchases!$B17),IF(AND(Tier2Purchases!$C17<=$D$13,Tier2Purchases!$B17>=$D$12),($D$13-$D$12)-($D$13-Tier2Purchases!$C17)-(Tier2Purchases!$B17-$D$12)+1,IF(Tier2Purchases!$B17>=$D$12,(Tier2Purchases!$C17-Tier2Purchases!$B17)-(Tier2Purchases!$C17-$D$14),IF(Tier2Purchases!$C17<=$D$13,(Tier2Purchases!$C17-Tier2Purchases!$B17)-($D$12-Tier2Purchases!$B17)+1))))) -> 365 | L16: =IF(OR(Tier2Purchases!$B17>$D$15,Tier2Purchases!$C17<$D$14),0,IF(AND(Tier2Purchases!$B17<$D$14,Tier2Purchases!$C17>$D$15),(Tier2Purchases!$C17-Tier2Purchases!$B17)-(Tier2Purchases!$C17-$D$16)-($D$14-Tier2Purchases!$B17),IF(AND(Tier2Purchases!$C17<=$D$15,Tier2Purchases!$B17>=$D$14),($D$15-$D$14)-($D$15-Tier2Purchases!$C17)-(Tier2Purchases!$B17-$D$14)+1,IF(Tier2Purchases!$B17>=$D$14,(Tier2Purchases!$C17-Tier2Purchases!$B17)-(Tier2Purchases!$C17-$D$16),IF(Tier2Purchases!$C17<=$D$15,(Tier2Purchases!$C17-Tier2Purchases!$B17)-($D$14-Tier2Purchases!$B17)+1))))) -> 0 | M16: =IF(OR(Tier2Purchases!$B17>$D$17,Tier2Purchases!$C17<$D$16),0,IF(AND(Tier2Purchases!$B17<$D$16,Tier2Purchases!$C17>$D$17),(Tier2Purchases!$C17-Tier2Purchases!$B17)-(Tier2Purchases!$C17-$D$18)-($D$16-Tier2Purchases!$B17),IF(AND(Tier2Purchases!$C17<=$D$17,Tier2Purchases!$B17>=$D$16),($D$17-$D$16)-($D$17-Tier2Purchases!$C17)-(Tier2Purchases!$B17-$D$16)+1,IF(Tier2Purchases!$B17>=$D$16,(Tier2Purchases!$C17-Tier2Purchases!$B17)-(Tier2Purchases!$C17-$D$18),IF(Tier2Purchases!$C17<=$D$17,(Tier2Purchases!$C17-Tier2Purchases!$B17)-($D$16-Tier2Purchases!$B17)+1))))) -> 0 | N16: =IF(OR(Tier2Purchases!$B17>$D$19,Tier2Purchases!$C17<$D$18),0,IF(AND(Tier2Purchases!$B17<$D$18,Tier2Purchases!$C17>$D$19),(Tier2Purchases!$C17-Tier2Purchases!$B17)-(Tier2Purchases!$C17-$D$20)-($D$18-Tier2Purchases!$B17),IF(AND(Tier2Purchases!$C17<=$D$19,Tier2Purchases!$B17>=$D$18),($D$19-$D$18)-($D$19-Tier2Purchases!$C17)-(Tier2Purchases!$B17-$D$18)+1,IF(Tier2Purchases!$B17>=$D$18,(Tier2Purchases!$C17-Tier2Purchases!$B17)-(Tier2Purchases!$C17-$D$20),IF(Tier2Purchases!$C17<=$D$19,(Tier2Purchases!$C17-Tier2Purchases!$B17)-($D$18-Tier2Purchases!$B17)+1))))) -> 0 | O16: =IF(OR(Tier2Purchases!$B17>$D$21,Tier2Purchases!$C17<$D$20),0,IF(AND(Tier2Purchases!$B17<$D$20,Tier2Purchases!$C17>$D$21),(Tier2Purchases!$C17-Tier2Purchases!$B17)-(Tier2Purchases!$C17-$D$22)-($D$20-Tier2Purchases!$B17),IF(AND(Tier2Purchases!$C17<=$D$21,Tier2Purchases!$B17>=$D$20),($D$21-$D$20)-($D$21-Tier2Purchases!$C17)-(Tier2Purchases!$B17-$D$20)+1,IF(Tier2Purchases!$B17>=$D$20,(Tier2Purchases!$C17-Tier2Purchases!$B17)-(Tier2Purchases!$C17-$D$22),IF(Tier2Purchases!$C17<=$D$21,(Tier2Purchases!$C17-Tier2Purchases!$B17)-($D$20-Tier2Purchases!$B17)+1))))) -> 0 | P16: =IF(OR(Tier2Purchases!$B17>$D$23,Tier2Purchases!$C17<$D$22),0,IF(AND(Tier2Purchases!$B17<$D$22,Tier2Purchases!$C17>$D$23),(Tier2Purchases!$C17-Tier2Purchases!$B17)-(Tier2Purchases!$C17-$D$24)-($D$22-Tier2Purchases!$B17),IF(AND(Tier2Purchases!$C17<=$D$23,Tier2Purchases!$B17>=$D$22),($D$23-$D$22)-($D$23-Tier2Purchases!$C17)-(Tier2Purchases!$B17-$D$22)+1,IF(Tier2Purchases!$B17>=$D$22,(Tier2Purchases!$C17-Tier2Purchases!$B17)-(Tier2Purchases!$C17-$D$24),IF(Tier2Purchases!$C17<=$D$23,(Tier2Purchases!$C17-Tier2Purchases!$B17)-($D$22-Tier2Purchases!$B17)+1))))) -> 0 | Q16: =IF(OR(Tier2Purchases!$B17>$D$25,Tier2Purchases!$C17<$D$24),0,IF(AND(Tier2Purchases!$B17<$D$24,Tier2Purchases!$C17>$D$25),(Tier2Purchases!$C17-Tier2Purchases!$B17)-(Tier2Purchases!$C17-$D$26)-($D$24-Tier2Purchases!$B17),IF(AND(Tier2Purchases!$C17<=$D$25,Tier2Purchases!$B17>=$D$24),($D$25-$D$24)-($D$25-Tier2Purchases!$C17)-(Tier2Purchases!$B17-$D$24)+1,IF(Tier2Purchases!$B17>=$D$24,(Tier2Purchases!$C17-Tier2Purchases!$B17)-(Tier2Purchases!$C17-$D$26),IF(Tier2Purchases!$C17<=$D$25,(Tier2Purchases!$C17-Tier2Purchases!$B17)-($D$24-Tier2Purchases!$B17)+1))))) -> 0 | R16: =IF(OR(Tier2Purchases!$B17>$D$27,Tier2Purchases!$C17<$D$26),0,IF(AND(Tier2Purchases!$B17<$D$26,Tier2Purchases!$C17>$D$27),(Tier2Purchases!$C17-Tier2Purchases!$B17)-(Tier2Purchases!$C17-$D$28)-($D$26-Tier2Purchases!$B17),IF(AND(Tier2Purchases!$C17<=$D$27,Tier2Purchases!$B17>=$D$26),($D$27-$D$26)-($D$27-Tier2Purchases!$C17)-(Tier2Purchases!$B17-$D$26)+1,IF(Tier2Purchases!$B17>=$D$26,(Tier2Purchases!$C17-Tier2Purchases!$B17)-(Tier2Purchases!$C17-$D$28),IF(Tier2Purchases!$C17<=$D$27,(Tier2Purchases!$C17-Tier2Purchases!$B17)-($D$26-Tier2Purchases!$B17)+1))))) -> 0 | S16: =IF(OR(Tier2Purchases!$B17>$D$29,Tier2Purchases!$C17<$D$28),0,IF(AND(Tier2Purchases!$B17<$D$28,Tier2Purchases!$C17>$D$29),(Tier2Purchases!$C17-Tier2Purchases!$B17)-(Tier2Purchases!$C17-$D$30)-($D$28-Tier2Purchases!$B17),IF(AND(Tier2Purchases!$C17<=$D$29,Tier2Purchases!$B17>=$D$28),($D$29-$D$28)-($D$29-Tier2Purchases!$C17)-(Tier2Purchases!$B17-$D$28)+1,IF(Tier2Purchases!$B17>=$D$28,(Tier2Purchases!$C17-Tier2Purchases!$B17)-(Tier2Purchases!$C17-$D$30),IF(Tier2Purchases!$C17<=$D$29,(Tier2Purchases!$C17-Tier2Purchases!$B17)-($D$28-Tier2Purchases!$B17)+1))))) -> 0 | T16: =IF(OR(Tier2Purchases!$B17>$D$31,Tier2Purchases!$C17<$D$30),0,IF(AND(Tier2Purchases!$B17<$D$30,Tier2Purchases!$C17>$D$31),(Tier2Purchases!$C17-Tier2Purchases!$B17)-(Tier2Purchases!$C17-$D$32)-($D$30-Tier2Purchases!$B17),IF(AND(Tier2Purchases!$C17<=$D$31,Tier2Purchases!$B17>=$D$30),($D$31-$D$30)-($D$31-Tier2Purchases!$C17)-(Tier2Purchases!$B17-$D$30)+1,IF(Tier2Purchases!$B17>=$D$30,(Tier2Purchases!$C17-Tier2Purchases!$B17)-(Tier2Purchases!$C17-$D$32),IF(Tier2Purchases!$C17<=$D$31,(Tier2Purchases!$C17-Tier2Purchases!$B17)-($D$30-Tier2Purchases!$B17)+1))))) -> 0 | U16: =IF(OR(Tier2Purchases!$B17>$D$33,Tier2Purchases!$C17<$D$32),0,IF(AND(Tier2Purchases!$B17<$D$32,Tier2Purchases!$C17>$D$33),(Tier2Purchases!$C17-Tier2Purchases!$B17)-(Tier2Purchases!$C17-$D$34)-($D$32-Tier2Purchases!$B17),IF(AND(Tier2Purchases!$C17<=$D$33,Tier2Purchases!$B17>=$D$32),($D$33-$D$32)-($D$33-Tier2Purchases!$C17)-(Tier2Purchases!$B17-$D$32)+1,IF(Tier2Purchases!$B17>=$D$32,(Tier2Purchases!$C17-Tier2Purchases!$B17)-(Tier2Purchases!$C17-$D$34),IF(Tier2Purchases!$C17<=$D$33,(Tier2Purchases!$C17-Tier2Purchases!$B17)-($D$32-Tier2Purchases!$B17)+1))))) -> 0 | V16: =IF(OR(Tier2Purchases!$B17>$D$35,Tier2Purchases!$C17<$D$34),0,IF(AND(Tier2Purchases!$B17<$D$34,Tier2Purchases!$C17>$D$35),(Tier2Purchases!$C17-Tier2Purchases!$B17)-(Tier2Purchases!$C17-$D$36)-($D$34-Tier2Purchases!$B17),IF(AND(Tier2Purchases!$C17<=$D$35,Tier2Purchases!$B17>=$D$34),($D$35-$D$34)-($D$35-Tier2Purchases!$C17)-(Tier2Purchases!$B17-$D$34)+1,IF(Tier2Purchases!$B17>=$D$34,(Tier2Purchases!$C17-Tier2Purchases!$B17)-(Tier2Purchases!$C17-$D$36),IF(Tier2Purchases!$C17<=$D$35,(Tier2Purchases!$C17-Tier2Purchases!$B17)-($D$34-Tier2Purchases!$B17)+1))))) -> 0 | W16: =IF(OR(Tier2Purchases!$B17>$D$37,Tier2Purchases!$C17<$D$36),0,IF(AND(Tier2Purchases!$B17<$D$36,Tier2Purchases!$C17>$D$37),(Tier2Purchases!$C17-Tier2Purchases!$B17)-(Tier2Purchases!$C17-$D$38)-($D$36-Tier2Purchases!$B17),IF(AND(Tier2Purchases!$C17<=$D$37,Tier2Purchases!$B17>=$D$36),($D$37-$D$36)-($D$37-Tier2Purchases!$C17)-(Tier2Purchases!$B17-$D$36)+1,IF(Tier2Purchases!$B17>=$D$36,(Tier2Purchases!$C17-Tier2Purchases!$B17)-(Tier2Purchases!$C17-$D$38),IF(Tier2Purchases!$C17<=$D$37,(Tier2Purchases!$C17-Tier2Purchases!$B17)-($D$36-Tier2Purchases!$B17)+1))))) -> 0 | X16: =IF(OR(Tier2Purchases!$B17>$D$39,Tier2Purchases!$C17<$D$38),0,IF(AND(Tier2Purchases!$B17<$D$38,Tier2Purchases!$C17>$D$39),(Tier2Purchases!$C17-Tier2Purchases!$B17)-(Tier2Purchases!$C17-$D$39)-($D$38-Tier2Purchases!$B17)+1,IF(AND(Tier2Purchases!$C17<=$D$39,Tier2Purchases!$B17>=$D$38),($D$39-$D$38)-($D$39-Tier2Purchases!$C17)-(Tier2Purchases!$B17-$D$38)+1,IF(Tier2Purchases!$B17>=$D$38,(Tier2Purchases!$C17-Tier2Purchases!$B17)-(Tier2Purchases!$C17-$D$39)+1,IF(Tier2Purchases!$C17<=$D$39,(Tier2Purchases!$C17-Tier2Purchases!$B17)-($D$38-Tier2Purchases!$B17)+1))))) -> 0 | Y16: 365 | Z16: 0 | AA16: =Tier2Purchases!$C17-Tier2Purchases!$B17+1 -> 365 | AB16: TRUE
C17: END DATE | D17: 2017-09-30 | E17: =Tier2Purchases!B18 -> 2015-10-01 | F17: =Tier2Purchases!C18 -> 2016-09-30 | H17: =IF(OR(Tier2Purchases!$B18>$D$7,Tier2Purchases!$C18<$D$6),0,IF(AND(Tier2Purchases!$B18<$D$6,Tier2Purchases!$C18>$D$7),(Tier2Purchases!$C18-Tier2Purchases!$B18)-(Tier2Purchases!$C18-$D$8)-($D$6-Tier2Purchases!$B18),IF(AND(Tier2Purchases!$C18<=$D$7,Tier2Purchases!$B18>=$D$6),($D$7-$D$6)-($D$7-Tier2Purchases!$C18)-(Tier2Purchases!$B18-$D$6)+1,IF(Tier2Purchases!$B18>=$D$6,(Tier2Purchases!$C18-Tier2Purchases!$B18)-(Tier2Purchases!$C18-$D$8),IF(Tier2Purchases!$C18<=$D$7,(Tier2Purchases!$C18-Tier2Purchases!$B18)-($D$6-Tier2Purchases!$B18)+1))))) -> 0 | I17: =IF(OR(Tier2Purchases!$B18>$D$9,Tier2Purchases!$C18<$D$8),0,IF(AND(Tier2Purchases!$B18<$D$8,Tier2Purchases!$C18>$D$9),(Tier2Purchases!$C18-Tier2Purchases!$B18)-(Tier2Purchases!$C18-$D$10)-($D$8-Tier2Purchases!$B18),IF(AND(Tier2Purchases!$C18<=$D$9,Tier2Purchases!$B18>=$D$8),($D$9-$D$8)-($D$9-Tier2Purchases!$C18)-(Tier2Purchases!$B18-$D$8)+1,IF(Tier2Purchases!$B18>=$D$8,(Tier2Purchases!$C18-Tier2Purchases!$B18)-(Tier2Purchases!$C18-$D$10),IF(Tier2Purchases!$C18<=$D$9,(Tier2Purchases!$C18-Tier2Purchases!$B18)-($D$8-Tier2Purchases!$B18)+1))))) -> 0 | J17: =IF(OR(Tier2Purchases!$B18>$D$11,Tier2Purchases!$C18<$D$10),0,IF(AND(Tier2Purchases!$B18<$D$10,Tier2Purchases!$C18>$D$11),(Tier2Purchases!$C18-Tier2Purchases!$B18)-(Tier2Purchases!$C18-$D$12)-($D$10-Tier2Purchases!$B18),IF(AND(Tier2Purchases!$C18<=$D$11,Tier2Purchases!$B18>=$D$10),($D$11-$D$10)-($D$11-Tier2Purchases!$C18)-(Tier2Purchases!$B18-$D$10)+1,IF(Tier2Purchases!$B18>=$D$10,(Tier2Purchases!$C18-Tier2Purchases!$B18)-(Tier2Purchases!$C18-$D$12),IF(Tier2Purchases!$C18<=$D$11,(Tier2Purchases!$C18-Tier2Purchases!$B18)-($D$10-Tier2Purchases!$B18)+1))))) -> 0 | K17: =IF(OR(Tier2Purchases!$B18>$D$13,Tier2Purchases!$C18<$D$12),0,IF(AND(Tier2Purchases!$B18<$D$12,Tier2Purchases!$C18>$D$13),(Tier2Purchases!$C18-Tier2Purchases!$B18)-(Tier2Purchases!$C18-$D$14)-($D$12-Tier2Purchases!$B18),IF(AND(Tier2Purchases!$C18<=$D$13,Tier2Purchases!$B18>=$D$12),($D$13-$D$12)-($D$13-Tier2Purchases!$C18)-(Tier2Purchases!$B18-$D$12)+1,IF(Tier2Purchases!$B18>=$D$12,(Tier2Purchases!$C18-Tier2Purchases!$B18)-(Tier2Purchases!$C18-$D$14),IF(Tier2Purchases!$C18<=$D$13,(Tier2Purchases!$C18-Tier2Purchases!$B18)-($D$12-Tier2Purchases!$B18)+1))))) -> 0 | L17: =IF(OR(Tier2Purchases!$B18>$D$15,Tier2Purchases!$C18<$D$14),0,IF(AND(Tier2Purchases!$B18<$D$14,Tier2Purchases!$C18>$D$15),(Tier2Purchases!$C18-Tier2Purchases!$B18)-(Tier2Purchases!$C18-$D$16)-($D$14-Tier2Purchases!$B18),IF(AND(Tier2Purchases!$C18<=$D$15,Tier2Purchases!$B18>=$D$14),($D$15-$D$14)-($D$15-Tier2Purchases!$C18)-(Tier2Purchases!$B18-$D$14)+1,IF(Tier2Purchases!$B18>=$D$14,(Tier2Purchases!$C18-Tier2Purchases!$B18)-(Tier2Purchases!$C18-$D$16),IF(Tier2Purchases!$C18<=$D$15,(Tier2Purchases!$C18-Tier2Purchases!$B18)-($D$14-Tier2Purchases!$B18)+1))))) -> 366 | M17: =IF(OR(Tier2Purchases!$B18>$D$17,Tier2Purchases!$C18<$D$16),0,IF(AND(Tier2Purchases!$B18<$D$16,Tier2Purchases!$C18>$D$17),(Tier2Purchases!$C18-Tier2Purchases!$B18)-(Tier2Purchases!$C18-$D$18)-($D$16-Tier2Purchases!$B18),IF(AND(Tier2Purchases!$C18<=$D$17,Tier2Purchases!$B18>=$D$16),($D$17-$D$16)-($D$17-Tier2Purchases!$C18)-(Tier2Purchases!$B18-$D$16)+1,IF(Tier2Purchases!$B18>=$D$16,(Tier2Purchases!$C18-Tier2Purchases!$B18)-(Tier2Purchases!$C18-$D$18),IF(Tier2Purchases!$C18<=$D$17,(Tier2Purchases!$C18-Tier2Purchases!$B18)-($D$16-Tier2Purchases!$B18)+1))))) -> 0 | N17: =IF(OR(Tier2Purchases!$B18>$D$19,Tier2Purchases!$C18<$D$18),0,IF(AND(Tier2Purchases!$B18<$D$18,Tier2Purchases!$C18>$D$19),(Tier2Purchases!$C18-Tier2Purchases!$B18)-(Tier2Purchases!$C18-$D$20)-($D$18-Tier2Purchases!$B18),IF(AND(Tier2Purchases!$C18<=$D$19,Tier2Purchases!$B18>=$D$18),($D$19-$D$18)-($D$19-Tier2Purchases!$C18)-(Tier2Purchases!$B18-$D$18)+1,IF(Tier2Purchases!$B18>=$D$18,(Tier2Purchases!$C18-Tier2Purchases!$B18)-(Tier2Purchases!$C18-$D$20),IF(Tier2Purchases!$C18<=$D$19,(Tier2Purchases!$C18-Tier2Purchases!$B18)-($D$18-Tier2Purchases!$B18)+1))))) -> 0 | O17: =IF(OR(Tier2Purchases!$B18>$D$21,Tier2Purchases!$C18<$D$20),0,IF(AND(Tier2Purchases!$B18<$D$20,Tier2Purchases!$C18>$D$21),(Tier2Purchases!$C18-Tier2Purchases!$B18)-(Tier2Purchases!$C18-$D$22)-($D$20-Tier2Purchases!$B18),IF(AND(Tier2Purchases!$C18<=$D$21,Tier2Purchases!$B18>=$D$20),($D$21-$D$20)-($D$21-Tier2Purchases!$C18)-(Tier2Purchases!$B18-$D$20)+1,IF(Tier2Purchases!$B18>=$D$20,(Tier2Purchases!$C18-Tier2Purchases!$B18)-(Tier2Purchases!$C18-$D$22),IF(Tier2Purchases!$C18<=$D$21,(Tier2Purchases!$C18-Tier2Purchases!$B18)-($D$20-Tier2Purchases!$B18)+1))))) -> 0 | P17: =IF(OR(Tier2Purchases!$B18>$D$23,Tier2Purchases!$C18<$D$22),0,IF(AND(Tier2Purchases!$B18<$D$22,Tier2Purchases!$C18>$D$23),(Tier2Purchases!$C18-Tier2Purchases!$B18)-(Tier2Purchases!$C18-$D$24)-($D$22-Tier2Purchases!$B18),IF(AND(Tier2Purchases!$C18<=$D$23,Tier2Purchases!$B18>=$D$22),($D$23-$D$22)-($D$23-Tier2Purchases!$C18)-(Tier2Purchases!$B18-$D$22)+1,IF(Tier2Purchases!$B18>=$D$22,(Tier2Purchases!$C18-Tier2Purchases!$B18)-(Tier2Purchases!$C18-$D$24),IF(Tier2Purchases!$C18<=$D$23,(Tier2Purchases!$C18-Tier2Purchases!$B18)-($D$22-Tier2Purchases!$B18)+1))))) -> 0 | Q17: =IF(OR(Tier2Purchases!$B18>$D$25,Tier2Purchases!$C18<$D$24),0,IF(AND(Tier2Purchases!$B18<$D$24,Tier2Purchases!$C18>$D$25),(Tier2Purchases!$C18-Tier2Purchases!$B18)-(Tier2Purchases!$C18-$D$26)-($D$24-Tier2Purchases!$B18),IF(AND(Tier2Purchases!$C18<=$D$25,Tier2Purchases!$B18>=$D$24),($D$25-$D$24)-($D$25-Tier2Purchases!$C18)-(Tier2Purchases!$B18-$D$24)+1,IF(Tier2Purchases!$B18>=$D$24,(Tier2Purchases!$C18-Tier2Purchases!$B18)-(Tier2Purchases!$C18-$D$26),IF(Tier2Purchases!$C18<=$D$25,(Tier2Purchases!$C18-Tier2Purchases!$B18)-($D$24-Tier2Purchases!$B18)+1))))) -> 0 | R17: =IF(OR(Tier2Purchases!$B18>$D$27,Tier2Purchases!$C18<$D$26),0,IF(AND(Tier2Purchases!$B18<$D$26,Tier2Purchases!$C18>$D$27),(Tier2Purchases!$C18-Tier2Purchases!$B18)-(Tier2Purchases!$C18-$D$28)-($D$26-Tier2Purchases!$B18),IF(AND(Tier2Purchases!$C18<=$D$27,Tier2Purchases!$B18>=$D$26),($D$27-$D$26)-($D$27-Tier2Purchases!$C18)-(Tier2Purchases!$B18-$D$26)+1,IF(Tier2Purchases!$B18>=$D$26,(Tier2Purchases!$C18-Tier2Purchases!$B18)-(Tier2Purchases!$C18-$D$28),IF(Tier2Purchases!$C18<=$D$27,(Tier2Purchases!$C18-Tier2Purchases!$B18)-($D$26-Tier2Purchases!$B18)+1))))) -> 0 | S17: =IF(OR(Tier2Purchases!$B18>$D$29,Tier2Purchases!$C18<$D$28),0,IF(AND(Tier2Purchases!$B18<$D$28,Tier2Purchases!$C18>$D$29),(Tier2Purchases!$C18-Tier2Purchases!$B18)-(Tier2Purchases!$C18-$D$30)-($D$28-Tier2Purchases!$B18),IF(AND(Tier2Purchases!$C18<=$D$29,Tier2Purchases!$B18>=$D$28),($D$29-$D$28)-($D$29-Tier2Purchases!$C18)-(Tier2Purchases!$B18-$D$28)+1,IF(Tier2Purchases!$B18>=$D$28,(Tier2Purchases!$C18-Tier2Purchases!$B18)-(Tier2Purchases!$C18-$D$30),IF(Tier2Purchases!$C18<=$D$29,(Tier2Purchases!$C18-Tier2Purchases!$B18)-($D$28-Tier2Purchases!$B18)+1))))) -> 0 | T17: =IF(OR(Tier2Purchases!$B18>$D$31,Tier2Purchases!$C18<$D$30),0,IF(AND(Tier2Purchases!$B18<$D$30,Tier2Purchases!$C18>$D$31),(Tier2Purchases!$C18-Tier2Purchases!$B18)-(Tier2Purchases!$C18-$D$32)-($D$30-Tier2Purchases!$B18),IF(AND(Tier2Purchases!$C18<=$D$31,Tier2Purchases!$B18>=$D$30),($D$31-$D$30)-($D$31-Tier2Purchases!$C18)-(Tier2Purchases!$B18-$D$30)+1,IF(Tier2Purchases!$B18>=$D$30,(Tier2Purchases!$C18-Tier2Purchases!$B18)-(Tier2Purchases!$C18-$D$32),IF(Tier2Purchases!$C18<=$D$31,(Tier2Purchases!$C18-Tier2Purchases!$B18)-($D$30-Tier2Purchases!$B18)+1))))) -> 0 | U17: =IF(OR(Tier2Purchases!$B18>$D$33,Tier2Purchases!$C18<$D$32),0,IF(AND(Tier2Purchases!$B18<$D$32,Tier2Purchases!$C18>$D$33),(Tier2Purchases!$C18-Tier2Purchases!$B18)-(Tier2Purchases!$C18-$D$34)-($D$32-Tier2Purchases!$B18),IF(AND(Tier2Purchases!$C18<=$D$33,Tier2Purchases!$B18>=$D$32),($D$33-$D$32)-($D$33-Tier2Purchases!$C18)-(Tier2Purchases!$B18-$D$32)+1,IF(Tier2Purchases!$B18>=$D$32,(Tier2Purchases!$C18-Tier2Purchases!$B18)-(Tier2Purchases!$C18-$D$34),IF(Tier2Purchases!$C18<=$D$33,(Tier2Purchases!$C18-Tier2Purchases!$B18)-($D$32-Tier2Purchases!$B18)+1))))) -> 0 | V17: =IF(OR(Tier2Purchases!$B18>$D$35,Tier2Purchases!$C18<$D$34),0,IF(AND(Tier2Purchases!$B18<$D$34,Tier2Purchases!$C18>$D$35),(Tier2Purchases!$C18-Tier2Purchases!$B18)-(Tier2Purchases!$C18-$D$36)-($D$34-Tier2Purchases!$B18),IF(AND(Tier2Purchases!$C18<=$D$35,Tier2Purchases!$B18>=$D$34),($D$35-$D$34)-($D$35-Tier2Purchases!$C18)-(Tier2Purchases!$B18-$D$34)+1,IF(Tier2Purchases!$B18>=$D$34,(Tier2Purchases!$C18-Tier2Purchases!$B18)-(Tier2Purchases!$C18-$D$36),IF(Tier2Purchases!$C18<=$D$35,(Tier2Purchases!$C18-Tier2Purchases!$B18)-($D$34-Tier2Purchases!$B18)+1))))) -> 0 | W17: =IF(OR(Tier2Purchases!$B18>$D$37,Tier2Purchases!$C18<$D$36),0,IF(AND(Tier2Purchases!$B18<$D$36,Tier2Purchases!$C18>$D$37),(Tier2Purchases!$C18-Tier2Purchases!$B18)-(Tier2Purchases!$C18-$D$38)-($D$36-Tier2Purchases!$B18),IF(AND(Tier2Purchases!$C18<=$D$37,Tier2Purchases!$B18>=$D$36),($D$37-$D$36)-($D$37-Tier2Purchases!$C18)-(Tier2Purchases!$B18-$D$36)+1,IF(Tier2Purchases!$B18>=$D$36,(Tier2Purchases!$C18-Tier2Purchases!$B18)-(Tier2Purchases!$C18-$D$38),IF(Tier2Purchases!$C18<=$D$37,(Tier2Purchases!$C18-Tier2Purchases!$B18)-($D$36-Tier2Purchases!$B18)+1))))) -> 0 | X17: =IF(OR(Tier2Purchases!$B18>$D$39,Tier2Purchases!$C18<$D$38),0,IF(AND(Tier2Purchases!$B18<$D$38,Tier2Purchases!$C18>$D$39),(Tier2Purchases!$C18-Tier2Purchases!$B18)-(Tier2Purchases!$C18-$D$39)-($D$38-Tier2Purchases!$B18)+1,IF(AND(Tier2Purchases!$C18<=$D$39,Tier2Purchases!$B18>=$D$38),($D$39-$D$38)-($D$39-Tier2Purchases!$C18)-(Tier2Purchases!$B18-$D$38)+1,IF(Tier2Purchases!$B18>=$D$38,(Tier2Purchases!$C18-Tier2Purchases!$B18)-(Tier2Purchases!$C18-$D$39)+1,IF(Tier2Purchases!$C18<=$D$39,(Tier2Purchases!$C18-Tier2Purchases!$B18)-($D$38-Tier2Purchases!$B18)+1))))) -> 0 | Y17: =SUM(H17:X17) -> 366 | Z17: 0 | AA17: =Tier2Purchases!$C18-Tier2Purchases!$B18+1 -> 366 | AB17: =AA17=(Y17+Z17) -> TRUE
B18: FY2018 | C18: START DATE | D18: 2017-10-01 | E18: =Tier2Purchases!B24 -> 2017-10-01 | F18: =Tier2Purchases!C24 -> 2018-09-30 | H18: =IF(OR(Tier2Purchases!$B19>$D$7,Tier2Purchases!$C19<$D$6),0,IF(AND(Tier2Purchases!$B19<$D$6,Tier2Purchases!$C19>$D$7),(Tier2Purchases!$C19-Tier2Purchases!$B19)-(Tier2Purchases!$C19-$D$8)-($D$6-Tier2Purchases!$B19),IF(AND(Tier2Purchases!$C19<=$D$7,Tier2Purchases!$B19>=$D$6),($D$7-$D$6)-($D$7-Tier2Purchases!$C19)-(Tier2Purchases!$B19-$D$6)+1,IF(Tier2Purchases!$B19>=$D$6,(Tier2Purchases!$C19-Tier2Purchases!$B19)-(Tier2Purchases!$C19-$D$8),IF(Tier2Purchases!$C19<=$D$7,(Tier2Purchases!$C19-Tier2Purchases!$B19)-($D$6-Tier2Purchases!$B19)+1))))) -> 0 | I18: =IF(OR(Tier2Purchases!$B19>$D$9,Tier2Purchases!$C19<$D$8),0,IF(AND(Tier2Purchases!$B19<$D$8,Tier2Purchases!$C19>$D$9),(Tier2Purchases!$C19-Tier2Purchases!$B19)-(Tier2Purchases!$C19-$D$10)-($D$8-Tier2Purchases!$B19),IF(AND(Tier2Purchases!$C19<=$D$9,Tier2Purchases!$B19>=$D$8),($D$9-$D$8)-($D$9-Tier2Purchases!$C19)-(Tier2Purchases!$B19-$D$8)+1,IF(Tier2Purchases!$B19>=$D$8,(Tier2Purchases!$C19-Tier2Purchases!$B19)-(Tier2Purchases!$C19-$D$10),IF(Tier2Purchases!$C19<=$D$9,(Tier2Purchases!$C19-Tier2Purchases!$B19)-($D$8-Tier2Purchases!$B19)+1))))) -> 0 | J18: =IF(OR(Tier2Purchases!$B19>$D$11,Tier2Purchases!$C19<$D$10),0,IF(AND(Tier2Purchases!$B19<$D$10,Tier2Purchases!$C19>$D$11),(Tier2Purchases!$C19-Tier2Purchases!$B19)-(Tier2Purchases!$C19-$D$12)-($D$10-Tier2Purchases!$B19),IF(AND(Tier2Purchases!$C19<=$D$11,Tier2Purchases!$B19>=$D$10),($D$11-$D$10)-($D$11-Tier2Purchases!$C19)-(Tier2Purchases!$B19-$D$10)+1,IF(Tier2Purchases!$B19>=$D$10,(Tier2Purchases!$C19-Tier2Purchases!$B19)-(Tier2Purchases!$C19-$D$12),IF(Tier2Purchases!$C19<=$D$11,(Tier2Purchases!$C19-Tier2Purchases!$B19)-($D$10-Tier2Purchases!$B19)+1))))) -> 0 | K18: =IF(OR(Tier2Purchases!$B19>$D$13,Tier2Purchases!$C19<$D$12),0,IF(AND(Tier2Purchases!$B19<$D$12,Tier2Purchases!$C19>$D$13),(Tier2Purchases!$C19-Tier2Purchases!$B19)-(Tier2Purchases!$C19-$D$14)-($D$12-Tier2Purchases!$B19),IF(AND(Tier2Purchases!$C19<=$D$13,Tier2Purchases!$B19>=$D$12),($D$13-$D$12)-($D$13-Tier2Purchases!$C19)-(Tier2Purchases!$B19-$D$12)+1,IF(Tier2Purchases!$B19>=$D$12,(Tier2Purchases!$C19-Tier2Purchases!$B19)-(Tier2Purchases!$C19-$D$14),IF(Tier2Purchases!$C19<=$D$13,(Tier2Purchases!$C19-Tier2Purchases!$B19)-($D$12-Tier2Purchases!$B19)+1))))) -> 0 | L18: =IF(OR(Tier2Purchases!$B19>$D$15,Tier2Purchases!$C19<$D$14),0,IF(AND(Tier2Purchases!$B19<$D$14,Tier2Purchases!$C19>$D$15),(Tier2Purchases!$C19-Tier2Purchases!$B19)-(Tier2Purchases!$C19-$D$16)-($D$14-Tier2Purchases!$B19),IF(AND(Tier2Purchases!$C19<=$D$15,Tier2Purchases!$B19>=$D$14),($D$15-$D$14)-($D$15-Tier2Purchases!$C19)-(Tier2Purchases!$B19-$D$14)+1,IF(Tier2Purchases!$B19>=$D$14,(Tier2Purchases!$C19-Tier2Purchases!$B19)-(Tier2Purchases!$C19-$D$16),IF(Tier2Purchases!$C19<=$D$15,(Tier2Purchases!$C19-Tier2Purchases!$B19)-($D$14-Tier2Purchases!$B19)+1))))) -> 366 | M18: =IF(OR(Tier2Purchases!$B19>$D$17,Tier2Purchases!$C19<$D$16),0,IF(AND(Tier2Purchases!$B19<$D$16,Tier2Purchases!$C19>$D$17),(Tier2Purchases!$C19-Tier2Purchases!$B19)-(Tier2Purchases!$C19-$D$18)-($D$16-Tier2Purchases!$B19),IF(AND(Tier2Purchases!$C19<=$D$17,Tier2Purchases!$B19>=$D$16),($D$17-$D$16)-($D$17-Tier2Purchases!$C19)-(Tier2Purchases!$B19-$D$16)+1,IF(Tier2Purchases!$B19>=$D$16,(Tier2Purchases!$C19-Tier2Purchases!$B19)-(Tier2Purchases!$C19-$D$18),IF(Tier2Purchases!$C19<=$D$17,(Tier2Purchases!$C19-Tier2Purchases!$B19)-($D$16-Tier2Purchases!$B19)+1))))) -> 0 | N18: =IF(OR(Tier2Purchases!$B19>$D$19,Tier2Purchases!$C19<$D$18),0,IF(AND(Tier2Purchases!$B19<$D$18,Tier2Purchases!$C19>$D$19),(Tier2Purchases!$C19-Tier2Purchases!$B19)-(Tier2Purchases!$C19-$D$20)-($D$18-Tier2Purchases!$B19),IF(AND(Tier2Purchases!$C19<=$D$19,Tier2Purchases!$B19>=$D$18),($D$19-$D$18)-($D$19-Tier2Purchases!$C19)-(Tier2Purchases!$B19-$D$18)+1,IF(Tier2Purchases!$B19>=$D$18,(Tier2Purchases!$C19-Tier2Purchases!$B19)-(Tier2Purchases!$C19-$D$20),IF(Tier2Purchases!$C19<=$D$19,(Tier2Purchases!$C19-Tier2Purchases!$B19)-($D$18-Tier2Purchases!$B19)+1))))) -> 0 | O18: =IF(OR(Tier2Purchases!$B19>$D$21,Tier2Purchases!$C19<$D$20),0,IF(AND(Tier2Purchases!$B19<$D$20,Tier2Purchases!$C19>$D$21),(Tier2Purchases!$C19-Tier2Purchases!$B19)-(Tier2Purchases!$C19-$D$22)-($D$20-Tier2Purchases!$B19),IF(AND(Tier2Purchases!$C19<=$D$21,Tier2Purchases!$B19>=$D$20),($D$21-$D$20)-($D$21-Tier2Purchases!$C19)-(Tier2Purchases!$B19-$D$20)+1,IF(Tier2Purchases!$B19>=$D$20,(Tier2Purchases!$C19-Tier2Purchases!$B19)-(Tier2Purchases!$C19-$D$22),IF(Tier2Purchases!$C19<=$D$21,(Tier2Purchases!$C19-Tier2Purchases!$B19)-($D$20-Tier2Purchases!$B19)+1))))) -> 0 | P18: =IF(OR(Tier2Purchases!$B19>$D$23,Tier2Purchases!$C19<$D$22),0,IF(AND(Tier2Purchases!$B19<$D$22,Tier2Purchases!$C19>$D$23),(Tier2Purchases!$C19-Tier2Purchases!$B19)-(Tier2Purchases!$C19-$D$24)-($D$22-Tier2Purchases!$B19),IF(AND(Tier2Purchases!$C19<=$D$23,Tier2Purchases!$B19>=$D$22),($D$23-$D$22)-($D$23-Tier2Purchases!$C19)-(Tier2Purchases!$B19-$D$22)+1,IF(Tier2Purchases!$B19>=$D$22,(Tier2Purchases!$C19-Tier2Purchases!$B19)-(Tier2Purchases!$C19-$D$24),IF(Tier2Purchases!$C19<=$D$23,(Tier2Purchases!$C19-Tier2Purchases!$B19)-($D$22-Tier2Purchases!$B19)+1))))) -> 0 | Q18: =IF(OR(Tier2Purchases!$B19>$D$25,Tier2Purchases!$C19<$D$24),0,IF(AND(Tier2Purchases!$B19<$D$24,Tier2Purchases!$C19>$D$25),(Tier2Purchases!$C19-Tier2Purchases!$B19)-(Tier2Purchases!$C19-$D$26)-($D$24-Tier2Purchases!$B19),IF(AND(Tier2Purchases!$C19<=$D$25,Tier2Purchases!$B19>=$D$24),($D$25-$D$24)-($D$25-Tier2Purchases!$C19)-(Tier2Purchases!$B19-$D$24)+1,IF(Tier2Purchases!$B19>=$D$24,(Tier2Purchases!$C19-Tier2Purchases!$B19)-(Tier2Purchases!$C19-$D$26),IF(Tier2Purchases!$C19<=$D$25,(Tier2Purchases!$C19-Tier2Purchases!$B19)-($D$24-Tier2Purchases!$B19)+1))))) -> 0 | R18: =IF(OR(Tier2Purchases!$B19>$D$27,Tier2Purchases!$C19<$D$26),0,IF(AND(Tier2Purchases!$B19<$D$26,Tier2Purchases!$C19>$D$27),(Tier2Purchases!$C19-Tier2Purchases!$B19)-(Tier2Purchases!$C19-$D$28)-($D$26-Tier2Purchases!$B19),IF(AND(Tier2Purchases!$C19<=$D$27,Tier2Purchases!$B19>=$D$26),($D$27-$D$26)-($D$27-Tier2Purchases!$C19)-(Tier2Purchases!$B19-$D$26)+1,IF(Tier2Purchases!$B19>=$D$26,(Tier2Purchases!$C19-Tier2Purchases!$B19)-(Tier2Purchases!$C19-$D$28),IF(Tier2Purchases!$C19<=$D$27,(Tier2Purchases!$C19-Tier2Purchases!$B19)-($D$26-Tier2Purchases!$B19)+1))))) -> 0 | S18: =IF(OR(Tier2Purchases!$B19>$D$29,Tier2Purchases!$C19<$D$28),0,IF(AND(Tier2Purchases!$B19<$D$28,Tier2Purchases!$C19>$D$29),(Tier2Purchases!$C19-Tier2Purchases!$B19)-(Tier2Purchases!$C19-$D$30)-($D$28-Tier2Purchases!$B19),IF(AND(Tier2Purchases!$C19<=$D$29,Tier2Purchases!$B19>=$D$28),($D$29-$D$28)-($D$29-Tier2Purchases!$C19)-(Tier2Purchases!$B19-$D$28)+1,IF(Tier2Purchases!$B19>=$D$28,(Tier2Purchases!$C19-Tier2Purchases!$B19)-(Tier2Purchases!$C19-$D$30),IF(Tier2Purchases!$C19<=$D$29,(Tier2Purchases!$C19-Tier2Purchases!$B19)-($D$28-Tier2Purchases!$B19)+1))))) -> 0 | T18: =IF(OR(Tier2Purchases!$B19>$D$31,Tier2Purchases!$C19<$D$30),0,IF(AND(Tier2Purchases!$B19<$D$30,Tier2Purchases!$C19>$D$31),(Tier2Purchases!$C19-Tier2Purchases!$B19)-(Tier2Purchases!$C19-$D$32)-($D$30-Tier2Purchases!$B19),IF(AND(Tier2Purchases!$C19<=$D$31,Tier2Purchases!$B19>=$D$30),($D$31-$D$30)-($D$31-Tier2Purchases!$C19)-(Tier2Purchases!$B19-$D$30)+1,IF(Tier2Purchases!$B19>=$D$30,(Tier2Purchases!$C19-Tier2Purchases!$B19)-(Tier2Purchases!$C19-$D$32),IF(Tier2Purchases!$C19<=$D$31,(Tier2Purchases!$C19-Tier2Purchases!$B19)-($D$30-Tier2Purchases!$B19)+1))))) -> 0 | U18: =IF(OR(Tier2Purchases!$B19>$D$33,Tier2Purchases!$C19<$D$32),0,IF(AND(Tier2Purchases!$B19<$D$32,Tier2Purchases!$C19>$D$33),(Tier2Purchases!$C19-Tier2Purchases!$B19)-(Tier2Purchases!$C19-$D$34)-($D$32-Tier2Purchases!$B19),IF(AND(Tier2Purchases!$C19<=$D$33,Tier2Purchases!$B19>=$D$32),($D$33-$D$32)-($D$33-Tier2Purchases!$C19)-(Tier2Purchases!$B19-$D$32)+1,IF(Tier2Purchases!$B19>=$D$32,(Tier2Purchases!$C19-Tier2Purchases!$B19)-(Tier2Purchases!$C19-$D$34),IF(Tier2Purchases!$C19<=$D$33,(Tier2Purchases!$C19-Tier2Purchases!$B19)-($D$32-Tier2Purchases!$B19)+1))))) -> 0 | V18: =IF(OR(Tier2Purchases!$B19>$D$35,Tier2Purchases!$C19<$D$34),0,IF(AND(Tier2Purchases!$B19<$D$34,Tier2Purchases!$C19>$D$35),(Tier2Purchases!$C19-Tier2Purchases!$B19)-(Tier2Purchases!$C19-$D$36)-($D$34-Tier2Purchases!$B19),IF(AND(Tier2Purchases!$C19<=$D$35,Tier2Purchases!$B19>=$D$34),($D$35-$D$34)-($D$35-Tier2Purchases!$C19)-(Tier2Purchases!$B19-$D$34)+1,IF(Tier2Purchases!$B19>=$D$34,(Tier2Purchases!$C19-Tier2Purchases!$B19)-(Tier2Purchases!$C19-$D$36),IF(Tier2Purchases!$C19<=$D$35,(Tier2Purchases!$C19-Tier2Purchases!$B19)-($D$34-Tier2Purchases!$B19)+1))))) -> 0 | W18: =IF(OR(Tier2Purchases!$B19>$D$37,Tier2Purchases!$C19<$D$36),0,IF(AND(Tier2Purchases!$B19<$D$36,Tier2Purchases!$C19>$D$37),(Tier2Purchases!$C19-Tier2Purchases!$B19)-(Tier2Purchases!$C19-$D$38)-($D$36-Tier2Purchases!$B19),IF(AND(Tier2Purchases!$C19<=$D$37,Tier2Purchases!$B19>=$D$36),($D$37-$D$36)-($D$37-Tier2Purchases!$C19)-(Tier2Purchases!$B19-$D$36)+1,IF(Tier2Purchases!$B19>=$D$36,(Tier2Purchases!$C19-Tier2Purchases!$B19)-(Tier2Purchases!$C19-$D$38),IF(Tier2Purchases!$C19<=$D$37,(Tier2Purchases!$C19-Tier2Purchases!$B19)-($D$36-Tier2Purchases!$B19)+1))))) -> 0 | X18: =IF(OR(Tier2Purchases!$B19>$D$39,Tier2Purchases!$C19<$D$38),0,IF(AND(Tier2Purchases!$B19<$D$38,Tier2Purchases!$C19>$D$39),(Tier2Purchases!$C19-Tier2Purchases!$B19)-(Tier2Purchases!$C19-$D$39)-($D$38-Tier2Purchases!$B19)+1,IF(AND(Tier2Purchases!$C19<=$D$39,Tier2Purchases!$B19>=$D$38),($D$39-$D$38)-($D$39-Tier2Purchases!$C19)-(Tier2Purchases!$B19-$D$38)+1,IF(Tier2Purchases!$B19>=$D$38,(Tier2Purchases!$C19-Tier2Purchases!$B19)-(Tier2Purchases!$C19-$D$39)+1,IF(Tier2Purchases!$C19<=$D$39,(Tier2Purchases!$C19-Tier2Purchases!$B19)-($D$38-Tier2Purchases!$B19)+1))))) -> 0 | Y18: 366 | Z18: 0 | AA18: =Tier2Purchases!$C19-Tier2Purchases!$B19+1 -> 366 | AB18: TRUE
C19: END DATE | D19: 2018-09-30 | E19: =Tier2Purchases!B25 -> 2017-10-01 | F19: =Tier2Purchases!C25 -> 2018-09-30 | H19: =IF(OR(Tier2Purchases!$B20>$D$7,Tier2Purchases!$C20<$D$6),0,IF(AND(Tier2Purchases!$B20<$D$6,Tier2Purchases!$C20>$D$7),(Tier2Purchases!$C20-Tier2Purchases!$B20)-(Tier2Purchases!$C20-$D$8)-($D$6-Tier2Purchases!$B20),IF(AND(Tier2Purchases!$C20<=$D$7,Tier2Purchases!$B20>=$D$6),($D$7-$D$6)-($D$7-Tier2Purchases!$C20)-(Tier2Purchases!$B20-$D$6)+1,IF(Tier2Purchases!$B20>=$D$6,(Tier2Purchases!$C20-Tier2Purchases!$B20)-(Tier2Purchases!$C20-$D$8),IF(Tier2Purchases!$C20<=$D$7,(Tier2Purchases!$C20-Tier2Purchases!$B20)-($D$6-Tier2Purchases!$B20)+1))))) -> 0 | I19: =IF(OR(Tier2Purchases!$B20>$D$9,Tier2Purchases!$C20<$D$8),0,IF(AND(Tier2Purchases!$B20<$D$8,Tier2Purchases!$C20>$D$9),(Tier2Purchases!$C20-Tier2Purchases!$B20)-(Tier2Purchases!$C20-$D$10)-($D$8-Tier2Purchases!$B20),IF(AND(Tier2Purchases!$C20<=$D$9,Tier2Purchases!$B20>=$D$8),($D$9-$D$8)-($D$9-Tier2Purchases!$C20)-(Tier2Purchases!$B20-$D$8)+1,IF(Tier2Purchases!$B20>=$D$8,(Tier2Purchases!$C20-Tier2Purchases!$B20)-(Tier2Purchases!$C20-$D$10),IF(Tier2Purchases!$C20<=$D$9,(Tier2Purchases!$C20-Tier2Purchases!$B20)-($D$8-Tier2Purchases!$B20)+1))))) -> 0 | J19: =IF(OR(Tier2Purchases!$B20>$D$11,Tier2Purchases!$C20<$D$10),0,IF(AND(Tier2Purchases!$B20<$D$10,Tier2Purchases!$C20>$D$11),(Tier2Purchases!$C20-Tier2Purchases!$B20)-(Tier2Purchases!$C20-$D$12)-($D$10-Tier2Purchases!$B20),IF(AND(Tier2Purchases!$C20<=$D$11,Tier2Purchases!$B20>=$D$10),($D$11-$D$10)-($D$11-Tier2Purchases!$C20)-(Tier2Purchases!$B20-$D$10)+1,IF(Tier2Purchases!$B20>=$D$10,(Tier2Purchases!$C20-Tier2Purchases!$B20)-(Tier2Purchases!$C20-$D$12),IF(Tier2Purchases!$C20<=$D$11,(Tier2Purchases!$C20-Tier2Purchases!$B20)-($D$10-Tier2Purchases!$B20)+1))))) -> 0 | K19: =IF(OR(Tier2Purchases!$B20>$D$13,Tier2Purchases!$C20<$D$12),0,IF(AND(Tier2Purchases!$B20<$D$12,Tier2Purchases!$C20>$D$13),(Tier2Purchases!$C20-Tier2Purchases!$B20)-(Tier2Purchases!$C20-$D$14)-($D$12-Tier2Purchases!$B20),IF(AND(Tier2Purchases!$C20<=$D$13,Tier2Purchases!$B20>=$D$12),($D$13-$D$12)-($D$13-Tier2Purchases!$C20)-(Tier2Purchases!$B20-$D$12)+1,IF(Tier2Purchases!$B20>=$D$12,(Tier2Purchases!$C20-Tier2Purchases!$B20)-(Tier2Purchases!$C20-$D$14),IF(Tier2Purchases!$C20<=$D$13,(Tier2Purchases!$C20-Tier2Purchases!$B20)-($D$12-Tier2Purchases!$B20)+1))))) -> 0 | L19: =IF(OR(Tier2Purchases!$B20>$D$15,Tier2Purchases!$C20<$D$14),0,IF(AND(Tier2Purchases!$B20<$D$14,Tier2Purchases!$C20>$D$15),(Tier2Purchases!$C20-Tier2Purchases!$B20)-(Tier2Purchases!$C20-$D$16)-($D$14-Tier2Purchases!$B20),IF(AND(Tier2Purchases!$C20<=$D$15,Tier2Purchases!$B20>=$D$14),($D$15-$D$14)-($D$15-Tier2Purchases!$C20)-(Tier2Purchases!$B20-$D$14)+1,IF(Tier2Purchases!$B20>=$D$14,(Tier2Purchases!$C20-Tier2Purchases!$B20)-(Tier2Purchases!$C20-$D$16),IF(Tier2Purchases!$C20<=$D$15,(Tier2Purchases!$C20-Tier2Purchases!$B20)-($D$14-Tier2Purchases!$B20)+1))))) -> 0 | M19: =IF(OR(Tier2Purchases!$B20>$D$17,Tier2Purchases!$C20<$D$16),0,IF(AND(Tier2Purchases!$B20<$D$16,Tier2Purchases!$C20>$D$17),(Tier2Purchases!$C20-Tier2Purchases!$B20)-(Tier2Purchases!$C20-$D$18)-($D$16-Tier2Purchases!$B20),IF(AND(Tier2Purchases!$C20<=$D$17,Tier2Purchases!$B20>=$D$16),($D$17-$D$16)-($D$17-Tier2Purchases!$C20)-(Tier2Purchases!$B20-$D$16)+1,IF(Tier2Purchases!$B20>=$D$16,(Tier2Purchases!$C20-Tier2Purchases!$B20)-(Tier2Purchases!$C20-$D$18),IF(Tier2Purchases!$C20<=$D$17,(Tier2Purchases!$C20-Tier2Purchases!$B20)-($D$16-Tier2Purchases!$B20)+1))))) -> 365 | N19: =IF(OR(Tier2Purchases!$B20>$D$19,Tier2Purchases!$C20<$D$18),0,IF(AND(Tier2Purchases!$B20<$D$18,Tier2Purchases!$C20>$D$19),(Tier2Purchases!$C20-Tier2Purchases!$B20)-(Tier2Purchases!$C20-$D$20)-($D$18-Tier2Purchases!$B20),IF(AND(Tier2Purchases!$C20<=$D$19,Tier2Purchases!$B20>=$D$18),($D$19-$D$18)-($D$19-Tier2Purchases!$C20)-(Tier2Purchases!$B20-$D$18)+1,IF(Tier2Purchases!$B20>=$D$18,(Tier2Purchases!$C20-Tier2Purchases!$B20)-(Tier2Purchases!$C20-$D$20),IF(Tier2Purchases!$C20<=$D$19,(Tier2Purchases!$C20-Tier2Purchases!$B20)-($D$18-Tier2Purchases!$B20)+1))))) -> 0 | O19: =IF(OR(Tier2Purchases!$B20>$D$21,Tier2Purchases!$C20<$D$20),0,IF(AND(Tier2Purchases!$B20<$D$20,Tier2Purchases!$C20>$D$21),(Tier2Purchases!$C20-Tier2Purchases!$B20)-(Tier2Purchases!$C20-$D$22)-($D$20-Tier2Purchases!$B20),IF(AND(Tier2Purchases!$C20<=$D$21,Tier2Purchases!$B20>=$D$20),($D$21-$D$20)-($D$21-Tier2Purchases!$C20)-(Tier2Purchases!$B20-$D$20)+1,IF(Tier2Purchases!$B20>=$D$20,(Tier2Purchases!$C20-Tier2Purchases!$B20)-(Tier2Purchases!$C20-$D$22),IF(Tier2Purchases!$C20<=$D$21,(Tier2Purchases!$C20-Tier2Purchases!$B20)-($D$20-Tier2Purchases!$B20)+1))))) -> 0 | P19: =IF(OR(Tier2Purchases!$B20>$D$23,Tier2Purchases!$C20<$D$22),0,IF(AND(Tier2Purchases!$B20<$D$22,Tier2Purchases!$C20>$D$23),(Tier2Purchases!$C20-Tier2Purchases!$B20)-(Tier2Purchases!$C20-$D$24)-($D$22-Tier2Purchases!$B20),IF(AND(Tier2Purchases!$C20<=$D$23,Tier2Purchases!$B20>=$D$22),($D$23-$D$22)-($D$23-Tier2Purchases!$C20)-(Tier2Purchases!$B20-$D$22)+1,IF(Tier2Purchases!$B20>=$D$22,(Tier2Purchases!$C20-Tier2Purchases!$B20)-(Tier2Purchases!$C20-$D$24),IF(Tier2Purchases!$C20<=$D$23,(Tier2Purchases!$C20-Tier2Purchases!$B20)-($D$22-Tier2Purchases!$B20)+1))))) -> 0 | Q19: =IF(OR(Tier2Purchases!$B20>$D$25,Tier2Purchases!$C20<$D$24),0,IF(AND(Tier2Purchases!$B20<$D$24,Tier2Purchases!$C20>$D$25),(Tier2Purchases!$C20-Tier2Purchases!$B20)-(Tier2Purchases!$C20-$D$26)-($D$24-Tier2Purchases!$B20),IF(AND(Tier2Purchases!$C20<=$D$25,Tier2Purchases!$B20>=$D$24),($D$25-$D$24)-($D$25-Tier2Purchases!$C20)-(Tier2Purchases!$B20-$D$24)+1,IF(Tier2Purchases!$B20>=$D$24,(Tier2Purchases!$C20-Tier2Purchases!$B20)-(Tier2Purchases!$C20-$D$26),IF(Tier2Purchases!$C20<=$D$25,(Tier2Purchases!$C20-Tier2Purchases!$B20)-($D$24-Tier2Purchases!$B20)+1))))) -> 0 | R19: =IF(OR(Tier2Purchases!$B20>$D$27,Tier2Purchases!$C20<$D$26),0,IF(AND(Tier2Purchases!$B20<$D$26,Tier2Purchases!$C20>$D$27),(Tier2Purchases!$C20-Tier2Purchases!$B20)-(Tier2Purchases!$C20-$D$28)-($D$26-Tier2Purchases!$B20),IF(AND(Tier2Purchases!$C20<=$D$27,Tier2Purchases!$B20>=$D$26),($D$27-$D$26)-($D$27-Tier2Purchases!$C20)-(Tier2Purchases!$B20-$D$26)+1,IF(Tier2Purchases!$B20>=$D$26,(Tier2Purchases!$C20-Tier2Purchases!$B20)-(Tier2Purchases!$C20-$D$28),IF(Tier2Purchases!$C20<=$D$27,(Tier2Purchases!$C20-Tier2Purchases!$B20)-($D$26-Tier2Purchases!$B20)+1))))) -> 0 | S19: =IF(OR(Tier2Purchases!$B20>$D$29,Tier2Purchases!$C20<$D$28),0,IF(AND(Tier2Purchases!$B20<$D$28,Tier2Purchases!$C20>$D$29),(Tier2Purchases!$C20-Tier2Purchases!$B20)-(Tier2Purchases!$C20-$D$30)-($D$28-Tier2Purchases!$B20),IF(AND(Tier2Purchases!$C20<=$D$29,Tier2Purchases!$B20>=$D$28),($D$29-$D$28)-($D$29-Tier2Purchases!$C20)-(Tier2Purchases!$B20-$D$28)+1,IF(Tier2Purchases!$B20>=$D$28,(Tier2Purchases!$C20-Tier2Purchases!$B20)-(Tier2Purchases!$C20-$D$30),IF(Tier2Purchases!$C20<=$D$29,(Tier2Purchases!$C20-Tier2Purchases!$B20)-($D$28-Tier2Purchases!$B20)+1))))) -> 0 | T19: =IF(OR(Tier2Purchases!$B20>$D$31,Tier2Purchases!$C20<$D$30),0,IF(AND(Tier2Purchases!$B20<$D$30,Tier2Purchases!$C20>$D$31),(Tier2Purchases!$C20-Tier2Purchases!$B20)-(Tier2Purchases!$C20-$D$32)-($D$30-Tier2Purchases!$B20),IF(AND(Tier2Purchases!$C20<=$D$31,Tier2Purchases!$B20>=$D$30),($D$31-$D$30)-($D$31-Tier2Purchases!$C20)-(Tier2Purchases!$B20-$D$30)+1,IF(Tier2Purchases!$B20>=$D$30,(Tier2Purchases!$C20-Tier2Purchases!$B20)-(Tier2Purchases!$C20-$D$32),IF(Tier2Purchases!$C20<=$D$31,(Tier2Purchases!$C20-Tier2Purchases!$B20)-($D$30-Tier2Purchases!$B20)+1))))) -> 0 | U19: =IF(OR(Tier2Purchases!$B20>$D$33,Tier2Purchases!$C20<$D$32),0,IF(AND(Tier2Purchases!$B20<$D$32,Tier2Purchases!$C20>$D$33),(Tier2Purchases!$C20-Tier2Purchases!$B20)-(Tier2Purchases!$C20-$D$34)-($D$32-Tier2Purchases!$B20),IF(AND(Tier2Purchases!$C20<=$D$33,Tier2Purchases!$B20>=$D$32),($D$33-$D$32)-($D$33-Tier2Purchases!$C20)-(Tier2Purchases!$B20-$D$32)+1,IF(Tier2Purchases!$B20>=$D$32,(Tier2Purchases!$C20-Tier2Purchases!$B20)-(Tier2Purchases!$C20-$D$34),IF(Tier2Purchases!$C20<=$D$33,(Tier2Purchases!$C20-Tier2Purchases!$B20)-($D$32-Tier2Purchases!$B20)+1))))) -> 0 | V19: =IF(OR(Tier2Purchases!$B20>$D$35,Tier2Purchases!$C20<$D$34),0,IF(AND(Tier2Purchases!$B20<$D$34,Tier2Purchases!$C20>$D$35),(Tier2Purchases!$C20-Tier2Purchases!$B20)-(Tier2Purchases!$C20-$D$36)-($D$34-Tier2Purchases!$B20),IF(AND(Tier2Purchases!$C20<=$D$35,Tier2Purchases!$B20>=$D$34),($D$35-$D$34)-($D$35-Tier2Purchases!$C20)-(Tier2Purchases!$B20-$D$34)+1,IF(Tier2Purchases!$B20>=$D$34,(Tier2Purchases!$C20-Tier2Purchases!$B20)-(Tier2Purchases!$C20-$D$36),IF(Tier2Purchases!$C20<=$D$35,(Tier2Purchases!$C20-Tier2Purchases!$B20)-($D$34-Tier2Purchases!$B20)+1))))) -> 0 | W19: =IF(OR(Tier2Purchases!$B20>$D$37,Tier2Purchases!$C20<$D$36),0,IF(AND(Tier2Purchases!$B20<$D$36,Tier2Purchases!$C20>$D$37),(Tier2Purchases!$C20-Tier2Purchases!$B20)-(Tier2Purchases!$C20-$D$38)-($D$36-Tier2Purchases!$B20),IF(AND(Tier2Purchases!$C20<=$D$37,Tier2Purchases!$B20>=$D$36),($D$37-$D$36)-($D$37-Tier2Purchases!$C20)-(Tier2Purchases!$B20-$D$36)+1,IF(Tier2Purchases!$B20>=$D$36,(Tier2Purchases!$C20-Tier2Purchases!$B20)-(Tier2Purchases!$C20-$D$38),IF(Tier2Purchases!$C20<=$D$37,(Tier2Purchases!$C20-Tier2Purchases!$B20)-($D$36-Tier2Purchases!$B20)+1))))) -> 0 | X19: =IF(OR(Tier2Purchases!$B20>$D$39,Tier2Purchases!$C20<$D$38),0,IF(AND(Tier2Purchases!$B20<$D$38,Tier2Purchases!$C20>$D$39),(Tier2Purchases!$C20-Tier2Purchases!$B20)-(Tier2Purchases!$C20-$D$39)-($D$38-Tier2Purchases!$B20)+1,IF(AND(Tier2Purchases!$C20<=$D$39,Tier2Purchases!$B20>=$D$38),($D$39-$D$38)-($D$39-Tier2Purchases!$C20)-(Tier2Purchases!$B20-$D$38)+1,IF(Tier2Purchases!$B20>=$D$38,(Tier2Purchases!$C20-Tier2Purchases!$B20)-(Tier2Purchases!$C20-$D$39)+1,IF(Tier2Purchases!$C20<=$D$39,(Tier2Purchases!$C20-Tier2Purchases!$B20)-($D$38-Tier2Purchases!$B20)+1))))) -> 0 | Y19: 365 | Z19: 0 | AA19: =Tier2Purchases!$C20-Tier2Purchases!$B20+1 -> 365 | AB19: TRUE
B20: FY2019 | C20: START DATE | D20: 2018-10-01 | E20: =Tier2Purchases!B27 -> 2018-10-01 | F20: =Tier2Purchases!C28 -> 2019-09-30 | H20: =IF(OR(Tier2Purchases!$B21>$D$7,Tier2Purchases!$C21<$D$6),0,IF(AND(Tier2Purchases!$B21<$D$6,Tier2Purchases!$C21>$D$7),(Tier2Purchases!$C21-Tier2Purchases!$B21)-(Tier2Purchases!$C21-$D$8)-($D$6-Tier2Purchases!$B21),IF(AND(Tier2Purchases!$C21<=$D$7,Tier2Purchases!$B21>=$D$6),($D$7-$D$6)-($D$7-Tier2Purchases!$C21)-(Tier2Purchases!$B21-$D$6)+1,IF(Tier2Purchases!$B21>=$D$6,(Tier2Purchases!$C21-Tier2Purchases!$B21)-(Tier2Purchases!$C21-$D$8),IF(Tier2Purchases!$C21<=$D$7,(Tier2Purchases!$C21-Tier2Purchases!$B21)-($D$6-Tier2Purchases!$B21)+1))))) -> 0 | I20: =IF(OR(Tier2Purchases!$B21>$D$9,Tier2Purchases!$C21<$D$8),0,IF(AND(Tier2Purchases!$B21<$D$8,Tier2Purchases!$C21>$D$9),(Tier2Purchases!$C21-Tier2Purchases!$B21)-(Tier2Purchases!$C21-$D$10)-($D$8-Tier2Purchases!$B21),IF(AND(Tier2Purchases!$C21<=$D$9,Tier2Purchases!$B21>=$D$8),($D$9-$D$8)-($D$9-Tier2Purchases!$C21)-(Tier2Purchases!$B21-$D$8)+1,IF(Tier2Purchases!$B21>=$D$8,(Tier2Purchases!$C21-Tier2Purchases!$B21)-(Tier2Purchases!$C21-$D$10),IF(Tier2Purchases!$C21<=$D$9,(Tier2Purchases!$C21-Tier2Purchases!$B21)-($D$8-Tier2Purchases!$B21)+1))))) -> 0 | J20: =IF(OR(Tier2Purchases!$B21>$D$11,Tier2Purchases!$C21<$D$10),0,IF(AND(Tier2Purchases!$B21<$D$10,Tier2Purchases!$C21>$D$11),(Tier2Purchases!$C21-Tier2Purchases!$B21)-(Tier2Purchases!$C21-$D$12)-($D$10-Tier2Purchases!$B21),IF(AND(Tier2Purchases!$C21<=$D$11,Tier2Purchases!$B21>=$D$10),($D$11-$D$10)-($D$11-Tier2Purchases!$C21)-(Tier2Purchases!$B21-$D$10)+1,IF(Tier2Purchases!$B21>=$D$10,(Tier2Purchases!$C21-Tier2Purchases!$B21)-(Tier2Purchases!$C21-$D$12),IF(Tier2Purchases!$C21<=$D$11,(Tier2Purchases!$C21-Tier2Purchases!$B21)-($D$10-Tier2Purchases!$B21)+1))))) -> 0 | K20: =IF(OR(Tier2Purchases!$B21>$D$13,Tier2Purchases!$C21<$D$12),0,IF(AND(Tier2Purchases!$B21<$D$12,Tier2Purchases!$C21>$D$13),(Tier2Purchases!$C21-Tier2Purchases!$B21)-(Tier2Purchases!$C21-$D$14)-($D$12-Tier2Purchases!$B21),IF(AND(Tier2Purchases!$C21<=$D$13,Tier2Purchases!$B21>=$D$12),($D$13-$D$12)-($D$13-Tier2Purchases!$C21)-(Tier2Purchases!$B21-$D$12)+1,IF(Tier2Purchases!$B21>=$D$12,(Tier2Purchases!$C21-Tier2Purchases!$B21)-(Tier2Purchases!$C21-$D$14),IF(Tier2Purchases!$C21<=$D$13,(Tier2Purchases!$C21-Tier2Purchases!$B21)-($D$12-Tier2Purchases!$B21)+1))))) -> 0 | L20: =IF(OR(Tier2Purchases!$B21>$D$15,Tier2Purchases!$C21<$D$14),0,IF(AND(Tier2Purchases!$B21<$D$14,Tier2Purchases!$C21>$D$15),(Tier2Purchases!$C21-Tier2Purchases!$B21)-(Tier2Purchases!$C21-$D$16)-($D$14-Tier2Purchases!$B21),IF(AND(Tier2Purchases!$C21<=$D$15,Tier2Purchases!$B21>=$D$14),($D$15-$D$14)-($D$15-Tier2Purchases!$C21)-(Tier2Purchases!$B21-$D$14)+1,IF(Tier2Purchases!$B21>=$D$14,(Tier2Purchases!$C21-Tier2Purchases!$B21)-(Tier2Purchases!$C21-$D$16),IF(Tier2Purchases!$C21<=$D$15,(Tier2Purchases!$C21-Tier2Purchases!$B21)-($D$14-Tier2Purchases!$B21)+1))))) -> 0 | M20: =IF(OR(Tier2Purchases!$B21>$D$17,Tier2Purchases!$C21<$D$16),0,IF(AND(Tier2Purchases!$B21<$D$16,Tier2Purchases!$C21>$D$17),(Tier2Purchases!$C21-Tier2Purchases!$B21)-(Tier2Purchases!$C21-$D$18)-($D$16-Tier2Purchases!$B21),IF(AND(Tier2Purchases!$C21<=$D$17,Tier2Purchases!$B21>=$D$16),($D$17-$D$16)-($D$17-Tier2Purchases!$C21)-(Tier2Purchases!$B21-$D$16)+1,IF(Tier2Purchases!$B21>=$D$16,(Tier2Purchases!$C21-Tier2Purchases!$B21)-(Tier2Purchases!$C21-$D$18),IF(Tier2Purchases!$C21<=$D$17,(Tier2Purchases!$C21-Tier2Purchases!$B21)-($D$16-Tier2Purchases!$B21)+1))))) -> 365 | N20: =IF(OR(Tier2Purchases!$B21>$D$19,Tier2Purchases!$C21<$D$18),0,IF(AND(Tier2Purchases!$B21<$D$18,Tier2Purchases!$C21>$D$19),(Tier2Purchases!$C21-Tier2Purchases!$B21)-(Tier2Purchases!$C21-$D$20)-($D$18-Tier2Purchases!$B21),IF(AND(Tier2Purchases!$C21<=$D$19,Tier2Purchases!$B21>=$D$18),($D$19-$D$18)-($D$19-Tier2Purchases!$C21)-(Tier2Purchases!$B21-$D$18)+1,IF(Tier2Purchases!$B21>=$D$18,(Tier2Purchases!$C21-Tier2Purchases!$B21)-(Tier2Purchases!$C21-$D$20),IF(Tier2Purchases!$C21<=$D$19,(Tier2Purchases!$C21-Tier2Purchases!$B21)-($D$18-Tier2Purchases!$B21)+1))))) -> 0 | O20: =IF(OR(Tier2Purchases!$B21>$D$21,Tier2Purchases!$C21<$D$20),0,IF(AND(Tier2Purchases!$B21<$D$20,Tier2Purchases!$C21>$D$21),(Tier2Purchases!$C21-Tier2Purchases!$B21)-(Tier2Purchases!$C21-$D$22)-($D$20-Tier2Purchases!$B21),IF(AND(Tier2Purchases!$C21<=$D$21,Tier2Purchases!$B21>=$D$20),($D$21-$D$20)-($D$21-Tier2Purchases!$C21)-(Tier2Purchases!$B21-$D$20)+1,IF(Tier2Purchases!$B21>=$D$20,(Tier2Purchases!$C21-Tier2Purchases!$B21)-(Tier2Purchases!$C21-$D$22),IF(Tier2Purchases!$C21<=$D$21,(Tier2Purchases!$C21-Tier2Purchases!$B21)-($D$20-Tier2Purchases!$B21)+1))))) -> 0 | P20: =IF(OR(Tier2Purchases!$B21>$D$23,Tier2Purchases!$C21<$D$22),0,IF(AND(Tier2Purchases!$B21<$D$22,Tier2Purchases!$C21>$D$23),(Tier2Purchases!$C21-Tier2Purchases!$B21)-(Tier2Purchases!$C21-$D$24)-($D$22-Tier2Purchases!$B21),IF(AND(Tier2Purchases!$C21<=$D$23,Tier2Purchases!$B21>=$D$22),($D$23-$D$22)-($D$23-Tier2Purchases!$C21)-(Tier2Purchases!$B21-$D$22)+1,IF(Tier2Purchases!$B21>=$D$22,(Tier2Purchases!$C21-Tier2Purchases!$B21)-(Tier2Purchases!$C21-$D$24),IF(Tier2Purchases!$C21<=$D$23,(Tier2Purchases!$C21-Tier2Purchases!$B21)-($D$22-Tier2Purchases!$B21)+1))))) -> 0 | Q20: =IF(OR(Tier2Purchases!$B21>$D$25,Tier2Purchases!$C21<$D$24),0,IF(AND(Tier2Purchases!$B21<$D$24,Tier2Purchases!$C21>$D$25),(Tier2Purchases!$C21-Tier2Purchases!$B21)-(Tier2Purchases!$C21-$D$26)-($D$24-Tier2Purchases!$B21),IF(AND(Tier2Purchases!$C21<=$D$25,Tier2Purchases!$B21>=$D$24),($D$25-$D$24)-($D$25-Tier2Purchases!$C21)-(Tier2Purchases!$B21-$D$24)+1,IF(Tier2Purchases!$B21>=$D$24,(Tier2Purchases!$C21-Tier2Purchases!$B21)-(Tier2Purchases!$C21-$D$26),IF(Tier2Purchases!$C21<=$D$25,(Tier2Purchases!$C21-Tier2Purchases!$B21)-($D$24-Tier2Purchases!$B21)+1))))) -> 0 | R20: =IF(OR(Tier2Purchases!$B21>$D$27,Tier2Purchases!$C21<$D$26),0,IF(AND(Tier2Purchases!$B21<$D$26,Tier2Purchases!$C21>$D$27),(Tier2Purchases!$C21-Tier2Purchases!$B21)-(Tier2Purchases!$C21-$D$28)-($D$26-Tier2Purchases!$B21),IF(AND(Tier2Purchases!$C21<=$D$27,Tier2Purchases!$B21>=$D$26),($D$27-$D$26)-($D$27-Tier2Purchases!$C21)-(Tier2Purchases!$B21-$D$26)+1,IF(Tier2Purchases!$B21>=$D$26,(Tier2Purchases!$C21-Tier2Purchases!$B21)-(Tier2Purchases!$C21-$D$28),IF(Tier2Purchases!$C21<=$D$27,(Tier2Purchases!$C21-Tier2Purchases!$B21)-($D$26-Tier2Purchases!$B21)+1))))) -> 0 | S20: =IF(OR(Tier2Purchases!$B21>$D$29,Tier2Purchases!$C21<$D$28),0,IF(AND(Tier2Purchases!$B21<$D$28,Tier2Purchases!$C21>$D$29),(Tier2Purchases!$C21-Tier2Purchases!$B21)-(Tier2Purchases!$C21-$D$30)-($D$28-Tier2Purchases!$B21),IF(AND(Tier2Purchases!$C21<=$D$29,Tier2Purchases!$B21>=$D$28),($D$29-$D$28)-($D$29-Tier2Purchases!$C21)-(Tier2Purchases!$B21-$D$28)+1,IF(Tier2Purchases!$B21>=$D$28,(Tier2Purchases!$C21-Tier2Purchases!$B21)-(Tier2Purchases!$C21-$D$30),IF(Tier2Purchases!$C21<=$D$29,(Tier2Purchases!$C21-Tier2Purchases!$B21)-($D$28-Tier2Purchases!$B21)+1))))) -> 0 | T20: =IF(OR(Tier2Purchases!$B21>$D$31,Tier2Purchases!$C21<$D$30),0,IF(AND(Tier2Purchases!$B21<$D$30,Tier2Purchases!$C21>$D$31),(Tier2Purchases!$C21-Tier2Purchases!$B21)-(Tier2Purchases!$C21-$D$32)-($D$30-Tier2Purchases!$B21),IF(AND(Tier2Purchases!$C21<=$D$31,Tier2Purchases!$B21>=$D$30),($D$31-$D$30)-($D$31-Tier2Purchases!$C21)-(Tier2Purchases!$B21-$D$30)+1,IF(Tier2Purchases!$B21>=$D$30,(Tier2Purchases!$C21-Tier2Purchases!$B21)-(Tier2Purchases!$C21-$D$32),IF(Tier2Purchases!$C21<=$D$31,(Tier2Purchases!$C21-Tier2Purchases!$B21)-($D$30-Tier2Purchases!$B21)+1))))) -> 0 | U20: =IF(OR(Tier2Purchases!$B21>$D$33,Tier2Purchases!$C21<$D$32),0,IF(AND(Tier2Purchases!$B21<$D$32,Tier2Purchases!$C21>$D$33),(Tier2Purchases!$C21-Tier2Purchases!$B21)-(Tier2Purchases!$C21-$D$34)-($D$32-Tier2Purchases!$B21),IF(AND(Tier2Purchases!$C21<=$D$33,Tier2Purchases!$B21>=$D$32),($D$33-$D$32)-($D$33-Tier2Purchases!$C21)-(Tier2Purchases!$B21-$D$32)+1,IF(Tier2Purchases!$B21>=$D$32,(Tier2Purchases!$C21-Tier2Purchases!$B21)-(Tier2Purchases!$C21-$D$34),IF(Tier2Purchases!$C21<=$D$33,(Tier2Purchases!$C21-Tier2Purchases!$B21)-($D$32-Tier2Purchases!$B21)+1))))) -> 0 | V20: =IF(OR(Tier2Purchases!$B21>$D$35,Tier2Purchases!$C21<$D$34),0,IF(AND(Tier2Purchases!$B21<$D$34,Tier2Purchases!$C21>$D$35),(Tier2Purchases!$C21-Tier2Purchases!$B21)-(Tier2Purchases!$C21-$D$36)-($D$34-Tier2Purchases!$B21),IF(AND(Tier2Purchases!$C21<=$D$35,Tier2Purchases!$B21>=$D$34),($D$35-$D$34)-($D$35-Tier2Purchases!$C21)-(Tier2Purchases!$B21-$D$34)+1,IF(Tier2Purchases!$B21>=$D$34,(Tier2Purchases!$C21-Tier2Purchases!$B21)-(Tier2Purchases!$C21-$D$36),IF(Tier2Purchases!$C21<=$D$35,(Tier2Purchases!$C21-Tier2Purchases!$B21)-($D$34-Tier2Purchases!$B21)+1))))) -> 0 | W20: =IF(OR(Tier2Purchases!$B21>$D$37,Tier2Purchases!$C21<$D$36),0,IF(AND(Tier2Purchases!$B21<$D$36,Tier2Purchases!$C21>$D$37),(Tier2Purchases!$C21-Tier2Purchases!$B21)-(Tier2Purchases!$C21-$D$38)-($D$36-Tier2Purchases!$B21),IF(AND(Tier2Purchases!$C21<=$D$37,Tier2Purchases!$B21>=$D$36),($D$37-$D$36)-($D$37-Tier2Purchases!$C21)-(Tier2Purchases!$B21-$D$36)+1,IF(Tier2Purchases!$B21>=$D$36,(Tier2Purchases!$C21-Tier2Purchases!$B21)-(Tier2Purchases!$C21-$D$38),IF(Tier2Purchases!$C21<=$D$37,(Tier2Purchases!$C21-Tier2Purchases!$B21)-($D$36-Tier2Purchases!$B21)+1))))) -> 0 | X20: =IF(OR(Tier2Purchases!$B21>$D$39,Tier2Purchases!$C21<$D$38),0,IF(AND(Tier2Purchases!$B21<$D$38,Tier2Purchases!$C21>$D$39),(Tier2Purchases!$C21-Tier2Purchases!$B21)-(Tier2Purchases!$C21-$D$39)-($D$38-Tier2Purchases!$B21)+1,IF(AND(Tier2Purchases!$C21<=$D$39,Tier2Purchases!$B21>=$D$38),($D$39-$D$38)-($D$39-Tier2Purchases!$C21)-(Tier2Purchases!$B21-$D$38)+1,IF(Tier2Purchases!$B21>=$D$38,(Tier2Purchases!$C21-Tier2Purchases!$B21)-(Tier2Purchases!$C21-$D$39)+1,IF(Tier2Purchases!$C21<=$D$39,(Tier2Purchases!$C21-Tier2Purchases!$B21)-($D$38-Tier2Purchases!$B21)+1))))) -> 0 | Y20: 365 | Z20: 0 | AA20: =Tier2Purchases!$C21-Tier2Purchases!$B21+1 -> 365 | AB20: TRUE
C21: END DATE | D21: 2019-09-30 | E21: =Tier2Purchases!B28 -> 2018-10-01 | F21: =Tier2Purchases!C29 -> 2019-09-30 | H21: =IF(OR(Tier2Purchases!$B22>$D$7,Tier2Purchases!$C22<$D$6),0,IF(AND(Tier2Purchases!$B22<$D$6,Tier2Purchases!$C22>$D$7),(Tier2Purchases!$C22-Tier2Purchases!$B22)-(Tier2Purchases!$C22-$D$8)-($D$6-Tier2Purchases!$B22),IF(AND(Tier2Purchases!$C22<=$D$7,Tier2Purchases!$B22>=$D$6),($D$7-$D$6)-($D$7-Tier2Purchases!$C22)-(Tier2Purchases!$B22-$D$6)+1,IF(Tier2Purchases!$B22>=$D$6,(Tier2Purchases!$C22-Tier2Purchases!$B22)-(Tier2Purchases!$C22-$D$8),IF(Tier2Purchases!$C22<=$D$7,(Tier2Purchases!$C22-Tier2Purchases!$B22)-($D$6-Tier2Purchases!$B22)+1))))) -> 0 | I21: =IF(OR(Tier2Purchases!$B22>$D$9,Tier2Purchases!$C22<$D$8),0,IF(AND(Tier2Purchases!$B22<$D$8,Tier2Purchases!$C22>$D$9),(Tier2Purchases!$C22-Tier2Purchases!$B22)-(Tier2Purchases!$C22-$D$10)-($D$8-Tier2Purchases!$B22),IF(AND(Tier2Purchases!$C22<=$D$9,Tier2Purchases!$B22>=$D$8),($D$9-$D$8)-($D$9-Tier2Purchases!$C22)-(Tier2Purchases!$B22-$D$8)+1,IF(Tier2Purchases!$B22>=$D$8,(Tier2Purchases!$C22-Tier2Purchases!$B22)-(Tier2Purchases!$C22-$D$10),IF(Tier2Purchases!$C22<=$D$9,(Tier2Purchases!$C22-Tier2Purchases!$B22)-($D$8-Tier2Purchases!$B22)+1))))) -> 0 | J21: =IF(OR(Tier2Purchases!$B22>$D$11,Tier2Purchases!$C22<$D$10),0,IF(AND(Tier2Purchases!$B22<$D$10,Tier2Purchases!$C22>$D$11),(Tier2Purchases!$C22-Tier2Purchases!$B22)-(Tier2Purchases!$C22-$D$12)-($D$10-Tier2Purchases!$B22),IF(AND(Tier2Purchases!$C22<=$D$11,Tier2Purchases!$B22>=$D$10),($D$11-$D$10)-($D$11-Tier2Purchases!$C22)-(Tier2Purchases!$B22-$D$10)+1,IF(Tier2Purchases!$B22>=$D$10,(Tier2Purchases!$C22-Tier2Purchases!$B22)-(Tier2Purchases!$C22-$D$12),IF(Tier2Purchases!$C22<=$D$11,(Tier2Purchases!$C22-Tier2Purchases!$B22)-($D$10-Tier2Purchases!$B22)+1))))) -> 0 | K21: =IF(OR(Tier2Purchases!$B22>$D$13,Tier2Purchases!$C22<$D$12),0,IF(AND(Tier2Purchases!$B22<$D$12,Tier2Purchases!$C22>$D$13),(Tier2Purchases!$C22-Tier2Purchases!$B22)-(Tier2Purchases!$C22-$D$14)-($D$12-Tier2Purchases!$B22),IF(AND(Tier2Purchases!$C22<=$D$13,Tier2Purchases!$B22>=$D$12),($D$13-$D$12)-($D$13-Tier2Purchases!$C22)-(Tier2Purchases!$B22-$D$12)+1,IF(Tier2Purchases!$B22>=$D$12,(Tier2Purchases!$C22-Tier2Purchases!$B22)-(Tier2Purchases!$C22-$D$14),IF(Tier2Purchases!$C22<=$D$13,(Tier2Purchases!$C22-Tier2Purchases!$B22)-($D$12-Tier2Purchases!$B22)+1))))) -> 0 | L21: =IF(OR(Tier2Purchases!$B22>$D$15,Tier2Purchases!$C22<$D$14),0,IF(AND(Tier2Purchases!$B22<$D$14,Tier2Purchases!$C22>$D$15),(Tier2Purchases!$C22-Tier2Purchases!$B22)-(Tier2Purchases!$C22-$D$16)-($D$14-Tier2Purchases!$B22),IF(AND(Tier2Purchases!$C22<=$D$15,Tier2Purchases!$B22>=$D$14),($D$15-$D$14)-($D$15-Tier2Purchases!$C22)-(Tier2Purchases!$B22-$D$14)+1,IF(Tier2Purchases!$B22>=$D$14,(Tier2Purchases!$C22-Tier2Purchases!$B22)-(Tier2Purchases!$C22-$D$16),IF(Tier2Purchases!$C22<=$D$15,(Tier2Purchases!$C22-Tier2Purchases!$B22)-($D$14-Tier2Purchases!$B22)+1))))) -> 366 | M21: =IF(OR(Tier2Purchases!$B22>$D$17,Tier2Purchases!$C22<$D$16),0,IF(AND(Tier2Purchases!$B22<$D$16,Tier2Purchases!$C22>$D$17),(Tier2Purchases!$C22-Tier2Purchases!$B22)-(Tier2Purchases!$C22-$D$18)-($D$16-Tier2Purchases!$B22),IF(AND(Tier2Purchases!$C22<=$D$17,Tier2Purchases!$B22>=$D$16),($D$17-$D$16)-($D$17-Tier2Purchases!$C22)-(Tier2Purchases!$B22-$D$16)+1,IF(Tier2Purchases!$B22>=$D$16,(Tier2Purchases!$C22-Tier2Purchases!$B22)-(Tier2Purchases!$C22-$D$18),IF(Tier2Purchases!$C22<=$D$17,(Tier2Purchases!$C22-Tier2Purchases!$B22)-($D$16-Tier2Purchases!$B22)+1))))) -> 0 | N21: =IF(OR(Tier2Purchases!$B22>$D$19,Tier2Purchases!$C22<$D$18),0,IF(AND(Tier2Purchases!$B22<$D$18,Tier2Purchases!$C22>$D$19),(Tier2Purchases!$C22-Tier2Purchases!$B22)-(Tier2Purchases!$C22-$D$20)-($D$18-Tier2Purchases!$B22),IF(AND(Tier2Purchases!$C22<=$D$19,Tier2Purchases!$B22>=$D$18),($D$19-$D$18)-($D$19-Tier2Purchases!$C22)-(Tier2Purchases!$B22-$D$18)+1,IF(Tier2Purchases!$B22>=$D$18,(Tier2Purchases!$C22-Tier2Purchases!$B22)-(Tier2Purchases!$C22-$D$20),IF(Tier2Purchases!$C22<=$D$19,(Tier2Purchases!$C22-Tier2Purchases!$B22)-($D$18-Tier2Purchases!$B22)+1))))) -> 0 | O21: =IF(OR(Tier2Purchases!$B22>$D$21,Tier2Purchases!$C22<$D$20),0,IF(AND(Tier2Purchases!$B22<$D$20,Tier2Purchases!$C22>$D$21),(Tier2Purchases!$C22-Tier2Purchases!$B22)-(Tier2Purchases!$C22-$D$22)-($D$20-Tier2Purchases!$B22),IF(AND(Tier2Purchases!$C22<=$D$21,Tier2Purchases!$B22>=$D$20),($D$21-$D$20)-($D$21-Tier2Purchases!$C22)-(Tier2Purchases!$B22-$D$20)+1,IF(Tier2Purchases!$B22>=$D$20,(Tier2Purchases!$C22-Tier2Purchases!$B22)-(Tier2Purchases!$C22-$D$22),IF(Tier2Purchases!$C22<=$D$21,(Tier2Purchases!$C22-Tier2Purchases!$B22)-($D$20-Tier2Purchases!$B22)+1))))) -> 0 | P21: =IF(OR(Tier2Purchases!$B22>$D$23,Tier2Purchases!$C22<$D$22),0,IF(AND(Tier2Purchases!$B22<$D$22,Tier2Purchases!$C22>$D$23),(Tier2Purchases!$C22-Tier2Purchases!$B22)-(Tier2Purchases!$C22-$D$24)-($D$22-Tier2Purchases!$B22),IF(AND(Tier2Purchases!$C22<=$D$23,Tier2Purchases!$B22>=$D$22),($D$23-$D$22)-($D$23-Tier2Purchases!$C22)-(Tier2Purchases!$B22-$D$22)+1,IF(Tier2Purchases!$B22>=$D$22,(Tier2Purchases!$C22-Tier2Purchases!$B22)-(Tier2Purchases!$C22-$D$24),IF(Tier2Purchases!$C22<=$D$23,(Tier2Purchases!$C22-Tier2Purchases!$B22)-($D$22-Tier2Purchases!$B22)+1))))) -> 0 | Q21: =IF(OR(Tier2Purchases!$B22>$D$25,Tier2Purchases!$C22<$D$24),0,IF(AND(Tier2Purchases!$B22<$D$24,Tier2Purchases!$C22>$D$25),(Tier2Purchases!$C22-Tier2Purchases!$B22)-(Tier2Purchases!$C22-$D$26)-($D$24-Tier2Purchases!$B22),IF(AND(Tier2Purchases!$C22<=$D$25,Tier2Purchases!$B22>=$D$24),($D$25-$D$24)-($D$25-Tier2Purchases!$C22)-(Tier2Purchases!$B22-$D$24)+1,IF(Tier2Purchases!$B22>=$D$24,(Tier2Purchases!$C22-Tier2Purchases!$B22)-(Tier2Purchases!$C22-$D$26),IF(Tier2Purchases!$C22<=$D$25,(Tier2Purchases!$C22-Tier2Purchases!$B22)-($D$24-Tier2Purchases!$B22)+1))))) -> 0 | R21: =IF(OR(Tier2Purchases!$B22>$D$27,Tier2Purchases!$C22<$D$26),0,IF(AND(Tier2Purchases!$B22<$D$26,Tier2Purchases!$C22>$D$27),(Tier2Purchases!$C22-Tier2Purchases!$B22)-(Tier2Purchases!$C22-$D$28)-($D$26-Tier2Purchases!$B22),IF(AND(Tier2Purchases!$C22<=$D$27,Tier2Purchases!$B22>=$D$26),($D$27-$D$26)-($D$27-Tier2Purchases!$C22)-(Tier2Purchases!$B22-$D$26)+1,IF(Tier2Purchases!$B22>=$D$26,(Tier2Purchases!$C22-Tier2Purchases!$B22)-(Tier2Purchases!$C22-$D$28),IF(Tier2Purchases!$C22<=$D$27,(Tier2Purchases!$C22-Tier2Purchases!$B22)-($D$26-Tier2Purchases!$B22)+1))))) -> 0 | S21: =IF(OR(Tier2Purchases!$B22>$D$29,Tier2Purchases!$C22<$D$28),0,IF(AND(Tier2Purchases!$B22<$D$28,Tier2Purchases!$C22>$D$29),(Tier2Purchases!$C22-Tier2Purchases!$B22)-(Tier2Purchases!$C22-$D$30)-($D$28-Tier2Purchases!$B22),IF(AND(Tier2Purchases!$C22<=$D$29,Tier2Purchases!$B22>=$D$28),($D$29-$D$28)-($D$29-Tier2Purchases!$C22)-(Tier2Purchases!$B22-$D$28)+1,IF(Tier2Purchases!$B22>=$D$28,(Tier2Purchases!$C22-Tier2Purchases!$B22)-(Tier2Purchases!$C22-$D$30),IF(Tier2Purchases!$C22<=$D$29,(Tier2Purchases!$C22-Tier2Purchases!$B22)-($D$28-Tier2Purchases!$B22)+1))))) -> 0 | T21: =IF(OR(Tier2Purchases!$B22>$D$31,Tier2Purchases!$C22<$D$30),0,IF(AND(Tier2Purchases!$B22<$D$30,Tier2Purchases!$C22>$D$31),(Tier2Purchases!$C22-Tier2Purchases!$B22)-(Tier2Purchases!$C22-$D$32)-($D$30-Tier2Purchases!$B22),IF(AND(Tier2Purchases!$C22<=$D$31,Tier2Purchases!$B22>=$D$30),($D$31-$D$30)-($D$31-Tier2Purchases!$C22)-(Tier2Purchases!$B22-$D$30)+1,IF(Tier2Purchases!$B22>=$D$30,(Tier2Purchases!$C22-Tier2Purchases!$B22)-(Tier2Purchases!$C22-$D$32),IF(Tier2Purchases!$C22<=$D$31,(Tier2Purchases!$C22-Tier2Purchases!$B22)-($D$30-Tier2Purchases!$B22)+1))))) -> 0 | U21: =IF(OR(Tier2Purchases!$B22>$D$33,Tier2Purchases!$C22<$D$32),0,IF(AND(Tier2Purchases!$B22<$D$32,Tier2Purchases!$C22>$D$33),(Tier2Purchases!$C22-Tier2Purchases!$B22)-(Tier2Purchases!$C22-$D$34)-($D$32-Tier2Purchases!$B22),IF(AND(Tier2Purchases!$C22<=$D$33,Tier2Purchases!$B22>=$D$32),($D$33-$D$32)-($D$33-Tier2Purchases!$C22)-(Tier2Purchases!$B22-$D$32)+1,IF(Tier2Purchases!$B22>=$D$32,(Tier2Purchases!$C22-Tier2Purchases!$B22)-(Tier2Purchases!$C22-$D$34),IF(Tier2Purchases!$C22<=$D$33,(Tier2Purchases!$C22-Tier2Purchases!$B22)-($D$32-Tier2Purchases!$B22)+1))))) -> 0 | V21: =IF(OR(Tier2Purchases!$B22>$D$35,Tier2Purchases!$C22<$D$34),0,IF(AND(Tier2Purchases!$B22<$D$34,Tier2Purchases!$C22>$D$35),(Tier2Purchases!$C22-Tier2Purchases!$B22)-(Tier2Purchases!$C22-$D$36)-($D$34-Tier2Purchases!$B22),IF(AND(Tier2Purchases!$C22<=$D$35,Tier2Purchases!$B22>=$D$34),($D$35-$D$34)-($D$35-Tier2Purchases!$C22)-(Tier2Purchases!$B22-$D$34)+1,IF(Tier2Purchases!$B22>=$D$34,(Tier2Purchases!$C22-Tier2Purchases!$B22)-(Tier2Purchases!$C22-$D$36),IF(Tier2Purchases!$C22<=$D$35,(Tier2Purchases!$C22-Tier2Purchases!$B22)-($D$34-Tier2Purchases!$B22)+1))))) -> 0 | W21: =IF(OR(Tier2Purchases!$B22>$D$37,Tier2Purchases!$C22<$D$36),0,IF(AND(Tier2Purchases!$B22<$D$36,Tier2Purchases!$C22>$D$37),(Tier2Purchases!$C22-Tier2Purchases!$B22)-(Tier2Purchases!$C22-$D$38)-($D$36-Tier2Purchases!$B22),IF(AND(Tier2Purchases!$C22<=$D$37,Tier2Purchases!$B22>=$D$36),($D$37-$D$36)-($D$37-Tier2Purchases!$C22)-(Tier2Purchases!$B22-$D$36)+1,IF(Tier2Purchases!$B22>=$D$36,(Tier2Purchases!$C22-Tier2Purchases!$B22)-(Tier2Purchases!$C22-$D$38),IF(Tier2Purchases!$C22<=$D$37,(Tier2Purchases!$C22-Tier2Purchases!$B22)-($D$36-Tier2Purchases!$B22)+1))))) -> 0 | X21: =IF(OR(Tier2Purchases!$B22>$D$39,Tier2Purchases!$C22<$D$38),0,IF(AND(Tier2Purchases!$B22<$D$38,Tier2Purchases!$C22>$D$39),(Tier2Purchases!$C22-Tier2Purchases!$B22)-(Tier2Purchases!$C22-$D$39)-($D$38-Tier2Purchases!$B22)+1,IF(AND(Tier2Purchases!$C22<=$D$39,Tier2Purchases!$B22>=$D$38),($D$39-$D$38)-($D$39-Tier2Purchases!$C22)-(Tier2Purchases!$B22-$D$38)+1,IF(Tier2Purchases!$B22>=$D$38,(Tier2Purchases!$C22-Tier2Purchases!$B22)-(Tier2Purchases!$C22-$D$39)+1,IF(Tier2Purchases!$C22<=$D$39,(Tier2Purchases!$C22-Tier2Purchases!$B22)-($D$38-Tier2Purchases!$B22)+1))))) -> 0 | Y21: 366 | Z21: 0 | AA21: =Tier2Purchases!$C22-Tier2Purchases!$B22+1 -> 366 | AB21: TRUE
B22: FY2020 | C22: START DATE | D22: 2019-10-01 | H22: =IF(OR(Tier2Purchases!$B23>$D$7,Tier2Purchases!$C23<$D$6),0,IF(AND(Tier2Purchases!$B23<$D$6,Tier2Purchases!$C23>$D$7),(Tier2Purchases!$C23-Tier2Purchases!$B23)-(Tier2Purchases!$C23-$D$8)-($D$6-Tier2Purchases!$B23),IF(AND(Tier2Purchases!$C23<=$D$7,Tier2Purchases!$B23>=$D$6),($D$7-$D$6)-($D$7-Tier2Purchases!$C23)-(Tier2Purchases!$B23-$D$6)+1,IF(Tier2Purchases!$B23>=$D$6,(Tier2Purchases!$C23-Tier2Purchases!$B23)-(Tier2Purchases!$C23-$D$8),IF(Tier2Purchases!$C23<=$D$7,(Tier2Purchases!$C23-Tier2Purchases!$B23)-($D$6-Tier2Purchases!$B23)+1))))) -> 0 | I22: =IF(OR(Tier2Purchases!$B23>$D$9,Tier2Purchases!$C23<$D$8),0,IF(AND(Tier2Purchases!$B23<$D$8,Tier2Purchases!$C23>$D$9),(Tier2Purchases!$C23-Tier2Purchases!$B23)-(Tier2Purchases!$C23-$D$10)-($D$8-Tier2Purchases!$B23),IF(AND(Tier2Purchases!$C23<=$D$9,Tier2Purchases!$B23>=$D$8),($D$9-$D$8)-($D$9-Tier2Purchases!$C23)-(Tier2Purchases!$B23-$D$8)+1,IF(Tier2Purchases!$B23>=$D$8,(Tier2Purchases!$C23-Tier2Purchases!$B23)-(Tier2Purchases!$C23-$D$10),IF(Tier2Purchases!$C23<=$D$9,(Tier2Purchases!$C23-Tier2Purchases!$B23)-($D$8-Tier2Purchases!$B23)+1))))) -> 0 | J22: =IF(OR(Tier2Purchases!$B23>$D$11,Tier2Purchases!$C23<$D$10),0,IF(AND(Tier2Purchases!$B23<$D$10,Tier2Purchases!$C23>$D$11),(Tier2Purchases!$C23-Tier2Purchases!$B23)-(Tier2Purchases!$C23-$D$12)-($D$10-Tier2Purchases!$B23),IF(AND(Tier2Purchases!$C23<=$D$11,Tier2Purchases!$B23>=$D$10),($D$11-$D$10)-($D$11-Tier2Purchases!$C23)-(Tier2Purchases!$B23-$D$10)+1,IF(Tier2Purchases!$B23>=$D$10,(Tier2Purchases!$C23-Tier2Purchases!$B23)-(Tier2Purchases!$C23-$D$12),IF(Tier2Purchases!$C23<=$D$11,(Tier2Purchases!$C23-Tier2Purchases!$B23)-($D$10-Tier2Purchases!$B23)+1))))) -> 0 | K22: =IF(OR(Tier2Purchases!$B23>$D$13,Tier2Purchases!$C23<$D$12),0,IF(AND(Tier2Purchases!$B23<$D$12,Tier2Purchases!$C23>$D$13),(Tier2Purchases!$C23-Tier2Purchases!$B23)-(Tier2Purchases!$C23-$D$14)-($D$12-Tier2Purchases!$B23),IF(AND(Tier2Purchases!$C23<=$D$13,Tier2Purchases!$B23>=$D$12),($D$13-$D$12)-($D$13-Tier2Purchases!$C23)-(Tier2Purchases!$B23-$D$12)+1,IF(Tier2Purchases!$B23>=$D$12,(Tier2Purchases!$C23-Tier2Purchases!$B23)-(Tier2Purchases!$C23-$D$14),IF(Tier2Purchases!$C23<=$D$13,(Tier2Purchases!$C23-Tier2Purchases!$B23)-($D$12-Tier2Purchases!$B23)+1))))) -> 0 | L22: =IF(OR(Tier2Purchases!$B23>$D$15,Tier2Purchases!$C23<$D$14),0,IF(AND(Tier2Purchases!$B23<$D$14,Tier2Purchases!$C23>$D$15),(Tier2Purchases!$C23-Tier2Purchases!$B23)-(Tier2Purchases!$C23-$D$16)-($D$14-Tier2Purchases!$B23),IF(AND(Tier2Purchases!$C23<=$D$15,Tier2Purchases!$B23>=$D$14),($D$15-$D$14)-($D$15-Tier2Purchases!$C23)-(Tier2Purchases!$B23-$D$14)+1,IF(Tier2Purchases!$B23>=$D$14,(Tier2Purchases!$C23-Tier2Purchases!$B23)-(Tier2Purchases!$C23-$D$16),IF(Tier2Purchases!$C23<=$D$15,(Tier2Purchases!$C23-Tier2Purchases!$B23)-($D$14-Tier2Purchases!$B23)+1))))) -> 0 | M22: =IF(OR(Tier2Purchases!$B23>$D$17,Tier2Purchases!$C23<$D$16),0,IF(AND(Tier2Purchases!$B23<$D$16,Tier2Purchases!$C23>$D$17),(Tier2Purchases!$C23-Tier2Purchases!$B23)-(Tier2Purchases!$C23-$D$18)-($D$16-Tier2Purchases!$B23),IF(AND(Tier2Purchases!$C23<=$D$17,Tier2Purchases!$B23>=$D$16),($D$17-$D$16)-($D$17-Tier2Purchases!$C23)-(Tier2Purchases!$B23-$D$16)+1,IF(Tier2Purchases!$B23>=$D$16,(Tier2Purchases!$C23-Tier2Purchases!$B23)-(Tier2Purchases!$C23-$D$18),IF(Tier2Purchases!$C23<=$D$17,(Tier2Purchases!$C23-Tier2Purchases!$B23)-($D$16-Tier2Purchases!$B23)+1))))) -> 365 | N22: =IF(OR(Tier2Purchases!$B23>$D$19,Tier2Purchases!$C23<$D$18),0,IF(AND(Tier2Purchases!$B23<$D$18,Tier2Purchases!$C23>$D$19),(Tier2Purchases!$C23-Tier2Purchases!$B23)-(Tier2Purchases!$C23-$D$20)-($D$18-Tier2Purchases!$B23),IF(AND(Tier2Purchases!$C23<=$D$19,Tier2Purchases!$B23>=$D$18),($D$19-$D$18)-($D$19-Tier2Purchases!$C23)-(Tier2Purchases!$B23-$D$18)+1,IF(Tier2Purchases!$B23>=$D$18,(Tier2Purchases!$C23-Tier2Purchases!$B23)-(Tier2Purchases!$C23-$D$20),IF(Tier2Purchases!$C23<=$D$19,(Tier2Purchases!$C23-Tier2Purchases!$B23)-($D$18-Tier2Purchases!$B23)+1))))) -> 0 | O22: =IF(OR(Tier2Purchases!$B23>$D$21,Tier2Purchases!$C23<$D$20),0,IF(AND(Tier2Purchases!$B23<$D$20,Tier2Purchases!$C23>$D$21),(Tier2Purchases!$C23-Tier2Purchases!$B23)-(Tier2Purchases!$C23-$D$22)-($D$20-Tier2Purchases!$B23),IF(AND(Tier2Purchases!$C23<=$D$21,Tier2Purchases!$B23>=$D$20),($D$21-$D$20)-($D$21-Tier2Purchases!$C23)-(Tier2Purchases!$B23-$D$20)+1,IF(Tier2Purchases!$B23>=$D$20,(Tier2Purchases!$C23-Tier2Purchases!$B23)-(Tier2Purchases!$C23-$D$22),IF(Tier2Purchases!$C23<=$D$21,(Tier2Purchases!$C23-Tier2Purchases!$B23)-($D$20-Tier2Purchases!$B23)+1))))) -> 0 | P22: =IF(OR(Tier2Purchases!$B23>$D$23,Tier2Purchases!$C23<$D$22),0,IF(AND(Tier2Purchases!$B23<$D$22,Tier2Purchases!$C23>$D$23),(Tier2Purchases!$C23-Tier2Purchases!$B23)-(Tier2Purchases!$C23-$D$24)-($D$22-Tier2Purchases!$B23),IF(AND(Tier2Purchases!$C23<=$D$23,Tier2Purchases!$B23>=$D$22),($D$23-$D$22)-($D$23-Tier2Purchases!$C23)-(Tier2Purchases!$B23-$D$22)+1,IF(Tier2Purchases!$B23>=$D$22,(Tier2Purchases!$C23-Tier2Purchases!$B23)-(Tier2Purchases!$C23-$D$24),IF(Tier2Purchases!$C23<=$D$23,(Tier2Purchases!$C23-Tier2Purchases!$B23)-($D$22-Tier2Purchases!$B23)+1))))) -> 0 | Q22: =IF(OR(Tier2Purchases!$B23>$D$25,Tier2Purchases!$C23<$D$24),0,IF(AND(Tier2Purchases!$B23<$D$24,Tier2Purchases!$C23>$D$25),(Tier2Purchases!$C23-Tier2Purchases!$B23)-(Tier2Purchases!$C23-$D$26)-($D$24-Tier2Purchases!$B23),IF(AND(Tier2Purchases!$C23<=$D$25,Tier2Purchases!$B23>=$D$24),($D$25-$D$24)-($D$25-Tier2Purchases!$C23)-(Tier2Purchases!$B23-$D$24)+1,IF(Tier2Purchases!$B23>=$D$24,(Tier2Purchases!$C23-Tier2Purchases!$B23)-(Tier2Purchases!$C23-$D$26),IF(Tier2Purchases!$C23<=$D$25,(Tier2Purchases!$C23-Tier2Purchases!$B23)-($D$24-Tier2Purchases!$B23)+1))))) -> 0 | R22: =IF(OR(Tier2Purchases!$B23>$D$27,Tier2Purchases!$C23<$D$26),0,IF(AND(Tier2Purchases!$B23<$D$26,Tier2Purchases!$C23>$D$27),(Tier2Purchases!$C23-Tier2Purchases!$B23)-(Tier2Purchases!$C23-$D$28)-($D$26-Tier2Purchases!$B23),IF(AND(Tier2Purchases!$C23<=$D$27,Tier2Purchases!$B23>=$D$26),($D$27-$D$26)-($D$27-Tier2Purchases!$C23)-(Tier2Purchases!$B23-$D$26)+1,IF(Tier2Purchases!$B23>=$D$26,(Tier2Purchases!$C23-Tier2Purchases!$B23)-(Tier2Purchases!$C23-$D$28),IF(Tier2Purchases!$C23<=$D$27,(Tier2Purchases!$C23-Tier2Purchases!$B23)-($D$26-Tier2Purchases!$B23)+1))))) -> 0 | S22: =IF(OR(Tier2Purchases!$B23>$D$29,Tier2Purchases!$C23<$D$28),0,IF(AND(Tier2Purchases!$B23<$D$28,Tier2Purchases!$C23>$D$29),(Tier2Purchases!$C23-Tier2Purchases!$B23)-(Tier2Purchases!$C23-$D$30)-($D$28-Tier2Purchases!$B23),IF(AND(Tier2Purchases!$C23<=$D$29,Tier2Purchases!$B23>=$D$28),($D$29-$D$28)-($D$29-Tier2Purchases!$C23)-(Tier2Purchases!$B23-$D$28)+1,IF(Tier2Purchases!$B23>=$D$28,(Tier2Purchases!$C23-Tier2Purchases!$B23)-(Tier2Purchases!$C23-$D$30),IF(Tier2Purchases!$C23<=$D$29,(Tier2Purchases!$C23-Tier2Purchases!$B23)-($D$28-Tier2Purchases!$B23)+1))))) -> 0 | T22: =IF(OR(Tier2Purchases!$B23>$D$31,Tier2Purchases!$C23<$D$30),0,IF(AND(Tier2Purchases!$B23<$D$30,Tier2Purchases!$C23>$D$31),(Tier2Purchases!$C23-Tier2Purchases!$B23)-(Tier2Purchases!$C23-$D$32)-($D$30-Tier2Purchases!$B23),IF(AND(Tier2Purchases!$C23<=$D$31,Tier2Purchases!$B23>=$D$30),($D$31-$D$30)-($D$31-Tier2Purchases!$C23)-(Tier2Purchases!$B23-$D$30)+1,IF(Tier2Purchases!$B23>=$D$30,(Tier2Purchases!$C23-Tier2Purchases!$B23)-(Tier2Purchases!$C23-$D$32),IF(Tier2Purchases!$C23<=$D$31,(Tier2Purchases!$C23-Tier2Purchases!$B23)-($D$30-Tier2Purchases!$B23)+1))))) -> 0 | U22: =IF(OR(Tier2Purchases!$B23>$D$33,Tier2Purchases!$C23<$D$32),0,IF(AND(Tier2Purchases!$B23<$D$32,Tier2Purchases!$C23>$D$33),(Tier2Purchases!$C23-Tier2Purchases!$B23)-(Tier2Purchases!$C23-$D$34)-($D$32-Tier2Purchases!$B23),IF(AND(Tier2Purchases!$C23<=$D$33,Tier2Purchases!$B23>=$D$32),($D$33-$D$32)-($D$33-Tier2Purchases!$C23)-(Tier2Purchases!$B23-$D$32)+1,IF(Tier2Purchases!$B23>=$D$32,(Tier2Purchases!$C23-Tier2Purchases!$B23)-(Tier2Purchases!$C23-$D$34),IF(Tier2Purchases!$C23<=$D$33,(Tier2Purchases!$C23-Tier2Purchases!$B23)-($D$32-Tier2Purchases!$B23)+1))))) -> 0 | V22: =IF(OR(Tier2Purchases!$B23>$D$35,Tier2Purchases!$C23<$D$34),0,IF(AND(Tier2Purchases!$B23<$D$34,Tier2Purchases!$C23>$D$35),(Tier2Purchases!$C23-Tier2Purchases!$B23)-(Tier2Purchases!$C23-$D$36)-($D$34-Tier2Purchases!$B23),IF(AND(Tier2Purchases!$C23<=$D$35,Tier2Purchases!$B23>=$D$34),($D$35-$D$34)-($D$35-Tier2Purchases!$C23)-(Tier2Purchases!$B23-$D$34)+1,IF(Tier2Purchases!$B23>=$D$34,(Tier2Purchases!$C23-Tier2Purchases!$B23)-(Tier2Purchases!$C23-$D$36),IF(Tier2Purchases!$C23<=$D$35,(Tier2Purchases!$C23-Tier2Purchases!$B23)-($D$34-Tier2Purchases!$B23)+1))))) -> 0 | W22: =IF(OR(Tier2Purchases!$B23>$D$37,Tier2Purchases!$C23<$D$36),0,IF(AND(Tier2Purchases!$B23<$D$36,Tier2Purchases!$C23>$D$37),(Tier2Purchases!$C23-Tier2Purchases!$B23)-(Tier2Purchases!$C23-$D$38)-($D$36-Tier2Purchases!$B23),IF(AND(Tier2Purchases!$C23<=$D$37,Tier2Purchases!$B23>=$D$36),($D$37-$D$36)-($D$37-Tier2Purchases!$C23)-(Tier2Purchases!$B23-$D$36)+1,IF(Tier2Purchases!$B23>=$D$36,(Tier2Purchases!$C23-Tier2Purchases!$B23)-(Tier2Purchases!$C23-$D$38),IF(Tier2Purchases!$C23<=$D$37,(Tier2Purchases!$C23-Tier2Purchases!$B23)-($D$36-Tier2Purchases!$B23)+1))))) -> 0 | X22: =IF(OR(Tier2Purchases!$B23>$D$39,Tier2Purchases!$C23<$D$38),0,IF(AND(Tier2Purchases!$B23<$D$38,Tier2Purchases!$C23>$D$39),(Tier2Purchases!$C23-Tier2Purchases!$B23)-(Tier2Purchases!$C23-$D$39)-($D$38-Tier2Purchases!$B23)+1,IF(AND(Tier2Purchases!$C23<=$D$39,Tier2Purchases!$B23>=$D$38),($D$39-$D$38)-($D$39-Tier2Purchases!$C23)-(Tier2Purchases!$B23-$D$38)+1,IF(Tier2Purchases!$B23>=$D$38,(Tier2Purchases!$C23-Tier2Purchases!$B23)-(Tier2Purchases!$C23-$D$39)+1,IF(Tier2Purchases!$C23<=$D$39,(Tier2Purchases!$C23-Tier2Purchases!$B23)-($D$38-Tier2Purchases!$B23)+1))))) -> 0 | Y22: 365 | Z22: 0 | AA22: =Tier2Purchases!$C23-Tier2Purchases!$B23+1 -> 365 | AB22: TRUE
C23: END DATE | D23: 2020-09-30 | H23: =IF(OR(Tier2Purchases!$B24>$D$7,Tier2Purchases!$C24<$D$6),0,IF(AND(Tier2Purchases!$B24<$D$6,Tier2Purchases!$C24>$D$7),(Tier2Purchases!$C24-Tier2Purchases!$B24)-(Tier2Purchases!$C24-$D$8)-($D$6-Tier2Purchases!$B24),IF(AND(Tier2Purchases!$C24<=$D$7,Tier2Purchases!$B24>=$D$6),($D$7-$D$6)-($D$7-Tier2Purchases!$C24)-(Tier2Purchases!$B24-$D$6)+1,IF(Tier2Purchases!$B24>=$D$6,(Tier2Purchases!$C24-Tier2Purchases!$B24)-(Tier2Purchases!$C24-$D$8),IF(Tier2Purchases!$C24<=$D$7,(Tier2Purchases!$C24-Tier2Purchases!$B24)-($D$6-Tier2Purchases!$B24)+1))))) -> 0 | I23: =IF(OR(Tier2Purchases!$B24>$D$9,Tier2Purchases!$C24<$D$8),0,IF(AND(Tier2Purchases!$B24<$D$8,Tier2Purchases!$C24>$D$9),(Tier2Purchases!$C24-Tier2Purchases!$B24)-(Tier2Purchases!$C24-$D$10)-($D$8-Tier2Purchases!$B24),IF(AND(Tier2Purchases!$C24<=$D$9,Tier2Purchases!$B24>=$D$8),($D$9-$D$8)-($D$9-Tier2Purchases!$C24)-(Tier2Purchases!$B24-$D$8)+1,IF(Tier2Purchases!$B24>=$D$8,(Tier2Purchases!$C24-Tier2Purchases!$B24)-(Tier2Purchases!$C24-$D$10),IF(Tier2Purchases!$C24<=$D$9,(Tier2Purchases!$C24-Tier2Purchases!$B24)-($D$8-Tier2Purchases!$B24)+1))))) -> 0 | J23: =IF(OR(Tier2Purchases!$B24>$D$11,Tier2Purchases!$C24<$D$10),0,IF(AND(Tier2Purchases!$B24<$D$10,Tier2Purchases!$C24>$D$11),(Tier2Purchases!$C24-Tier2Purchases!$B24)-(Tier2Purchases!$C24-$D$12)-($D$10-Tier2Purchases!$B24),IF(AND(Tier2Purchases!$C24<=$D$11,Tier2Purchases!$B24>=$D$10),($D$11-$D$10)-($D$11-Tier2Purchases!$C24)-(Tier2Purchases!$B24-$D$10)+1,IF(Tier2Purchases!$B24>=$D$10,(Tier2Purchases!$C24-Tier2Purchases!$B24)-(Tier2Purchases!$C24-$D$12),IF(Tier2Purchases!$C24<=$D$11,(Tier2Purchases!$C24-Tier2Purchases!$B24)-($D$10-Tier2Purchases!$B24)+1))))) -> 0 | K23: =IF(OR(Tier2Purchases!$B24>$D$13,Tier2Purchases!$C24<$D$12),0,IF(AND(Tier2Purchases!$B24<$D$12,Tier2Purchases!$C24>$D$13),(Tier2Purchases!$C24-Tier2Purchases!$B24)-(Tier2Purchases!$C24-$D$14)-($D$12-Tier2Purchases!$B24),IF(AND(Tier2Purchases!$C24<=$D$13,Tier2Purchases!$B24>=$D$12),($D$13-$D$12)-($D$13-Tier2Purchases!$C24)-(Tier2Purchases!$B24-$D$12)+1,IF(Tier2Purchases!$B24>=$D$12,(Tier2Purchases!$C24-Tier2Purchases!$B24)-(Tier2Purchases!$C24-$D$14),IF(Tier2Purchases!$C24<=$D$13,(Tier2Purchases!$C24-Tier2Purchases!$B24)-($D$12-Tier2Purchases!$B24)+1))))) -> 0 | L23: =IF(OR(Tier2Purchases!$B24>$D$15,Tier2Purchases!$C24<$D$14),0,IF(AND(Tier2Purchases!$B24<$D$14,Tier2Purchases!$C24>$D$15),(Tier2Purchases!$C24-Tier2Purchases!$B24)-(Tier2Purchases!$C24-$D$16)-($D$14-Tier2Purchases!$B24),IF(AND(Tier2Purchases!$C24<=$D$15,Tier2Purchases!$B24>=$D$14),($D$15-$D$14)-($D$15-Tier2Purchases!$C24)-(Tier2Purchases!$B24-$D$14)+1,IF(Tier2Purchases!$B24>=$D$14,(Tier2Purchases!$C24-Tier2Purchases!$B24)-(Tier2Purchases!$C24-$D$16),IF(Tier2Purchases!$C24<=$D$15,(Tier2Purchases!$C24-Tier2Purchases!$B24)-($D$14-Tier2Purchases!$B24)+1))))) -> 0 | M23: =IF(OR(Tier2Purchases!$B24>$D$17,Tier2Purchases!$C24<$D$16),0,IF(AND(Tier2Purchases!$B24<$D$16,Tier2Purchases!$C24>$D$17),(Tier2Purchases!$C24-Tier2Purchases!$B24)-(Tier2Purchases!$C24-$D$18)-($D$16-Tier2Purchases!$B24),IF(AND(Tier2Purchases!$C24<=$D$17,Tier2Purchases!$B24>=$D$16),($D$17-$D$16)-($D$17-Tier2Purchases!$C24)-(Tier2Purchases!$B24-$D$16)+1,IF(Tier2Purchases!$B24>=$D$16,(Tier2Purchases!$C24-Tier2Purchases!$B24)-(Tier2Purchases!$C24-$D$18),IF(Tier2Purchases!$C24<=$D$17,(Tier2Purchases!$C24-Tier2Purchases!$B24)-($D$16-Tier2Purchases!$B24)+1))))) -> 0 | N23: =IF(OR(Tier2Purchases!$B24>$D$19,Tier2Purchases!$C24<$D$18),0,IF(AND(Tier2Purchases!$B24<$D$18,Tier2Purchases!$C24>$D$19),(Tier2Purchases!$C24-Tier2Purchases!$B24)-(Tier2Purchases!$C24-$D$20)-($D$18-Tier2Purchases!$B24),IF(AND(Tier2Purchases!$C24<=$D$19,Tier2Purchases!$B24>=$D$18),($D$19-$D$18)-($D$19-Tier2Purchases!$C24)-(Tier2Purchases!$B24-$D$18)+1,IF(Tier2Purchases!$B24>=$D$18,(Tier2Purchases!$C24-Tier2Purchases!$B24)-(Tier2Purchases!$C24-$D$20),IF(Tier2Purchases!$C24<=$D$19,(Tier2Purchases!$C24-Tier2Purchases!$B24)-($D$18-Tier2Purchases!$B24)+1))))) -> 365 | O23: =IF(OR(Tier2Purchases!$B24>$D$21,Tier2Purchases!$C24<$D$20),0,IF(AND(Tier2Purchases!$B24<$D$20,Tier2Purchases!$C24>$D$21),(Tier2Purchases!$C24-Tier2Purchases!$B24)-(Tier2Purchases!$C24-$D$22)-($D$20-Tier2Purchases!$B24),IF(AND(Tier2Purchases!$C24<=$D$21,Tier2Purchases!$B24>=$D$20),($D$21-$D$20)-($D$21-Tier2Purchases!$C24)-(Tier2Purchases!$B24-$D$20)+1,IF(Tier2Purchases!$B24>=$D$20,(Tier2Purchases!$C24-Tier2Purchases!$B24)-(Tier2Purchases!$C24-$D$22),IF(Tier2Purchases!$C24<=$D$21,(Tier2Purchases!$C24-Tier2Purchases!$B24)-($D$20-Tier2Purchases!$B24)+1))))) -> 0 | P23: =IF(OR(Tier2Purchases!$B24>$D$23,Tier2Purchases!$C24<$D$22),0,IF(AND(Tier2Purchases!$B24<$D$22,Tier2Purchases!$C24>$D$23),(Tier2Purchases!$C24-Tier2Purchases!$B24)-(Tier2Purchases!$C24-$D$24)-($D$22-Tier2Purchases!$B24),IF(AND(Tier2Purchases!$C24<=$D$23,Tier2Purchases!$B24>=$D$22),($D$23-$D$22)-($D$23-Tier2Purchases!$C24)-(Tier2Purchases!$B24-$D$22)+1,IF(Tier2Purchases!$B24>=$D$22,(Tier2Purchases!$C24-Tier2Purchases!$B24)-(Tier2Purchases!$C24-$D$24),IF(Tier2Purchases!$C24<=$D$23,(Tier2Purchases!$C24-Tier2Purchases!$B24)-($D$22-Tier2Purchases!$B24)+1))))) -> 0 | Q23: =IF(OR(Tier2Purchases!$B24>$D$25,Tier2Purchases!$C24<$D$24),0,IF(AND(Tier2Purchases!$B24<$D$24,Tier2Purchases!$C24>$D$25),(Tier2Purchases!$C24-Tier2Purchases!$B24)-(Tier2Purchases!$C24-$D$26)-($D$24-Tier2Purchases!$B24),IF(AND(Tier2Purchases!$C24<=$D$25,Tier2Purchases!$B24>=$D$24),($D$25-$D$24)-($D$25-Tier2Purchases!$C24)-(Tier2Purchases!$B24-$D$24)+1,IF(Tier2Purchases!$B24>=$D$24,(Tier2Purchases!$C24-Tier2Purchases!$B24)-(Tier2Purchases!$C24-$D$26),IF(Tier2Purchases!$C24<=$D$25,(Tier2Purchases!$C24-Tier2Purchases!$B24)-($D$24-Tier2Purchases!$B24)+1))))) -> 0 | R23: =IF(OR(Tier2Purchases!$B24>$D$27,Tier2Purchases!$C24<$D$26),0,IF(AND(Tier2Purchases!$B24<$D$26,Tier2Purchases!$C24>$D$27),(Tier2Purchases!$C24-Tier2Purchases!$B24)-(Tier2Purchases!$C24-$D$28)-($D$26-Tier2Purchases!$B24),IF(AND(Tier2Purchases!$C24<=$D$27,Tier2Purchases!$B24>=$D$26),($D$27-$D$26)-($D$27-Tier2Purchases!$C24)-(Tier2Purchases!$B24-$D$26)+1,IF(Tier2Purchases!$B24>=$D$26,(Tier2Purchases!$C24-Tier2Purchases!$B24)-(Tier2Purchases!$C24-$D$28),IF(Tier2Purchases!$C24<=$D$27,(Tier2Purchases!$C24-Tier2Purchases!$B24)-($D$26-Tier2Purchases!$B24)+1))))) -> 0 | S23: =IF(OR(Tier2Purchases!$B24>$D$29,Tier2Purchases!$C24<$D$28),0,IF(AND(Tier2Purchases!$B24<$D$28,Tier2Purchases!$C24>$D$29),(Tier2Purchases!$C24-Tier2Purchases!$B24)-(Tier2Purchases!$C24-$D$30)-($D$28-Tier2Purchases!$B24),IF(AND(Tier2Purchases!$C24<=$D$29,Tier2Purchases!$B24>=$D$28),($D$29-$D$28)-($D$29-Tier2Purchases!$C24)-(Tier2Purchases!$B24-$D$28)+1,IF(Tier2Purchases!$B24>=$D$28,(Tier2Purchases!$C24-Tier2Purchases!$B24)-(Tier2Purchases!$C24-$D$30),IF(Tier2Purchases!$C24<=$D$29,(Tier2Purchases!$C24-Tier2Purchases!$B24)-($D$28-Tier2Purchases!$B24)+1))))) -> 0 | T23: =IF(OR(Tier2Purchases!$B24>$D$31,Tier2Purchases!$C24<$D$30),0,IF(AND(Tier2Purchases!$B24<$D$30,Tier2Purchases!$C24>$D$31),(Tier2Purchases!$C24-Tier2Purchases!$B24)-(Tier2Purchases!$C24-$D$32)-($D$30-Tier2Purchases!$B24),IF(AND(Tier2Purchases!$C24<=$D$31,Tier2Purchases!$B24>=$D$30),($D$31-$D$30)-($D$31-Tier2Purchases!$C24)-(Tier2Purchases!$B24-$D$30)+1,IF(Tier2Purchases!$B24>=$D$30,(Tier2Purchases!$C24-Tier2Purchases!$B24)-(Tier2Purchases!$C24-$D$32),IF(Tier2Purchases!$C24<=$D$31,(Tier2Purchases!$C24-Tier2Purchases!$B24)-($D$30-Tier2Purchases!$B24)+1))))) -> 0 | U23: =IF(OR(Tier2Purchases!$B24>$D$33,Tier2Purchases!$C24<$D$32),0,IF(AND(Tier2Purchases!$B24<$D$32,Tier2Purchases!$C24>$D$33),(Tier2Purchases!$C24-Tier2Purchases!$B24)-(Tier2Purchases!$C24-$D$34)-($D$32-Tier2Purchases!$B24),IF(AND(Tier2Purchases!$C24<=$D$33,Tier2Purchases!$B24>=$D$32),($D$33-$D$32)-($D$33-Tier2Purchases!$C24)-(Tier2Purchases!$B24-$D$32)+1,IF(Tier2Purchases!$B24>=$D$32,(Tier2Purchases!$C24-Tier2Purchases!$B24)-(Tier2Purchases!$C24-$D$34),IF(Tier2Purchases!$C24<=$D$33,(Tier2Purchases!$C24-Tier2Purchases!$B24)-($D$32-Tier2Purchases!$B24)+1))))) -> 0 | V23: =IF(OR(Tier2Purchases!$B24>$D$35,Tier2Purchases!$C24<$D$34),0,IF(AND(Tier2Purchases!$B24<$D$34,Tier2Purchases!$C24>$D$35),(Tier2Purchases!$C24-Tier2Purchases!$B24)-(Tier2Purchases!$C24-$D$36)-($D$34-Tier2Purchases!$B24),IF(AND(Tier2Purchases!$C24<=$D$35,Tier2Purchases!$B24>=$D$34),($D$35-$D$34)-($D$35-Tier2Purchases!$C24)-(Tier2Purchases!$B24-$D$34)+1,IF(Tier2Purchases!$B24>=$D$34,(Tier2Purchases!$C24-Tier2Purchases!$B24)-(Tier2Purchases!$C24-$D$36),IF(Tier2Purchases!$C24<=$D$35,(Tier2Purchases!$C24-Tier2Purchases!$B24)-($D$34-Tier2Purchases!$B24)+1))))) -> 0 | W23: =IF(OR(Tier2Purchases!$B24>$D$37,Tier2Purchases!$C24<$D$36),0,IF(AND(Tier2Purchases!$B24<$D$36,Tier2Purchases!$C24>$D$37),(Tier2Purchases!$C24-Tier2Purchases!$B24)-(Tier2Purchases!$C24-$D$38)-($D$36-Tier2Purchases!$B24),IF(AND(Tier2Purchases!$C24<=$D$37,Tier2Purchases!$B24>=$D$36),($D$37-$D$36)-($D$37-Tier2Purchases!$C24)-(Tier2Purchases!$B24-$D$36)+1,IF(Tier2Purchases!$B24>=$D$36,(Tier2Purchases!$C24-Tier2Purchases!$B24)-(Tier2Purchases!$C24-$D$38),IF(Tier2Purchases!$C24<=$D$37,(Tier2Purchases!$C24-Tier2Purchases!$B24)-($D$36-Tier2Purchases!$B24)+1))))) -> 0 | X23: =IF(OR(Tier2Purchases!$B24>$D$39,Tier2Purchases!$C24<$D$38),0,IF(AND(Tier2Purchases!$B24<$D$38,Tier2Purchases!$C24>$D$39),(Tier2Purchases!$C24-Tier2Purchases!$B24)-(Tier2Purchases!$C24-$D$39)-($D$38-Tier2Purchases!$B24)+1,IF(AND(Tier2Purchases!$C24<=$D$39,Tier2Purchases!$B24>=$D$38),($D$39-$D$38)-($D$39-Tier2Purchases!$C24)-(Tier2Purchases!$B24-$D$38)+1,IF(Tier2Purchases!$B24>=$D$38,(Tier2Purchases!$C24-Tier2Purchases!$B24)-(Tier2Purchases!$C24-$D$39)+1,IF(Tier2Purchases!$C24<=$D$39,(Tier2Purchases!$C24-Tier2Purchases!$B24)-($D$38-Tier2Purchases!$B24)+1))))) -> 0 | Y23: =SUM(H23:X23) -> 365 | Z23: 0 | AA23: =Tier2Purchases!$C24-Tier2Purchases!$B24+1 -> 365 | AB23: =AA23=(Y23+Z23) -> TRUE
B24: FY2021 | C24: START DATE | D24: 2020-10-01 | H24: =IF(OR(Tier2Purchases!$B25>$D$7,Tier2Purchases!$C25<$D$6),0,IF(AND(Tier2Purchases!$B25<$D$6,Tier2Purchases!$C25>$D$7),(Tier2Purchases!$C25-Tier2Purchases!$B25)-(Tier2Purchases!$C25-$D$8)-($D$6-Tier2Purchases!$B25),IF(AND(Tier2Purchases!$C25<=$D$7,Tier2Purchases!$B25>=$D$6),($D$7-$D$6)-($D$7-Tier2Purchases!$C25)-(Tier2Purchases!$B25-$D$6)+1,IF(Tier2Purchases!$B25>=$D$6,(Tier2Purchases!$C25-Tier2Purchases!$B25)-(Tier2Purchases!$C25-$D$8),IF(Tier2Purchases!$C25<=$D$7,(Tier2Purchases!$C25-Tier2Purchases!$B25)-($D$6-Tier2Purchases!$B25)+1))))) -> 0 | I24: =IF(OR(Tier2Purchases!$B25>$D$9,Tier2Purchases!$C25<$D$8),0,IF(AND(Tier2Purchases!$B25<$D$8,Tier2Purchases!$C25>$D$9),(Tier2Purchases!$C25-Tier2Purchases!$B25)-(Tier2Purchases!$C25-$D$10)-($D$8-Tier2Purchases!$B25),IF(AND(Tier2Purchases!$C25<=$D$9,Tier2Purchases!$B25>=$D$8),($D$9-$D$8)-($D$9-Tier2Purchases!$C25)-(Tier2Purchases!$B25-$D$8)+1,IF(Tier2Purchases!$B25>=$D$8,(Tier2Purchases!$C25-Tier2Purchases!$B25)-(Tier2Purchases!$C25-$D$10),IF(Tier2Purchases!$C25<=$D$9,(Tier2Purchases!$C25-Tier2Purchases!$B25)-($D$8-Tier2Purchases!$B25)+1))))) -> 0 | J24: =IF(OR(Tier2Purchases!$B25>$D$11,Tier2Purchases!$C25<$D$10),0,IF(AND(Tier2Purchases!$B25<$D$10,Tier2Purchases!$C25>$D$11),(Tier2Purchases!$C25-Tier2Purchases!$B25)-(Tier2Purchases!$C25-$D$12)-($D$10-Tier2Purchases!$B25),IF(AND(Tier2Purchases!$C25<=$D$11,Tier2Purchases!$B25>=$D$10),($D$11-$D$10)-($D$11-Tier2Purchases!$C25)-(Tier2Purchases!$B25-$D$10)+1,IF(Tier2Purchases!$B25>=$D$10,(Tier2Purchases!$C25-Tier2Purchases!$B25)-(Tier2Purchases!$C25-$D$12),IF(Tier2Purchases!$C25<=$D$11,(Tier2Purchases!$C25-Tier2Purchases!$B25)-($D$10-Tier2Purchases!$B25)+1))))) -> 0 | K24: =IF(OR(Tier2Purchases!$B25>$D$13,Tier2Purchases!$C25<$D$12),0,IF(AND(Tier2Purchases!$B25<$D$12,Tier2Purchases!$C25>$D$13),(Tier2Purchases!$C25-Tier2Purchases!$B25)-(Tier2Purchases!$C25-$D$14)-($D$12-Tier2Purchases!$B25),IF(AND(Tier2Purchases!$C25<=$D$13,Tier2Purchases!$B25>=$D$12),($D$13-$D$12)-($D$13-Tier2Purchases!$C25)-(Tier2Purchases!$B25-$D$12)+1,IF(Tier2Purchases!$B25>=$D$12,(Tier2Purchases!$C25-Tier2Purchases!$B25)-(Tier2Purchases!$C25-$D$14),IF(Tier2Purchases!$C25<=$D$13,(Tier2Purchases!$C25-Tier2Purchases!$B25)-($D$12-Tier2Purchases!$B25)+1))))) -> 0 | L24: =IF(OR(Tier2Purchases!$B25>$D$15,Tier2Purchases!$C25<$D$14),0,IF(AND(Tier2Purchases!$B25<$D$14,Tier2Purchases!$C25>$D$15),(Tier2Purchases!$C25-Tier2Purchases!$B25)-(Tier2Purchases!$C25-$D$16)-($D$14-Tier2Purchases!$B25),IF(AND(Tier2Purchases!$C25<=$D$15,Tier2Purchases!$B25>=$D$14),($D$15-$D$14)-($D$15-Tier2Purchases!$C25)-(Tier2Purchases!$B25-$D$14)+1,IF(Tier2Purchases!$B25>=$D$14,(Tier2Purchases!$C25-Tier2Purchases!$B25)-(Tier2Purchases!$C25-$D$16),IF(Tier2Purchases!$C25<=$D$15,(Tier2Purchases!$C25-Tier2Purchases!$B25)-($D$14-Tier2Purchases!$B25)+1))))) -> 0 | M24: =IF(OR(Tier2Purchases!$B25>$D$17,Tier2Purchases!$C25<$D$16),0,IF(AND(Tier2Purchases!$B25<$D$16,Tier2Purchases!$C25>$D$17),(Tier2Purchases!$C25-Tier2Purchases!$B25)-(Tier2Purchases!$C25-$D$18)-($D$16-Tier2Purchases!$B25),IF(AND(Tier2Purchases!$C25<=$D$17,Tier2Purchases!$B25>=$D$16),($D$17-$D$16)-($D$17-Tier2Purchases!$C25)-(Tier2Purchases!$B25-$D$16)+1,IF(Tier2Purchases!$B25>=$D$16,(Tier2Purchases!$C25-Tier2Purchases!$B25)-(Tier2Purchases!$C25-$D$18),IF(Tier2Purchases!$C25<=$D$17,(Tier2Purchases!$C25-Tier2Purchases!$B25)-($D$16-Tier2Purchases!$B25)+1))))) -> 0 | N24: =IF(OR(Tier2Purchases!$B25>$D$19,Tier2Purchases!$C25<$D$18),0,IF(AND(Tier2Purchases!$B25<$D$18,Tier2Purchases!$C25>$D$19),(Tier2Purchases!$C25-Tier2Purchases!$B25)-(Tier2Purchases!$C25-$D$20)-($D$18-Tier2Purchases!$B25),IF(AND(Tier2Purchases!$C25<=$D$19,Tier2Purchases!$B25>=$D$18),($D$19-$D$18)-($D$19-Tier2Purchases!$C25)-(Tier2Purchases!$B25-$D$18)+1,IF(Tier2Purchases!$B25>=$D$18,(Tier2Purchases!$C25-Tier2Purchases!$B25)-(Tier2Purchases!$C25-$D$20),IF(Tier2Purchases!$C25<=$D$19,(Tier2Purchases!$C25-Tier2Purchases!$B25)-($D$18-Tier2Purchases!$B25)+1))))) -> 365 | O24: =IF(OR(Tier2Purchases!$B25>$D$21,Tier2Purchases!$C25<$D$20),0,IF(AND(Tier2Purchases!$B25<$D$20,Tier2Purchases!$C25>$D$21),(Tier2Purchases!$C25-Tier2Purchases!$B25)-(Tier2Purchases!$C25-$D$22)-($D$20-Tier2Purchases!$B25),IF(AND(Tier2Purchases!$C25<=$D$21,Tier2Purchases!$B25>=$D$20),($D$21-$D$20)-($D$21-Tier2Purchases!$C25)-(Tier2Purchases!$B25-$D$20)+1,IF(Tier2Purchases!$B25>=$D$20,(Tier2Purchases!$C25-Tier2Purchases!$B25)-(Tier2Purchases!$C25-$D$22),IF(Tier2Purchases!$C25<=$D$21,(Tier2Purchases!$C25-Tier2Purchases!$B25)-($D$20-Tier2Purchases!$B25)+1))))) -> 0 | P24: =IF(OR(Tier2Purchases!$B25>$D$23,Tier2Purchases!$C25<$D$22),0,IF(AND(Tier2Purchases!$B25<$D$22,Tier2Purchases!$C25>$D$23),(Tier2Purchases!$C25-Tier2Purchases!$B25)-(Tier2Purchases!$C25-$D$24)-($D$22-Tier2Purchases!$B25),IF(AND(Tier2Purchases!$C25<=$D$23,Tier2Purchases!$B25>=$D$22),($D$23-$D$22)-($D$23-Tier2Purchases!$C25)-(Tier2Purchases!$B25-$D$22)+1,IF(Tier2Purchases!$B25>=$D$22,(Tier2Purchases!$C25-Tier2Purchases!$B25)-(Tier2Purchases!$C25-$D$24),IF(Tier2Purchases!$C25<=$D$23,(Tier2Purchases!$C25-Tier2Purchases!$B25)-($D$22-Tier2Purchases!$B25)+1))))) -> 0 | Q24: =IF(OR(Tier2Purchases!$B25>$D$25,Tier2Purchases!$C25<$D$24),0,IF(AND(Tier2Purchases!$B25<$D$24,Tier2Purchases!$C25>$D$25),(Tier2Purchases!$C25-Tier2Purchases!$B25)-(Tier2Purchases!$C25-$D$26)-($D$24-Tier2Purchases!$B25),IF(AND(Tier2Purchases!$C25<=$D$25,Tier2Purchases!$B25>=$D$24),($D$25-$D$24)-($D$25-Tier2Purchases!$C25)-(Tier2Purchases!$B25-$D$24)+1,IF(Tier2Purchases!$B25>=$D$24,(Tier2Purchases!$C25-Tier2Purchases!$B25)-(Tier2Purchases!$C25-$D$26),IF(Tier2Purchases!$C25<=$D$25,(Tier2Purchases!$C25-Tier2Purchases!$B25)-($D$24-Tier2Purchases!$B25)+1))))) -> 0 | R24: =IF(OR(Tier2Purchases!$B25>$D$27,Tier2Purchases!$C25<$D$26),0,IF(AND(Tier2Purchases!$B25<$D$26,Tier2Purchases!$C25>$D$27),(Tier2Purchases!$C25-Tier2Purchases!$B25)-(Tier2Purchases!$C25-$D$28)-($D$26-Tier2Purchases!$B25),IF(AND(Tier2Purchases!$C25<=$D$27,Tier2Purchases!$B25>=$D$26),($D$27-$D$26)-($D$27-Tier2Purchases!$C25)-(Tier2Purchases!$B25-$D$26)+1,IF(Tier2Purchases!$B25>=$D$26,(Tier2Purchases!$C25-Tier2Purchases!$B25)-(Tier2Purchases!$C25-$D$28),IF(Tier2Purchases!$C25<=$D$27,(Tier2Purchases!$C25-Tier2Purchases!$B25)-($D$26-Tier2Purchases!$B25)+1))))) -> 0 | S24: =IF(OR(Tier2Purchases!$B25>$D$29,Tier2Purchases!$C25<$D$28),0,IF(AND(Tier2Purchases!$B25<$D$28,Tier2Purchases!$C25>$D$29),(Tier2Purchases!$C25-Tier2Purchases!$B25)-(Tier2Purchases!$C25-$D$30)-($D$28-Tier2Purchases!$B25),IF(AND(Tier2Purchases!$C25<=$D$29,Tier2Purchases!$B25>=$D$28),($D$29-$D$28)-($D$29-Tier2Purchases!$C25)-(Tier2Purchases!$B25-$D$28)+1,IF(Tier2Purchases!$B25>=$D$28,(Tier2Purchases!$C25-Tier2Purchases!$B25)-(Tier2Purchases!$C25-$D$30),IF(Tier2Purchases!$C25<=$D$29,(Tier2Purchases!$C25-Tier2Purchases!$B25)-($D$28-Tier2Purchases!$B25)+1))))) -> 0 | T24: =IF(OR(Tier2Purchases!$B25>$D$31,Tier2Purchases!$C25<$D$30),0,IF(AND(Tier2Purchases!$B25<$D$30,Tier2Purchases!$C25>$D$31),(Tier2Purchases!$C25-Tier2Purchases!$B25)-(Tier2Purchases!$C25-$D$32)-($D$30-Tier2Purchases!$B25),IF(AND(Tier2Purchases!$C25<=$D$31,Tier2Purchases!$B25>=$D$30),($D$31-$D$30)-($D$31-Tier2Purchases!$C25)-(Tier2Purchases!$B25-$D$30)+1,IF(Tier2Purchases!$B25>=$D$30,(Tier2Purchases!$C25-Tier2Purchases!$B25)-(Tier2Purchases!$C25-$D$32),IF(Tier2Purchases!$C25<=$D$31,(Tier2Purchases!$C25-Tier2Purchases!$B25)-($D$30-Tier2Purchases!$B25)+1))))) -> 0 | U24: =IF(OR(Tier2Purchases!$B25>$D$33,Tier2Purchases!$C25<$D$32),0,IF(AND(Tier2Purchases!$B25<$D$32,Tier2Purchases!$C25>$D$33),(Tier2Purchases!$C25-Tier2Purchases!$B25)-(Tier2Purchases!$C25-$D$34)-($D$32-Tier2Purchases!$B25),IF(AND(Tier2Purchases!$C25<=$D$33,Tier2Purchases!$B25>=$D$32),($D$33-$D$32)-($D$33-Tier2Purchases!$C25)-(Tier2Purchases!$B25-$D$32)+1,IF(Tier2Purchases!$B25>=$D$32,(Tier2Purchases!$C25-Tier2Purchases!$B25)-(Tier2Purchases!$C25-$D$34),IF(Tier2Purchases!$C25<=$D$33,(Tier2Purchases!$C25-Tier2Purchases!$B25)-($D$32-Tier2Purchases!$B25)+1))))) -> 0 | V24: =IF(OR(Tier2Purchases!$B25>$D$35,Tier2Purchases!$C25<$D$34),0,IF(AND(Tier2Purchases!$B25<$D$34,Tier2Purchases!$C25>$D$35),(Tier2Purchases!$C25-Tier2Purchases!$B25)-(Tier2Purchases!$C25-$D$36)-($D$34-Tier2Purchases!$B25),IF(AND(Tier2Purchases!$C25<=$D$35,Tier2Purchases!$B25>=$D$34),($D$35-$D$34)-($D$35-Tier2Purchases!$C25)-(Tier2Purchases!$B25-$D$34)+1,IF(Tier2Purchases!$B25>=$D$34,(Tier2Purchases!$C25-Tier2Purchases!$B25)-(Tier2Purchases!$C25-$D$36),IF(Tier2Purchases!$C25<=$D$35,(Tier2Purchases!$C25-Tier2Purchases!$B25)-($D$34-Tier2Purchases!$B25)+1))))) -> 0 | W24: =IF(OR(Tier2Purchases!$B25>$D$37,Tier2Purchases!$C25<$D$36),0,IF(AND(Tier2Purchases!$B25<$D$36,Tier2Purchases!$C25>$D$37),(Tier2Purchases!$C25-Tier2Purchases!$B25)-(Tier2Purchases!$C25-$D$38)-($D$36-Tier2Purchases!$B25),IF(AND(Tier2Purchases!$C25<=$D$37,Tier2Purchases!$B25>=$D$36),($D$37-$D$36)-($D$37-Tier2Purchases!$C25)-(Tier2Purchases!$B25-$D$36)+1,IF(Tier2Purchases!$B25>=$D$36,(Tier2Purchases!$C25-Tier2Purchases!$B25)-(Tier2Purchases!$C25-$D$38),IF(Tier2Purchases!$C25<=$D$37,(Tier2Purchases!$C25-Tier2Purchases!$B25)-($D$36-Tier2Purchases!$B25)+1))))) -> 0 | X24: =IF(OR(Tier2Purchases!$B25>$D$39,Tier2Purchases!$C25<$D$38),0,IF(AND(Tier2Purchases!$B25<$D$38,Tier2Purchases!$C25>$D$39),(Tier2Purchases!$C25-Tier2Purchases!$B25)-(Tier2Purchases!$C25-$D$39)-($D$38-Tier2Purchases!$B25)+1,IF(AND(Tier2Purchases!$C25<=$D$39,Tier2Purchases!$B25>=$D$38),($D$39-$D$38)-($D$39-Tier2Purchases!$C25)-(Tier2Purchases!$B25-$D$38)+1,IF(Tier2Purchases!$B25>=$D$38,(Tier2Purchases!$C25-Tier2Purchases!$B25)-(Tier2Purchases!$C25-$D$39)+1,IF(Tier2Purchases!$C25<=$D$39,(Tier2Purchases!$C25-Tier2Purchases!$B25)-($D$38-Tier2Purchases!$B25)+1))))) -> 0 | Y24: =SUM(H24:X24) -> 365 | Z24: 0 | AA24: =Tier2Purchases!$C25-Tier2Purchases!$B25+1 -> 365 | AB24: =AA24=(Y24+Z24) -> TRUE
C25: END DATE | D25: 2021-09-30 | H25: =IF(OR(Tier2Purchases!$B26>$D$7,Tier2Purchases!$C26<$D$6),0,IF(AND(Tier2Purchases!$B26<$D$6,Tier2Purchases!$C26>$D$7),(Tier2Purchases!$C26-Tier2Purchases!$B26)-(Tier2Purchases!$C26-$D$8)-($D$6-Tier2Purchases!$B26),IF(AND(Tier2Purchases!$C26<=$D$7,Tier2Purchases!$B26>=$D$6),($D$7-$D$6)-($D$7-Tier2Purchases!$C26)-(Tier2Purchases!$B26-$D$6)+1,IF(Tier2Purchases!$B26>=$D$6,(Tier2Purchases!$C26-Tier2Purchases!$B26)-(Tier2Purchases!$C26-$D$8),IF(Tier2Purchases!$C26<=$D$7,(Tier2Purchases!$C26-Tier2Purchases!$B26)-($D$6-Tier2Purchases!$B26)+1))))) -> 0 | I25: =IF(OR(Tier2Purchases!$B26>$D$9,Tier2Purchases!$C26<$D$8),0,IF(AND(Tier2Purchases!$B26<$D$8,Tier2Purchases!$C26>$D$9),(Tier2Purchases!$C26-Tier2Purchases!$B26)-(Tier2Purchases!$C26-$D$10)-($D$8-Tier2Purchases!$B26),IF(AND(Tier2Purchases!$C26<=$D$9,Tier2Purchases!$B26>=$D$8),($D$9-$D$8)-($D$9-Tier2Purchases!$C26)-(Tier2Purchases!$B26-$D$8)+1,IF(Tier2Purchases!$B26>=$D$8,(Tier2Purchases!$C26-Tier2Purchases!$B26)-(Tier2Purchases!$C26-$D$10),IF(Tier2Purchases!$C26<=$D$9,(Tier2Purchases!$C26-Tier2Purchases!$B26)-($D$8-Tier2Purchases!$B26)+1))))) -> 0 | J25: =IF(OR(Tier2Purchases!$B26>$D$11,Tier2Purchases!$C26<$D$10),0,IF(AND(Tier2Purchases!$B26<$D$10,Tier2Purchases!$C26>$D$11),(Tier2Purchases!$C26-Tier2Purchases!$B26)-(Tier2Purchases!$C26-$D$12)-($D$10-Tier2Purchases!$B26),IF(AND(Tier2Purchases!$C26<=$D$11,Tier2Purchases!$B26>=$D$10),($D$11-$D$10)-($D$11-Tier2Purchases!$C26)-(Tier2Purchases!$B26-$D$10)+1,IF(Tier2Purchases!$B26>=$D$10,(Tier2Purchases!$C26-Tier2Purchases!$B26)-(Tier2Purchases!$C26-$D$12),IF(Tier2Purchases!$C26<=$D$11,(Tier2Purchases!$C26-Tier2Purchases!$B26)-($D$10-Tier2Purchases!$B26)+1))))) -> 0 | K25: =IF(OR(Tier2Purchases!$B26>$D$13,Tier2Purchases!$C26<$D$12),0,IF(AND(Tier2Purchases!$B26<$D$12,Tier2Purchases!$C26>$D$13),(Tier2Purchases!$C26-Tier2Purchases!$B26)-(Tier2Purchases!$C26-$D$14)-($D$12-Tier2Purchases!$B26),IF(AND(Tier2Purchases!$C26<=$D$13,Tier2Purchases!$B26>=$D$12),($D$13-$D$12)-($D$13-Tier2Purchases!$C26)-(Tier2Purchases!$B26-$D$12)+1,IF(Tier2Purchases!$B26>=$D$12,(Tier2Purchases!$C26-Tier2Purchases!$B26)-(Tier2Purchases!$C26-$D$14),IF(Tier2Purchases!$C26<=$D$13,(Tier2Purchases!$C26-Tier2Purchases!$B26)-($D$12-Tier2Purchases!$B26)+1))))) -> 0 | L25: =IF(OR(Tier2Purchases!$B26>$D$15,Tier2Purchases!$C26<$D$14),0,IF(AND(Tier2Purchases!$B26<$D$14,Tier2Purchases!$C26>$D$15),(Tier2Purchases!$C26-Tier2Purchases!$B26)-(Tier2Purchases!$C26-$D$16)-($D$14-Tier2Purchases!$B26),IF(AND(Tier2Purchases!$C26<=$D$15,Tier2Purchases!$B26>=$D$14),($D$15-$D$14)-($D$15-Tier2Purchases!$C26)-(Tier2Purchases!$B26-$D$14)+1,IF(Tier2Purchases!$B26>=$D$14,(Tier2Purchases!$C26-Tier2Purchases!$B26)-(Tier2Purchases!$C26-$D$16),IF(Tier2Purchases!$C26<=$D$15,(Tier2Purchases!$C26-Tier2Purchases!$B26)-($D$14-Tier2Purchases!$B26)+1))))) -> 0 | M25: =IF(OR(Tier2Purchases!$B26>$D$17,Tier2Purchases!$C26<$D$16),0,IF(AND(Tier2Purchases!$B26<$D$16,Tier2Purchases!$C26>$D$17),(Tier2Purchases!$C26-Tier2Purchases!$B26)-(Tier2Purchases!$C26-$D$18)-($D$16-Tier2Purchases!$B26),IF(AND(Tier2Purchases!$C26<=$D$17,Tier2Purchases!$B26>=$D$16),($D$17-$D$16)-($D$17-Tier2Purchases!$C26)-(Tier2Purchases!$B26-$D$16)+1,IF(Tier2Purchases!$B26>=$D$16,(Tier2Purchases!$C26-Tier2Purchases!$B26)-(Tier2Purchases!$C26-$D$18),IF(Tier2Purchases!$C26<=$D$17,(Tier2Purchases!$C26-Tier2Purchases!$B26)-($D$16-Tier2Purchases!$B26)+1))))) -> 0 | N25: =IF(OR(Tier2Purchases!$B26>$D$19,Tier2Purchases!$C26<$D$18),0,IF(AND(Tier2Purchases!$B26<$D$18,Tier2Purchases!$C26>$D$19),(Tier2Purchases!$C26-Tier2Purchases!$B26)-(Tier2Purchases!$C26-$D$20)-($D$18-Tier2Purchases!$B26),IF(AND(Tier2Purchases!$C26<=$D$19,Tier2Purchases!$B26>=$D$18),($D$19-$D$18)-($D$19-Tier2Purchases!$C26)-(Tier2Purchases!$B26-$D$18)+1,IF(Tier2Purchases!$B26>=$D$18,(Tier2Purchases!$C26-Tier2Purchases!$B26)-(Tier2Purchases!$C26-$D$20),IF(Tier2Purchases!$C26<=$D$19,(Tier2Purchases!$C26-Tier2Purchases!$B26)-($D$18-Tier2Purchases!$B26)+1))))) -> 365 | O25: =IF(OR(Tier2Purchases!$B26>$D$21,Tier2Purchases!$C26<$D$20),0,IF(AND(Tier2Purchases!$B26<$D$20,Tier2Purchases!$C26>$D$21),(Tier2Purchases!$C26-Tier2Purchases!$B26)-(Tier2Purchases!$C26-$D$22)-($D$20-Tier2Purchases!$B26),IF(AND(Tier2Purchases!$C26<=$D$21,Tier2Purchases!$B26>=$D$20),($D$21-$D$20)-($D$21-Tier2Purchases!$C26)-(Tier2Purchases!$B26-$D$20)+1,IF(Tier2Purchases!$B26>=$D$20,(Tier2Purchases!$C26-Tier2Purchases!$B26)-(Tier2Purchases!$C26-$D$22),IF(Tier2Purchases!$C26<=$D$21,(Tier2Purchases!$C26-Tier2Purchases!$B26)-($D$20-Tier2Purchases!$B26)+1))))) -> 0 | P25: =IF(OR(Tier2Purchases!$B26>$D$23,Tier2Purchases!$C26<$D$22),0,IF(AND(Tier2Purchases!$B26<$D$22,Tier2Purchases!$C26>$D$23),(Tier2Purchases!$C26-Tier2Purchases!$B26)-(Tier2Purchases!$C26-$D$24)-($D$22-Tier2Purchases!$B26),IF(AND(Tier2Purchases!$C26<=$D$23,Tier2Purchases!$B26>=$D$22),($D$23-$D$22)-($D$23-Tier2Purchases!$C26)-(Tier2Purchases!$B26-$D$22)+1,IF(Tier2Purchases!$B26>=$D$22,(Tier2Purchases!$C26-Tier2Purchases!$B26)-(Tier2Purchases!$C26-$D$24),IF(Tier2Purchases!$C26<=$D$23,(Tier2Purchases!$C26-Tier2Purchases!$B26)-($D$22-Tier2Purchases!$B26)+1))))) -> 0 | Q25: =IF(OR(Tier2Purchases!$B26>$D$25,Tier2Purchases!$C26<$D$24),0,IF(AND(Tier2Purchases!$B26<$D$24,Tier2Purchases!$C26>$D$25),(Tier2Purchases!$C26-Tier2Purchases!$B26)-(Tier2Purchases!$C26-$D$26)-($D$24-Tier2Purchases!$B26),IF(AND(Tier2Purchases!$C26<=$D$25,Tier2Purchases!$B26>=$D$24),($D$25-$D$24)-($D$25-Tier2Purchases!$C26)-(Tier2Purchases!$B26-$D$24)+1,IF(Tier2Purchases!$B26>=$D$24,(Tier2Purchases!$C26-Tier2Purchases!$B26)-(Tier2Purchases!$C26-$D$26),IF(Tier2Purchases!$C26<=$D$25,(Tier2Purchases!$C26-Tier2Purchases!$B26)-($D$24-Tier2Purchases!$B26)+1))))) -> 0 | R25: =IF(OR(Tier2Purchases!$B26>$D$27,Tier2Purchases!$C26<$D$26),0,IF(AND(Tier2Purchases!$B26<$D$26,Tier2Purchases!$C26>$D$27),(Tier2Purchases!$C26-Tier2Purchases!$B26)-(Tier2Purchases!$C26-$D$28)-($D$26-Tier2Purchases!$B26),IF(AND(Tier2Purchases!$C26<=$D$27,Tier2Purchases!$B26>=$D$26),($D$27-$D$26)-($D$27-Tier2Purchases!$C26)-(Tier2Purchases!$B26-$D$26)+1,IF(Tier2Purchases!$B26>=$D$26,(Tier2Purchases!$C26-Tier2Purchases!$B26)-(Tier2Purchases!$C26-$D$28),IF(Tier2Purchases!$C26<=$D$27,(Tier2Purchases!$C26-Tier2Purchases!$B26)-($D$26-Tier2Purchases!$B26)+1))))) -> 0 | S25: =IF(OR(Tier2Purchases!$B26>$D$29,Tier2Purchases!$C26<$D$28),0,IF(AND(Tier2Purchases!$B26<$D$28,Tier2Purchases!$C26>$D$29),(Tier2Purchases!$C26-Tier2Purchases!$B26)-(Tier2Purchases!$C26-$D$30)-($D$28-Tier2Purchases!$B26),IF(AND(Tier2Purchases!$C26<=$D$29,Tier2Purchases!$B26>=$D$28),($D$29-$D$28)-($D$29-Tier2Purchases!$C26)-(Tier2Purchases!$B26-$D$28)+1,IF(Tier2Purchases!$B26>=$D$28,(Tier2Purchases!$C26-Tier2Purchases!$B26)-(Tier2Purchases!$C26-$D$30),IF(Tier2Purchases!$C26<=$D$29,(Tier2Purchases!$C26-Tier2Purchases!$B26)-($D$28-Tier2Purchases!$B26)+1))))) -> 0 | T25: =IF(OR(Tier2Purchases!$B26>$D$31,Tier2Purchases!$C26<$D$30),0,IF(AND(Tier2Purchases!$B26<$D$30,Tier2Purchases!$C26>$D$31),(Tier2Purchases!$C26-Tier2Purchases!$B26)-(Tier2Purchases!$C26-$D$32)-($D$30-Tier2Purchases!$B26),IF(AND(Tier2Purchases!$C26<=$D$31,Tier2Purchases!$B26>=$D$30),($D$31-$D$30)-($D$31-Tier2Purchases!$C26)-(Tier2Purchases!$B26-$D$30)+1,IF(Tier2Purchases!$B26>=$D$30,(Tier2Purchases!$C26-Tier2Purchases!$B26)-(Tier2Purchases!$C26-$D$32),IF(Tier2Purchases!$C26<=$D$31,(Tier2Purchases!$C26-Tier2Purchases!$B26)-($D$30-Tier2Purchases!$B26)+1))))) -> 0 | U25: =IF(OR(Tier2Purchases!$B26>$D$33,Tier2Purchases!$C26<$D$32),0,IF(AND(Tier2Purchases!$B26<$D$32,Tier2Purchases!$C26>$D$33),(Tier2Purchases!$C26-Tier2Purchases!$B26)-(Tier2Purchases!$C26-$D$34)-($D$32-Tier2Purchases!$B26),IF(AND(Tier2Purchases!$C26<=$D$33,Tier2Purchases!$B26>=$D$32),($D$33-$D$32)-($D$33-Tier2Purchases!$C26)-(Tier2Purchases!$B26-$D$32)+1,IF(Tier2Purchases!$B26>=$D$32,(Tier2Purchases!$C26-Tier2Purchases!$B26)-(Tier2Purchases!$C26-$D$34),IF(Tier2Purchases!$C26<=$D$33,(Tier2Purchases!$C26-Tier2Purchases!$B26)-($D$32-Tier2Purchases!$B26)+1))))) -> 0 | V25: =IF(OR(Tier2Purchases!$B26>$D$35,Tier2Purchases!$C26<$D$34),0,IF(AND(Tier2Purchases!$B26<$D$34,Tier2Purchases!$C26>$D$35),(Tier2Purchases!$C26-Tier2Purchases!$B26)-(Tier2Purchases!$C26-$D$36)-($D$34-Tier2Purchases!$B26),IF(AND(Tier2Purchases!$C26<=$D$35,Tier2Purchases!$B26>=$D$34),($D$35-$D$34)-($D$35-Tier2Purchases!$C26)-(Tier2Purchases!$B26-$D$34)+1,IF(Tier2Purchases!$B26>=$D$34,(Tier2Purchases!$C26-Tier2Purchases!$B26)-(Tier2Purchases!$C26-$D$36),IF(Tier2Purchases!$C26<=$D$35,(Tier2Purchases!$C26-Tier2Purchases!$B26)-($D$34-Tier2Purchases!$B26)+1))))) -> 0 | W25: =IF(OR(Tier2Purchases!$B26>$D$37,Tier2Purchases!$C26<$D$36),0,IF(AND(Tier2Purchases!$B26<$D$36,Tier2Purchases!$C26>$D$37),(Tier2Purchases!$C26-Tier2Purchases!$B26)-(Tier2Purchases!$C26-$D$38)-($D$36-Tier2Purchases!$B26),IF(AND(Tier2Purchases!$C26<=$D$37,Tier2Purchases!$B26>=$D$36),($D$37-$D$36)-($D$37-Tier2Purchases!$C26)-(Tier2Purchases!$B26-$D$36)+1,IF(Tier2Purchases!$B26>=$D$36,(Tier2Purchases!$C26-Tier2Purchases!$B26)-(Tier2Purchases!$C26-$D$38),IF(Tier2Purchases!$C26<=$D$37,(Tier2Purchases!$C26-Tier2Purchases!$B26)-($D$36-Tier2Purchases!$B26)+1))))) -> 0 | X25: =IF(OR(Tier2Purchases!$B26>$D$39,Tier2Purchases!$C26<$D$38),0,IF(AND(Tier2Purchases!$B26<$D$38,Tier2Purchases!$C26>$D$39),(Tier2Purchases!$C26-Tier2Purchases!$B26)-(Tier2Purchases!$C26-$D$39)-($D$38-Tier2Purchases!$B26)+1,IF(AND(Tier2Purchases!$C26<=$D$39,Tier2Purchases!$B26>=$D$38),($D$39-$D$38)-($D$39-Tier2Purchases!$C26)-(Tier2Purchases!$B26-$D$38)+1,IF(Tier2Purchases!$B26>=$D$38,(Tier2Purchases!$C26-Tier2Purchases!$B26)-(Tier2Purchases!$C26-$D$39)+1,IF(Tier2Purchases!$C26<=$D$39,(Tier2Purchases!$C26-Tier2Purchases!$B26)-($D$38-Tier2Purchases!$B26)+1))))) -> 0 | Y25: 365 | Z25: 0 | AA25: =Tier2Purchases!$C26-Tier2Purchases!$B26+1 -> 365 | AB25: TRUE
B26: FY2022 | C26: START DATE | D26: 2021-10-01 | H26: =IF(OR(Tier2Purchases!$B27>$D$7,Tier2Purchases!$C27<$D$6),0,IF(AND(Tier2Purchases!$B27<$D$6,Tier2Purchases!$C27>$D$7),(Tier2Purchases!$C27-Tier2Purchases!$B27)-(Tier2Purchases!$C27-$D$8)-($D$6-Tier2Purchases!$B27),IF(AND(Tier2Purchases!$C27<=$D$7,Tier2Purchases!$B27>=$D$6),($D$7-$D$6)-($D$7-Tier2Purchases!$C27)-(Tier2Purchases!$B27-$D$6)+1,IF(Tier2Purchases!$B27>=$D$6,(Tier2Purchases!$C27-Tier2Purchases!$B27)-(Tier2Purchases!$C27-$D$8),IF(Tier2Purchases!$C27<=$D$7,(Tier2Purchases!$C27-Tier2Purchases!$B27)-($D$6-Tier2Purchases!$B27)+1))))) -> 0 | I26: =IF(OR(Tier2Purchases!$B27>$D$9,Tier2Purchases!$C27<$D$8),0,IF(AND(Tier2Purchases!$B27<$D$8,Tier2Purchases!$C27>$D$9),(Tier2Purchases!$C27-Tier2Purchases!$B27)-(Tier2Purchases!$C27-$D$10)-($D$8-Tier2Purchases!$B27),IF(AND(Tier2Purchases!$C27<=$D$9,Tier2Purchases!$B27>=$D$8),($D$9-$D$8)-($D$9-Tier2Purchases!$C27)-(Tier2Purchases!$B27-$D$8)+1,IF(Tier2Purchases!$B27>=$D$8,(Tier2Purchases!$C27-Tier2Purchases!$B27)-(Tier2Purchases!$C27-$D$10),IF(Tier2Purchases!$C27<=$D$9,(Tier2Purchases!$C27-Tier2Purchases!$B27)-($D$8-Tier2Purchases!$B27)+1))))) -> 0 | J26: =IF(OR(Tier2Purchases!$B27>$D$11,Tier2Purchases!$C27<$D$10),0,IF(AND(Tier2Purchases!$B27<$D$10,Tier2Purchases!$C27>$D$11),(Tier2Purchases!$C27-Tier2Purchases!$B27)-(Tier2Purchases!$C27-$D$12)-($D$10-Tier2Purchases!$B27),IF(AND(Tier2Purchases!$C27<=$D$11,Tier2Purchases!$B27>=$D$10),($D$11-$D$10)-($D$11-Tier2Purchases!$C27)-(Tier2Purchases!$B27-$D$10)+1,IF(Tier2Purchases!$B27>=$D$10,(Tier2Purchases!$C27-Tier2Purchases!$B27)-(Tier2Purchases!$C27-$D$12),IF(Tier2Purchases!$C27<=$D$11,(Tier2Purchases!$C27-Tier2Purchases!$B27)-($D$10-Tier2Purchases!$B27)+1))))) -> 0 | K26: =IF(OR(Tier2Purchases!$B27>$D$13,Tier2Purchases!$C27<$D$12),0,IF(AND(Tier2Purchases!$B27<$D$12,Tier2Purchases!$C27>$D$13),(Tier2Purchases!$C27-Tier2Purchases!$B27)-(Tier2Purchases!$C27-$D$14)-($D$12-Tier2Purchases!$B27),IF(AND(Tier2Purchases!$C27<=$D$13,Tier2Purchases!$B27>=$D$12),($D$13-$D$12)-($D$13-Tier2Purchases!$C27)-(Tier2Purchases!$B27-$D$12)+1,IF(Tier2Purchases!$B27>=$D$12,(Tier2Purchases!$C27-Tier2Purchases!$B27)-(Tier2Purchases!$C27-$D$14),IF(Tier2Purchases!$C27<=$D$13,(Tier2Purchases!$C27-Tier2Purchases!$B27)-($D$12-Tier2Purchases!$B27)+1))))) -> 0 | L26: =IF(OR(Tier2Purchases!$B27>$D$15,Tier2Purchases!$C27<$D$14),0,IF(AND(Tier2Purchases!$B27<$D$14,Tier2Purchases!$C27>$D$15),(Tier2Purchases!$C27-Tier2Purchases!$B27)-(Tier2Purchases!$C27-$D$16)-($D$14-Tier2Purchases!$B27),IF(AND(Tier2Purchases!$C27<=$D$15,Tier2Purchases!$B27>=$D$14),($D$15-$D$14)-($D$15-Tier2Purchases!$C27)-(Tier2Purchases!$B27-$D$14)+1,IF(Tier2Purchases!$B27>=$D$14,(Tier2Purchases!$C27-Tier2Purchases!$B27)-(Tier2Purchases!$C27-$D$16),IF(Tier2Purchases!$C27<=$D$15,(Tier2Purchases!$C27-Tier2Purchases!$B27)-($D$14-Tier2Purchases!$B27)+1))))) -> 0 | M26: =IF(OR(Tier2Purchases!$B27>$D$17,Tier2Purchases!$C27<$D$16),0,IF(AND(Tier2Purchases!$B27<$D$16,Tier2Purchases!$C27>$D$17),(Tier2Purchases!$C27-Tier2Purchases!$B27)-(Tier2Purchases!$C27-$D$18)-($D$16-Tier2Purchases!$B27),IF(AND(Tier2Purchases!$C27<=$D$17,Tier2Purchases!$B27>=$D$16),($D$17-$D$16)-($D$17-Tier2Purchases!$C27)-(Tier2Purchases!$B27-$D$16)+1,IF(Tier2Purchases!$B27>=$D$16,(Tier2Purchases!$C27-Tier2Purchases!$B27)-(Tier2Purchases!$C27-$D$18),IF(Tier2Purchases!$C27<=$D$17,(Tier2Purchases!$C27-Tier2Purchases!$B27)-($D$16-Tier2Purchases!$B27)+1))))) -> 0 | N26: =IF(OR(Tier2Purchases!$B27>$D$19,Tier2Purchases!$C27<$D$18),0,IF(AND(Tier2Purchases!$B27<$D$18,Tier2Purchases!$C27>$D$19),(Tier2Purchases!$C27-Tier2Purchases!$B27)-(Tier2Purchases!$C27-$D$20)-($D$18-Tier2Purchases!$B27),IF(AND(Tier2Purchases!$C27<=$D$19,Tier2Purchases!$B27>=$D$18),($D$19-$D$18)-($D$19-Tier2Purchases!$C27)-(Tier2Purchases!$B27-$D$18)+1,IF(Tier2Purchases!$B27>=$D$18,(Tier2Purchases!$C27-Tier2Purchases!$B27)-(Tier2Purchases!$C27-$D$20),IF(Tier2Purchases!$C27<=$D$19,(Tier2Purchases!$C27-Tier2Purchases!$B27)-($D$18-Tier2Purchases!$B27)+1))))) -> 0 | O26: =IF(OR(Tier2Purchases!$B27>$D$21,Tier2Purchases!$C27<$D$20),0,IF(AND(Tier2Purchases!$B27<$D$20,Tier2Purchases!$C27>$D$21),(Tier2Purchases!$C27-Tier2Purchases!$B27)-(Tier2Purchases!$C27-$D$22)-($D$20-Tier2Purchases!$B27),IF(AND(Tier2Purchases!$C27<=$D$21,Tier2Purchases!$B27>=$D$20),($D$21-$D$20)-($D$21-Tier2Purchases!$C27)-(Tier2Purchases!$B27-$D$20)+1,IF(Tier2Purchases!$B27>=$D$20,(Tier2Purchases!$C27-Tier2Purchases!$B27)-(Tier2Purchases!$C27-$D$22),IF(Tier2Purchases!$C27<=$D$21,(Tier2Purchases!$C27-Tier2Purchases!$B27)-($D$20-Tier2Purchases!$B27)+1))))) -> 365 | P26: =IF(OR(Tier2Purchases!$B27>$D$23,Tier2Purchases!$C27<$D$22),0,IF(AND(Tier2Purchases!$B27<$D$22,Tier2Purchases!$C27>$D$23),(Tier2Purchases!$C27-Tier2Purchases!$B27)-(Tier2Purchases!$C27-$D$24)-($D$22-Tier2Purchases!$B27),IF(AND(Tier2Purchases!$C27<=$D$23,Tier2Purchases!$B27>=$D$22),($D$23-$D$22)-($D$23-Tier2Purchases!$C27)-(Tier2Purchases!$B27-$D$22)+1,IF(Tier2Purchases!$B27>=$D$22,(Tier2Purchases!$C27-Tier2Purchases!$B27)-(Tier2Purchases!$C27-$D$24),IF(Tier2Purchases!$C27<=$D$23,(Tier2Purchases!$C27-Tier2Purchases!$B27)-($D$22-Tier2Purchases!$B27)+1))))) -> 0 | Q26: =IF(OR(Tier2Purchases!$B27>$D$25,Tier2Purchases!$C27<$D$24),0,IF(AND(Tier2Purchases!$B27<$D$24,Tier2Purchases!$C27>$D$25),(Tier2Purchases!$C27-Tier2Purchases!$B27)-(Tier2Purchases!$C27-$D$26)-($D$24-Tier2Purchases!$B27),IF(AND(Tier2Purchases!$C27<=$D$25,Tier2Purchases!$B27>=$D$24),($D$25-$D$24)-($D$25-Tier2Purchases!$C27)-(Tier2Purchases!$B27-$D$24)+1,IF(Tier2Purchases!$B27>=$D$24,(Tier2Purchases!$C27-Tier2Purchases!$B27)-(Tier2Purchases!$C27-$D$26),IF(Tier2Purchases!$C27<=$D$25,(Tier2Purchases!$C27-Tier2Purchases!$B27)-($D$24-Tier2Purchases!$B27)+1))))) -> 0 | R26: =IF(OR(Tier2Purchases!$B27>$D$27,Tier2Purchases!$C27<$D$26),0,IF(AND(Tier2Purchases!$B27<$D$26,Tier2Purchases!$C27>$D$27),(Tier2Purchases!$C27-Tier2Purchases!$B27)-(Tier2Purchases!$C27-$D$28)-($D$26-Tier2Purchases!$B27),IF(AND(Tier2Purchases!$C27<=$D$27,Tier2Purchases!$B27>=$D$26),($D$27-$D$26)-($D$27-Tier2Purchases!$C27)-(Tier2Purchases!$B27-$D$26)+1,IF(Tier2Purchases!$B27>=$D$26,(Tier2Purchases!$C27-Tier2Purchases!$B27)-(Tier2Purchases!$C27-$D$28),IF(Tier2Purchases!$C27<=$D$27,(Tier2Purchases!$C27-Tier2Purchases!$B27)-($D$26-Tier2Purchases!$B27)+1))))) -> 0 | S26: =IF(OR(Tier2Purchases!$B27>$D$29,Tier2Purchases!$C27<$D$28),0,IF(AND(Tier2Purchases!$B27<$D$28,Tier2Purchases!$C27>$D$29),(Tier2Purchases!$C27-Tier2Purchases!$B27)-(Tier2Purchases!$C27-$D$30)-($D$28-Tier2Purchases!$B27),IF(AND(Tier2Purchases!$C27<=$D$29,Tier2Purchases!$B27>=$D$28),($D$29-$D$28)-($D$29-Tier2Purchases!$C27)-(Tier2Purchases!$B27-$D$28)+1,IF(Tier2Purchases!$B27>=$D$28,(Tier2Purchases!$C27-Tier2Purchases!$B27)-(Tier2Purchases!$C27-$D$30),IF(Tier2Purchases!$C27<=$D$29,(Tier2Purchases!$C27-Tier2Purchases!$B27)-($D$28-Tier2Purchases!$B27)+1))))) -> 0 | T26: =IF(OR(Tier2Purchases!$B27>$D$31,Tier2Purchases!$C27<$D$30),0,IF(AND(Tier2Purchases!$B27<$D$30,Tier2Purchases!$C27>$D$31),(Tier2Purchases!$C27-Tier2Purchases!$B27)-(Tier2Purchases!$C27-$D$32)-($D$30-Tier2Purchases!$B27),IF(AND(Tier2Purchases!$C27<=$D$31,Tier2Purchases!$B27>=$D$30),($D$31-$D$30)-($D$31-Tier2Purchases!$C27)-(Tier2Purchases!$B27-$D$30)+1,IF(Tier2Purchases!$B27>=$D$30,(Tier2Purchases!$C27-Tier2Purchases!$B27)-(Tier2Purchases!$C27-$D$32),IF(Tier2Purchases!$C27<=$D$31,(Tier2Purchases!$C27-Tier2Purchases!$B27)-($D$30-Tier2Purchases!$B27)+1))))) -> 0 | U26: =IF(OR(Tier2Purchases!$B27>$D$33,Tier2Purchases!$C27<$D$32),0,IF(AND(Tier2Purchases!$B27<$D$32,Tier2Purchases!$C27>$D$33),(Tier2Purchases!$C27-Tier2Purchases!$B27)-(Tier2Purchases!$C27-$D$34)-($D$32-Tier2Purchases!$B27),IF(AND(Tier2Purchases!$C27<=$D$33,Tier2Purchases!$B27>=$D$32),($D$33-$D$32)-($D$33-Tier2Purchases!$C27)-(Tier2Purchases!$B27-$D$32)+1,IF(Tier2Purchases!$B27>=$D$32,(Tier2Purchases!$C27-Tier2Purchases!$B27)-(Tier2Purchases!$C27-$D$34),IF(Tier2Purchases!$C27<=$D$33,(Tier2Purchases!$C27-Tier2Purchases!$B27)-($D$32-Tier2Purchases!$B27)+1))))) -> 0 | V26: =IF(OR(Tier2Purchases!$B27>$D$35,Tier2Purchases!$C27<$D$34),0,IF(AND(Tier2Purchases!$B27<$D$34,Tier2Purchases!$C27>$D$35),(Tier2Purchases!$C27-Tier2Purchases!$B27)-(Tier2Purchases!$C27-$D$36)-($D$34-Tier2Purchases!$B27),IF(AND(Tier2Purchases!$C27<=$D$35,Tier2Purchases!$B27>=$D$34),($D$35-$D$34)-($D$35-Tier2Purchases!$C27)-(Tier2Purchases!$B27-$D$34)+1,IF(Tier2Purchases!$B27>=$D$34,(Tier2Purchases!$C27-Tier2Purchases!$B27)-(Tier2Purchases!$C27-$D$36),IF(Tier2Purchases!$C27<=$D$35,(Tier2Purchases!$C27-Tier2Purchases!$B27)-($D$34-Tier2Purchases!$B27)+1))))) -> 0 | W26: =IF(OR(Tier2Purchases!$B27>$D$37,Tier2Purchases!$C27<$D$36),0,IF(AND(Tier2Purchases!$B27<$D$36,Tier2Purchases!$C27>$D$37),(Tier2Purchases!$C27-Tier2Purchases!$B27)-(Tier2Purchases!$C27-$D$38)-($D$36-Tier2Purchases!$B27),IF(AND(Tier2Purchases!$C27<=$D$37,Tier2Purchases!$B27>=$D$36),($D$37-$D$36)-($D$37-Tier2Purchases!$C27)-(Tier2Purchases!$B27-$D$36)+1,IF(Tier2Purchases!$B27>=$D$36,(Tier2Purchases!$C27-Tier2Purchases!$B27)-(Tier2Purchases!$C27-$D$38),IF(Tier2Purchases!$C27<=$D$37,(Tier2Purchases!$C27-Tier2Purchases!$B27)-($D$36-Tier2Purchases!$B27)+1))))) -> 0 | X26: =IF(OR(Tier2Purchases!$B27>$D$39,Tier2Purchases!$C27<$D$38),0,IF(AND(Tier2Purchases!$B27<$D$38,Tier2Purchases!$C27>$D$39),(Tier2Purchases!$C27-Tier2Purchases!$B27)-(Tier2Purchases!$C27-$D$39)-($D$38-Tier2Purchases!$B27)+1,IF(AND(Tier2Purchases!$C27<=$D$39,Tier2Purchases!$B27>=$D$38),($D$39-$D$38)-($D$39-Tier2Purchases!$C27)-(Tier2Purchases!$B27-$D$38)+1,IF(Tier2Purchases!$B27>=$D$38,(Tier2Purchases!$C27-Tier2Purchases!$B27)-(Tier2Purchases!$C27-$D$39)+1,IF(Tier2Purchases!$C27<=$D$39,(Tier2Purchases!$C27-Tier2Purchases!$B27)-($D$38-Tier2Purchases!$B27)+1))))) -> 0 | Y26: 365 | Z26: 0 | AA26: =Tier2Purchases!$C27-Tier2Purchases!$B27+1 -> 365 | AB26: TRUE
C27: END DATE | D27: 2022-09-30 | H27: =IF(OR(Tier2Purchases!$B28>$D$7,Tier2Purchases!$C28<$D$6),0,IF(AND(Tier2Purchases!$B28<$D$6,Tier2Purchases!$C28>$D$7),(Tier2Purchases!$C28-Tier2Purchases!$B28)-(Tier2Purchases!$C28-$D$8)-($D$6-Tier2Purchases!$B28),IF(AND(Tier2Purchases!$C28<=$D$7,Tier2Purchases!$B28>=$D$6),($D$7-$D$6)-($D$7-Tier2Purchases!$C28)-(Tier2Purchases!$B28-$D$6)+1,IF(Tier2Purchases!$B28>=$D$6,(Tier2Purchases!$C28-Tier2Purchases!$B28)-(Tier2Purchases!$C28-$D$8),IF(Tier2Purchases!$C28<=$D$7,(Tier2Purchases!$C28-Tier2Purchases!$B28)-($D$6-Tier2Purchases!$B28)+1))))) -> 0 | I27: =IF(OR(Tier2Purchases!$B28>$D$9,Tier2Purchases!$C28<$D$8),0,IF(AND(Tier2Purchases!$B28<$D$8,Tier2Purchases!$C28>$D$9),(Tier2Purchases!$C28-Tier2Purchases!$B28)-(Tier2Purchases!$C28-$D$10)-($D$8-Tier2Purchases!$B28),IF(AND(Tier2Purchases!$C28<=$D$9,Tier2Purchases!$B28>=$D$8),($D$9-$D$8)-($D$9-Tier2Purchases!$C28)-(Tier2Purchases!$B28-$D$8)+1,IF(Tier2Purchases!$B28>=$D$8,(Tier2Purchases!$C28-Tier2Purchases!$B28)-(Tier2Purchases!$C28-$D$10),IF(Tier2Purchases!$C28<=$D$9,(Tier2Purchases!$C28-Tier2Purchases!$B28)-($D$8-Tier2Purchases!$B28)+1))))) -> 0 | J27: =IF(OR(Tier2Purchases!$B28>$D$11,Tier2Purchases!$C28<$D$10),0,IF(AND(Tier2Purchases!$B28<$D$10,Tier2Purchases!$C28>$D$11),(Tier2Purchases!$C28-Tier2Purchases!$B28)-(Tier2Purchases!$C28-$D$12)-($D$10-Tier2Purchases!$B28),IF(AND(Tier2Purchases!$C28<=$D$11,Tier2Purchases!$B28>=$D$10),($D$11-$D$10)-($D$11-Tier2Purchases!$C28)-(Tier2Purchases!$B28-$D$10)+1,IF(Tier2Purchases!$B28>=$D$10,(Tier2Purchases!$C28-Tier2Purchases!$B28)-(Tier2Purchases!$C28-$D$12),IF(Tier2Purchases!$C28<=$D$11,(Tier2Purchases!$C28-Tier2Purchases!$B28)-($D$10-Tier2Purchases!$B28)+1))))) -> 0 | K27: =IF(OR(Tier2Purchases!$B28>$D$13,Tier2Purchases!$C28<$D$12),0,IF(AND(Tier2Purchases!$B28<$D$12,Tier2Purchases!$C28>$D$13),(Tier2Purchases!$C28-Tier2Purchases!$B28)-(Tier2Purchases!$C28-$D$14)-($D$12-Tier2Purchases!$B28),IF(AND(Tier2Purchases!$C28<=$D$13,Tier2Purchases!$B28>=$D$12),($D$13-$D$12)-($D$13-Tier2Purchases!$C28)-(Tier2Purchases!$B28-$D$12)+1,IF(Tier2Purchases!$B28>=$D$12,(Tier2Purchases!$C28-Tier2Purchases!$B28)-(Tier2Purchases!$C28-$D$14),IF(Tier2Purchases!$C28<=$D$13,(Tier2Purchases!$C28-Tier2Purchases!$B28)-($D$12-Tier2Purchases!$B28)+1))))) -> 0 | L27: =IF(OR(Tier2Purchases!$B28>$D$15,Tier2Purchases!$C28<$D$14),0,IF(AND(Tier2Purchases!$B28<$D$14,Tier2Purchases!$C28>$D$15),(Tier2Purchases!$C28-Tier2Purchases!$B28)-(Tier2Purchases!$C28-$D$16)-($D$14-Tier2Purchases!$B28),IF(AND(Tier2Purchases!$C28<=$D$15,Tier2Purchases!$B28>=$D$14),($D$15-$D$14)-($D$15-Tier2Purchases!$C28)-(Tier2Purchases!$B28-$D$14)+1,IF(Tier2Purchases!$B28>=$D$14,(Tier2Purchases!$C28-Tier2Purchases!$B28)-(Tier2Purchases!$C28-$D$16),IF(Tier2Purchases!$C28<=$D$15,(Tier2Purchases!$C28-Tier2Purchases!$B28)-($D$14-Tier2Purchases!$B28)+1))))) -> 0 | M27: =IF(OR(Tier2Purchases!$B28>$D$17,Tier2Purchases!$C28<$D$16),0,IF(AND(Tier2Purchases!$B28<$D$16,Tier2Purchases!$C28>$D$17),(Tier2Purchases!$C28-Tier2Purchases!$B28)-(Tier2Purchases!$C28-$D$18)-($D$16-Tier2Purchases!$B28),IF(AND(Tier2Purchases!$C28<=$D$17,Tier2Purchases!$B28>=$D$16),($D$17-$D$16)-($D$17-Tier2Purchases!$C28)-(Tier2Purchases!$B28-$D$16)+1,IF(Tier2Purchases!$B28>=$D$16,(Tier2Purchases!$C28-Tier2Purchases!$B28)-(Tier2Purchases!$C28-$D$18),IF(Tier2Purchases!$C28<=$D$17,(Tier2Purchases!$C28-Tier2Purchases!$B28)-($D$16-Tier2Purchases!$B28)+1))))) -> 0 | N27: =IF(OR(Tier2Purchases!$B28>$D$19,Tier2Purchases!$C28<$D$18),0,IF(AND(Tier2Purchases!$B28<$D$18,Tier2Purchases!$C28>$D$19),(Tier2Purchases!$C28-Tier2Purchases!$B28)-(Tier2Purchases!$C28-$D$20)-($D$18-Tier2Purchases!$B28),IF(AND(Tier2Purchases!$C28<=$D$19,Tier2Purchases!$B28>=$D$18),($D$19-$D$18)-($D$19-Tier2Purchases!$C28)-(Tier2Purchases!$B28-$D$18)+1,IF(Tier2Purchases!$B28>=$D$18,(Tier2Purchases!$C28-Tier2Purchases!$B28)-(Tier2Purchases!$C28-$D$20),IF(Tier2Purchases!$C28<=$D$19,(Tier2Purchases!$C28-Tier2Purchases!$B28)-($D$18-Tier2Purchases!$B28)+1))))) -> 0 | O27: =IF(OR(Tier2Purchases!$B28>$D$21,Tier2Purchases!$C28<$D$20),0,IF(AND(Tier2Purchases!$B28<$D$20,Tier2Purchases!$C28>$D$21),(Tier2Purchases!$C28-Tier2Purchases!$B28)-(Tier2Purchases!$C28-$D$22)-($D$20-Tier2Purchases!$B28),IF(AND(Tier2Purchases!$C28<=$D$21,Tier2Purchases!$B28>=$D$20),($D$21-$D$20)-($D$21-Tier2Purchases!$C28)-(Tier2Purchases!$B28-$D$20)+1,IF(Tier2Purchases!$B28>=$D$20,(Tier2Purchases!$C28-Tier2Purchases!$B28)-(Tier2Purchases!$C28-$D$22),IF(Tier2Purchases!$C28<=$D$21,(Tier2Purchases!$C28-Tier2Purchases!$B28)-($D$20-Tier2Purchases!$B28)+1))))) -> 365 | P27: =IF(OR(Tier2Purchases!$B28>$D$23,Tier2Purchases!$C28<$D$22),0,IF(AND(Tier2Purchases!$B28<$D$22,Tier2Purchases!$C28>$D$23),(Tier2Purchases!$C28-Tier2Purchases!$B28)-(Tier2Purchases!$C28-$D$24)-($D$22-Tier2Purchases!$B28),IF(AND(Tier2Purchases!$C28<=$D$23,Tier2Purchases!$B28>=$D$22),($D$23-$D$22)-($D$23-Tier2Purchases!$C28)-(Tier2Purchases!$B28-$D$22)+1,IF(Tier2Purchases!$B28>=$D$22,(Tier2Purchases!$C28-Tier2Purchases!$B28)-(Tier2Purchases!$C28-$D$24),IF(Tier2Purchases!$C28<=$D$23,(Tier2Purchases!$C28-Tier2Purchases!$B28)-($D$22-Tier2Purchases!$B28)+1))))) -> 0 | Q27: =IF(OR(Tier2Purchases!$B28>$D$25,Tier2Purchases!$C28<$D$24),0,IF(AND(Tier2Purchases!$B28<$D$24,Tier2Purchases!$C28>$D$25),(Tier2Purchases!$C28-Tier2Purchases!$B28)-(Tier2Purchases!$C28-$D$26)-($D$24-Tier2Purchases!$B28),IF(AND(Tier2Purchases!$C28<=$D$25,Tier2Purchases!$B28>=$D$24),($D$25-$D$24)-($D$25-Tier2Purchases!$C28)-(Tier2Purchases!$B28-$D$24)+1,IF(Tier2Purchases!$B28>=$D$24,(Tier2Purchases!$C28-Tier2Purchases!$B28)-(Tier2Purchases!$C28-$D$26),IF(Tier2Purchases!$C28<=$D$25,(Tier2Purchases!$C28-Tier2Purchases!$B28)-($D$24-Tier2Purchases!$B28)+1))))) -> 0 | R27: =IF(OR(Tier2Purchases!$B28>$D$27,Tier2Purchases!$C28<$D$26),0,IF(AND(Tier2Purchases!$B28<$D$26,Tier2Purchases!$C28>$D$27),(Tier2Purchases!$C28-Tier2Purchases!$B28)-(Tier2Purchases!$C28-$D$28)-($D$26-Tier2Purchases!$B28),IF(AND(Tier2Purchases!$C28<=$D$27,Tier2Purchases!$B28>=$D$26),($D$27-$D$26)-($D$27-Tier2Purchases!$C28)-(Tier2Purchases!$B28-$D$26)+1,IF(Tier2Purchases!$B28>=$D$26,(Tier2Purchases!$C28-Tier2Purchases!$B28)-(Tier2Purchases!$C28-$D$28),IF(Tier2Purchases!$C28<=$D$27,(Tier2Purchases!$C28-Tier2Purchases!$B28)-($D$26-Tier2Purchases!$B28)+1))))) -> 0 | S27: =IF(OR(Tier2Purchases!$B28>$D$29,Tier2Purchases!$C28<$D$28),0,IF(AND(Tier2Purchases!$B28<$D$28,Tier2Purchases!$C28>$D$29),(Tier2Purchases!$C28-Tier2Purchases!$B28)-(Tier2Purchases!$C28-$D$30)-($D$28-Tier2Purchases!$B28),IF(AND(Tier2Purchases!$C28<=$D$29,Tier2Purchases!$B28>=$D$28),($D$29-$D$28)-($D$29-Tier2Purchases!$C28)-(Tier2Purchases!$B28-$D$28)+1,IF(Tier2Purchases!$B28>=$D$28,(Tier2Purchases!$C28-Tier2Purchases!$B28)-(Tier2Purchases!$C28-$D$30),IF(Tier2Purchases!$C28<=$D$29,(Tier2Purchases!$C28-Tier2Purchases!$B28)-($D$28-Tier2Purchases!$B28)+1))))) -> 0 | T27: =IF(OR(Tier2Purchases!$B28>$D$31,Tier2Purchases!$C28<$D$30),0,IF(AND(Tier2Purchases!$B28<$D$30,Tier2Purchases!$C28>$D$31),(Tier2Purchases!$C28-Tier2Purchases!$B28)-(Tier2Purchases!$C28-$D$32)-($D$30-Tier2Purchases!$B28),IF(AND(Tier2Purchases!$C28<=$D$31,Tier2Purchases!$B28>=$D$30),($D$31-$D$30)-($D$31-Tier2Purchases!$C28)-(Tier2Purchases!$B28-$D$30)+1,IF(Tier2Purchases!$B28>=$D$30,(Tier2Purchases!$C28-Tier2Purchases!$B28)-(Tier2Purchases!$C28-$D$32),IF(Tier2Purchases!$C28<=$D$31,(Tier2Purchases!$C28-Tier2Purchases!$B28)-($D$30-Tier2Purchases!$B28)+1))))) -> 0 | U27: =IF(OR(Tier2Purchases!$B28>$D$33,Tier2Purchases!$C28<$D$32),0,IF(AND(Tier2Purchases!$B28<$D$32,Tier2Purchases!$C28>$D$33),(Tier2Purchases!$C28-Tier2Purchases!$B28)-(Tier2Purchases!$C28-$D$34)-($D$32-Tier2Purchases!$B28),IF(AND(Tier2Purchases!$C28<=$D$33,Tier2Purchases!$B28>=$D$32),($D$33-$D$32)-($D$33-Tier2Purchases!$C28)-(Tier2Purchases!$B28-$D$32)+1,IF(Tier2Purchases!$B28>=$D$32,(Tier2Purchases!$C28-Tier2Purchases!$B28)-(Tier2Purchases!$C28-$D$34),IF(Tier2Purchases!$C28<=$D$33,(Tier2Purchases!$C28-Tier2Purchases!$B28)-($D$32-Tier2Purchases!$B28)+1))))) -> 0 | V27: =IF(OR(Tier2Purchases!$B28>$D$35,Tier2Purchases!$C28<$D$34),0,IF(AND(Tier2Purchases!$B28<$D$34,Tier2Purchases!$C28>$D$35),(Tier2Purchases!$C28-Tier2Purchases!$B28)-(Tier2Purchases!$C28-$D$36)-($D$34-Tier2Purchases!$B28),IF(AND(Tier2Purchases!$C28<=$D$35,Tier2Purchases!$B28>=$D$34),($D$35-$D$34)-($D$35-Tier2Purchases!$C28)-(Tier2Purchases!$B28-$D$34)+1,IF(Tier2Purchases!$B28>=$D$34,(Tier2Purchases!$C28-Tier2Purchases!$B28)-(Tier2Purchases!$C28-$D$36),IF(Tier2Purchases!$C28<=$D$35,(Tier2Purchases!$C28-Tier2Purchases!$B28)-($D$34-Tier2Purchases!$B28)+1))))) -> 0 | W27: =IF(OR(Tier2Purchases!$B28>$D$37,Tier2Purchases!$C28<$D$36),0,IF(AND(Tier2Purchases!$B28<$D$36,Tier2Purchases!$C28>$D$37),(Tier2Purchases!$C28-Tier2Purchases!$B28)-(Tier2Purchases!$C28-$D$38)-($D$36-Tier2Purchases!$B28),IF(AND(Tier2Purchases!$C28<=$D$37,Tier2Purchases!$B28>=$D$36),($D$37-$D$36)-($D$37-Tier2Purchases!$C28)-(Tier2Purchases!$B28-$D$36)+1,IF(Tier2Purchases!$B28>=$D$36,(Tier2Purchases!$C28-Tier2Purchases!$B28)-(Tier2Purchases!$C28-$D$38),IF(Tier2Purchases!$C28<=$D$37,(Tier2Purchases!$C28-Tier2Purchases!$B28)-($D$36-Tier2Purchases!$B28)+1))))) -> 0 | X27: =IF(OR(Tier2Purchases!$B28>$D$39,Tier2Purchases!$C28<$D$38),0,IF(AND(Tier2Purchases!$B28<$D$38,Tier2Purchases!$C28>$D$39),(Tier2Purchases!$C28-Tier2Purchases!$B28)-(Tier2Purchases!$C28-$D$39)-($D$38-Tier2Purchases!$B28)+1,IF(AND(Tier2Purchases!$C28<=$D$39,Tier2Purchases!$B28>=$D$38),($D$39-$D$38)-($D$39-Tier2Purchases!$C28)-(Tier2Purchases!$B28-$D$38)+1,IF(Tier2Purchases!$B28>=$D$38,(Tier2Purchases!$C28-Tier2Purchases!$B28)-(Tier2Purchases!$C28-$D$39)+1,IF(Tier2Purchases!$C28<=$D$39,(Tier2Purchases!$C28-Tier2Purchases!$B28)-($D$38-Tier2Purchases!$B28)+1))))) -> 0 | Y27: 365 | Z27: 0 | AA27: =Tier2Purchases!$C28-Tier2Purchases!$B28+1 -> 365 | AB27: TRUE
B28: FY2023 | C28: START DATE | D28: 2022-10-01 | H28: =IF(OR(Tier2Purchases!$B29>$D$7,Tier2Purchases!$C29<$D$6),0,IF(AND(Tier2Purchases!$B29<$D$6,Tier2Purchases!$C29>$D$7),(Tier2Purchases!$C29-Tier2Purchases!$B29)-(Tier2Purchases!$C29-$D$8)-($D$6-Tier2Purchases!$B29),IF(AND(Tier2Purchases!$C29<=$D$7,Tier2Purchases!$B29>=$D$6),($D$7-$D$6)-($D$7-Tier2Purchases!$C29)-(Tier2Purchases!$B29-$D$6)+1,IF(Tier2Purchases!$B29>=$D$6,(Tier2Purchases!$C29-Tier2Purchases!$B29)-(Tier2Purchases!$C29-$D$8),IF(Tier2Purchases!$C29<=$D$7,(Tier2Purchases!$C29-Tier2Purchases!$B29)-($D$6-Tier2Purchases!$B29)+1))))) -> 0 | I28: =IF(OR(Tier2Purchases!$B29>$D$9,Tier2Purchases!$C29<$D$8),0,IF(AND(Tier2Purchases!$B29<$D$8,Tier2Purchases!$C29>$D$9),(Tier2Purchases!$C29-Tier2Purchases!$B29)-(Tier2Purchases!$C29-$D$10)-($D$8-Tier2Purchases!$B29),IF(AND(Tier2Purchases!$C29<=$D$9,Tier2Purchases!$B29>=$D$8),($D$9-$D$8)-($D$9-Tier2Purchases!$C29)-(Tier2Purchases!$B29-$D$8)+1,IF(Tier2Purchases!$B29>=$D$8,(Tier2Purchases!$C29-Tier2Purchases!$B29)-(Tier2Purchases!$C29-$D$10),IF(Tier2Purchases!$C29<=$D$9,(Tier2Purchases!$C29-Tier2Purchases!$B29)-($D$8-Tier2Purchases!$B29)+1))))) -> 0 | J28: =IF(OR(Tier2Purchases!$B29>$D$11,Tier2Purchases!$C29<$D$10),0,IF(AND(Tier2Purchases!$B29<$D$10,Tier2Purchases!$C29>$D$11),(Tier2Purchases!$C29-Tier2Purchases!$B29)-(Tier2Purchases!$C29-$D$12)-($D$10-Tier2Purchases!$B29),IF(AND(Tier2Purchases!$C29<=$D$11,Tier2Purchases!$B29>=$D$10),($D$11-$D$10)-($D$11-Tier2Purchases!$C29)-(Tier2Purchases!$B29-$D$10)+1,IF(Tier2Purchases!$B29>=$D$10,(Tier2Purchases!$C29-Tier2Purchases!$B29)-(Tier2Purchases!$C29-$D$12),IF(Tier2Purchases!$C29<=$D$11,(Tier2Purchases!$C29-Tier2Purchases!$B29)-($D$10-Tier2Purchases!$B29)+1))))) -> 0 | K28: =IF(OR(Tier2Purchases!$B29>$D$13,Tier2Purchases!$C29<$D$12),0,IF(AND(Tier2Purchases!$B29<$D$12,Tier2Purchases!$C29>$D$13),(Tier2Purchases!$C29-Tier2Purchases!$B29)-(Tier2Purchases!$C29-$D$14)-($D$12-Tier2Purchases!$B29),IF(AND(Tier2Purchases!$C29<=$D$13,Tier2Purchases!$B29>=$D$12),($D$13-$D$12)-($D$13-Tier2Purchases!$C29)-(Tier2Purchases!$B29-$D$12)+1,IF(Tier2Purchases!$B29>=$D$12,(Tier2Purchases!$C29-Tier2Purchases!$B29)-(Tier2Purchases!$C29-$D$14),IF(Tier2Purchases!$C29<=$D$13,(Tier2Purchases!$C29-Tier2Purchases!$B29)-($D$12-Tier2Purchases!$B29)+1))))) -> 0 | L28: =IF(OR(Tier2Purchases!$B29>$D$15,Tier2Purchases!$C29<$D$14),0,IF(AND(Tier2Purchases!$B29<$D$14,Tier2Purchases!$C29>$D$15),(Tier2Purchases!$C29-Tier2Purchases!$B29)-(Tier2Purchases!$C29-$D$16)-($D$14-Tier2Purchases!$B29),IF(AND(Tier2Purchases!$C29<=$D$15,Tier2Purchases!$B29>=$D$14),($D$15-$D$14)-($D$15-Tier2Purchases!$C29)-(Tier2Purchases!$B29-$D$14)+1,IF(Tier2Purchases!$B29>=$D$14,(Tier2Purchases!$C29-Tier2Purchases!$B29)-(Tier2Purchases!$C29-$D$16),IF(Tier2Purchases!$C29<=$D$15,(Tier2Purchases!$C29-Tier2Purchases!$B29)-($D$14-Tier2Purchases!$B29)+1))))) -> 0 | M28: =IF(OR(Tier2Purchases!$B29>$D$17,Tier2Purchases!$C29<$D$16),0,IF(AND(Tier2Purchases!$B29<$D$16,Tier2Purchases!$C29>$D$17),(Tier2Purchases!$C29-Tier2Purchases!$B29)-(Tier2Purchases!$C29-$D$18)-($D$16-Tier2Purchases!$B29),IF(AND(Tier2Purchases!$C29<=$D$17,Tier2Purchases!$B29>=$D$16),($D$17-$D$16)-($D$17-Tier2Purchases!$C29)-(Tier2Purchases!$B29-$D$16)+1,IF(Tier2Purchases!$B29>=$D$16,(Tier2Purchases!$C29-Tier2Purchases!$B29)-(Tier2Purchases!$C29-$D$18),IF(Tier2Purchases!$C29<=$D$17,(Tier2Purchases!$C29-Tier2Purchases!$B29)-($D$16-Tier2Purchases!$B29)+1))))) -> 0 | N28: =IF(OR(Tier2Purchases!$B29>$D$19,Tier2Purchases!$C29<$D$18),0,IF(AND(Tier2Purchases!$B29<$D$18,Tier2Purchases!$C29>$D$19),(Tier2Purchases!$C29-Tier2Purchases!$B29)-(Tier2Purchases!$C29-$D$20)-($D$18-Tier2Purchases!$B29),IF(AND(Tier2Purchases!$C29<=$D$19,Tier2Purchases!$B29>=$D$18),($D$19-$D$18)-($D$19-Tier2Purchases!$C29)-(Tier2Purchases!$B29-$D$18)+1,IF(Tier2Purchases!$B29>=$D$18,(Tier2Purchases!$C29-Tier2Purchases!$B29)-(Tier2Purchases!$C29-$D$20),IF(Tier2Purchases!$C29<=$D$19,(Tier2Purchases!$C29-Tier2Purchases!$B29)-($D$18-Tier2Purchases!$B29)+1))))) -> 0 | O28: =IF(OR(Tier2Purchases!$B29>$D$21,Tier2Purchases!$C29<$D$20),0,IF(AND(Tier2Purchases!$B29<$D$20,Tier2Purchases!$C29>$D$21),(Tier2Purchases!$C29-Tier2Purchases!$B29)-(Tier2Purchases!$C29-$D$22)-($D$20-Tier2Purchases!$B29),IF(AND(Tier2Purchases!$C29<=$D$21,Tier2Purchases!$B29>=$D$20),($D$21-$D$20)-($D$21-Tier2Purchases!$C29)-(Tier2Purchases!$B29-$D$20)+1,IF(Tier2Purchases!$B29>=$D$20,(Tier2Purchases!$C29-Tier2Purchases!$B29)-(Tier2Purchases!$C29-$D$22),IF(Tier2Purchases!$C29<=$D$21,(Tier2Purchases!$C29-Tier2Purchases!$B29)-($D$20-Tier2Purchases!$B29)+1))))) -> 365 | P28: =IF(OR(Tier2Purchases!$B29>$D$23,Tier2Purchases!$C29<$D$22),0,IF(AND(Tier2Purchases!$B29<$D$22,Tier2Purchases!$C29>$D$23),(Tier2Purchases!$C29-Tier2Purchases!$B29)-(Tier2Purchases!$C29-$D$24)-($D$22-Tier2Purchases!$B29),IF(AND(Tier2Purchases!$C29<=$D$23,Tier2Purchases!$B29>=$D$22),($D$23-$D$22)-($D$23-Tier2Purchases!$C29)-(Tier2Purchases!$B29-$D$22)+1,IF(Tier2Purchases!$B29>=$D$22,(Tier2Purchases!$C29-Tier2Purchases!$B29)-(Tier2Purchases!$C29-$D$24),IF(Tier2Purchases!$C29<=$D$23,(Tier2Purchases!$C29-Tier2Purchases!$B29)-($D$22-Tier2Purchases!$B29)+1))))) -> 0 | Q28: =IF(OR(Tier2Purchases!$B29>$D$25,Tier2Purchases!$C29<$D$24),0,IF(AND(Tier2Purchases!$B29<$D$24,Tier2Purchases!$C29>$D$25),(Tier2Purchases!$C29-Tier2Purchases!$B29)-(Tier2Purchases!$C29-$D$26)-($D$24-Tier2Purchases!$B29),IF(AND(Tier2Purchases!$C29<=$D$25,Tier2Purchases!$B29>=$D$24),($D$25-$D$24)-($D$25-Tier2Purchases!$C29)-(Tier2Purchases!$B29-$D$24)+1,IF(Tier2Purchases!$B29>=$D$24,(Tier2Purchases!$C29-Tier2Purchases!$B29)-(Tier2Purchases!$C29-$D$26),IF(Tier2Purchases!$C29<=$D$25,(Tier2Purchases!$C29-Tier2Purchases!$B29)-($D$24-Tier2Purchases!$B29)+1))))) -> 0 | R28: =IF(OR(Tier2Purchases!$B29>$D$27,Tier2Purchases!$C29<$D$26),0,IF(AND(Tier2Purchases!$B29<$D$26,Tier2Purchases!$C29>$D$27),(Tier2Purchases!$C29-Tier2Purchases!$B29)-(Tier2Purchases!$C29-$D$28)-($D$26-Tier2Purchases!$B29),IF(AND(Tier2Purchases!$C29<=$D$27,Tier2Purchases!$B29>=$D$26),($D$27-$D$26)-($D$27-Tier2Purchases!$C29)-(Tier2Purchases!$B29-$D$26)+1,IF(Tier2Purchases!$B29>=$D$26,(Tier2Purchases!$C29-Tier2Purchases!$B29)-(Tier2Purchases!$C29-$D$28),IF(Tier2Purchases!$C29<=$D$27,(Tier2Purchases!$C29-Tier2Purchases!$B29)-($D$26-Tier2Purchases!$B29)+1))))) -> 0 | S28: =IF(OR(Tier2Purchases!$B29>$D$29,Tier2Purchases!$C29<$D$28),0,IF(AND(Tier2Purchases!$B29<$D$28,Tier2Purchases!$C29>$D$29),(Tier2Purchases!$C29-Tier2Purchases!$B29)-(Tier2Purchases!$C29-$D$30)-($D$28-Tier2Purchases!$B29),IF(AND(Tier2Purchases!$C29<=$D$29,Tier2Purchases!$B29>=$D$28),($D$29-$D$28)-($D$29-Tier2Purchases!$C29)-(Tier2Purchases!$B29-$D$28)+1,IF(Tier2Purchases!$B29>=$D$28,(Tier2Purchases!$C29-Tier2Purchases!$B29)-(Tier2Purchases!$C29-$D$30),IF(Tier2Purchases!$C29<=$D$29,(Tier2Purchases!$C29-Tier2Purchases!$B29)-($D$28-Tier2Purchases!$B29)+1))))) -> 0 | T28: =IF(OR(Tier2Purchases!$B29>$D$31,Tier2Purchases!$C29<$D$30),0,IF(AND(Tier2Purchases!$B29<$D$30,Tier2Purchases!$C29>$D$31),(Tier2Purchases!$C29-Tier2Purchases!$B29)-(Tier2Purchases!$C29-$D$32)-($D$30-Tier2Purchases!$B29),IF(AND(Tier2Purchases!$C29<=$D$31,Tier2Purchases!$B29>=$D$30),($D$31-$D$30)-($D$31-Tier2Purchases!$C29)-(Tier2Purchases!$B29-$D$30)+1,IF(Tier2Purchases!$B29>=$D$30,(Tier2Purchases!$C29-Tier2Purchases!$B29)-(Tier2Purchases!$C29-$D$32),IF(Tier2Purchases!$C29<=$D$31,(Tier2Purchases!$C29-Tier2Purchases!$B29)-($D$30-Tier2Purchases!$B29)+1))))) -> 0 | U28: =IF(OR(Tier2Purchases!$B29>$D$33,Tier2Purchases!$C29<$D$32),0,IF(AND(Tier2Purchases!$B29<$D$32,Tier2Purchases!$C29>$D$33),(Tier2Purchases!$C29-Tier2Purchases!$B29)-(Tier2Purchases!$C29-$D$34)-($D$32-Tier2Purchases!$B29),IF(AND(Tier2Purchases!$C29<=$D$33,Tier2Purchases!$B29>=$D$32),($D$33-$D$32)-($D$33-Tier2Purchases!$C29)-(Tier2Purchases!$B29-$D$32)+1,IF(Tier2Purchases!$B29>=$D$32,(Tier2Purchases!$C29-Tier2Purchases!$B29)-(Tier2Purchases!$C29-$D$34),IF(Tier2Purchases!$C29<=$D$33,(Tier2Purchases!$C29-Tier2Purchases!$B29)-($D$32-Tier2Purchases!$B29)+1))))) -> 0 | V28: =IF(OR(Tier2Purchases!$B29>$D$35,Tier2Purchases!$C29<$D$34),0,IF(AND(Tier2Purchases!$B29<$D$34,Tier2Purchases!$C29>$D$35),(Tier2Purchases!$C29-Tier2Purchases!$B29)-(Tier2Purchases!$C29-$D$36)-($D$34-Tier2Purchases!$B29),IF(AND(Tier2Purchases!$C29<=$D$35,Tier2Purchases!$B29>=$D$34),($D$35-$D$34)-($D$35-Tier2Purchases!$C29)-(Tier2Purchases!$B29-$D$34)+1,IF(Tier2Purchases!$B29>=$D$34,(Tier2Purchases!$C29-Tier2Purchases!$B29)-(Tier2Purchases!$C29-$D$36),IF(Tier2Purchases!$C29<=$D$35,(Tier2Purchases!$C29-Tier2Purchases!$B29)-($D$34-Tier2Purchases!$B29)+1))))) -> 0 | W28: =IF(OR(Tier2Purchases!$B29>$D$37,Tier2Purchases!$C29<$D$36),0,IF(AND(Tier2Purchases!$B29<$D$36,Tier2Purchases!$C29>$D$37),(Tier2Purchases!$C29-Tier2Purchases!$B29)-(Tier2Purchases!$C29-$D$38)-($D$36-Tier2Purchases!$B29),IF(AND(Tier2Purchases!$C29<=$D$37,Tier2Purchases!$B29>=$D$36),($D$37-$D$36)-($D$37-Tier2Purchases!$C29)-(Tier2Purchases!$B29-$D$36)+1,IF(Tier2Purchases!$B29>=$D$36,(Tier2Purchases!$C29-Tier2Purchases!$B29)-(Tier2Purchases!$C29-$D$38),IF(Tier2Purchases!$C29<=$D$37,(Tier2Purchases!$C29-Tier2Purchases!$B29)-($D$36-Tier2Purchases!$B29)+1))))) -> 0 | X28: =IF(OR(Tier2Purchases!$B29>$D$39,Tier2Purchases!$C29<$D$38),0,IF(AND(Tier2Purchases!$B29<$D$38,Tier2Purchases!$C29>$D$39),(Tier2Purchases!$C29-Tier2Purchases!$B29)-(Tier2Purchases!$C29-$D$39)-($D$38-Tier2Purchases!$B29)+1,IF(AND(Tier2Purchases!$C29<=$D$39,Tier2Purchases!$B29>=$D$38),($D$39-$D$38)-($D$39-Tier2Purchases!$C29)-(Tier2Purchases!$B29-$D$38)+1,IF(Tier2Purchases!$B29>=$D$38,(Tier2Purchases!$C29-Tier2Purchases!$B29)-(Tier2Purchases!$C29-$D$39)+1,IF(Tier2Purchases!$C29<=$D$39,(Tier2Purchases!$C29-Tier2Purchases!$B29)-($D$38-Tier2Purchases!$B29)+1))))) -> 0 | Y28: 365 | Z28: 0 | AA28: =Tier2Purchases!$C29-Tier2Purchases!$B29+1 -> 365 | AB28: TRUE
C29: END DATE | D29: 2023-09-30 | H29: =IF(OR(Tier2Purchases!$B30>$D$7,Tier2Purchases!$C30<$D$6),0,IF(AND(Tier2Purchases!$B30<$D$6,Tier2Purchases!$C30>$D$7),(Tier2Purchases!$C30-Tier2Purchases!$B30)-(Tier2Purchases!$C30-$D$8)-($D$6-Tier2Purchases!$B30),IF(AND(Tier2Purchases!$C30<=$D$7,Tier2Purchases!$B30>=$D$6),($D$7-$D$6)-($D$7-Tier2Purchases!$C30)-(Tier2Purchases!$B30-$D$6)+1,IF(Tier2Purchases!$B30>=$D$6,(Tier2Purchases!$C30-Tier2Purchases!$B30)-(Tier2Purchases!$C30-$D$8),IF(Tier2Purchases!$C30<=$D$7,(Tier2Purchases!$C30-Tier2Purchases!$B30)-($D$6-Tier2Purchases!$B30)+1))))) -> 0 | I29: =IF(OR(Tier2Purchases!$B30>$D$9,Tier2Purchases!$C30<$D$8),0,IF(AND(Tier2Purchases!$B30<$D$8,Tier2Purchases!$C30>$D$9),(Tier2Purchases!$C30-Tier2Purchases!$B30)-(Tier2Purchases!$C30-$D$10)-($D$8-Tier2Purchases!$B30),IF(AND(Tier2Purchases!$C30<=$D$9,Tier2Purchases!$B30>=$D$8),($D$9-$D$8)-($D$9-Tier2Purchases!$C30)-(Tier2Purchases!$B30-$D$8)+1,IF(Tier2Purchases!$B30>=$D$8,(Tier2Purchases!$C30-Tier2Purchases!$B30)-(Tier2Purchases!$C30-$D$10),IF(Tier2Purchases!$C30<=$D$9,(Tier2Purchases!$C30-Tier2Purchases!$B30)-($D$8-Tier2Purchases!$B30)+1))))) -> 0 | J29: =IF(OR(Tier2Purchases!$B30>$D$11,Tier2Purchases!$C30<$D$10),0,IF(AND(Tier2Purchases!$B30<$D$10,Tier2Purchases!$C30>$D$11),(Tier2Purchases!$C30-Tier2Purchases!$B30)-(Tier2Purchases!$C30-$D$12)-($D$10-Tier2Purchases!$B30),IF(AND(Tier2Purchases!$C30<=$D$11,Tier2Purchases!$B30>=$D$10),($D$11-$D$10)-($D$11-Tier2Purchases!$C30)-(Tier2Purchases!$B30-$D$10)+1,IF(Tier2Purchases!$B30>=$D$10,(Tier2Purchases!$C30-Tier2Purchases!$B30)-(Tier2Purchases!$C30-$D$12),IF(Tier2Purchases!$C30<=$D$11,(Tier2Purchases!$C30-Tier2Purchases!$B30)-($D$10-Tier2Purchases!$B30)+1))))) -> 0 | K29: =IF(OR(Tier2Purchases!$B30>$D$13,Tier2Purchases!$C30<$D$12),0,IF(AND(Tier2Purchases!$B30<$D$12,Tier2Purchases!$C30>$D$13),(Tier2Purchases!$C30-Tier2Purchases!$B30)-(Tier2Purchases!$C30-$D$14)-($D$12-Tier2Purchases!$B30),IF(AND(Tier2Purchases!$C30<=$D$13,Tier2Purchases!$B30>=$D$12),($D$13-$D$12)-($D$13-Tier2Purchases!$C30)-(Tier2Purchases!$B30-$D$12)+1,IF(Tier2Purchases!$B30>=$D$12,(Tier2Purchases!$C30-Tier2Purchases!$B30)-(Tier2Purchases!$C30-$D$14),IF(Tier2Purchases!$C30<=$D$13,(Tier2Purchases!$C30-Tier2Purchases!$B30)-($D$12-Tier2Purchases!$B30)+1))))) -> 0 | L29: =IF(OR(Tier2Purchases!$B30>$D$15,Tier2Purchases!$C30<$D$14),0,IF(AND(Tier2Purchases!$B30<$D$14,Tier2Purchases!$C30>$D$15),(Tier2Purchases!$C30-Tier2Purchases!$B30)-(Tier2Purchases!$C30-$D$16)-($D$14-Tier2Purchases!$B30),IF(AND(Tier2Purchases!$C30<=$D$15,Tier2Purchases!$B30>=$D$14),($D$15-$D$14)-($D$15-Tier2Purchases!$C30)-(Tier2Purchases!$B30-$D$14)+1,IF(Tier2Purchases!$B30>=$D$14,(Tier2Purchases!$C30-Tier2Purchases!$B30)-(Tier2Purchases!$C30-$D$16),IF(Tier2Purchases!$C30<=$D$15,(Tier2Purchases!$C30-Tier2Purchases!$B30)-($D$14-Tier2Purchases!$B30)+1))))) -> 0 | M29: =IF(OR(Tier2Purchases!$B30>$D$17,Tier2Purchases!$C30<$D$16),0,IF(AND(Tier2Purchases!$B30<$D$16,Tier2Purchases!$C30>$D$17),(Tier2Purchases!$C30-Tier2Purchases!$B30)-(Tier2Purchases!$C30-$D$18)-($D$16-Tier2Purchases!$B30),IF(AND(Tier2Purchases!$C30<=$D$17,Tier2Purchases!$B30>=$D$16),($D$17-$D$16)-($D$17-Tier2Purchases!$C30)-(Tier2Purchases!$B30-$D$16)+1,IF(Tier2Purchases!$B30>=$D$16,(Tier2Purchases!$C30-Tier2Purchases!$B30)-(Tier2Purchases!$C30-$D$18),IF(Tier2Purchases!$C30<=$D$17,(Tier2Purchases!$C30-Tier2Purchases!$B30)-($D$16-Tier2Purchases!$B30)+1))))) -> 0 | N29: =IF(OR(Tier2Purchases!$B30>$D$19,Tier2Purchases!$C30<$D$18),0,IF(AND(Tier2Purchases!$B30<$D$18,Tier2Purchases!$C30>$D$19),(Tier2Purchases!$C30-Tier2Purchases!$B30)-(Tier2Purchases!$C30-$D$20)-($D$18-Tier2Purchases!$B30),IF(AND(Tier2Purchases!$C30<=$D$19,Tier2Purchases!$B30>=$D$18),($D$19-$D$18)-($D$19-Tier2Purchases!$C30)-(Tier2Purchases!$B30-$D$18)+1,IF(Tier2Purchases!$B30>=$D$18,(Tier2Purchases!$C30-Tier2Purchases!$B30)-(Tier2Purchases!$C30-$D$20),IF(Tier2Purchases!$C30<=$D$19,(Tier2Purchases!$C30-Tier2Purchases!$B30)-($D$18-Tier2Purchases!$B30)+1))))) -> 0 | O29: =IF(OR(Tier2Purchases!$B30>$D$21,Tier2Purchases!$C30<$D$20),0,IF(AND(Tier2Purchases!$B30<$D$20,Tier2Purchases!$C30>$D$21),(Tier2Purchases!$C30-Tier2Purchases!$B30)-(Tier2Purchases!$C30-$D$22)-($D$20-Tier2Purchases!$B30),IF(AND(Tier2Purchases!$C30<=$D$21,Tier2Purchases!$B30>=$D$20),($D$21-$D$20)-($D$21-Tier2Purchases!$C30)-(Tier2Purchases!$B30-$D$20)+1,IF(Tier2Purchases!$B30>=$D$20,(Tier2Purchases!$C30-Tier2Purchases!$B30)-(Tier2Purchases!$C30-$D$22),IF(Tier2Purchases!$C30<=$D$21,(Tier2Purchases!$C30-Tier2Purchases!$B30)-($D$20-Tier2Purchases!$B30)+1))))) -> 365 | P29: =IF(OR(Tier2Purchases!$B30>$D$23,Tier2Purchases!$C30<$D$22),0,IF(AND(Tier2Purchases!$B30<$D$22,Tier2Purchases!$C30>$D$23),(Tier2Purchases!$C30-Tier2Purchases!$B30)-(Tier2Purchases!$C30-$D$24)-($D$22-Tier2Purchases!$B30),IF(AND(Tier2Purchases!$C30<=$D$23,Tier2Purchases!$B30>=$D$22),($D$23-$D$22)-($D$23-Tier2Purchases!$C30)-(Tier2Purchases!$B30-$D$22)+1,IF(Tier2Purchases!$B30>=$D$22,(Tier2Purchases!$C30-Tier2Purchases!$B30)-(Tier2Purchases!$C30-$D$24),IF(Tier2Purchases!$C30<=$D$23,(Tier2Purchases!$C30-Tier2Purchases!$B30)-($D$22-Tier2Purchases!$B30)+1))))) -> 0 | Q29: =IF(OR(Tier2Purchases!$B30>$D$25,Tier2Purchases!$C30<$D$24),0,IF(AND(Tier2Purchases!$B30<$D$24,Tier2Purchases!$C30>$D$25),(Tier2Purchases!$C30-Tier2Purchases!$B30)-(Tier2Purchases!$C30-$D$26)-($D$24-Tier2Purchases!$B30),IF(AND(Tier2Purchases!$C30<=$D$25,Tier2Purchases!$B30>=$D$24),($D$25-$D$24)-($D$25-Tier2Purchases!$C30)-(Tier2Purchases!$B30-$D$24)+1,IF(Tier2Purchases!$B30>=$D$24,(Tier2Purchases!$C30-Tier2Purchases!$B30)-(Tier2Purchases!$C30-$D$26),IF(Tier2Purchases!$C30<=$D$25,(Tier2Purchases!$C30-Tier2Purchases!$B30)-($D$24-Tier2Purchases!$B30)+1))))) -> 0 | R29: =IF(OR(Tier2Purchases!$B30>$D$27,Tier2Purchases!$C30<$D$26),0,IF(AND(Tier2Purchases!$B30<$D$26,Tier2Purchases!$C30>$D$27),(Tier2Purchases!$C30-Tier2Purchases!$B30)-(Tier2Purchases!$C30-$D$28)-($D$26-Tier2Purchases!$B30),IF(AND(Tier2Purchases!$C30<=$D$27,Tier2Purchases!$B30>=$D$26),($D$27-$D$26)-($D$27-Tier2Purchases!$C30)-(Tier2Purchases!$B30-$D$26)+1,IF(Tier2Purchases!$B30>=$D$26,(Tier2Purchases!$C30-Tier2Purchases!$B30)-(Tier2Purchases!$C30-$D$28),IF(Tier2Purchases!$C30<=$D$27,(Tier2Purchases!$C30-Tier2Purchases!$B30)-($D$26-Tier2Purchases!$B30)+1))))) -> 0 | S29: =IF(OR(Tier2Purchases!$B30>$D$29,Tier2Purchases!$C30<$D$28),0,IF(AND(Tier2Purchases!$B30<$D$28,Tier2Purchases!$C30>$D$29),(Tier2Purchases!$C30-Tier2Purchases!$B30)-(Tier2Purchases!$C30-$D$30)-($D$28-Tier2Purchases!$B30),IF(AND(Tier2Purchases!$C30<=$D$29,Tier2Purchases!$B30>=$D$28),($D$29-$D$28)-($D$29-Tier2Purchases!$C30)-(Tier2Purchases!$B30-$D$28)+1,IF(Tier2Purchases!$B30>=$D$28,(Tier2Purchases!$C30-Tier2Purchases!$B30)-(Tier2Purchases!$C30-$D$30),IF(Tier2Purchases!$C30<=$D$29,(Tier2Purchases!$C30-Tier2Purchases!$B30)-($D$28-Tier2Purchases!$B30)+1))))) -> 0 | T29: =IF(OR(Tier2Purchases!$B30>$D$31,Tier2Purchases!$C30<$D$30),0,IF(AND(Tier2Purchases!$B30<$D$30,Tier2Purchases!$C30>$D$31),(Tier2Purchases!$C30-Tier2Purchases!$B30)-(Tier2Purchases!$C30-$D$32)-($D$30-Tier2Purchases!$B30),IF(AND(Tier2Purchases!$C30<=$D$31,Tier2Purchases!$B30>=$D$30),($D$31-$D$30)-($D$31-Tier2Purchases!$C30)-(Tier2Purchases!$B30-$D$30)+1,IF(Tier2Purchases!$B30>=$D$30,(Tier2Purchases!$C30-Tier2Purchases!$B30)-(Tier2Purchases!$C30-$D$32),IF(Tier2Purchases!$C30<=$D$31,(Tier2Purchases!$C30-Tier2Purchases!$B30)-($D$30-Tier2Purchases!$B30)+1))))) -> 0 | U29: =IF(OR(Tier2Purchases!$B30>$D$33,Tier2Purchases!$C30<$D$32),0,IF(AND(Tier2Purchases!$B30<$D$32,Tier2Purchases!$C30>$D$33),(Tier2Purchases!$C30-Tier2Purchases!$B30)-(Tier2Purchases!$C30-$D$34)-($D$32-Tier2Purchases!$B30),IF(AND(Tier2Purchases!$C30<=$D$33,Tier2Purchases!$B30>=$D$32),($D$33-$D$32)-($D$33-Tier2Purchases!$C30)-(Tier2Purchases!$B30-$D$32)+1,IF(Tier2Purchases!$B30>=$D$32,(Tier2Purchases!$C30-Tier2Purchases!$B30)-(Tier2Purchases!$C30-$D$34),IF(Tier2Purchases!$C30<=$D$33,(Tier2Purchases!$C30-Tier2Purchases!$B30)-($D$32-Tier2Purchases!$B30)+1))))) -> 0 | V29: =IF(OR(Tier2Purchases!$B30>$D$35,Tier2Purchases!$C30<$D$34),0,IF(AND(Tier2Purchases!$B30<$D$34,Tier2Purchases!$C30>$D$35),(Tier2Purchases!$C30-Tier2Purchases!$B30)-(Tier2Purchases!$C30-$D$36)-($D$34-Tier2Purchases!$B30),IF(AND(Tier2Purchases!$C30<=$D$35,Tier2Purchases!$B30>=$D$34),($D$35-$D$34)-($D$35-Tier2Purchases!$C30)-(Tier2Purchases!$B30-$D$34)+1,IF(Tier2Purchases!$B30>=$D$34,(Tier2Purchases!$C30-Tier2Purchases!$B30)-(Tier2Purchases!$C30-$D$36),IF(Tier2Purchases!$C30<=$D$35,(Tier2Purchases!$C30-Tier2Purchases!$B30)-($D$34-Tier2Purchases!$B30)+1))))) -> 0 | W29: =IF(OR(Tier2Purchases!$B30>$D$37,Tier2Purchases!$C30<$D$36),0,IF(AND(Tier2Purchases!$B30<$D$36,Tier2Purchases!$C30>$D$37),(Tier2Purchases!$C30-Tier2Purchases!$B30)-(Tier2Purchases!$C30-$D$38)-($D$36-Tier2Purchases!$B30),IF(AND(Tier2Purchases!$C30<=$D$37,Tier2Purchases!$B30>=$D$36),($D$37-$D$36)-($D$37-Tier2Purchases!$C30)-(Tier2Purchases!$B30-$D$36)+1,IF(Tier2Purchases!$B30>=$D$36,(Tier2Purchases!$C30-Tier2Purchases!$B30)-(Tier2Purchases!$C30-$D$38),IF(Tier2Purchases!$C30<=$D$37,(Tier2Purchases!$C30-Tier2Purchases!$B30)-($D$36-Tier2Purchases!$B30)+1))))) -> 0 | X29: =IF(OR(Tier2Purchases!$B30>$D$39,Tier2Purchases!$C30<$D$38),0,IF(AND(Tier2Purchases!$B30<$D$38,Tier2Purchases!$C30>$D$39),(Tier2Purchases!$C30-Tier2Purchases!$B30)-(Tier2Purchases!$C30-$D$39)-($D$38-Tier2Purchases!$B30)+1,IF(AND(Tier2Purchases!$C30<=$D$39,Tier2Purchases!$B30>=$D$38),($D$39-$D$38)-($D$39-Tier2Purchases!$C30)-(Tier2Purchases!$B30-$D$38)+1,IF(Tier2Purchases!$B30>=$D$38,(Tier2Purchases!$C30-Tier2Purchases!$B30)-(Tier2Purchases!$C30-$D$39)+1,IF(Tier2Purchases!$C30<=$D$39,(Tier2Purchases!$C30-Tier2Purchases!$B30)-($D$38-Tier2Purchases!$B30)+1))))) -> 0 | Y29: 365 | Z29: 0 | AA29: =Tier2Purchases!$C30-Tier2Purchases!$B30+1 -> 365 | AB29: TRUE
B30: FY2024 | C30: START DATE | D30: 2023-10-01 | H30: =IF(OR(Tier2Purchases!$B31>$D$7,Tier2Purchases!$C31<$D$6),0,IF(AND(Tier2Purchases!$B31<$D$6,Tier2Purchases!$C31>$D$7),(Tier2Purchases!$C31-Tier2Purchases!$B31)-(Tier2Purchases!$C31-$D$8)-($D$6-Tier2Purchases!$B31),IF(AND(Tier2Purchases!$C31<=$D$7,Tier2Purchases!$B31>=$D$6),($D$7-$D$6)-($D$7-Tier2Purchases!$C31)-(Tier2Purchases!$B31-$D$6)+1,IF(Tier2Purchases!$B31>=$D$6,(Tier2Purchases!$C31-Tier2Purchases!$B31)-(Tier2Purchases!$C31-$D$8),IF(Tier2Purchases!$C31<=$D$7,(Tier2Purchases!$C31-Tier2Purchases!$B31)-($D$6-Tier2Purchases!$B31)+1))))) -> 0 | I30: =IF(OR(Tier2Purchases!$B31>$D$9,Tier2Purchases!$C31<$D$8),0,IF(AND(Tier2Purchases!$B31<$D$8,Tier2Purchases!$C31>$D$9),(Tier2Purchases!$C31-Tier2Purchases!$B31)-(Tier2Purchases!$C31-$D$10)-($D$8-Tier2Purchases!$B31),IF(AND(Tier2Purchases!$C31<=$D$9,Tier2Purchases!$B31>=$D$8),($D$9-$D$8)-($D$9-Tier2Purchases!$C31)-(Tier2Purchases!$B31-$D$8)+1,IF(Tier2Purchases!$B31>=$D$8,(Tier2Purchases!$C31-Tier2Purchases!$B31)-(Tier2Purchases!$C31-$D$10),IF(Tier2Purchases!$C31<=$D$9,(Tier2Purchases!$C31-Tier2Purchases!$B31)-($D$8-Tier2Purchases!$B31)+1))))) -> 0 | J30: =IF(OR(Tier2Purchases!$B31>$D$11,Tier2Purchases!$C31<$D$10),0,IF(AND(Tier2Purchases!$B31<$D$10,Tier2Purchases!$C31>$D$11),(Tier2Purchases!$C31-Tier2Purchases!$B31)-(Tier2Purchases!$C31-$D$12)-($D$10-Tier2Purchases!$B31),IF(AND(Tier2Purchases!$C31<=$D$11,Tier2Purchases!$B31>=$D$10),($D$11-$D$10)-($D$11-Tier2Purchases!$C31)-(Tier2Purchases!$B31-$D$10)+1,IF(Tier2Purchases!$B31>=$D$10,(Tier2Purchases!$C31-Tier2Purchases!$B31)-(Tier2Purchases!$C31-$D$12),IF(Tier2Purchases!$C31<=$D$11,(Tier2Purchases!$C31-Tier2Purchases!$B31)-($D$10-Tier2Purchases!$B31)+1))))) -> 0 | K30: =IF(OR(Tier2Purchases!$B31>$D$13,Tier2Purchases!$C31<$D$12),0,IF(AND(Tier2Purchases!$B31<$D$12,Tier2Purchases!$C31>$D$13),(Tier2Purchases!$C31-Tier2Purchases!$B31)-(Tier2Purchases!$C31-$D$14)-($D$12-Tier2Purchases!$B31),IF(AND(Tier2Purchases!$C31<=$D$13,Tier2Purchases!$B31>=$D$12),($D$13-$D$12)-($D$13-Tier2Purchases!$C31)-(Tier2Purchases!$B31-$D$12)+1,IF(Tier2Purchases!$B31>=$D$12,(Tier2Purchases!$C31-Tier2Purchases!$B31)-(Tier2Purchases!$C31-$D$14),IF(Tier2Purchases!$C31<=$D$13,(Tier2Purchases!$C31-Tier2Purchases!$B31)-($D$12-Tier2Purchases!$B31)+1))))) -> 0 | L30: =IF(OR(Tier2Purchases!$B31>$D$15,Tier2Purchases!$C31<$D$14),0,IF(AND(Tier2Purchases!$B31<$D$14,Tier2Purchases!$C31>$D$15),(Tier2Purchases!$C31-Tier2Purchases!$B31)-(Tier2Purchases!$C31-$D$16)-($D$14-Tier2Purchases!$B31),IF(AND(Tier2Purchases!$C31<=$D$15,Tier2Purchases!$B31>=$D$14),($D$15-$D$14)-($D$15-Tier2Purchases!$C31)-(Tier2Purchases!$B31-$D$14)+1,IF(Tier2Purchases!$B31>=$D$14,(Tier2Purchases!$C31-Tier2Purchases!$B31)-(Tier2Purchases!$C31-$D$16),IF(Tier2Purchases!$C31<=$D$15,(Tier2Purchases!$C31-Tier2Purchases!$B31)-($D$14-Tier2Purchases!$B31)+1))))) -> 0 | M30: =IF(OR(Tier2Purchases!$B31>$D$17,Tier2Purchases!$C31<$D$16),0,IF(AND(Tier2Purchases!$B31<$D$16,Tier2Purchases!$C31>$D$17),(Tier2Purchases!$C31-Tier2Purchases!$B31)-(Tier2Purchases!$C31-$D$18)-($D$16-Tier2Purchases!$B31),IF(AND(Tier2Purchases!$C31<=$D$17,Tier2Purchases!$B31>=$D$16),($D$17-$D$16)-($D$17-Tier2Purchases!$C31)-(Tier2Purchases!$B31-$D$16)+1,IF(Tier2Purchases!$B31>=$D$16,(Tier2Purchases!$C31-Tier2Purchases!$B31)-(Tier2Purchases!$C31-$D$18),IF(Tier2Purchases!$C31<=$D$17,(Tier2Purchases!$C31-Tier2Purchases!$B31)-($D$16-Tier2Purchases!$B31)+1))))) -> 0 | N30: =IF(OR(Tier2Purchases!$B31>$D$19,Tier2Purchases!$C31<$D$18),0,IF(AND(Tier2Purchases!$B31<$D$18,Tier2Purchases!$C31>$D$19),(Tier2Purchases!$C31-Tier2Purchases!$B31)-(Tier2Purchases!$C31-$D$20)-($D$18-Tier2Purchases!$B31),IF(AND(Tier2Purchases!$C31<=$D$19,Tier2Purchases!$B31>=$D$18),($D$19-$D$18)-($D$19-Tier2Purchases!$C31)-(Tier2Purchases!$B31-$D$18)+1,IF(Tier2Purchases!$B31>=$D$18,(Tier2Purchases!$C31-Tier2Purchases!$B31)-(Tier2Purchases!$C31-$D$20),IF(Tier2Purchases!$C31<=$D$19,(Tier2Purchases!$C31-Tier2Purchases!$B31)-($D$18-Tier2Purchases!$B31)+1))))) -> 0 | O30: =IF(OR(Tier2Purchases!$B31>$D$21,Tier2Purchases!$C31<$D$20),0,IF(AND(Tier2Purchases!$B31<$D$20,Tier2Purchases!$C31>$D$21),(Tier2Purchases!$C31-Tier2Purchases!$B31)-(Tier2Purchases!$C31-$D$22)-($D$20-Tier2Purchases!$B31),IF(AND(Tier2Purchases!$C31<=$D$21,Tier2Purchases!$B31>=$D$20),($D$21-$D$20)-($D$21-Tier2Purchases!$C31)-(Tier2Purchases!$B31-$D$20)+1,IF(Tier2Purchases!$B31>=$D$20,(Tier2Purchases!$C31-Tier2Purchases!$B31)-(Tier2Purchases!$C31-$D$22),IF(Tier2Purchases!$C31<=$D$21,(Tier2Purchases!$C31-Tier2Purchases!$B31)-($D$20-Tier2Purchases!$B31)+1))))) -> 365 | P30: =IF(OR(Tier2Purchases!$B31>$D$23,Tier2Purchases!$C31<$D$22),0,IF(AND(Tier2Purchases!$B31<$D$22,Tier2Purchases!$C31>$D$23),(Tier2Purchases!$C31-Tier2Purchases!$B31)-(Tier2Purchases!$C31-$D$24)-($D$22-Tier2Purchases!$B31),IF(AND(Tier2Purchases!$C31<=$D$23,Tier2Purchases!$B31>=$D$22),($D$23-$D$22)-($D$23-Tier2Purchases!$C31)-(Tier2Purchases!$B31-$D$22)+1,IF(Tier2Purchases!$B31>=$D$22,(Tier2Purchases!$C31-Tier2Purchases!$B31)-(Tier2Purchases!$C31-$D$24),IF(Tier2Purchases!$C31<=$D$23,(Tier2Purchases!$C31-Tier2Purchases!$B31)-($D$22-Tier2Purchases!$B31)+1))))) -> 0 | Q30: =IF(OR(Tier2Purchases!$B31>$D$25,Tier2Purchases!$C31<$D$24),0,IF(AND(Tier2Purchases!$B31<$D$24,Tier2Purchases!$C31>$D$25),(Tier2Purchases!$C31-Tier2Purchases!$B31)-(Tier2Purchases!$C31-$D$26)-($D$24-Tier2Purchases!$B31),IF(AND(Tier2Purchases!$C31<=$D$25,Tier2Purchases!$B31>=$D$24),($D$25-$D$24)-($D$25-Tier2Purchases!$C31)-(Tier2Purchases!$B31-$D$24)+1,IF(Tier2Purchases!$B31>=$D$24,(Tier2Purchases!$C31-Tier2Purchases!$B31)-(Tier2Purchases!$C31-$D$26),IF(Tier2Purchases!$C31<=$D$25,(Tier2Purchases!$C31-Tier2Purchases!$B31)-($D$24-Tier2Purchases!$B31)+1))))) -> 0 | R30: =IF(OR(Tier2Purchases!$B31>$D$27,Tier2Purchases!$C31<$D$26),0,IF(AND(Tier2Purchases!$B31<$D$26,Tier2Purchases!$C31>$D$27),(Tier2Purchases!$C31-Tier2Purchases!$B31)-(Tier2Purchases!$C31-$D$28)-($D$26-Tier2Purchases!$B31),IF(AND(Tier2Purchases!$C31<=$D$27,Tier2Purchases!$B31>=$D$26),($D$27-$D$26)-($D$27-Tier2Purchases!$C31)-(Tier2Purchases!$B31-$D$26)+1,IF(Tier2Purchases!$B31>=$D$26,(Tier2Purchases!$C31-Tier2Purchases!$B31)-(Tier2Purchases!$C31-$D$28),IF(Tier2Purchases!$C31<=$D$27,(Tier2Purchases!$C31-Tier2Purchases!$B31)-($D$26-Tier2Purchases!$B31)+1))))) -> 0 | S30: =IF(OR(Tier2Purchases!$B31>$D$29,Tier2Purchases!$C31<$D$28),0,IF(AND(Tier2Purchases!$B31<$D$28,Tier2Purchases!$C31>$D$29),(Tier2Purchases!$C31-Tier2Purchases!$B31)-(Tier2Purchases!$C31-$D$30)-($D$28-Tier2Purchases!$B31),IF(AND(Tier2Purchases!$C31<=$D$29,Tier2Purchases!$B31>=$D$28),($D$29-$D$28)-($D$29-Tier2Purchases!$C31)-(Tier2Purchases!$B31-$D$28)+1,IF(Tier2Purchases!$B31>=$D$28,(Tier2Purchases!$C31-Tier2Purchases!$B31)-(Tier2Purchases!$C31-$D$30),IF(Tier2Purchases!$C31<=$D$29,(Tier2Purchases!$C31-Tier2Purchases!$B31)-($D$28-Tier2Purchases!$B31)+1))))) -> 0 | T30: =IF(OR(Tier2Purchases!$B31>$D$31,Tier2Purchases!$C31<$D$30),0,IF(AND(Tier2Purchases!$B31<$D$30,Tier2Purchases!$C31>$D$31),(Tier2Purchases!$C31-Tier2Purchases!$B31)-(Tier2Purchases!$C31-$D$32)-($D$30-Tier2Purchases!$B31),IF(AND(Tier2Purchases!$C31<=$D$31,Tier2Purchases!$B31>=$D$30),($D$31-$D$30)-($D$31-Tier2Purchases!$C31)-(Tier2Purchases!$B31-$D$30)+1,IF(Tier2Purchases!$B31>=$D$30,(Tier2Purchases!$C31-Tier2Purchases!$B31)-(Tier2Purchases!$C31-$D$32),IF(Tier2Purchases!$C31<=$D$31,(Tier2Purchases!$C31-Tier2Purchases!$B31)-($D$30-Tier2Purchases!$B31)+1))))) -> 0 | U30: =IF(OR(Tier2Purchases!$B31>$D$33,Tier2Purchases!$C31<$D$32),0,IF(AND(Tier2Purchases!$B31<$D$32,Tier2Purchases!$C31>$D$33),(Tier2Purchases!$C31-Tier2Purchases!$B31)-(Tier2Purchases!$C31-$D$34)-($D$32-Tier2Purchases!$B31),IF(AND(Tier2Purchases!$C31<=$D$33,Tier2Purchases!$B31>=$D$32),($D$33-$D$32)-($D$33-Tier2Purchases!$C31)-(Tier2Purchases!$B31-$D$32)+1,IF(Tier2Purchases!$B31>=$D$32,(Tier2Purchases!$C31-Tier2Purchases!$B31)-(Tier2Purchases!$C31-$D$34),IF(Tier2Purchases!$C31<=$D$33,(Tier2Purchases!$C31-Tier2Purchases!$B31)-($D$32-Tier2Purchases!$B31)+1))))) -> 0 | V30: =IF(OR(Tier2Purchases!$B31>$D$35,Tier2Purchases!$C31<$D$34),0,IF(AND(Tier2Purchases!$B31<$D$34,Tier2Purchases!$C31>$D$35),(Tier2Purchases!$C31-Tier2Purchases!$B31)-(Tier2Purchases!$C31-$D$36)-($D$34-Tier2Purchases!$B31),IF(AND(Tier2Purchases!$C31<=$D$35,Tier2Purchases!$B31>=$D$34),($D$35-$D$34)-($D$35-Tier2Purchases!$C31)-(Tier2Purchases!$B31-$D$34)+1,IF(Tier2Purchases!$B31>=$D$34,(Tier2Purchases!$C31-Tier2Purchases!$B31)-(Tier2Purchases!$C31-$D$36),IF(Tier2Purchases!$C31<=$D$35,(Tier2Purchases!$C31-Tier2Purchases!$B31)-($D$34-Tier2Purchases!$B31)+1))))) -> 0 | W30: =IF(OR(Tier2Purchases!$B31>$D$37,Tier2Purchases!$C31<$D$36),0,IF(AND(Tier2Purchases!$B31<$D$36,Tier2Purchases!$C31>$D$37),(Tier2Purchases!$C31-Tier2Purchases!$B31)-(Tier2Purchases!$C31-$D$38)-($D$36-Tier2Purchases!$B31),IF(AND(Tier2Purchases!$C31<=$D$37,Tier2Purchases!$B31>=$D$36),($D$37-$D$36)-($D$37-Tier2Purchases!$C31)-(Tier2Purchases!$B31-$D$36)+1,IF(Tier2Purchases!$B31>=$D$36,(Tier2Purchases!$C31-Tier2Purchases!$B31)-(Tier2Purchases!$C31-$D$38),IF(Tier2Purchases!$C31<=$D$37,(Tier2Purchases!$C31-Tier2Purchases!$B31)-($D$36-Tier2Purchases!$B31)+1))))) -> 0 | X30: =IF(OR(Tier2Purchases!$B31>$D$39,Tier2Purchases!$C31<$D$38),0,IF(AND(Tier2Purchases!$B31<$D$38,Tier2Purchases!$C31>$D$39),(Tier2Purchases!$C31-Tier2Purchases!$B31)-(Tier2Purchases!$C31-$D$39)-($D$38-Tier2Purchases!$B31)+1,IF(AND(Tier2Purchases!$C31<=$D$39,Tier2Purchases!$B31>=$D$38),($D$39-$D$38)-($D$39-Tier2Purchases!$C31)-(Tier2Purchases!$B31-$D$38)+1,IF(Tier2Purchases!$B31>=$D$38,(Tier2Purchases!$C31-Tier2Purchases!$B31)-(Tier2Purchases!$C31-$D$39)+1,IF(Tier2Purchases!$C31<=$D$39,(Tier2Purchases!$C31-Tier2Purchases!$B31)-($D$38-Tier2Purchases!$B31)+1))))) -> 0 | Y30: 365 | Z30: 0 | AA30: =Tier2Purchases!$C31-Tier2Purchases!$B31+1 -> 365 | AB30: TRUE
C31: END DATE | D31: 2024-09-30 | H31: =IF(OR(Tier2Purchases!$B32>$D$7,Tier2Purchases!$C32<$D$6),0,IF(AND(Tier2Purchases!$B32<$D$6,Tier2Purchases!$C32>$D$7),(Tier2Purchases!$C32-Tier2Purchases!$B32)-(Tier2Purchases!$C32-$D$8)-($D$6-Tier2Purchases!$B32),IF(AND(Tier2Purchases!$C32<=$D$7,Tier2Purchases!$B32>=$D$6),($D$7-$D$6)-($D$7-Tier2Purchases!$C32)-(Tier2Purchases!$B32-$D$6)+1,IF(Tier2Purchases!$B32>=$D$6,(Tier2Purchases!$C32-Tier2Purchases!$B32)-(Tier2Purchases!$C32-$D$8),IF(Tier2Purchases!$C32<=$D$7,(Tier2Purchases!$C32-Tier2Purchases!$B32)-($D$6-Tier2Purchases!$B32)+1))))) -> 0 | I31: =IF(OR(Tier2Purchases!$B32>$D$9,Tier2Purchases!$C32<$D$8),0,IF(AND(Tier2Purchases!$B32<$D$8,Tier2Purchases!$C32>$D$9),(Tier2Purchases!$C32-Tier2Purchases!$B32)-(Tier2Purchases!$C32-$D$10)-($D$8-Tier2Purchases!$B32),IF(AND(Tier2Purchases!$C32<=$D$9,Tier2Purchases!$B32>=$D$8),($D$9-$D$8)-($D$9-Tier2Purchases!$C32)-(Tier2Purchases!$B32-$D$8)+1,IF(Tier2Purchases!$B32>=$D$8,(Tier2Purchases!$C32-Tier2Purchases!$B32)-(Tier2Purchases!$C32-$D$10),IF(Tier2Purchases!$C32<=$D$9,(Tier2Purchases!$C32-Tier2Purchases!$B32)-($D$8-Tier2Purchases!$B32)+1))))) -> 0 | J31: =IF(OR(Tier2Purchases!$B32>$D$11,Tier2Purchases!$C32<$D$10),0,IF(AND(Tier2Purchases!$B32<$D$10,Tier2Purchases!$C32>$D$11),(Tier2Purchases!$C32-Tier2Purchases!$B32)-(Tier2Purchases!$C32-$D$12)-($D$10-Tier2Purchases!$B32),IF(AND(Tier2Purchases!$C32<=$D$11,Tier2Purchases!$B32>=$D$10),($D$11-$D$10)-($D$11-Tier2Purchases!$C32)-(Tier2Purchases!$B32-$D$10)+1,IF(Tier2Purchases!$B32>=$D$10,(Tier2Purchases!$C32-Tier2Purchases!$B32)-(Tier2Purchases!$C32-$D$12),IF(Tier2Purchases!$C32<=$D$11,(Tier2Purchases!$C32-Tier2Purchases!$B32)-($D$10-Tier2Purchases!$B32)+1))))) -> 0 | K31: =IF(OR(Tier2Purchases!$B32>$D$13,Tier2Purchases!$C32<$D$12),0,IF(AND(Tier2Purchases!$B32<$D$12,Tier2Purchases!$C32>$D$13),(Tier2Purchases!$C32-Tier2Purchases!$B32)-(Tier2Purchases!$C32-$D$14)-($D$12-Tier2Purchases!$B32),IF(AND(Tier2Purchases!$C32<=$D$13,Tier2Purchases!$B32>=$D$12),($D$13-$D$12)-($D$13-Tier2Purchases!$C32)-(Tier2Purchases!$B32-$D$12)+1,IF(Tier2Purchases!$B32>=$D$12,(Tier2Purchases!$C32-Tier2Purchases!$B32)-(Tier2Purchases!$C32-$D$14),IF(Tier2Purchases!$C32<=$D$13,(Tier2Purchases!$C32-Tier2Purchases!$B32)-($D$12-Tier2Purchases!$B32)+1))))) -> 0 | L31: =IF(OR(Tier2Purchases!$B32>$D$15,Tier2Purchases!$C32<$D$14),0,IF(AND(Tier2Purchases!$B32<$D$14,Tier2Purchases!$C32>$D$15),(Tier2Purchases!$C32-Tier2Purchases!$B32)-(Tier2Purchases!$C32-$D$16)-($D$14-Tier2Purchases!$B32),IF(AND(Tier2Purchases!$C32<=$D$15,Tier2Purchases!$B32>=$D$14),($D$15-$D$14)-($D$15-Tier2Purchases!$C32)-(Tier2Purchases!$B32-$D$14)+1,IF(Tier2Purchases!$B32>=$D$14,(Tier2Purchases!$C32-Tier2Purchases!$B32)-(Tier2Purchases!$C32-$D$16),IF(Tier2Purchases!$C32<=$D$15,(Tier2Purchases!$C32-Tier2Purchases!$B32)-($D$14-Tier2Purchases!$B32)+1))))) -> 0 | M31: =IF(OR(Tier2Purchases!$B32>$D$17,Tier2Purchases!$C32<$D$16),0,IF(AND(Tier2Purchases!$B32<$D$16,Tier2Purchases!$C32>$D$17),(Tier2Purchases!$C32-Tier2Purchases!$B32)-(Tier2Purchases!$C32-$D$18)-($D$16-Tier2Purchases!$B32),IF(AND(Tier2Purchases!$C32<=$D$17,Tier2Purchases!$B32>=$D$16),($D$17-$D$16)-($D$17-Tier2Purchases!$C32)-(Tier2Purchases!$B32-$D$16)+1,IF(Tier2Purchases!$B32>=$D$16,(Tier2Purchases!$C32-Tier2Purchases!$B32)-(Tier2Purchases!$C32-$D$18),IF(Tier2Purchases!$C32<=$D$17,(Tier2Purchases!$C32-Tier2Purchases!$B32)-($D$16-Tier2Purchases!$B32)+1))))) -> 0 | N31: =IF(OR(Tier2Purchases!$B32>$D$19,Tier2Purchases!$C32<$D$18),0,IF(AND(Tier2Purchases!$B32<$D$18,Tier2Purchases!$C32>$D$19),(Tier2Purchases!$C32-Tier2Purchases!$B32)-(Tier2Purchases!$C32-$D$20)-($D$18-Tier2Purchases!$B32),IF(AND(Tier2Purchases!$C32<=$D$19,Tier2Purchases!$B32>=$D$18),($D$19-$D$18)-($D$19-Tier2Purchases!$C32)-(Tier2Purchases!$B32-$D$18)+1,IF(Tier2Purchases!$B32>=$D$18,(Tier2Purchases!$C32-Tier2Purchases!$B32)-(Tier2Purchases!$C32-$D$20),IF(Tier2Purchases!$C32<=$D$19,(Tier2Purchases!$C32-Tier2Purchases!$B32)-($D$18-Tier2Purchases!$B32)+1))))) -> 0 | O31: =IF(OR(Tier2Purchases!$B32>$D$21,Tier2Purchases!$C32<$D$20),0,IF(AND(Tier2Purchases!$B32<$D$20,Tier2Purchases!$C32>$D$21),(Tier2Purchases!$C32-Tier2Purchases!$B32)-(Tier2Purchases!$C32-$D$22)-($D$20-Tier2Purchases!$B32),IF(AND(Tier2Purchases!$C32<=$D$21,Tier2Purchases!$B32>=$D$20),($D$21-$D$20)-($D$21-Tier2Purchases!$C32)-(Tier2Purchases!$B32-$D$20)+1,IF(Tier2Purchases!$B32>=$D$20,(Tier2Purchases!$C32-Tier2Purchases!$B32)-(Tier2Purchases!$C32-$D$22),IF(Tier2Purchases!$C32<=$D$21,(Tier2Purchases!$C32-Tier2Purchases!$B32)-($D$20-Tier2Purchases!$B32)+1))))) -> 365 | P31: =IF(OR(Tier2Purchases!$B32>$D$23,Tier2Purchases!$C32<$D$22),0,IF(AND(Tier2Purchases!$B32<$D$22,Tier2Purchases!$C32>$D$23),(Tier2Purchases!$C32-Tier2Purchases!$B32)-(Tier2Purchases!$C32-$D$24)-($D$22-Tier2Purchases!$B32),IF(AND(Tier2Purchases!$C32<=$D$23,Tier2Purchases!$B32>=$D$22),($D$23-$D$22)-($D$23-Tier2Purchases!$C32)-(Tier2Purchases!$B32-$D$22)+1,IF(Tier2Purchases!$B32>=$D$22,(Tier2Purchases!$C32-Tier2Purchases!$B32)-(Tier2Purchases!$C32-$D$24),IF(Tier2Purchases!$C32<=$D$23,(Tier2Purchases!$C32-Tier2Purchases!$B32)-($D$22-Tier2Purchases!$B32)+1))))) -> 0 | Q31: =IF(OR(Tier2Purchases!$B32>$D$25,Tier2Purchases!$C32<$D$24),0,IF(AND(Tier2Purchases!$B32<$D$24,Tier2Purchases!$C32>$D$25),(Tier2Purchases!$C32-Tier2Purchases!$B32)-(Tier2Purchases!$C32-$D$26)-($D$24-Tier2Purchases!$B32),IF(AND(Tier2Purchases!$C32<=$D$25,Tier2Purchases!$B32>=$D$24),($D$25-$D$24)-($D$25-Tier2Purchases!$C32)-(Tier2Purchases!$B32-$D$24)+1,IF(Tier2Purchases!$B32>=$D$24,(Tier2Purchases!$C32-Tier2Purchases!$B32)-(Tier2Purchases!$C32-$D$26),IF(Tier2Purchases!$C32<=$D$25,(Tier2Purchases!$C32-Tier2Purchases!$B32)-($D$24-Tier2Purchases!$B32)+1))))) -> 0 | R31: =IF(OR(Tier2Purchases!$B32>$D$27,Tier2Purchases!$C32<$D$26),0,IF(AND(Tier2Purchases!$B32<$D$26,Tier2Purchases!$C32>$D$27),(Tier2Purchases!$C32-Tier2Purchases!$B32)-(Tier2Purchases!$C32-$D$28)-($D$26-Tier2Purchases!$B32),IF(AND(Tier2Purchases!$C32<=$D$27,Tier2Purchases!$B32>=$D$26),($D$27-$D$26)-($D$27-Tier2Purchases!$C32)-(Tier2Purchases!$B32-$D$26)+1,IF(Tier2Purchases!$B32>=$D$26,(Tier2Purchases!$C32-Tier2Purchases!$B32)-(Tier2Purchases!$C32-$D$28),IF(Tier2Purchases!$C32<=$D$27,(Tier2Purchases!$C32-Tier2Purchases!$B32)-($D$26-Tier2Purchases!$B32)+1))))) -> 0 | S31: =IF(OR(Tier2Purchases!$B32>$D$29,Tier2Purchases!$C32<$D$28),0,IF(AND(Tier2Purchases!$B32<$D$28,Tier2Purchases!$C32>$D$29),(Tier2Purchases!$C32-Tier2Purchases!$B32)-(Tier2Purchases!$C32-$D$30)-($D$28-Tier2Purchases!$B32),IF(AND(Tier2Purchases!$C32<=$D$29,Tier2Purchases!$B32>=$D$28),($D$29-$D$28)-($D$29-Tier2Purchases!$C32)-(Tier2Purchases!$B32-$D$28)+1,IF(Tier2Purchases!$B32>=$D$28,(Tier2Purchases!$C32-Tier2Purchases!$B32)-(Tier2Purchases!$C32-$D$30),IF(Tier2Purchases!$C32<=$D$29,(Tier2Purchases!$C32-Tier2Purchases!$B32)-($D$28-Tier2Purchases!$B32)+1))))) -> 0 | T31: =IF(OR(Tier2Purchases!$B32>$D$31,Tier2Purchases!$C32<$D$30),0,IF(AND(Tier2Purchases!$B32<$D$30,Tier2Purchases!$C32>$D$31),(Tier2Purchases!$C32-Tier2Purchases!$B32)-(Tier2Purchases!$C32-$D$32)-($D$30-Tier2Purchases!$B32),IF(AND(Tier2Purchases!$C32<=$D$31,Tier2Purchases!$B32>=$D$30),($D$31-$D$30)-($D$31-Tier2Purchases!$C32)-(Tier2Purchases!$B32-$D$30)+1,IF(Tier2Purchases!$B32>=$D$30,(Tier2Purchases!$C32-Tier2Purchases!$B32)-(Tier2Purchases!$C32-$D$32),IF(Tier2Purchases!$C32<=$D$31,(Tier2Purchases!$C32-Tier2Purchases!$B32)-($D$30-Tier2Purchases!$B32)+1))))) -> 0 | U31: =IF(OR(Tier2Purchases!$B32>$D$33,Tier2Purchases!$C32<$D$32),0,IF(AND(Tier2Purchases!$B32<$D$32,Tier2Purchases!$C32>$D$33),(Tier2Purchases!$C32-Tier2Purchases!$B32)-(Tier2Purchases!$C32-$D$34)-($D$32-Tier2Purchases!$B32),IF(AND(Tier2Purchases!$C32<=$D$33,Tier2Purchases!$B32>=$D$32),($D$33-$D$32)-($D$33-Tier2Purchases!$C32)-(Tier2Purchases!$B32-$D$32)+1,IF(Tier2Purchases!$B32>=$D$32,(Tier2Purchases!$C32-Tier2Purchases!$B32)-(Tier2Purchases!$C32-$D$34),IF(Tier2Purchases!$C32<=$D$33,(Tier2Purchases!$C32-Tier2Purchases!$B32)-($D$32-Tier2Purchases!$B32)+1))))) -> 0 | V31: =IF(OR(Tier2Purchases!$B32>$D$35,Tier2Purchases!$C32<$D$34),0,IF(AND(Tier2Purchases!$B32<$D$34,Tier2Purchases!$C32>$D$35),(Tier2Purchases!$C32-Tier2Purchases!$B32)-(Tier2Purchases!$C32-$D$36)-($D$34-Tier2Purchases!$B32),IF(AND(Tier2Purchases!$C32<=$D$35,Tier2Purchases!$B32>=$D$34),($D$35-$D$34)-($D$35-Tier2Purchases!$C32)-(Tier2Purchases!$B32-$D$34)+1,IF(Tier2Purchases!$B32>=$D$34,(Tier2Purchases!$C32-Tier2Purchases!$B32)-(Tier2Purchases!$C32-$D$36),IF(Tier2Purchases!$C32<=$D$35,(Tier2Purchases!$C32-Tier2Purchases!$B32)-($D$34-Tier2Purchases!$B32)+1))))) -> 0 | W31: =IF(OR(Tier2Purchases!$B32>$D$37,Tier2Purchases!$C32<$D$36),0,IF(AND(Tier2Purchases!$B32<$D$36,Tier2Purchases!$C32>$D$37),(Tier2Purchases!$C32-Tier2Purchases!$B32)-(Tier2Purchases!$C32-$D$38)-($D$36-Tier2Purchases!$B32),IF(AND(Tier2Purchases!$C32<=$D$37,Tier2Purchases!$B32>=$D$36),($D$37-$D$36)-($D$37-Tier2Purchases!$C32)-(Tier2Purchases!$B32-$D$36)+1,IF(Tier2Purchases!$B32>=$D$36,(Tier2Purchases!$C32-Tier2Purchases!$B32)-(Tier2Purchases!$C32-$D$38),IF(Tier2Purchases!$C32<=$D$37,(Tier2Purchases!$C32-Tier2Purchases!$B32)-($D$36-Tier2Purchases!$B32)+1))))) -> 0 | X31: =IF(OR(Tier2Purchases!$B32>$D$39,Tier2Purchases!$C32<$D$38),0,IF(AND(Tier2Purchases!$B32<$D$38,Tier2Purchases!$C32>$D$39),(Tier2Purchases!$C32-Tier2Purchases!$B32)-(Tier2Purchases!$C32-$D$39)-($D$38-Tier2Purchases!$B32)+1,IF(AND(Tier2Purchases!$C32<=$D$39,Tier2Purchases!$B32>=$D$38),($D$39-$D$38)-($D$39-Tier2Purchases!$C32)-(Tier2Purchases!$B32-$D$38)+1,IF(Tier2Purchases!$B32>=$D$38,(Tier2Purchases!$C32-Tier2Purchases!$B32)-(Tier2Purchases!$C32-$D$39)+1,IF(Tier2Purchases!$C32<=$D$39,(Tier2Purchases!$C32-Tier2Purchases!$B32)-($D$38-Tier2Purchases!$B32)+1))))) -> 0 | Y31: 365 | Z31: 0 | AA31: =Tier2Purchases!$C32-Tier2Purchases!$B32+1 -> 365 | AB31: TRUE
B32: FY2025 | C32: START DATE | D32: 2024-10-01 | H32: =IF(OR(Tier2Purchases!$B33>$D$7,Tier2Purchases!$C33<$D$6),0,IF(AND(Tier2Purchases!$B33<$D$6,Tier2Purchases!$C33>$D$7),(Tier2Purchases!$C33-Tier2Purchases!$B33)-(Tier2Purchases!$C33-$D$8)-($D$6-Tier2Purchases!$B33),IF(AND(Tier2Purchases!$C33<=$D$7,Tier2Purchases!$B33>=$D$6),($D$7-$D$6)-($D$7-Tier2Purchases!$C33)-(Tier2Purchases!$B33-$D$6)+1,IF(Tier2Purchases!$B33>=$D$6,(Tier2Purchases!$C33-Tier2Purchases!$B33)-(Tier2Purchases!$C33-$D$8),IF(Tier2Purchases!$C33<=$D$7,(Tier2Purchases!$C33-Tier2Purchases!$B33)-($D$6-Tier2Purchases!$B33)+1))))) -> 0 | I32: =IF(OR(Tier2Purchases!$B33>$D$9,Tier2Purchases!$C33<$D$8),0,IF(AND(Tier2Purchases!$B33<$D$8,Tier2Purchases!$C33>$D$9),(Tier2Purchases!$C33-Tier2Purchases!$B33)-(Tier2Purchases!$C33-$D$10)-($D$8-Tier2Purchases!$B33),IF(AND(Tier2Purchases!$C33<=$D$9,Tier2Purchases!$B33>=$D$8),($D$9-$D$8)-($D$9-Tier2Purchases!$C33)-(Tier2Purchases!$B33-$D$8)+1,IF(Tier2Purchases!$B33>=$D$8,(Tier2Purchases!$C33-Tier2Purchases!$B33)-(Tier2Purchases!$C33-$D$10),IF(Tier2Purchases!$C33<=$D$9,(Tier2Purchases!$C33-Tier2Purchases!$B33)-($D$8-Tier2Purchases!$B33)+1))))) -> 0 | J32: =IF(OR(Tier2Purchases!$B33>$D$11,Tier2Purchases!$C33<$D$10),0,IF(AND(Tier2Purchases!$B33<$D$10,Tier2Purchases!$C33>$D$11),(Tier2Purchases!$C33-Tier2Purchases!$B33)-(Tier2Purchases!$C33-$D$12)-($D$10-Tier2Purchases!$B33),IF(AND(Tier2Purchases!$C33<=$D$11,Tier2Purchases!$B33>=$D$10),($D$11-$D$10)-($D$11-Tier2Purchases!$C33)-(Tier2Purchases!$B33-$D$10)+1,IF(Tier2Purchases!$B33>=$D$10,(Tier2Purchases!$C33-Tier2Purchases!$B33)-(Tier2Purchases!$C33-$D$12),IF(Tier2Purchases!$C33<=$D$11,(Tier2Purchases!$C33-Tier2Purchases!$B33)-($D$10-Tier2Purchases!$B33)+1))))) -> 0 | K32: =IF(OR(Tier2Purchases!$B33>$D$13,Tier2Purchases!$C33<$D$12),0,IF(AND(Tier2Purchases!$B33<$D$12,Tier2Purchases!$C33>$D$13),(Tier2Purchases!$C33-Tier2Purchases!$B33)-(Tier2Purchases!$C33-$D$14)-($D$12-Tier2Purchases!$B33),IF(AND(Tier2Purchases!$C33<=$D$13,Tier2Purchases!$B33>=$D$12),($D$13-$D$12)-($D$13-Tier2Purchases!$C33)-(Tier2Purchases!$B33-$D$12)+1,IF(Tier2Purchases!$B33>=$D$12,(Tier2Purchases!$C33-Tier2Purchases!$B33)-(Tier2Purchases!$C33-$D$14),IF(Tier2Purchases!$C33<=$D$13,(Tier2Purchases!$C33-Tier2Purchases!$B33)-($D$12-Tier2Purchases!$B33)+1))))) -> 0 | L32: =IF(OR(Tier2Purchases!$B33>$D$15,Tier2Purchases!$C33<$D$14),0,IF(AND(Tier2Purchases!$B33<$D$14,Tier2Purchases!$C33>$D$15),(Tier2Purchases!$C33-Tier2Purchases!$B33)-(Tier2Purchases!$C33-$D$16)-($D$14-Tier2Purchases!$B33),IF(AND(Tier2Purchases!$C33<=$D$15,Tier2Purchases!$B33>=$D$14),($D$15-$D$14)-($D$15-Tier2Purchases!$C33)-(Tier2Purchases!$B33-$D$14)+1,IF(Tier2Purchases!$B33>=$D$14,(Tier2Purchases!$C33-Tier2Purchases!$B33)-(Tier2Purchases!$C33-$D$16),IF(Tier2Purchases!$C33<=$D$15,(Tier2Purchases!$C33-Tier2Purchases!$B33)-($D$14-Tier2Purchases!$B33)+1))))) -> 0 | M32: =IF(OR(Tier2Purchases!$B33>$D$17,Tier2Purchases!$C33<$D$16),0,IF(AND(Tier2Purchases!$B33<$D$16,Tier2Purchases!$C33>$D$17),(Tier2Purchases!$C33-Tier2Purchases!$B33)-(Tier2Purchases!$C33-$D$18)-($D$16-Tier2Purchases!$B33),IF(AND(Tier2Purchases!$C33<=$D$17,Tier2Purchases!$B33>=$D$16),($D$17-$D$16)-($D$17-Tier2Purchases!$C33)-(Tier2Purchases!$B33-$D$16)+1,IF(Tier2Purchases!$B33>=$D$16,(Tier2Purchases!$C33-Tier2Purchases!$B33)-(Tier2Purchases!$C33-$D$18),IF(Tier2Purchases!$C33<=$D$17,(Tier2Purchases!$C33-Tier2Purchases!$B33)-($D$16-Tier2Purchases!$B33)+1))))) -> 0 | N32: =IF(OR(Tier2Purchases!$B33>$D$19,Tier2Purchases!$C33<$D$18),0,IF(AND(Tier2Purchases!$B33<$D$18,Tier2Purchases!$C33>$D$19),(Tier2Purchases!$C33-Tier2Purchases!$B33)-(Tier2Purchases!$C33-$D$20)-($D$18-Tier2Purchases!$B33),IF(AND(Tier2Purchases!$C33<=$D$19,Tier2Purchases!$B33>=$D$18),($D$19-$D$18)-($D$19-Tier2Purchases!$C33)-(Tier2Purchases!$B33-$D$18)+1,IF(Tier2Purchases!$B33>=$D$18,(Tier2Purchases!$C33-Tier2Purchases!$B33)-(Tier2Purchases!$C33-$D$20),IF(Tier2Purchases!$C33<=$D$19,(Tier2Purchases!$C33-Tier2Purchases!$B33)-($D$18-Tier2Purchases!$B33)+1))))) -> 0 | O32: =IF(OR(Tier2Purchases!$B33>$D$21,Tier2Purchases!$C33<$D$20),0,IF(AND(Tier2Purchases!$B33<$D$20,Tier2Purchases!$C33>$D$21),(Tier2Purchases!$C33-Tier2Purchases!$B33)-(Tier2Purchases!$C33-$D$22)-($D$20-Tier2Purchases!$B33),IF(AND(Tier2Purchases!$C33<=$D$21,Tier2Purchases!$B33>=$D$20),($D$21-$D$20)-($D$21-Tier2Purchases!$C33)-(Tier2Purchases!$B33-$D$20)+1,IF(Tier2Purchases!$B33>=$D$20,(Tier2Purchases!$C33-Tier2Purchases!$B33)-(Tier2Purchases!$C33-$D$22),IF(Tier2Purchases!$C33<=$D$21,(Tier2Purchases!$C33-Tier2Purchases!$B33)-($D$20-Tier2Purchases!$B33)+1))))) -> 365 | P32: =IF(OR(Tier2Purchases!$B33>$D$23,Tier2Purchases!$C33<$D$22),0,IF(AND(Tier2Purchases!$B33<$D$22,Tier2Purchases!$C33>$D$23),(Tier2Purchases!$C33-Tier2Purchases!$B33)-(Tier2Purchases!$C33-$D$24)-($D$22-Tier2Purchases!$B33),IF(AND(Tier2Purchases!$C33<=$D$23,Tier2Purchases!$B33>=$D$22),($D$23-$D$22)-($D$23-Tier2Purchases!$C33)-(Tier2Purchases!$B33-$D$22)+1,IF(Tier2Purchases!$B33>=$D$22,(Tier2Purchases!$C33-Tier2Purchases!$B33)-(Tier2Purchases!$C33-$D$24),IF(Tier2Purchases!$C33<=$D$23,(Tier2Purchases!$C33-Tier2Purchases!$B33)-($D$22-Tier2Purchases!$B33)+1))))) -> 0 | Q32: =IF(OR(Tier2Purchases!$B33>$D$25,Tier2Purchases!$C33<$D$24),0,IF(AND(Tier2Purchases!$B33<$D$24,Tier2Purchases!$C33>$D$25),(Tier2Purchases!$C33-Tier2Purchases!$B33)-(Tier2Purchases!$C33-$D$26)-($D$24-Tier2Purchases!$B33),IF(AND(Tier2Purchases!$C33<=$D$25,Tier2Purchases!$B33>=$D$24),($D$25-$D$24)-($D$25-Tier2Purchases!$C33)-(Tier2Purchases!$B33-$D$24)+1,IF(Tier2Purchases!$B33>=$D$24,(Tier2Purchases!$C33-Tier2Purchases!$B33)-(Tier2Purchases!$C33-$D$26),IF(Tier2Purchases!$C33<=$D$25,(Tier2Purchases!$C33-Tier2Purchases!$B33)-($D$24-Tier2Purchases!$B33)+1))))) -> 0 | R32: =IF(OR(Tier2Purchases!$B33>$D$27,Tier2Purchases!$C33<$D$26),0,IF(AND(Tier2Purchases!$B33<$D$26,Tier2Purchases!$C33>$D$27),(Tier2Purchases!$C33-Tier2Purchases!$B33)-(Tier2Purchases!$C33-$D$28)-($D$26-Tier2Purchases!$B33),IF(AND(Tier2Purchases!$C33<=$D$27,Tier2Purchases!$B33>=$D$26),($D$27-$D$26)-($D$27-Tier2Purchases!$C33)-(Tier2Purchases!$B33-$D$26)+1,IF(Tier2Purchases!$B33>=$D$26,(Tier2Purchases!$C33-Tier2Purchases!$B33)-(Tier2Purchases!$C33-$D$28),IF(Tier2Purchases!$C33<=$D$27,(Tier2Purchases!$C33-Tier2Purchases!$B33)-($D$26-Tier2Purchases!$B33)+1))))) -> 0 | S32: =IF(OR(Tier2Purchases!$B33>$D$29,Tier2Purchases!$C33<$D$28),0,IF(AND(Tier2Purchases!$B33<$D$28,Tier2Purchases!$C33>$D$29),(Tier2Purchases!$C33-Tier2Purchases!$B33)-(Tier2Purchases!$C33-$D$30)-($D$28-Tier2Purchases!$B33),IF(AND(Tier2Purchases!$C33<=$D$29,Tier2Purchases!$B33>=$D$28),($D$29-$D$28)-($D$29-Tier2Purchases!$C33)-(Tier2Purchases!$B33-$D$28)+1,IF(Tier2Purchases!$B33>=$D$28,(Tier2Purchases!$C33-Tier2Purchases!$B33)-(Tier2Purchases!$C33-$D$30),IF(Tier2Purchases!$C33<=$D$29,(Tier2Purchases!$C33-Tier2Purchases!$B33)-($D$28-Tier2Purchases!$B33)+1))))) -> 0 | T32: =IF(OR(Tier2Purchases!$B33>$D$31,Tier2Purchases!$C33<$D$30),0,IF(AND(Tier2Purchases!$B33<$D$30,Tier2Purchases!$C33>$D$31),(Tier2Purchases!$C33-Tier2Purchases!$B33)-(Tier2Purchases!$C33-$D$32)-($D$30-Tier2Purchases!$B33),IF(AND(Tier2Purchases!$C33<=$D$31,Tier2Purchases!$B33>=$D$30),($D$31-$D$30)-($D$31-Tier2Purchases!$C33)-(Tier2Purchases!$B33-$D$30)+1,IF(Tier2Purchases!$B33>=$D$30,(Tier2Purchases!$C33-Tier2Purchases!$B33)-(Tier2Purchases!$C33-$D$32),IF(Tier2Purchases!$C33<=$D$31,(Tier2Purchases!$C33-Tier2Purchases!$B33)-($D$30-Tier2Purchases!$B33)+1))))) -> 0 | U32: =IF(OR(Tier2Purchases!$B33>$D$33,Tier2Purchases!$C33<$D$32),0,IF(AND(Tier2Purchases!$B33<$D$32,Tier2Purchases!$C33>$D$33),(Tier2Purchases!$C33-Tier2Purchases!$B33)-(Tier2Purchases!$C33-$D$34)-($D$32-Tier2Purchases!$B33),IF(AND(Tier2Purchases!$C33<=$D$33,Tier2Purchases!$B33>=$D$32),($D$33-$D$32)-($D$33-Tier2Purchases!$C33)-(Tier2Purchases!$B33-$D$32)+1,IF(Tier2Purchases!$B33>=$D$32,(Tier2Purchases!$C33-Tier2Purchases!$B33)-(Tier2Purchases!$C33-$D$34),IF(Tier2Purchases!$C33<=$D$33,(Tier2Purchases!$C33-Tier2Purchases!$B33)-($D$32-Tier2Purchases!$B33)+1))))) -> 0 | V32: =IF(OR(Tier2Purchases!$B33>$D$35,Tier2Purchases!$C33<$D$34),0,IF(AND(Tier2Purchases!$B33<$D$34,Tier2Purchases!$C33>$D$35),(Tier2Purchases!$C33-Tier2Purchases!$B33)-(Tier2Purchases!$C33-$D$36)-($D$34-Tier2Purchases!$B33),IF(AND(Tier2Purchases!$C33<=$D$35,Tier2Purchases!$B33>=$D$34),($D$35-$D$34)-($D$35-Tier2Purchases!$C33)-(Tier2Purchases!$B33-$D$34)+1,IF(Tier2Purchases!$B33>=$D$34,(Tier2Purchases!$C33-Tier2Purchases!$B33)-(Tier2Purchases!$C33-$D$36),IF(Tier2Purchases!$C33<=$D$35,(Tier2Purchases!$C33-Tier2Purchases!$B33)-($D$34-Tier2Purchases!$B33)+1))))) -> 0 | W32: =IF(OR(Tier2Purchases!$B33>$D$37,Tier2Purchases!$C33<$D$36),0,IF(AND(Tier2Purchases!$B33<$D$36,Tier2Purchases!$C33>$D$37),(Tier2Purchases!$C33-Tier2Purchases!$B33)-(Tier2Purchases!$C33-$D$38)-($D$36-Tier2Purchases!$B33),IF(AND(Tier2Purchases!$C33<=$D$37,Tier2Purchases!$B33>=$D$36),($D$37-$D$36)-($D$37-Tier2Purchases!$C33)-(Tier2Purchases!$B33-$D$36)+1,IF(Tier2Purchases!$B33>=$D$36,(Tier2Purchases!$C33-Tier2Purchases!$B33)-(Tier2Purchases!$C33-$D$38),IF(Tier2Purchases!$C33<=$D$37,(Tier2Purchases!$C33-Tier2Purchases!$B33)-($D$36-Tier2Purchases!$B33)+1))))) -> 0 | X32: =IF(OR(Tier2Purchases!$B33>$D$39,Tier2Purchases!$C33<$D$38),0,IF(AND(Tier2Purchases!$B33<$D$38,Tier2Purchases!$C33>$D$39),(Tier2Purchases!$C33-Tier2Purchases!$B33)-(Tier2Purchases!$C33-$D$39)-($D$38-Tier2Purchases!$B33)+1,IF(AND(Tier2Purchases!$C33<=$D$39,Tier2Purchases!$B33>=$D$38),($D$39-$D$38)-($D$39-Tier2Purchases!$C33)-(Tier2Purchases!$B33-$D$38)+1,IF(Tier2Purchases!$B33>=$D$38,(Tier2Purchases!$C33-Tier2Purchases!$B33)-(Tier2Purchases!$C33-$D$39)+1,IF(Tier2Purchases!$C33<=$D$39,(Tier2Purchases!$C33-Tier2Purchases!$B33)-($D$38-Tier2Purchases!$B33)+1))))) -> 0 | Y32: 365 | Z32: 0 | AA32: =Tier2Purchases!$C33-Tier2Purchases!$B33+1 -> 365 | AB32: TRUE
C33: END DATE | D33: 2025-09-30 | H33: =IF(OR(Tier2Purchases!$B34>$D$7,Tier2Purchases!$C34<$D$6),0,IF(AND(Tier2Purchases!$B34<$D$6,Tier2Purchases!$C34>$D$7),(Tier2Purchases!$C34-Tier2Purchases!$B34)-(Tier2Purchases!$C34-$D$8)-($D$6-Tier2Purchases!$B34),IF(AND(Tier2Purchases!$C34<=$D$7,Tier2Purchases!$B34>=$D$6),($D$7-$D$6)-($D$7-Tier2Purchases!$C34)-(Tier2Purchases!$B34-$D$6)+1,IF(Tier2Purchases!$B34>=$D$6,(Tier2Purchases!$C34-Tier2Purchases!$B34)-(Tier2Purchases!$C34-$D$8),IF(Tier2Purchases!$C34<=$D$7,(Tier2Purchases!$C34-Tier2Purchases!$B34)-($D$6-Tier2Purchases!$B34)+1))))) -> 0 | I33: =IF(OR(Tier2Purchases!$B34>$D$9,Tier2Purchases!$C34<$D$8),0,IF(AND(Tier2Purchases!$B34<$D$8,Tier2Purchases!$C34>$D$9),(Tier2Purchases!$C34-Tier2Purchases!$B34)-(Tier2Purchases!$C34-$D$10)-($D$8-Tier2Purchases!$B34),IF(AND(Tier2Purchases!$C34<=$D$9,Tier2Purchases!$B34>=$D$8),($D$9-$D$8)-($D$9-Tier2Purchases!$C34)-(Tier2Purchases!$B34-$D$8)+1,IF(Tier2Purchases!$B34>=$D$8,(Tier2Purchases!$C34-Tier2Purchases!$B34)-(Tier2Purchases!$C34-$D$10),IF(Tier2Purchases!$C34<=$D$9,(Tier2Purchases!$C34-Tier2Purchases!$B34)-($D$8-Tier2Purchases!$B34)+1))))) -> 0 | J33: =IF(OR(Tier2Purchases!$B34>$D$11,Tier2Purchases!$C34<$D$10),0,IF(AND(Tier2Purchases!$B34<$D$10,Tier2Purchases!$C34>$D$11),(Tier2Purchases!$C34-Tier2Purchases!$B34)-(Tier2Purchases!$C34-$D$12)-($D$10-Tier2Purchases!$B34),IF(AND(Tier2Purchases!$C34<=$D$11,Tier2Purchases!$B34>=$D$10),($D$11-$D$10)-($D$11-Tier2Purchases!$C34)-(Tier2Purchases!$B34-$D$10)+1,IF(Tier2Purchases!$B34>=$D$10,(Tier2Purchases!$C34-Tier2Purchases!$B34)-(Tier2Purchases!$C34-$D$12),IF(Tier2Purchases!$C34<=$D$11,(Tier2Purchases!$C34-Tier2Purchases!$B34)-($D$10-Tier2Purchases!$B34)+1))))) -> 0 | K33: =IF(OR(Tier2Purchases!$B34>$D$13,Tier2Purchases!$C34<$D$12),0,IF(AND(Tier2Purchases!$B34<$D$12,Tier2Purchases!$C34>$D$13),(Tier2Purchases!$C34-Tier2Purchases!$B34)-(Tier2Purchases!$C34-$D$14)-($D$12-Tier2Purchases!$B34),IF(AND(Tier2Purchases!$C34<=$D$13,Tier2Purchases!$B34>=$D$12),($D$13-$D$12)-($D$13-Tier2Purchases!$C34)-(Tier2Purchases!$B34-$D$12)+1,IF(Tier2Purchases!$B34>=$D$12,(Tier2Purchases!$C34-Tier2Purchases!$B34)-(Tier2Purchases!$C34-$D$14),IF(Tier2Purchases!$C34<=$D$13,(Tier2Purchases!$C34-Tier2Purchases!$B34)-($D$12-Tier2Purchases!$B34)+1))))) -> 0 | L33: =IF(OR(Tier2Purchases!$B34>$D$15,Tier2Purchases!$C34<$D$14),0,IF(AND(Tier2Purchases!$B34<$D$14,Tier2Purchases!$C34>$D$15),(Tier2Purchases!$C34-Tier2Purchases!$B34)-(Tier2Purchases!$C34-$D$16)-($D$14-Tier2Purchases!$B34),IF(AND(Tier2Purchases!$C34<=$D$15,Tier2Purchases!$B34>=$D$14),($D$15-$D$14)-($D$15-Tier2Purchases!$C34)-(Tier2Purchases!$B34-$D$14)+1,IF(Tier2Purchases!$B34>=$D$14,(Tier2Purchases!$C34-Tier2Purchases!$B34)-(Tier2Purchases!$C34-$D$16),IF(Tier2Purchases!$C34<=$D$15,(Tier2Purchases!$C34-Tier2Purchases!$B34)-($D$14-Tier2Purchases!$B34)+1))))) -> 0 | M33: =IF(OR(Tier2Purchases!$B34>$D$17,Tier2Purchases!$C34<$D$16),0,IF(AND(Tier2Purchases!$B34<$D$16,Tier2Purchases!$C34>$D$17),(Tier2Purchases!$C34-Tier2Purchases!$B34)-(Tier2Purchases!$C34-$D$18)-($D$16-Tier2Purchases!$B34),IF(AND(Tier2Purchases!$C34<=$D$17,Tier2Purchases!$B34>=$D$16),($D$17-$D$16)-($D$17-Tier2Purchases!$C34)-(Tier2Purchases!$B34-$D$16)+1,IF(Tier2Purchases!$B34>=$D$16,(Tier2Purchases!$C34-Tier2Purchases!$B34)-(Tier2Purchases!$C34-$D$18),IF(Tier2Purchases!$C34<=$D$17,(Tier2Purchases!$C34-Tier2Purchases!$B34)-($D$16-Tier2Purchases!$B34)+1))))) -> 0 | N33: =IF(OR(Tier2Purchases!$B34>$D$19,Tier2Purchases!$C34<$D$18),0,IF(AND(Tier2Purchases!$B34<$D$18,Tier2Purchases!$C34>$D$19),(Tier2Purchases!$C34-Tier2Purchases!$B34)-(Tier2Purchases!$C34-$D$20)-($D$18-Tier2Purchases!$B34),IF(AND(Tier2Purchases!$C34<=$D$19,Tier2Purchases!$B34>=$D$18),($D$19-$D$18)-($D$19-Tier2Purchases!$C34)-(Tier2Purchases!$B34-$D$18)+1,IF(Tier2Purchases!$B34>=$D$18,(Tier2Purchases!$C34-Tier2Purchases!$B34)-(Tier2Purchases!$C34-$D$20),IF(Tier2Purchases!$C34<=$D$19,(Tier2Purchases!$C34-Tier2Purchases!$B34)-($D$18-Tier2Purchases!$B34)+1))))) -> 0 | O33: =IF(OR(Tier2Purchases!$B34>$D$21,Tier2Purchases!$C34<$D$20),0,IF(AND(Tier2Purchases!$B34<$D$20,Tier2Purchases!$C34>$D$21),(Tier2Purchases!$C34-Tier2Purchases!$B34)-(Tier2Purchases!$C34-$D$22)-($D$20-Tier2Purchases!$B34),IF(AND(Tier2Purchases!$C34<=$D$21,Tier2Purchases!$B34>=$D$20),($D$21-$D$20)-($D$21-Tier2Purchases!$C34)-(Tier2Purchases!$B34-$D$20)+1,IF(Tier2Purchases!$B34>=$D$20,(Tier2Purchases!$C34-Tier2Purchases!$B34)-(Tier2Purchases!$C34-$D$22),IF(Tier2Purchases!$C34<=$D$21,(Tier2Purchases!$C34-Tier2Purchases!$B34)-($D$20-Tier2Purchases!$B34)+1))))) -> 0 | P33: =IF(OR(Tier2Purchases!$B34>$D$23,Tier2Purchases!$C34<$D$22),0,IF(AND(Tier2Purchases!$B34<$D$22,Tier2Purchases!$C34>$D$23),(Tier2Purchases!$C34-Tier2Purchases!$B34)-(Tier2Purchases!$C34-$D$24)-($D$22-Tier2Purchases!$B34),IF(AND(Tier2Purchases!$C34<=$D$23,Tier2Purchases!$B34>=$D$22),($D$23-$D$22)-($D$23-Tier2Purchases!$C34)-(Tier2Purchases!$B34-$D$22)+1,IF(Tier2Purchases!$B34>=$D$22,(Tier2Purchases!$C34-Tier2Purchases!$B34)-(Tier2Purchases!$C34-$D$24),IF(Tier2Purchases!$C34<=$D$23,(Tier2Purchases!$C34-Tier2Purchases!$B34)-($D$22-Tier2Purchases!$B34)+1))))) -> 0 | Q33: =IF(OR(Tier2Purchases!$B34>$D$25,Tier2Purchases!$C34<$D$24),0,IF(AND(Tier2Purchases!$B34<$D$24,Tier2Purchases!$C34>$D$25),(Tier2Purchases!$C34-Tier2Purchases!$B34)-(Tier2Purchases!$C34-$D$26)-($D$24-Tier2Purchases!$B34),IF(AND(Tier2Purchases!$C34<=$D$25,Tier2Purchases!$B34>=$D$24),($D$25-$D$24)-($D$25-Tier2Purchases!$C34)-(Tier2Purchases!$B34-$D$24)+1,IF(Tier2Purchases!$B34>=$D$24,(Tier2Purchases!$C34-Tier2Purchases!$B34)-(Tier2Purchases!$C34-$D$26),IF(Tier2Purchases!$C34<=$D$25,(Tier2Purchases!$C34-Tier2Purchases!$B34)-($D$24-Tier2Purchases!$B34)+1))))) -> 0 | R33: =IF(OR(Tier2Purchases!$B34>$D$27,Tier2Purchases!$C34<$D$26),0,IF(AND(Tier2Purchases!$B34<$D$26,Tier2Purchases!$C34>$D$27),(Tier2Purchases!$C34-Tier2Purchases!$B34)-(Tier2Purchases!$C34-$D$28)-($D$26-Tier2Purchases!$B34),IF(AND(Tier2Purchases!$C34<=$D$27,Tier2Purchases!$B34>=$D$26),($D$27-$D$26)-($D$27-Tier2Purchases!$C34)-(Tier2Purchases!$B34-$D$26)+1,IF(Tier2Purchases!$B34>=$D$26,(Tier2Purchases!$C34-Tier2Purchases!$B34)-(Tier2Purchases!$C34-$D$28),IF(Tier2Purchases!$C34<=$D$27,(Tier2Purchases!$C34-Tier2Purchases!$B34)-($D$26-Tier2Purchases!$B34)+1))))) -> 0 | S33: =IF(OR(Tier2Purchases!$B34>$D$29,Tier2Purchases!$C34<$D$28),0,IF(AND(Tier2Purchases!$B34<$D$28,Tier2Purchases!$C34>$D$29),(Tier2Purchases!$C34-Tier2Purchases!$B34)-(Tier2Purchases!$C34-$D$30)-($D$28-Tier2Purchases!$B34),IF(AND(Tier2Purchases!$C34<=$D$29,Tier2Purchases!$B34>=$D$28),($D$29-$D$28)-($D$29-Tier2Purchases!$C34)-(Tier2Purchases!$B34-$D$28)+1,IF(Tier2Purchases!$B34>=$D$28,(Tier2Purchases!$C34-Tier2Purchases!$B34)-(Tier2Purchases!$C34-$D$30),IF(Tier2Purchases!$C34<=$D$29,(Tier2Purchases!$C34-Tier2Purchases!$B34)-($D$28-Tier2Purchases!$B34)+1))))) -> 0 | T33: =IF(OR(Tier2Purchases!$B34>$D$31,Tier2Purchases!$C34<$D$30),0,IF(AND(Tier2Purchases!$B34<$D$30,Tier2Purchases!$C34>$D$31),(Tier2Purchases!$C34-Tier2Purchases!$B34)-(Tier2Purchases!$C34-$D$32)-($D$30-Tier2Purchases!$B34),IF(AND(Tier2Purchases!$C34<=$D$31,Tier2Purchases!$B34>=$D$30),($D$31-$D$30)-($D$31-Tier2Purchases!$C34)-(Tier2Purchases!$B34-$D$30)+1,IF(Tier2Purchases!$B34>=$D$30,(Tier2Purchases!$C34-Tier2Purchases!$B34)-(Tier2Purchases!$C34-$D$32),IF(Tier2Purchases!$C34<=$D$31,(Tier2Purchases!$C34-Tier2Purchases!$B34)-($D$30-Tier2Purchases!$B34)+1))))) -> 0 | U33: =IF(OR(Tier2Purchases!$B34>$D$33,Tier2Purchases!$C34<$D$32),0,IF(AND(Tier2Purchases!$B34<$D$32,Tier2Purchases!$C34>$D$33),(Tier2Purchases!$C34-Tier2Purchases!$B34)-(Tier2Purchases!$C34-$D$34)-($D$32-Tier2Purchases!$B34),IF(AND(Tier2Purchases!$C34<=$D$33,Tier2Purchases!$B34>=$D$32),($D$33-$D$32)-($D$33-Tier2Purchases!$C34)-(Tier2Purchases!$B34-$D$32)+1,IF(Tier2Purchases!$B34>=$D$32,(Tier2Purchases!$C34-Tier2Purchases!$B34)-(Tier2Purchases!$C34-$D$34),IF(Tier2Purchases!$C34<=$D$33,(Tier2Purchases!$C34-Tier2Purchases!$B34)-($D$32-Tier2Purchases!$B34)+1))))) -> 0 | V33: =IF(OR(Tier2Purchases!$B34>$D$35,Tier2Purchases!$C34<$D$34),0,IF(AND(Tier2Purchases!$B34<$D$34,Tier2Purchases!$C34>$D$35),(Tier2Purchases!$C34-Tier2Purchases!$B34)-(Tier2Purchases!$C34-$D$36)-($D$34-Tier2Purchases!$B34),IF(AND(Tier2Purchases!$C34<=$D$35,Tier2Purchases!$B34>=$D$34),($D$35-$D$34)-($D$35-Tier2Purchases!$C34)-(Tier2Purchases!$B34-$D$34)+1,IF(Tier2Purchases!$B34>=$D$34,(Tier2Purchases!$C34-Tier2Purchases!$B34)-(Tier2Purchases!$C34-$D$36),IF(Tier2Purchases!$C34<=$D$35,(Tier2Purchases!$C34-Tier2Purchases!$B34)-($D$34-Tier2Purchases!$B34)+1))))) -> 0 | W33: =IF(OR(Tier2Purchases!$B34>$D$37,Tier2Purchases!$C34<$D$36),0,IF(AND(Tier2Purchases!$B34<$D$36,Tier2Purchases!$C34>$D$37),(Tier2Purchases!$C34-Tier2Purchases!$B34)-(Tier2Purchases!$C34-$D$38)-($D$36-Tier2Purchases!$B34),IF(AND(Tier2Purchases!$C34<=$D$37,Tier2Purchases!$B34>=$D$36),($D$37-$D$36)-($D$37-Tier2Purchases!$C34)-(Tier2Purchases!$B34-$D$36)+1,IF(Tier2Purchases!$B34>=$D$36,(Tier2Purchases!$C34-Tier2Purchases!$B34)-(Tier2Purchases!$C34-$D$38),IF(Tier2Purchases!$C34<=$D$37,(Tier2Purchases!$C34-Tier2Purchases!$B34)-($D$36-Tier2Purchases!$B34)+1))))) -> 0 | X33: =IF(OR(Tier2Purchases!$B34>$D$39,Tier2Purchases!$C34<$D$38),0,IF(AND(Tier2Purchases!$B34<$D$38,Tier2Purchases!$C34>$D$39),(Tier2Purchases!$C34-Tier2Purchases!$B34)-(Tier2Purchases!$C34-$D$39)-($D$38-Tier2Purchases!$B34)+1,IF(AND(Tier2Purchases!$C34<=$D$39,Tier2Purchases!$B34>=$D$38),($D$39-$D$38)-($D$39-Tier2Purchases!$C34)-(Tier2Purchases!$B34-$D$38)+1,IF(Tier2Purchases!$B34>=$D$38,(Tier2Purchases!$C34-Tier2Purchases!$B34)-(Tier2Purchases!$C34-$D$39)+1,IF(Tier2Purchases!$C34<=$D$39,(Tier2Purchases!$C34-Tier2Purchases!$B34)-($D$38-Tier2Purchases!$B34)+1))))) -> 0 | Y33: 0 | Z33: 1 | AA33: =Tier2Purchases!$C34-Tier2Purchases!$B34+1 -> 1 | AB33: TRUE
B34: FY2026 | C34: START DATE | D34: 2025-10-01 | H34: =IF(OR(Tier2Purchases!$B35>$D$7,Tier2Purchases!$C35<$D$6),0,IF(AND(Tier2Purchases!$B35<$D$6,Tier2Purchases!$C35>$D$7),(Tier2Purchases!$C35-Tier2Purchases!$B35)-(Tier2Purchases!$C35-$D$8)-($D$6-Tier2Purchases!$B35),IF(AND(Tier2Purchases!$C35<=$D$7,Tier2Purchases!$B35>=$D$6),($D$7-$D$6)-($D$7-Tier2Purchases!$C35)-(Tier2Purchases!$B35-$D$6)+1,IF(Tier2Purchases!$B35>=$D$6,(Tier2Purchases!$C35-Tier2Purchases!$B35)-(Tier2Purchases!$C35-$D$8),IF(Tier2Purchases!$C35<=$D$7,(Tier2Purchases!$C35-Tier2Purchases!$B35)-($D$6-Tier2Purchases!$B35)+1))))) -> 0 | I34: =IF(OR(Tier2Purchases!$B35>$D$9,Tier2Purchases!$C35<$D$8),0,IF(AND(Tier2Purchases!$B35<$D$8,Tier2Purchases!$C35>$D$9),(Tier2Purchases!$C35-Tier2Purchases!$B35)-(Tier2Purchases!$C35-$D$10)-($D$8-Tier2Purchases!$B35),IF(AND(Tier2Purchases!$C35<=$D$9,Tier2Purchases!$B35>=$D$8),($D$9-$D$8)-($D$9-Tier2Purchases!$C35)-(Tier2Purchases!$B35-$D$8)+1,IF(Tier2Purchases!$B35>=$D$8,(Tier2Purchases!$C35-Tier2Purchases!$B35)-(Tier2Purchases!$C35-$D$10),IF(Tier2Purchases!$C35<=$D$9,(Tier2Purchases!$C35-Tier2Purchases!$B35)-($D$8-Tier2Purchases!$B35)+1))))) -> 0 | J34: =IF(OR(Tier2Purchases!$B35>$D$11,Tier2Purchases!$C35<$D$10),0,IF(AND(Tier2Purchases!$B35<$D$10,Tier2Purchases!$C35>$D$11),(Tier2Purchases!$C35-Tier2Purchases!$B35)-(Tier2Purchases!$C35-$D$12)-($D$10-Tier2Purchases!$B35),IF(AND(Tier2Purchases!$C35<=$D$11,Tier2Purchases!$B35>=$D$10),($D$11-$D$10)-($D$11-Tier2Purchases!$C35)-(Tier2Purchases!$B35-$D$10)+1,IF(Tier2Purchases!$B35>=$D$10,(Tier2Purchases!$C35-Tier2Purchases!$B35)-(Tier2Purchases!$C35-$D$12),IF(Tier2Purchases!$C35<=$D$11,(Tier2Purchases!$C35-Tier2Purchases!$B35)-($D$10-Tier2Purchases!$B35)+1))))) -> 0 | K34: =IF(OR(Tier2Purchases!$B35>$D$13,Tier2Purchases!$C35<$D$12),0,IF(AND(Tier2Purchases!$B35<$D$12,Tier2Purchases!$C35>$D$13),(Tier2Purchases!$C35-Tier2Purchases!$B35)-(Tier2Purchases!$C35-$D$14)-($D$12-Tier2Purchases!$B35),IF(AND(Tier2Purchases!$C35<=$D$13,Tier2Purchases!$B35>=$D$12),($D$13-$D$12)-($D$13-Tier2Purchases!$C35)-(Tier2Purchases!$B35-$D$12)+1,IF(Tier2Purchases!$B35>=$D$12,(Tier2Purchases!$C35-Tier2Purchases!$B35)-(Tier2Purchases!$C35-$D$14),IF(Tier2Purchases!$C35<=$D$13,(Tier2Purchases!$C35-Tier2Purchases!$B35)-($D$12-Tier2Purchases!$B35)+1))))) -> 0 | L34: =IF(OR(Tier2Purchases!$B35>$D$15,Tier2Purchases!$C35<$D$14),0,IF(AND(Tier2Purchases!$B35<$D$14,Tier2Purchases!$C35>$D$15),(Tier2Purchases!$C35-Tier2Purchases!$B35)-(Tier2Purchases!$C35-$D$16)-($D$14-Tier2Purchases!$B35),IF(AND(Tier2Purchases!$C35<=$D$15,Tier2Purchases!$B35>=$D$14),($D$15-$D$14)-($D$15-Tier2Purchases!$C35)-(Tier2Purchases!$B35-$D$14)+1,IF(Tier2Purchases!$B35>=$D$14,(Tier2Purchases!$C35-Tier2Purchases!$B35)-(Tier2Purchases!$C35-$D$16),IF(Tier2Purchases!$C35<=$D$15,(Tier2Purchases!$C35-Tier2Purchases!$B35)-($D$14-Tier2Purchases!$B35)+1))))) -> 0 | M34: =IF(OR(Tier2Purchases!$B35>$D$17,Tier2Purchases!$C35<$D$16),0,IF(AND(Tier2Purchases!$B35<$D$16,Tier2Purchases!$C35>$D$17),(Tier2Purchases!$C35-Tier2Purchases!$B35)-(Tier2Purchases!$C35-$D$18)-($D$16-Tier2Purchases!$B35),IF(AND(Tier2Purchases!$C35<=$D$17,Tier2Purchases!$B35>=$D$16),($D$17-$D$16)-($D$17-Tier2Purchases!$C35)-(Tier2Purchases!$B35-$D$16)+1,IF(Tier2Purchases!$B35>=$D$16,(Tier2Purchases!$C35-Tier2Purchases!$B35)-(Tier2Purchases!$C35-$D$18),IF(Tier2Purchases!$C35<=$D$17,(Tier2Purchases!$C35-Tier2Purchases!$B35)-($D$16-Tier2Purchases!$B35)+1))))) -> 0 | N34: =IF(OR(Tier2Purchases!$B35>$D$19,Tier2Purchases!$C35<$D$18),0,IF(AND(Tier2Purchases!$B35<$D$18,Tier2Purchases!$C35>$D$19),(Tier2Purchases!$C35-Tier2Purchases!$B35)-(Tier2Purchases!$C35-$D$20)-($D$18-Tier2Purchases!$B35),IF(AND(Tier2Purchases!$C35<=$D$19,Tier2Purchases!$B35>=$D$18),($D$19-$D$18)-($D$19-Tier2Purchases!$C35)-(Tier2Purchases!$B35-$D$18)+1,IF(Tier2Purchases!$B35>=$D$18,(Tier2Purchases!$C35-Tier2Purchases!$B35)-(Tier2Purchases!$C35-$D$20),IF(Tier2Purchases!$C35<=$D$19,(Tier2Purchases!$C35-Tier2Purchases!$B35)-($D$18-Tier2Purchases!$B35)+1))))) -> 0 | O34: =IF(OR(Tier2Purchases!$B35>$D$21,Tier2Purchases!$C35<$D$20),0,IF(AND(Tier2Purchases!$B35<$D$20,Tier2Purchases!$C35>$D$21),(Tier2Purchases!$C35-Tier2Purchases!$B35)-(Tier2Purchases!$C35-$D$22)-($D$20-Tier2Purchases!$B35),IF(AND(Tier2Purchases!$C35<=$D$21,Tier2Purchases!$B35>=$D$20),($D$21-$D$20)-($D$21-Tier2Purchases!$C35)-(Tier2Purchases!$B35-$D$20)+1,IF(Tier2Purchases!$B35>=$D$20,(Tier2Purchases!$C35-Tier2Purchases!$B35)-(Tier2Purchases!$C35-$D$22),IF(Tier2Purchases!$C35<=$D$21,(Tier2Purchases!$C35-Tier2Purchases!$B35)-($D$20-Tier2Purchases!$B35)+1))))) -> 0 | P34: =IF(OR(Tier2Purchases!$B35>$D$23,Tier2Purchases!$C35<$D$22),0,IF(AND(Tier2Purchases!$B35<$D$22,Tier2Purchases!$C35>$D$23),(Tier2Purchases!$C35-Tier2Purchases!$B35)-(Tier2Purchases!$C35-$D$24)-($D$22-Tier2Purchases!$B35),IF(AND(Tier2Purchases!$C35<=$D$23,Tier2Purchases!$B35>=$D$22),($D$23-$D$22)-($D$23-Tier2Purchases!$C35)-(Tier2Purchases!$B35-$D$22)+1,IF(Tier2Purchases!$B35>=$D$22,(Tier2Purchases!$C35-Tier2Purchases!$B35)-(Tier2Purchases!$C35-$D$24),IF(Tier2Purchases!$C35<=$D$23,(Tier2Purchases!$C35-Tier2Purchases!$B35)-($D$22-Tier2Purchases!$B35)+1))))) -> 0 | Q34: =IF(OR(Tier2Purchases!$B35>$D$25,Tier2Purchases!$C35<$D$24),0,IF(AND(Tier2Purchases!$B35<$D$24,Tier2Purchases!$C35>$D$25),(Tier2Purchases!$C35-Tier2Purchases!$B35)-(Tier2Purchases!$C35-$D$26)-($D$24-Tier2Purchases!$B35),IF(AND(Tier2Purchases!$C35<=$D$25,Tier2Purchases!$B35>=$D$24),($D$25-$D$24)-($D$25-Tier2Purchases!$C35)-(Tier2Purchases!$B35-$D$24)+1,IF(Tier2Purchases!$B35>=$D$24,(Tier2Purchases!$C35-Tier2Purchases!$B35)-(Tier2Purchases!$C35-$D$26),IF(Tier2Purchases!$C35<=$D$25,(Tier2Purchases!$C35-Tier2Purchases!$B35)-($D$24-Tier2Purchases!$B35)+1))))) -> 0 | R34: =IF(OR(Tier2Purchases!$B35>$D$27,Tier2Purchases!$C35<$D$26),0,IF(AND(Tier2Purchases!$B35<$D$26,Tier2Purchases!$C35>$D$27),(Tier2Purchases!$C35-Tier2Purchases!$B35)-(Tier2Purchases!$C35-$D$28)-($D$26-Tier2Purchases!$B35),IF(AND(Tier2Purchases!$C35<=$D$27,Tier2Purchases!$B35>=$D$26),($D$27-$D$26)-($D$27-Tier2Purchases!$C35)-(Tier2Purchases!$B35-$D$26)+1,IF(Tier2Purchases!$B35>=$D$26,(Tier2Purchases!$C35-Tier2Purchases!$B35)-(Tier2Purchases!$C35-$D$28),IF(Tier2Purchases!$C35<=$D$27,(Tier2Purchases!$C35-Tier2Purchases!$B35)-($D$26-Tier2Purchases!$B35)+1))))) -> 0 | S34: =IF(OR(Tier2Purchases!$B35>$D$29,Tier2Purchases!$C35<$D$28),0,IF(AND(Tier2Purchases!$B35<$D$28,Tier2Purchases!$C35>$D$29),(Tier2Purchases!$C35-Tier2Purchases!$B35)-(Tier2Purchases!$C35-$D$30)-($D$28-Tier2Purchases!$B35),IF(AND(Tier2Purchases!$C35<=$D$29,Tier2Purchases!$B35>=$D$28),($D$29-$D$28)-($D$29-Tier2Purchases!$C35)-(Tier2Purchases!$B35-$D$28)+1,IF(Tier2Purchases!$B35>=$D$28,(Tier2Purchases!$C35-Tier2Purchases!$B35)-(Tier2Purchases!$C35-$D$30),IF(Tier2Purchases!$C35<=$D$29,(Tier2Purchases!$C35-Tier2Purchases!$B35)-($D$28-Tier2Purchases!$B35)+1))))) -> 0 | T34: =IF(OR(Tier2Purchases!$B35>$D$31,Tier2Purchases!$C35<$D$30),0,IF(AND(Tier2Purchases!$B35<$D$30,Tier2Purchases!$C35>$D$31),(Tier2Purchases!$C35-Tier2Purchases!$B35)-(Tier2Purchases!$C35-$D$32)-($D$30-Tier2Purchases!$B35),IF(AND(Tier2Purchases!$C35<=$D$31,Tier2Purchases!$B35>=$D$30),($D$31-$D$30)-($D$31-Tier2Purchases!$C35)-(Tier2Purchases!$B35-$D$30)+1,IF(Tier2Purchases!$B35>=$D$30,(Tier2Purchases!$C35-Tier2Purchases!$B35)-(Tier2Purchases!$C35-$D$32),IF(Tier2Purchases!$C35<=$D$31,(Tier2Purchases!$C35-Tier2Purchases!$B35)-($D$30-Tier2Purchases!$B35)+1))))) -> 0 | U34: =IF(OR(Tier2Purchases!$B35>$D$33,Tier2Purchases!$C35<$D$32),0,IF(AND(Tier2Purchases!$B35<$D$32,Tier2Purchases!$C35>$D$33),(Tier2Purchases!$C35-Tier2Purchases!$B35)-(Tier2Purchases!$C35-$D$34)-($D$32-Tier2Purchases!$B35),IF(AND(Tier2Purchases!$C35<=$D$33,Tier2Purchases!$B35>=$D$32),($D$33-$D$32)-($D$33-Tier2Purchases!$C35)-(Tier2Purchases!$B35-$D$32)+1,IF(Tier2Purchases!$B35>=$D$32,(Tier2Purchases!$C35-Tier2Purchases!$B35)-(Tier2Purchases!$C35-$D$34),IF(Tier2Purchases!$C35<=$D$33,(Tier2Purchases!$C35-Tier2Purchases!$B35)-($D$32-Tier2Purchases!$B35)+1))))) -> 0 | V34: =IF(OR(Tier2Purchases!$B35>$D$35,Tier2Purchases!$C35<$D$34),0,IF(AND(Tier2Purchases!$B35<$D$34,Tier2Purchases!$C35>$D$35),(Tier2Purchases!$C35-Tier2Purchases!$B35)-(Tier2Purchases!$C35-$D$36)-($D$34-Tier2Purchases!$B35),IF(AND(Tier2Purchases!$C35<=$D$35,Tier2Purchases!$B35>=$D$34),($D$35-$D$34)-($D$35-Tier2Purchases!$C35)-(Tier2Purchases!$B35-$D$34)+1,IF(Tier2Purchases!$B35>=$D$34,(Tier2Purchases!$C35-Tier2Purchases!$B35)-(Tier2Purchases!$C35-$D$36),IF(Tier2Purchases!$C35<=$D$35,(Tier2Purchases!$C35-Tier2Purchases!$B35)-($D$34-Tier2Purchases!$B35)+1))))) -> 0 | W34: =IF(OR(Tier2Purchases!$B35>$D$37,Tier2Purchases!$C35<$D$36),0,IF(AND(Tier2Purchases!$B35<$D$36,Tier2Purchases!$C35>$D$37),(Tier2Purchases!$C35-Tier2Purchases!$B35)-(Tier2Purchases!$C35-$D$38)-($D$36-Tier2Purchases!$B35),IF(AND(Tier2Purchases!$C35<=$D$37,Tier2Purchases!$B35>=$D$36),($D$37-$D$36)-($D$37-Tier2Purchases!$C35)-(Tier2Purchases!$B35-$D$36)+1,IF(Tier2Purchases!$B35>=$D$36,(Tier2Purchases!$C35-Tier2Purchases!$B35)-(Tier2Purchases!$C35-$D$38),IF(Tier2Purchases!$C35<=$D$37,(Tier2Purchases!$C35-Tier2Purchases!$B35)-($D$36-Tier2Purchases!$B35)+1))))) -> 0 | X34: =IF(OR(Tier2Purchases!$B35>$D$39,Tier2Purchases!$C35<$D$38),0,IF(AND(Tier2Purchases!$B35<$D$38,Tier2Purchases!$C35>$D$39),(Tier2Purchases!$C35-Tier2Purchases!$B35)-(Tier2Purchases!$C35-$D$39)-($D$38-Tier2Purchases!$B35)+1,IF(AND(Tier2Purchases!$C35<=$D$39,Tier2Purchases!$B35>=$D$38),($D$39-$D$38)-($D$39-Tier2Purchases!$C35)-(Tier2Purchases!$B35-$D$38)+1,IF(Tier2Purchases!$B35>=$D$38,(Tier2Purchases!$C35-Tier2Purchases!$B35)-(Tier2Purchases!$C35-$D$39)+1,IF(Tier2Purchases!$C35<=$D$39,(Tier2Purchases!$C35-Tier2Purchases!$B35)-($D$38-Tier2Purchases!$B35)+1))))) -> 0 | Y34: 0 | Z34: 1 | AA34: =Tier2Purchases!$C35-Tier2Purchases!$B35+1 -> 1 | AB34: TRUE
